Workbook

Sheet Cover
A1: THE GOVERNMENT OF THE GAMBIA
A13: INTEGRATED HOUSEHOLD SURVEY
A14: 2015/16
A16: Volume I
A17: Statistical Abstract
A31: Gambia Bureau of Statistics
A32: Banjul, The Gambia
A33: October 2017

Sheet Copyright
A1: COPYRIGHT RESERVED
A5: Extracts may be published
A7: if source is duly acknowledged.
A23: Additional information on the IHS 2015/16 survey can be obtained from the Statistician General, Gambia Bureau of Statistics, P. O. Box 3504, Serekunda, The Gambia
A28: Tel. +220 4377847: Fax: +220 4377848

Sheet Map of Gambia
A1: The Gambia: Administartive Boundaries

Sheet TOC
A1: Table of Contents
D2: Page
A3: Foreward | D3: 13
A4: =Acknowledgments!A1 -> Acknowledgments | D4: =D3+2 -> 15
A5: =Definitions!A1 -> Definition of Concepts | D5: =D4+1 -> 16
A6: ='Special notes'!A1:B1 -> Special Notes Concerning Survey | D6: =D5+3 -> 19
A7: INTRODUCTION | D7: =D6+1 -> 20
A8: SAMPLE SIZE
B9: ='Tab1.1'!A1 -> Table 1.1 | C9: ='Tab1.1'!A2 -> Sample Size by District | D9: =D7+6 -> 26
B10: ='Tab1.2'!A1 -> Table 1.2 | C10: ='Tab1.2'!A2 -> Sample Size for the Gambia Integrated Household Survey (IHS) | D10: =D9+1 -> 27
A11: DEMOGRAPHIC CHARACTERISTICS
B12: ='Tab2.1'!A1 -> Table 2.1 | C12: ='Tab2.1'!A2 -> Distribution of Population by Sex and District | D12: =D10+2 -> 29
B13: ='Tab2.2'!A1 -> Table 2.2 | C13: ='Tab2.2'!A2 -> Distribution of Households by Household Composition (size) and District | D13: =D12+2 -> 31
B14: ='Tab2.3'!A1 -> Table 2.3 | C14: ='Tab2.3'!A2 -> Distribution of Population by Sex, Area of Residence and Broad Age-groups | D14: =D13+2 -> 33
B15: ='Tab2.4'!A1 -> Table 2.4 | C15: ='Tab2.4'!A2 -> Distribution of Population (Population Pyramid) by Sex, Area of Residence and Broad Age-groups | D15: =D14+1 -> 34
B16: ='Tab2.5'!A1 -> Table 2.5 | C16: ='Tab2.5'!A2 -> Distribution of Population Structure and Age Dependency Ratio by District | D16: =D15+1 -> 35
B17: ='Tab2.6'!A1 -> Table 2.6 | C17: ='Tab2.6'!A2 -> Distribuition of Household Members Relationship to Head and District | D17: 37
B18: ='Tab2.7'!A1 -> Table 2.7 | C18: ='Tab2.7'!A2 -> Distribution of Population (12 years and above) by Marital Status and District | D18: 39
B19: ='Tab2.8'!A1 -> Table 2.8 | C19: ='Tab2.8'!A2 -> Distribution of Population (12 years and above) by Marital Status, Sex and Broad Age-groups | D19: 41
B20: ='Tab2.9'!A1 -> Table 2.9 | C20: ='Tab2.9'!A2 -> Distribution of Children (0-17 years) Orphaned and Father Living at Home | D20: =D19+1 -> 42
B21: ='Tab2.10'!A1 -> Table 2.10 | C21: ='Tab2.10'!A2 -> Distribution of Children (0-17 years) Orphanedhood by District | D21: 44
B22: ='Tab2.11'!A1 -> Table 2.11 | C22: ='Tab2.11'!A2 -> Distribution of Children (0-17 years) Orphanedhood by District | D22: =D21+2 -> 46
A23: LITERACY AND EDUCATION
B24: ='Tab3.1'!A1 -> Table 3.1 | C24: ='Tab3.1'!A2 -> Distribution of Adult (15 years and above) Literacy Levels by Sex and District | D24: =D22+1 -> 47
B25: ='Tab3.2'!A1 -> Table 3.2 | C25: ='Tab3.2'!A2 -> Distribution of Adult (15 years and above) Literacy Levels by Area of Residence, Sex and Broad Age-groups | D25: =D24+2 -> 49
B26: ='Tab3.3'!A1 -> Table 3.3 | C26: ='Tab3.3'!A2 -> Distribution of Youth (15-24 years) Literacy Levels by Sex and District (international definition) | D26: =D25+1 -> 50
B27: ='Tab3.4'!A1 -> Table 3.4 | C27: ='Tab3.4'!A2 -> Distribution of Youth (15-24 years) Literacy Levels by Area of Residence, Sex and Single Ages (international definition) | D27: =D26+2 -> 52
B28: ='Tab3.5'!A1 -> Table 3.5 | C28: ='Tab3.5'!A2 -> Distribution of Youth (15-35 years) Literacy Levels by Sex and District (country definition) | D28: =D27+1 -> 53
B29: ='Tab3.6'!A1 -> Table 3.6 | C29: ='Tab3.6'!A2 -> Distribution of Youth (15-35 years) Literacy Levels by Area of Residence, Sex and Single Ages (country definition) | D29: =D28+2 -> 55
B30: ='Tab3.7'!A1 -> Table 3.7 | C30: ='Tab3.7'!A2 -> Distribution Population (15 years and above) who Can do Simple Math Calculations by Sex and District | D30: =D29+1 -> 56
B31: ='Tab3.8'!A1 -> Table 3.8 | C31: ='Tab3.8'!A2 -> Distribution Population (15 years and above) who Can do Simple Math Calculations by Area of Residence, Sex and Broad Age-groups | D31: =D30+2 -> 58
B32: ='Tab3.9'!A1 -> Table 3.9 | C32: ='Tab3.9'!A2 -> Distribution Population (15 years and above) who Have Ever Attended Adult Literacy Course by Sex and District | D32: =D31+1 -> 59
B33: ='Tab3.10'!A1 -> Table 3.10 | C33: ='Tab3.10'!A2 -> Distribution of Population (3 years and above) Who Have Ever Attended School by Sex and District | D33: =D32+2 -> 61
B34: ='Tab3.11'!A1 -> Table 3.11 | C34: ='Tab3.11'!A2 -> Distribution of Population (3 years and above) who Ever Attended School by Sex, Area of Residence and Broad Age-group | D34: =D33+2 -> 63
B35: ='Tab3.12'!A1 -> Table 3.12 | C35: ='Tab3.12'!A2 -> Distribution Population (3 years and above) who Have Ever Attended School by Sex, Type of School and District | D35: =D34+2 -> 65
B36: ='Tab3.13'!A1 -> Table 3.13 | C36: ='Tab3.13'!A2 -> Distribution Population (3 years and above) who Have Ever Attended School by Reason for Attending Madrassah instead of Formal School and District | D36: =D35+2 -> 67
B37: ='Tab3.14'!A1 -> Table 3.14 | C37: ='Tab3.14'!A2 -> Distribution of Children (3-18 years) by School Attendance, Sex and District | D37: =D36+2 -> 69
B38: ='Tab3.15'!A1 -> Table 3.15 | C38: ='Tab3.15'!A2 -> Distribution of Children (3-18 years) Who Have Ever Attended School by Reason Not Currently Attending School and District | D38: =D37+3 -> 72
B39: ='Tab3.16'!A1 -> Table 3.16 | C39: ='Tab3.16'!A2 -> Distribution Population (3 years and above) by Highest Level of Education Attained and District | D39: =D38+4 -> 76
B40: ='Tab3.17'!A1 -> Table 3.17 | C40: ='Tab3.17'!A2 -> Distribution of Male Population (3 years and above) by Highest Level of Education Attained and District | D40: =D39+2 -> 78
B41: ='Tab3.18'!A1 -> Table 3.18 | C41: ='Tab3.18'!A2 -> Distribution of Female Population (3 years and above) by Highest Level of Education Attained and District | D41: 80
B42: ='Tab3.19'!A1 -> Table 3.19 | C42: ='Tab3.19'!A2 -> Distribution of Population (3 years and above) by Highest Level of Education Attained, Sex and Broad Age-group | D42: 82
B43: ='Tab3.20'!A1 -> Table 3.20 | C43: ='Tab3.20'!A2 -> Gross Enrolment Rates (GER) by Level of Education, Sex and District | D43: =D42+2 -> 84
B44: ='Tab3.21'!A1 -> Table 3.21 | C44: ='Tab3.21'!A2 -> Net Enrolment Rates (NER) by Level of Education, Sex and District | D44: 86
B45: ='Tab3.22'!A1 -> Table 3.22 | C45: ='Tab3.22'!A2 -> Gross Enrolment Rates (GER) and Net Enrolment Rates (NER) for Lower Secondary School (LSS) and Upper Secondary School (USS) by Sex and District | D45: 88
B46: ='Tab3.23'!A1 -> Table 3.23 | C46: ='Tab3.23'!A2 -> Gross and Net Enrolment Rates for Early Childhood (3-6 years) Education, Sex and District | D46: =D45+2 -> 90
B47: ='Tab3.24'!A1 -> Table 3.24 | C47: ='Tab3.24'!A2 -> Distribution of Children (3 years and above) Currently Attending School by Who Runs and Manages the School and District | D47: =D46+2 -> 92
B48: ='Tab3.25'!A1 -> Table 3.25 | C48: ='Tab3.25'!A2 -> Distribution of Children (3 years and above) in Currently Attending School by Level of Education, Who Manages the School and District | D48: 94
B49: ='Tab3.26'!A1 -> Table 3.26 | C49: ='Tab3.26'!A2 -> Distribution of Access to School for Children Currently Attending Primary School by District | D49: =D48+3 -> 97
B50: ='Tab3.27'!A1 -> Table 3.27 | C50: ='Tab3.27'!A2 -> Distribution of Transportaion Mode for Children Currently Attending Primary School by District | D50: 99
B51: ='Tab3.28'!A1 -> Table 3.28 | C51: ='Tab3.28'!A2 -> Distribution of Access to School for Children Currently Attending Secondary School by District | D51: 101
B52: ='Tab3.29'!A1 -> Table 3.29 | C52: ='Tab3.29'!A2 -> Distribution of Transportaion Mode for Children Currently Attending Secondary School by District | D52: 103
B53: ='Tab3.30'!A1 -> Table 3.30 | C53: ='Tab3.30'!A2 -> Distribution of Children Attending Currently in School if Had an Interruption for a Month or more in the last 12 months by District | D53: 105
B54: ='Tab3.31'!A1 -> Table 3.31 | C54: ='Tab3.31'!A2 -> Distribution of Population (3 years and above) Who Have Never Attended School by Reason and District | D54: =D53+3 -> 108
B55: ='Tab3.32'!A1 -> Table 3.32 | C55: ='Tab3.32'!A2 -> Distribution of Children (3-18 years) Who Have Never Attended School by Reason and District | D55: =D54+2 -> 110
B56: ='Tab3.33'!A1 -> Table 3.33 | C56: ='Tab3.33'!A2 -> Distribution of Households by the Frequency of Listening to Radio and District | D56: =D55+3 -> 113
B57: ='Tab3.34'!A1 -> Table 3.34 | C57: ='Tab3.34'!A2 -> Distribution of Population (15 years and above) by the Frequency of Listening to Radio and District | D57: =D56+2 -> 115
B58: ='Tab3.35'!A1 -> Table 3.35 | C58: ='Tab3.35'!A2 -> Distribution of Population (15 years and above) by Sex, Frequency of Listening to Radio and District | D58: =D57+2 -> 117
B59: ='Tab3.36'!A1 -> Table 3.36 | C59: ='Tab3.36'!A2 -> Distribution of Population (15 years and above) by the Frequency of Listening to Radio, Sex and Broad Age-groups | D59: =D58+2 -> 119
B60: ='Tab3.37'!A1 -> Table 3.37 | C60: ='Tab3.37'!A2 -> Distribution of Households by the Frequency of Reading a Daily Newspaper and District | D60: =D59+1 -> 120
B61: ='Tab3.38'!A1 -> Table 3.38 | C61: ='Tab3.38'!A2 -> Distribution of Population (15 years and above) by the Frequency of Reading a Daily Newspaper and District | D61: =D60+2 -> 122
B62: ='Tab3.39'!A1 -> Table 3.39 | C62: ='Tab3.39'!A2 -> Distribution of Population (15 years and above) by Sex, Frequency of Reading a Daily Newspaper and District | D62: =D61+2 -> 124
B63: ='Tab3.40'!A1 -> Table 3.40 | C63: ='Tab3.40'!A2 -> Distribution of Population (15 years and above) by the Frequency of Reading a Daily Newspaper, Sex and Broad Age-groups | D63: 126
A64: HEALTH
B65: ='Tab4.1'!A1 -> Table 4.1 | C65: ='Tab4.1'!A2 -> Distribution of Population and Sex by Incidence of Sickness in the last Four Weeks, District and Broad Age-groups | D65: =D63+1 -> 127
B66: ='Tab4.2'!A1 -> Table 4.2 | C66: ='Tab4.2'!A2 -> Distribution of Population Sick/Injured by Main Type of Illness and District | D66: =D65+3 -> 130
B67: ='Tab4.3'!A1 -> Table 4.3 | C67: ='Tab4.3'!A2 -> Distribution of Population and Sex Sick/Injured by Type of Illness and Broad Age-groups | D67: =D66+2 -> 132
B68: ='Tab4.4'!A1 -> Table 4.4 | C68: ='Tab4.4'!A2 -> Distribution of Population Sick/Injured by Type of Illness, Area of Residence and Broad Age-groups | D68: 134
B69: ='Tab4.5'!A1 -> Table 4.5 | C69: ='Tab4.5'!A2 -> Distribution of Population and Sex Who Consulted a Health Practitioner (Use) by Sex and District | D69: 136
B70: ='Tab4.6'!A1 -> Table 4.6 | C70: ='Tab4.6'!A2 -> Distribution of Population Who Were Sick by Type of Health Practitioner Consulted (Use) and District | D70: 138
B71: ='Tab4.7'!A1 -> Table 4.7 | C71: ='Tab4.7'!A2 -> Distribution of Satisfaction Levels for Individuals who Consulted a Health Practioner and District | D71: =D70+2 -> 140
B72: ='Tab4.8'!A1 -> Table 4.8 | C72: ='Tab4.8'!A2 -> Distribution of Population by Access to a Health Facility Used when Sick/Injured Within 30 minutes of Residence and District | D72: =D71+2 -> 142
B73: ='Tab4.9'!A1 -> Table 4.9 | C73: ='Tab4.9'!A2 -> Distribution of Women (15-49 years) Ever Pregnant and Ever Given Birth by District | D73: 144
B74: ='Tab4.10'!A1 -> Table 4.10 | C74: ='Tab4.10'!A2 -> Distribution of Women (15-49 year) Ever Pregnant and Ever Given Birth by Age-group and Area of Residence | D74: 146
B75: ='Tab4.11'!A1 -> Table 4.11 | C75: ='Tab4.11'!A2 -> Distribution of Women (15-49 years) by Children Ever Born and Living by District | D75: =D74+1 -> 147
B76: ='Tab4.12'!A1 -> Table 4.12 | C76: ='Tab4.12'!A2 -> Distribution of Women (15-49 years) by Children Ever Born and Living by Age-groups | D76: =D75+2 -> 149
B77: ='Tab4.13'!A1 -> Table 4.13 | C77: ='Tab4.13'!A2 -> Distribution of Population (2 years and above) by Disability Status and Type of Disability by District | D77: =D76+1 -> 150
B78: ='Tab4.14'!A1 -> Table 4.14 | C78: ='Tab4.14'!A2 -> Distribution of Population (15 years and above) by Ebola awareness and District | D78: =D77+2 -> 152
B79: ='Tab4.15'!A1 -> Table 4.15 | C79: ='Tab4.15'!A2 -> Distribution of Male Population (15 years and above) by Ebola awareness and District | D79: 154
B80: ='Tab4.16'!A1 -> Table 4.16 | C80: ='Tab4.16'!A2 -> Distribution of Female Population (15 years and above) by Ebola awareness and District | D80: 156
B81: ='Tab4.17'!A1 -> Table 4.17 | C81: ='Tab4.17'!A2 -> Distribution of Population (15 years and above) by Knowledge How to Prevent Ebola Transmisison and District | D81: =D80+2 -> 158
B82: ='Tab4.18'!A1 -> Table 4.18 | C82: ='Tab4.18'!A2 -> Distribution of Male Population (15 years and above) by Knowledge How to Prevent Ebola Transmisison and District | D82: 160
B83: ='Tab4.19'!A1 -> Table 4.19 | C83: ='Tab4.19'!A2 -> Distribution of Female Population (15 years and above) by Knowledge How to Prevent Ebola Transmisison and District | D83: 162
B84: ='Tab4.20'!A1 -> Table 4.20 | C84: ='Tab4.20'!A2 -> Distribution of Population (15 years and above) and Sex by Knowledge How to Prevent Ebola Transmisison, Sex and Broad Age-groups | D84: 164
B85: ='Tab4.21'!A1 -> Table 4.21 | C85: ='Tab4.21'!A2 -> Distribution of Population (15 years and above) by Knowledge How to Prevent Ebola Transmisison, Area of Residence and Broad Age-groups | D85: =D84+2 -> 166
B86: ='Tab4.22'!A1 -> Table 4.22 | C86: ='Tab4.22'!A2 -> Distribution of Population (10 years and above) by Smoking Characteristics, Sex and District | D86: =D85+2 -> 168
B87: ='Tab4.23'!A1 -> Table 4.23 | C87: ='Tab4.23'!A2 -> Distribution of Population (10 years and above) by Smoking Characteristics, Sex, Area of Residence and Broad Age-groups | D87: =D86+2 -> 170
B88: ='Tab4.24'!A1 -> Table 4.24 | C88: ='Tab4.24'!A2 -> Distribution of Population (10 years and above) by Current Smoking Habits, Sex and District | D88: =D87+2 -> 172
B89: ='Tab4.25'!A1 -> Table 4.25 | C89: ='Tab4.25'!A2 -> Distribution of Population (10 years and above) by Current Smoking Habits, Sex, Area of Residence and Broad Age-groups | D89: =D88+2 -> 174
A90: EMPLOYMENT
B91: Population 7 years and above
B92: ='Tab5.1'!A1 -> Table 5.1 | C92: ='Tab5.1'!A2 -> Distribution of Working Age Population (7 years and above) by Sex and District | D92: =D89+1 -> 175
B93: ='Tab5.2'!A1 -> Table 5.2 | C93: ='Tab5.2'!A2 -> Distribution of Population (7 years and above) by Work Status, Sex and District | D93: =D92+2 -> 177
B94: ='Tab5.3'!A1 -> Table 5.3 | C94: ='Tab5.3'!A2 -> Distribution of Population (7 years and above) by Economic Activity Status, Sex and District | D94: =D93+2 -> 179
B95: ='Tab5.4'!A1 -> Table 5.4 | C95: ='Tab5.4'!A2 -> Distribution of Population (7 years and above) by Activity Status, Sex and District | D95: 181
B96: ='Tab5.5'!A1 -> Table 5.5 | C96: ='Tab5.5'!A2 -> Distribution of Population (7 years and above) of Economically Active by Employmen Status, Sex and District | D96: 183
B97: ='Tab5.6'!A1 -> Table 5.6 | C97: ='Tab5.6'!A2 -> Distribution of Population (7 years and above) by Work Status, Sex, Area of Residence and Broad Age-groups | D97: 185
B98: ='Tab5.7'!A1 -> Table 5.7 | C98: ='Tab5.7'!A2 -> Distribution of Population (7 years and above) by Activity Status, Sex and Area od Residence | D98: 187
B99: ='Tab5.8'!A1 -> Table 5.8 | C99: ='Tab5.8'!A2 -> Distribution of Population (7 years and above) by Activity Status, Sex and Area of Residence | D99: =D98+1 -> 188
B100: ='Tab5.9'!A1 -> Table 5.9 | C100: ='Tab5.9'!A2 -> Distribution of Population (7 years and above) of Economically Active by Employmen Status, Sex and Area of Residence | D100: =D99+1 -> 189
B101: ='Tab5.10'!A1 -> Table 5.10 | C101: ='Tab5.10'!A2 -> Distribution of Working Population (7 years and above) by Employment Sector and District | D101: =D100+1 -> 190
B102: ='Tab5.11'!A1 -> Table 5.11 | C102: ='Tab5.11'!A2 -> Distribution of Working Population (7 years and above) by Employment Sector, Sex and Broad Age-groups | D102: =D101+2 -> 192
B103: ='Tab5.12'!A1 -> Table 5.12 | C103: ='Tab5.12'!A2 -> Distribution of Working Population (7 years and above) by Industry of Activity and District | D103: =D102+1 -> 193
B104: ='Tab5.13'!A1 -> Table 5.13 | C104: ='Tab5.13'!A2 -> Distribution of Working Population (7 years and above) by Industry of Activity, Sex and Broad Age-groups | D104: =D103+2 -> 195
B105: ='Tab5.14'!A1 -> Table 5.14 | C105: ='Tab5.14'!A2 -> Distribution of Economically Inactive Population (7 years and above) by Reason and District | D105: 197
B106: ='Tab5.15'!A1 -> Table 5.15 | C106: ='Tab5.15'!A2 -> Distribution of Economically Inactive Population (7 years and above) by Reason, Area of Residence and Broad Age-group | D106: =D105+2 -> 199
B107: ='Tab5.16'!A1 -> Table 5.16 | C107: ='Tab5.16'!A2 -> Distribution of Economically Inactive Male Population (7 years and above) by Reason, Sex and District | D107: =D106+2 -> 201
B108: ='Tab5.17'!A1 -> Table 5.17 | C108: ='Tab5.17'!A2 -> Distribution of Economically Inactive Female Population (7 years and above) by Reason, Sex and District | D108: =D107+2 -> 203
B109: ='Tab5.18'!A1 -> Table 5.18 | C109: ='Tab5.18'!A2 -> Distribution of Economically Inactive Population (7 years and above) by Reason, Sex and Broad Age-groups | D109: =D108+2 -> 205
B110: Population 15-64 years
B111: ='Tab5.19'!A1 -> Table 5.19 | C111: ='Tab5.19'!A2 -> Distribution of Working Age Population (15-64 years) by Sex and District | D111: =D109+2 -> 207
B112: ='Tab5.20'!A1 -> Table 5.20 | C112: ='Tab5.20'!A2 -> Distribution of Population (15-64 years) by Employment Status, Sex and District | D112: =D111+2 -> 209
B113: ='Tab5.21'!A1 -> Table 5.21 | C113: ='Tab5.21'!A2 -> Distribution of Population (15-64 years) by Activity Status, Sex and District | D113: =D112+2 -> 211
B114: ='Tab5.22'!A1 -> Table 5.22 | C114: ='Tab5.22'!A2 -> Distribution of Population (15-64 years) by Activity Status, Sex and District | D114: =D113+2 -> 213
B115: ='Tab5.23'!A1 -> Table 5.23 | C115: ='Tab5.23'!A2 -> Distribution of Population (15-64 years) of Economically Active by Employment Status, Sex and District | D115: =D114+2 -> 215
B116: ='Tab5.24'!A1 -> Table 5.24 | C116: ='Tab5.24'!A2 -> Distribution of Population (15-64 years) by Work Status, Sex and Broad Age-groups | D116: =D115+2 -> 217
B117: ='Tab5.25'!A1 -> Table 5.25 | C117: ='Tab5.25'!A2 -> Distribution of Population (15-64 years) by Activity Status, Sex and District | D117: 219
B118: ='Tab5.26'!A1 -> Table 5.26 | C118: ='Tab5.26'!A2 -> Distribution of Population (15-64 years) by Activity Status, Sex and District | D118: =D117+1 -> 220
B119: ='Tab5.27'!A1 -> Table 5.27 | C119: ='Tab5.27'!A2 -> Distribution of Population (15-64 years) of Economically Active by Employmen Status, Sex and District | D119: =D118+1 -> 221
B120: ='Tab5.28'!A1 -> Table 5.28 | C120: ='Tab5.28'!A2 -> Distribution of Working Population (15-64 years) by Employment Sector and District | D120: =D119+1 -> 222
B121: ='Tab5.29'!A1 -> Table 5.29 | C121: ='Tab5.29'!A2 -> Distribution of Working Population (15-64 years) by Employment Sector, Sex and Broad Age-groups | D121: 224
B122: ='Tab5.30'!A1 -> Table 5.30 | C122: ='Tab5.30'!A2 -> Distribution of Working Population (15-64 years) by Industry of Activity and District | D122: =D121+1 -> 225
B123: ='Tab5.31'!A1 -> Table 5.31 | C123: ='Tab5.31'!A2 -> Distribution of Working Population (15-64 years) by Industry of Activity, Sex and Broad Age-groups | D123: 227
B124: ='Tab5.32'!A1 -> Table 5.32 | C124: ='Tab5.32'!A2 -> Distribution of Economically Inactive Population (15-64 years) by Reason and District | D124: =D123+2 -> 229
B125: ='Tab5.33'!A1 -> Table 5.33 | C125: ='Tab5.33'!A2 -> Distribution of Economically Inactive Population (15-64 years) by Reason, Area of Residence and Broad Age-group | D125: =D124+2 -> 231
B126: ='Tab5.34'!A1 -> Table 5.34 | C126: ='Tab5.34'!A2 -> Distribution of Economically Inactive Male Population (15-64 years) by Reason, Sex and District | D126: =D125+2 -> 233
B127: ='Tab5.35'!A1 -> Table 5.35 | C127: ='Tab5.35'!A2 -> Distribution of Economically Inactive Female Population (15-64 years) by Reason, Sex and District | D127: =D126+2 -> 235
B128: ='Tab5.36'!A1 -> Table 5.36 | C128: ='Tab5.36'!A2 -> Distribution of Economically Inactive Population (15-64 years) by Reason, Sex and Broad Age-groups | D128: =D127+2 -> 237
B129: Youth Population 15-35 years
B130: ='Tab5.37'!A1 -> Table 5.37 | C130: ='Tab5.24'!A2 -> Distribution of Population (15-64 years) by Work Status, Sex and Broad Age-groups | D130: =D128+2 -> 239
B131: ='Tab5.38'!A1 -> Table 5.38 | C131: ='Tab5.38'!A2 -> Distribution of Youth (15-35 years) by Work Status, Sex and District | D131: =D130+2 -> 241
B132: ='Tab5.39'!A1 -> Table 5.39 | C132: ='Tab5.39'!A2 -> Distribution of Youth (15-35 years) by Economic Activity Status, Sex and District | D132: =D131+2 -> 243
B133: ='Tab5.40'!A1 -> Table 5.40 | C133: ='Tab5.40'!A2 -> Distribution of Youth (15-35 years) by Activity Status, Sex and District | D133: 245
B134: ='Tab5.41'!A1 -> Table 5.41 | C134: ='Tab5.41'!A2 -> Distribution of Youth (15-35 years) of Economically Active by Employmen Status, Sex and District | D134: 247
B135: ='Tab5.42'!A1 -> Table 5.42 | C135: ='Tab5.42'!A2 -> Distribution of Youth (15-35 years) by Work Status, Sex and Broad Age-groups | D135: 249
B136: ='Tab5.43'!A1 -> Table 5.43 | C136: ='Tab5.43'!A2 -> Distribution of Youth (15-35 years) by Activity Status, Sex and District | D136: =D135+1 -> 250
B137: ='Tab5.44'!A1 -> Table 5.44 | C137: ='Tab5.44'!A2 -> Distribution of Youth (15-35 years) of Economically Active by Employmen Status, Sex and Area of Residence | D137: =D136+1 -> 251
B138: ='Tab5.45'!A1 -> Table 5.45 | C138: ='Tab5.45'!A2 -> Distribution of Working Youth (15-35 years) by Employment Sector and District | D138: =D137+1 -> 252
B139: ='Tab5.46'!A1 -> Table 5.46 | C139: ='Tab5.46'!A2 -> Distribution of Working Population (15-35 years) by Employment Sector, Sex and Broad Age-groups | D139: 254
B140: ='Tab5.47'!A1 -> Table 5.47 | C140: ='Tab5.47'!A2 -> Distribution of Working Youth (15-35 years) by Industry of Activity and District | D140: =D139+1 -> 255
B141: ='Tab5.48'!A1 -> Table 5.48 | C141: ='Tab5.48'!A2 -> Distribution of Working Population (15-35 years) by Industry of Activity, Sex and Broad Age-groups | D141: 257
B142: ='Tab5.49'!A1 -> Table 5.49 | C142: ='Tab5.49'!A2 -> Distribution of Economically Inactive Youth Population (15-35 years) by Reason and District | D142: =D141+1 -> 258
B143: ='Tab5.50'!A1 -> Table 5.50 | C143: ='Tab5.50'!A2 -> Distribution of Economically Inactive Youth Population (15-35 years) by Reason, Area of Residence and Broad Age-group | D143: =D142+2 -> 260
B144: ='Tab5.51'!A1 -> Table 5.51 | C144: ='Tab5.51'!A2 -> Distribution of Economically Inactive Youth Male Population (15-35 years) by Reason, Sex and District | D144: =D143+1 -> 261
B145: ='Tab5.52'!A1 -> Table 5.52 | C145: ='Tab5.52'!A2 -> Distribution of Economically Inactive Youth Female Population (15-35 years) by Reason, Sex and District | D145: =D144+2 -> 263
B146: ='Tab5.53'!A1 -> Table 5.53 | C146: ='Tab5.53'!A2 -> Distribution of Economically Inactive Population (15-35 years) by Reason, Sex and Broad Age-groups | D146: =D145+2 -> 265
A147: CHILD NUTRITION AND SURVIVAL
B148: ='Tab6.1'!A1 -> Table 6.1 | C148: ='Tab6.1'!A2 -> Distribution of Children (0-59 months) by Sex | D148: =D146+1 -> 266
B149: ='Tab6.2'!A1 -> Table 6.2 | C149: ='Tab6.2'!A2 -> Distribution of Births for Children (0-59 months) by Place of Delivery and District | D149: =D148+1 -> 267
B150: ='Tab6.3'!A1 -> Table 6.3 | C150: ='Tab6.3'!A2 -> Distribution of Births for Children (0-59 months) by Type of Assistance during Delivery and District | D150: =D149+2 -> 269
B151: ='Tab6.4'!A1 -> Table 6.4 | C151: ='Tab6.4'!A2 -> Distribution of Children (0-59 months) by Type of Immmunization Vacinne and District | D151: 271
B152: ='Tab6.5'!A1 -> Table 6.5 | C152: ='Tab6.5'!A2 -> Distribution of Children (0-59 months) by Type of Immmunization Vacinne, Age in Months and Sex | D152: 273
B153: ='Tab6.6'!A1 -> Table 6.6 | C153: ='Tab6.6'!A2 -> Distribution of Children (0-59 months) by Ever and Still Breastfeeding and District | D153: =D152+1 -> 274
B154: ='Tab6.7'!A1 -> Table 6.7 | C154: ='Tab6.7'!A2 -> Distribution of Children (0-59 months) by Length of Breastfeeding Practices and District | D154: =D153+2 -> 276
B155: ='Tab6.8'!A1 -> Table 6.8 | C155: ='Tab6.8'!A2 -> Distribution of Children (0-59 months) by Breastfeeding Practices by Age in Months and Sex | D155: 278
B156: ='Tab6.9'!A1 -> Table 6.9 | C156: ='Tab6.9'!A2 -> Distribution of Children (0-59 months) by Type of Programme and District | D156: =D155+1 -> 279
A157: HOUSEHOLD HEAD CHARACTERISTICS
B158: ='Tab7.1'!A1 -> Table 7.1 | C158: ='Tab7.1'!A2 -> Distribution of Household Heads by Sex and District | D158: =D156+2 -> 281
B159: ='Tab7.2'!A1 -> Table 7.2 | C159: ='Tab7.2'!A2 -> Distribution of Household Heads by Sex by Area of Residence and Broad Age-Groups | D159: =D158+1 -> 282
B160: ='Tab7.3'!A1 -> Table 7.3 | C160: ='Tab7.3'!A2 -> Distribution of Household Heads by Marital Status and District | D160: =D159+1 -> 283
B161: ='Tab7.4'!A1 -> Table 7.4 | C161: ='Tab7.4'!A2 -> Distribution of Male Household Heads by Marital Status and District | D161: =D160+2 -> 285
B162: ='Tab7.5'!A1 -> Table 7.5 | C162: ='Tab7.5'!A2 -> Distribution of Female Household Heads by Marital Status and District | D162: 287
B163: ='Tab7.6'!A1 -> Table 7.6 | C163: ='Tab7.6'!A2 -> Distribution of Literacy Levels of Household Heads by Sex and District | D163: 289
B164: ='Tab7.7'!A1 -> Table 7.7 | C164: ='Tab7.7'!A2 -> Distribution of Literacy Levels of Household Heads by Sex, Area of Residence and Broad Age-groups | D164: 291
B165: ='Tab7.8'!A1 -> Table 7.8 | C165: ='Tab7.8'!A2 -> Distribution of Household Heads who have Ever Attended School by Sex and District | D165: =D164+1 -> 292
B166: ='Tab7.9'!A1 -> Table 7.9 | C166: ='Tab7.9'!A2 -> Distribution of Highest Education Level Completed of Household Heads by District | D166: 294
B167: ='Tab7.10'!A1 -> Table 7.10 | C167: ='Tab7.10'!A2 -> Distribution of Highest Education Level Completetd by Male Household Heads and District | D167: =D166+2 -> 296
B168: ='Tab7.11'!A1 -> Table 7.11 | C168: ='Tab7.11'!A2 -> Distribution of Highest Education Level Completetd by Female Household Heads and District | D168: 298
B169: ='Tab7.12'!A1 -> Table 7.12 | C169: ='Tab7.12'!A2 -> Distribution of Highest Education Level Completed of Household Heads by Age-group and Sex | D169: =D168+2 -> 300
B170: ='Tab7.13'!A1 -> Table 7.13 | C170: ='Tab7.13'!A2 -> Distribution of Highest Education Level Completed of Household Heads for Urban Area by Sex and Age-group | D170: 302
B171: ='Tab7.14'!A1 -> Table 7.14 | C171: ='Tab7.14'!A2 -> Distribution of Highest Education Level Completed of Household Heads for Rural Area by Sex and Age-group | D171: =D170+2 -> 304
B172: ='Tab7.15'!A1 -> Table 7.15 | C172: ='Tab7.15'!A2 -> Distribution of Household Heads by Ebola awareness and District | D172: =D171+2 -> 306
B173: ='Tab7.16'!A1 -> Table 7.16 | C173: ='Tab7.16'!A2 -> Percentage Distribution of Household Heads by Ebola awareness and Broad Age-groups and Sex | D173: 308
B174: ='Tab7.17'!A1 -> Table 7.17 | C174: ='Tab7.17'!A2 -> Percentage Distribution of Household Heads by Ebola awareness and Area of Residence | D174: =D173+2 -> 310
B175: ='Tab7.18'!A1 -> Table 7.18 | C175: ='Tab7.18'!A2 -> Percentage Distribution of Household Heads by Work Status and District | D175: =D174+2 -> 312
B176: ='Tab7.19'!A1 -> Table 7.19 | C176: ='Tab7.19'!A2 -> Distribution of Household Heads by Economic Activity Status, Sex and District | D176: =D175+2 -> 314
B177: ='Tab7.20'!A1 -> Table 7.20 | C177: ='Tab7.20'!A2 -> Distribution of Household Heads by Activity Status, Sex and District | D177: =D176+2 -> 316
B178: ='Tab7.21'!A1 -> Table 7.21 | C178: ='Tab7.21'!A2 -> Distribution of Household Heads of Economically Active by Employmen Status, Sex and District | D178: 318
B179: ='Tab7.22'!A1 -> Table 7.22 | C179: ='Tab7.22'!A2 -> Percentage Distribution of Household Heads by Work Status and Broad Age-groups | D179: 320
B180: ='Tab7.23'!A1 -> Table 7.23 | C180: ='Tab7.23'!A2 -> Distribution of Household Heads by Activity Status, Sex and District | D180: 322
B181: ='Tab7.24'!A1 -> Table 7.24 | C181: ='Tab7.24'!A2 -> Distribution of Working Household Heads by Employment Sector and District | D181: =D180+1 -> 323
B182: ='Tab7.25'!A1 -> Table 7.25 | C182: ='Tab7.25'!A2 -> Distribution of Working Household Heads by Employment Sector and Broad Age-groups | D182: 325
B183: ='Tab7.26'!A1 -> Table 7.26 | C183: ='Tab7.26'!A2 -> Distribution of Working Household Heads by Industry of Activity and District | D183: =D182+1 -> 326
B184: ='Tab7.27'!A1 -> Table 7.27 | C184: ='Tab7.27'!A2 -> Distribution of Working Population Household Heads by Industry of Activity and Broad Age-groups | D184: 328
B185: ='Tab7.28'!A1 -> Table 7.28 | C185: ='Tab7.28'!A2 -> Distribution of Economically Inactive Household Heads by Reason and District | D185: 330
B186: ='Tab7.29'!A1 -> Table 7.29 | C186: ='Tab7.29'!A2 -> Distribution of Economically Inactive Population Household Heads by Reason, Area of Residence and Broad Age-group | D186: =D185+2 -> 332
B187: ='Tab7.30'!A1 -> Table 7.30 | C187: ='Tab7.30'!A2 -> Distribution of Economically Inactive Household Heads by Reason, Broad Age-groups and Sex | D187: =D186+2 -> 334
A188: HOUSEHOLD AMENITIES AND ASSETS
B189: ='Tab8.1'!A1 -> Table 8.1 | C189: ='Tab8.1'!A2 -> Distribution of Households by Ownership and District | D189: =D187+2 -> 336
B190: ='Tab8.2'!A1 -> Table 8.2 | C190: ='Tab8.2'!A2 -> Distribution of Owner-Occupied Households by Tenure and District | D190: =D189+2 -> 338
B191: ='Tab8.3'!A1 -> Table 8.3 | C191: ='Tab8.3'!A2 -> Distribution of Households by Number of Rooms and District | D191: =D190+2 -> 340
B192: ='Tab8.4'!A1 -> Table 8.4 | C192: ='Tab8.4'!A2 -> Distribution of Households by Main Material Used for Wall Construction of the House and District | D192: =D191+2 -> 342
B193: ='Tab8.5'!A1 -> Table 8.5 | C193: ='Tab8.5'!A2 -> Distribution of Households by Main Material Used for Roof Construction of the House and District | D193: 344
B194: ='Tab8.6'!A1 -> Table 8.6 | C194: ='Tab8.6'!A2 -> Distribution of Households by Main Material Used for Floor Construction of the House and District | D194: 346
B195: ='Tab8.7'!A1 -> Table 8.7 | C195: ='Tab8.7'!A2 -> Distribution of Households by Improved Water Source, Main Source of Drinking Water and District | D195: 348
B196: ='Tab8.8'!A1 -> Table 8.8 | C196: ='Tab8.8'!A2 -> Distribution of Households By Access to Water, Time Taken to Water Supply (One way) and District | D196: =D195+3 -> 351
B197: ='Tab8.9'!A1 -> Table 8.9 | C197: ='Tab8.11'!A2 -> Distribution of Households by Non-wood Fuel Use, Main Source of Fuel for Cooking and District | D197: 353
B198: ='Tab8.10'!A1 -> Table 8.10 | C198: ='Tab8.10'!A2 -> Distribution of Households by Main Type of Toilet and Sharing Arrangements and District | D198: =D197+3 -> 356
B199: ='Tab8.11'!A1 -> Table 8.11 | C199: ='Tab8.14'!A2 -> Distribution of Households by Main Source of Fuel for Lighting and District | D199: =D198+2 -> 358
B200: ='Tab8.12'!A1 -> Table 8.12 | C200: ='Tab8.12'!A2 -> Distribution of Households by Source Place of Main Cooking Fuel and District | D200: =D199+3 -> 361
... 160 more rows

Sheet Foreward
A1: Foreward
A3: The Integrated Household Survey (IHS) and the Multiple Indicator Cluster Survey (MICS) are two household surveys that are regularly conducted by the Gambia Bureau of Statistics (GBoS). Several surveys have been undertaken on household income and expenditure but the first and second IHSs were conducted in 2003/04 and 2010/11 respectively while the third round was conducted in (2015/16). The results of these surveys have been key in the measurement of poverty at the national level as well as providing valuable information in the assessment of changing conditions in households.
A5: These surveys have provided government and all stakeholders with indicators (mostly on poverty and vulnerability) to facilitate evidence-based policy formulation and monitor progress towards national and international development targets.
A7: The First Integrated Household Survey was designed and conducted by the National Statistics Office (then Central Statistics Department) with technical and financial assistance from the World Bank (WB) under the Capacity Building and Economic Management Project (CBEMP). The second IHS which was designed and conducted by GBoS with technical and financial support from the United Nations Development Programme (UNDP) made provision for important data on household income, consumption and expenditure patterns at national and urban/rural levels. It is important, however, to note that both the earlier IHSs had reasonable sample sizes and enough geographic coverage to make Local Government Area (LGA) level analysis possible.
A9: The primary objective of the IHS 2015/16 was to monitor the determinants of poverty and its dynamics and provide the Gambia Government and stakeholders with the necessary socio-economic data for poverty monitoring and policy formulation. The survey also provides weights to rebase the Consumer Price Index (CPI) and the much needed household data to update the System of National Accounts (SNA) from SNA1993 to SNA2008.
A11: The IHS205/16 cannot come at a better time as the country is on the verge of completing the mid-term national development blueprint that will guide the government and its development partners in the development of this plan. It is also the first major household survey that is finalized after the approval of the SDG indicators as well as Agenda 2063. These are both international frameworks to which Gambia has subscribed and indicators generated by this survey would be critical in setting national baselines to gauge progress in our national development efforts. The IHS2015/16 will provide valuable information on the status, and dynamics of poverty of households and individuals. It will also provide information on other socio-economic variables. The added advantage of this survey is the availability of estimates for some indicators at the lower geographic level when compared to previous IHSs. This is because the sample size for this survey was bigger and the sampling was done at a lower level (district level sampling). This provides government and stakeholders better understanding of the social variables at district level compared to previous household surveys.
A13: The IHS 2015/2016 also provides a basis for the conduct of future surveys in terms of content and coverage. While the questionnaire is open to updates and adjustments, it was designed in a very comprehensive manner so that similar surveys could adapt its contents since the survey deals with a wide range of topics covering many sectors and emerging issues.
A15: GBoS has had regular technical support from the World Bank throughout the design and implementation of the survey in fulfillment of pledge to provide such support. it is worth noting that such support is in line with the World Bank’s commitment to provide technical and financial support sub-Sahara African countries in the conduct of nationally representative surveys to track key development indicators.
A17: The financial support for the Integrated Household Survey (IHS) implementation came mainly from The Government of The Gambia (GoTG), the World Bank, United national Development Programme (UNDP), United National Children’s Fund (UNICEF), Food and Agricultural Organization (FAO), World Food Programme (WFP) and World Health Organization (WHO).
A23: Hon. Amadou Sanneh
A24: MINISTER OF FINANCE AND ECONOMIC AFFAIRS

Sheet Acknowledgments
A1: Acknowledgments
A3: The Gambia Bureau of Statistics presents the results of the third Integrated Household Survey (IHS2015/16) that will facilitate monitoring and evaluation of different policies and programs at District, Regional and national levels. This is the first survey that provides poverty profiles at the district level in The Gambia and will better inform the finalization of the national development plan. Provision of these profiles and district level would also provide vital information to enable programmes focus on deprived districts of the country. It is also the first detailed household survey completed after the approval of the SDG indicators as well as the African Agenda 2063.
A5: In order to support evidence-based planning and decision making processes, IHS will now be conducted every three years instead of five. This is to ensure timely availability of data. This may be an ambitious target but the Bureau is committed to achieving this with the usual support of stakeholders and development partners
A7: In this regard, we present our sincere appreciation to the Government of The Gambia for its support to statistical development in the country, the Ministry of Finance and Economic affairs, and other Government Ministries, Departments and Agencies for the cooperation support received in this important national undertaking and in similar endeavours.
A9: We express our sincere appreciation to World Bank that has provided regular technical and financial support throughout the design, implementation and analysis of the IHS2015/16. We equally wish to thank the United Nations Development Programme (UNDP) for its continued support. Special gratitude also goes to the other UN agencies such as United Children’s Fund (UNICEF), World Food Programme (WFP), World Health Organisation (WHO) and Food and Agriculture Organisation (FAO). Their contributions were of immense importance towards the accomplishments of this survey.
A11: We would also like to thank the IHS2015/16 management team and the entire staff of GBoS for their efforts throughout the planning and implementation stages of this survey. We also appreciate the valuable collaboration of all survey respondents without whom the survey could not succeed.
A17: Nyakassi M. B. Sanyang
A18: STATISTICIAN GENERAL
A19: GAMBIA BUREAU OF STATISTICS

Sheet Definitions
A1: Definition of Concepts
A3: ● | B3: Region: There are eight Local Government Areas (LGA) in Gambia.
A4: ● | B4: District: The country is demarcated into 42 districts. The boundaries of the districts do not necessarily conform to the boundaries of the local authorities but conform with regional boundaries. Districts are the lower-level divisions from regions.
B5: For Banjul and Kanifing, samplign was not done at he district-level due to size. And that is why their districts are not in the tables.
A6: ● | B6: Urban: According to the 2013 Population and Housing Census, a settlement is considered to be urban if it satisfies most of the following:
B7: - Has commercial importance
B8: - Has institutional importance
B9: - Majority of the population’s occupation is non-agricultural
B10: - Total population is at least 5,000
B11: - Population density is high
B12: - Some degree of infrastructure is available
A13: DEMOGRAPHIC CHARACTERISTICS
A14: ● | B14: Population defined here is not the CENSUS definition (de facto count). Population referred here are only persons living in households and excludes persons in Institutions, streets, etc.
A15: ● | B15: Dependency ratio: population age 0-14 and population age >= 65 / population age 15-64
A16: ● | B16: Child: The UN Convention on the Rights of the Child (CRC) defines a child as a boy or girl under the age of 18 and considers a child as both an individual as well as a member of a family and a community. This definition is adopted in this report.
A17: EDUCATION
A18: ● | B18: Official school enrolment age ranges from 3-6 years in Early Childhood Education, 7-12 years in Lower Basic education; 13-15 years in Upper Secondary education and 16-18 years in Senior Secondary education establishments.
A19: ● | B19: Adult Literacy is defined for persons age 15+ years who can both read and write in any language. The survey did not test reading/writing proficiency skills (operational skilled-based definition) but respondents did a self-evaluation.
A20: ● | B20: Youth Literacy (international) is defined for persons age 15-24 years who can both read and write in any language. The survey did not test reading/writing proficiency skills (operational skilled-based definition) but respondents did a self-evaluation.
A21: ● | B21: Youth Literacy (country) is defined for persons age 15-35 years who can both read and write in any language. The National Youth Policy (2009-2018) defines a youth as someone whose age is between 13-30 years. This was revised to 15-35 years in 2016.
A22: ● | B22: Access to school is defined as children currently in school with less than 30 minutes to school.
A23: ● | B23: Primary school estimates are defined for children aged 7-12 years.
A24: ● | B24: Primary Gross Enrollment Ratio (GER) is defined for children currently in primary school (P1-P6) irrespective of age.
A25: ● | B25: Primary Net Enrolment Ratio is defined for children currently in primary school (P1-P6) of primary school age (7-12 years).
A26: ● | B26: Secondary school estimates are defined for children aged 13-18 years.
A27: ● | B27: Secondary Gross Enrollment Ratio (GER) is defined for children currently in secondary school (JSS1-JSS3 and SSS1-SSS4) irrespective of age.
A28: ● | B28: Secondary Net Enrollment Ratio (NER) is defined for children currently in secondary school (JSS1-JSS3 and SSS1-SSS4) of secondary school age (13-18 years).
A29: ● | B29: Satisfaction is defined for children of all ages currently in primary or secodnary school who cited no problems with school.
A30: ● | B30: Tertiary school estimates are defined for children aged 19-22 years.
A31: ● | B31: Tertiary Gross Enrollment Ratio (TER) is defined for children currently in Teacher Training, Nursing and University and other Tertiary of all ages.
A32: ● | B32: Tertiary Net Enrollment Ratio (TER) is defined for children currently in Teacher Training, Nursing, Univerty and other Tertiary of school age (19-22 years).
A33: ● | B33: Overall Enrollment (net) is defined for children currently in school of school age (7-22 years).
A34: ● | B34: Overall Enrollment (gross) is defined for children currently in school of all ages.
A35: ● | B35: Gender Parity Index (GPI): A value of 1 in the GPI indicates that there are no disparities between males and females. Values below 1 indicate disparities favouring males, and above 1, disparities favouring females.
A36: HEALTH
A37: ● | B37: Access is defined for persons less than 30 minutes from a health facility.
A38: ● | B38: Need is defined for persons sick or injured in the four-week period preceding the survey.
A39: ● | B39: Use is defined for persons who consulted a health practitioner in the four-week period preceding the survey.
A40: ● | B40: Satisfaction is defined for persons who consulted a health practitioner in the four week period preceding the survey who cited no problems.
A41: EMPLOYMENT
A42: ● | B42: The active population are defined as the employed and unemployed population.
A43: ● | B43: The employed are defined here as either i) worked in the last 7 days or ii) did not work but will definetly return to work.
A44: ● | B44: The ILO definition of unemployed comprise 3 conditions of persons above a specified age during the reference period:
B45: - without work, that is, were not in paid employment or self employment during the reference period;
B46: - currently available for work, that is, were available for paid employment or self-employment during the reference period; and
B47: - seeking work, that is, had taken specific steps in a specified recent period to seek paid employment or self-employment.
B48: In the context of Gambia, only the first 2 conditions defined unemployment. Unemployment was computed for 7+ years (as in the census) and international definrion 15-64 years.
A49: CHILD NUTRITION
A50: ● | B50: Child birth delivery by health professionals is defined for children aged 5 years and under whose births were assisted by a doctor, nurse or midwife.
A51: HOUSEHOLD HEAD CHARACTERISTICS
A52: ● | B52: Household Head: Is defined as the person in the household recognized as the head by other household members. This is generally the person responsible for the upkeep and maintenance of the household. In his/her absence, the person who takes charge of the household is considered a "temporary head". All household relationships are defined with reference to the head or temporary head.
A53: HOUSEHOLD AMENITIES AND ASSETS
A54: ● | B54: Access to improved water sources is defined as having piped water in the dwelling, public outdoor tap, borehole and protected well.
A55: ● | B55: Access to improved sanitation is defined for households using a flush toilet, covered pit latrine, VIP.
A56: ● | B56: Non-wood fuel for cooking is the use of any fuel other than firewood and charcoal for cooking.
A57: ACCESS TO AMENITIES
A58: ● | B58: Access is having the nearest specified facility, i.e. primary school, secondary school, health facility, water source, telecommunication facility, public transport and food market, within 30 minutes from the household.
A59: HOUSEHOLD PERCEPTIONS OF WELL-BEING
A60: ● | B60: Difficulty meeting food needs is defined for households that reported difficulty meeting food needs often or always.
A61: ● | B61: Household economic situation compared to one year ago: Worse is defined for households that replied much worse now or a little worse now; better is defined for households that replied a little better now or much better now.
A62: CONSUMPTION AND POVERTY
A63: ● | B63: Deflated consumption implies that the consumption expenditure has been adjusted for both spatial (across geography) and temporal (over time) price differences.
A64: ● | B64: The poverty headcount ratio is the proportion of the population or households below the poverty line.
A65: ● | B65: The poverty gap index, also known as the depth of poverty is defined as the average shortfall of the total population from the poverty line—counting those above the poverty line as having zero shortfalls. In other words, the poverty gap index measures the intensity of poverty. It is often described as a crude measure of the per capita amount of resources needed to eliminate poverty.
A66: ● | B66: The poverty severity index builds on the poverty gap index by accounting for inequalities among poor people. It is simply the weighted sum of the squared poverty gaps, where weights are the proportionate poverty gaps themselves. Thus, by squaring the poverty gap index, the poverty severity index gives more weight to observations that fall far below the poverty line.
A67: ● | B67: The Gini Co-efficient or the Gini index is the measure of statistical dispersion representing the income or expenditure distribution.
A68: ● | B68: The Palma Ratio belongs to a family of inequality measures known as inter-decile ratios. It is the ratio of the income/consumption/expenditure shares of the top 10 per cent of households to the bottom 40 per cent.

Sheet Special notes
A1: Special Notes Concerning Survey
A3: · | B3: All percentages are weighted (grossed up) unless otherwise stated.
A4: · | B4: To obtain national estimates, the sample figures had to be grossed up by the appropriate factor (enumeration area weighting co-efficient).
A5: · | B5: "N" implies the weighted sample size (number of observations) by the various dimensions such as population, gender, rural-urban, etc of the analyses.
A6: · | B6: 0.0 means .. or negligible
A7: · | B7: Percentages add up to 100 unless otherwise stated.
A8: · | B8: Because of the effects of rounding, percentages may not always add exactly to 100.
A9: · | B9: For the some reasons estimated numbers may not add exactly to the estimated totals shown in the table due to rounding.
A10: · | B10: Missing information is not imputed.
A11: · | B11: The tables refer to IHS 2015/16 unless specified.

Sheet Introduction
B1: Introduction
A3: The international discussion on the need for more and better data for policymaking has reached an almost unprecedented level. International agreements on the Millennium Development Goals (MDGs) and country-level Poverty Reduction Strategies such as the current Programme for Accelerated Growth and Employment (PAGE) have focused attention on the statistical systems that must produce the data to measure progress on the MDGs and National Development Plans. To this end, the role and importance of household surveys in the Statistical System cannot be overemphasized. Household surveys are not only the source of specific types of data required for effective policy making but also they offer the most reliable information for targeted interventions. The proposed project encompasses, among other features: the design and implementation of a household survey focusing on household income and expenditure which feeds into poverty analysis, CPI construction, and update of household expenditures section within National Accounts. The project is also expected to provide a detailed agricultural productivity analysis and serve as baseline data for the successor of “PAGE” and data to assess the progress thus far. Other components of this project include capacity building and cross-country knowledge sharing, alongside efforts to improve survey methodologies in The Gambia.
A5: Objective of the Survey
A6: A socioeconomic survey is one of the most important sources of statistical data on household expenditure and income as well as for other data on housing status, individual and household characteristics, and living conditions. Not only do they provide indicators to measure specific economic and social issues, but they also provide information that makes it possible to know and explain the determinant or causal factors behind the behaviour of such issues.
A8: Several income and expenditure survey have been conducted snce 1989. The 2015/16 Integrated Household Survey (IHS) will be the third conducted in The Gambia. The first IHS was conducted in 2003 and the second was in 2010. In the 2003 IHS the daily diary, which was intended to record current expenditure for one full month was actually administered to half of the sample of the 4,800 households and for more than half of this sub-sample the diaries were administered during a shorter period. This was due to many problems met in the collection such as the low literacy levels in the households and weaknesses during the data collection. This was the reason why the 2010 IHS used recall where the enumerator recorded purchases during the interview. The 2015/16 IHS will use a similar approach as in 2010. This survey is important because it will provide The Gambia Government with comprehensive information on the socio-economic status of the population and to enable government to monitor the determinants of poverty and its dynamics. Thus, information from the IHS can be used to assess the current levels of differentials among population and to evaluate basic household needs in key sectors such as drinking water, energy, schooling, health facilities, sanitation, employment and other sectors.
A10: The specific objectives of the 2015/16 IHS includes:
B11: · | C11: To provide a database that allows for end time analysis of national level government policies embedded within the PAGE.
B12: · | C12: To understand the poverty dynamics across the country and factors influencing them.
B13: · | C13: To obtain in‐depth understanding on the living standards of households to livelihood strategies and measures of income diversification.
B14: · | C14: To get information on household expenditure patterns in order to update the National Accounts.
B15: · | C15: To obtain a new set of weights for the basket of goods and services that allow for upgrading the Consumer Price Index (CPI).
B16: · | C16: To build capacity and development of sustainable systems for the production of accurate and timely information on households in The Gambia. A number of training activities are envisaged under this project such as a STATA workshop, household survey design and management, and study tours for poverty analysis.
A18: Sampling and Coverage of the Survey
B19: Sampling
C20: The sampling frame used for the Integrated Household Survey (IHS2015/16) was the 2013 Gambia Population and Housing Census. The sampling frame is a complete list of enumeration areas (EA) containing a convenient number of households, which serves as a counting unit for the census. The sampling frame contains information about the location, the administrative belongings, the type of residence, and the number of residential households and population of each EA. For statistical purposes, The Gambia is divided into eight Local Government Areas (LGA), including two urban municipalities (Banjul and Kanifing). Each LGA is sub-divided into districts except for the two municipalities, each district is divided into Wards, and each Ward is divided into Settlements. There was a total of 48 districts excluding the two municipalities, 120 Wards and 4,096 EAs. Depending of the size (number of households) of the settlement, an EA can comprise of one settlement, a group of small settlements, or a part of a large settlement. Each EA is designated as urban or rural area. The unit of study for the IHS includes residential households and persons living in those households within all the districts and excluded collective abodes such as hospitals, prisons, orphanage, military barracks, etc. The estimates were to be representative at district level making up a total of 40 strata (38 district plus Banjul and Kanifing municipalities).
B22: Sample selection and implementation
C23: The IHS 2015/16 sample was a stratified sample selected based on a two-stage probability proportional to size (PPS). The stratification concerned sorting each stratum by urban and rural areas (Banjul and Kanifing are entirely urban areas). Samples were selected independently in each stratum by a two-stage selection process. The first stage dealt with selecting 667 EAs (Table 1.2) with probability proportionate to the EA size as the primary sampling unit (PSU). The size of EA is the total number of residential households residing in that EA during the 2013 Population and Housing Census. Sample EAs were selected independently in each stratum and constituted the survey clusters. A household listing operation was conducted in all selected EAs and the list of households served as the sampling frame for the selection of households in the second stage. In the second stage, 20 households were selected per cluster with an equal probability systematic selection from the household listing. A total of 13,340 households were selected for interview and 13,281 households were interviewed. The household response rate was about 99.4 per cent. The sample allocation of clusters and sample allocation of households (selected and actual interviewed) by stratum (district) is shown in Table 1.1. The level of response rate for IHS 2015/16 demonstrates a successful data collection implementation of the survey. The IHS 2015/16 survey was the first of its kind to allow reliable estimation of key indicators at the national, rural-urban, Local Government Area and districts levels.
B25: Sample probabilities and Sampling weights
C26: The allocation of the sample was not proportional across the strata as well as response rates were different. Therefore, sampling weights have been calculated using analysis of IHS 2015/16 collected data to ensure that survey results are representative at national, LGA and district levels. As the IHS 2015/16 sample is a two-stage stratified cluster sample, the sampling weights were based on sampling probabilities calculated separately for each sampling stage and for each cluster (selection of EAs/cluster in a specific stratum, and selection of household in the selected cluster). The overall selection probability of each household in a cluster of a stratum is therefore the product of the two stages of selection probabilities. The weight for each household in a cluster of a stratum is the inverse of its overall selection probability. The probabilities and weights calculations can be summarized as follows:
B54: Weights adjustments
C55: The design weight was adjusted to address household non-response rate as well as the issues of number of households in a cluster from IHS2015/16 and 2013 Population and Housing Census whereby some clusters were under estimated. Non-response rate was adjusted at the stratum level whereby the number of household was adjusted at cluster/EA level. To address the non-response rate, household designed weight was multiplied by the inverse of the household response rate by stratum. Furthermore, the design weight was also adjusted to get the 2013 population by stratum and finally another adjustment based on inter-census growth rate between 2003 and 2013 was made to obtain the final weights.
A57: Survey Instruments
B58: The IHS 2015/16 used four module questionnaires to collect a series of information . The socio-economic module covered individuals—demographic, education, health, labour force participation, migration, etc., while the household characteristics module included housing conditions, household assets, incomes, loans, subjective poverty, environment, governance and crime. The second questionnaire covered data on household consumption (food and non-food, including consumption of own produce, purchases and gifts) as well as agriculture and household enterprises. The third module covered prices and lastly, the fourth module a community questionnaire was administered to selected communities. To ensure concise responses for the interviews, pre-coded multiple-choice response questions were used. These include:-
B59: · | C59: Part 1: Household Questionnaire
C60: SECTION 0: HOUSEHOLD PARTICULARS
C61: SECTION 1: HOUSEHOLD ROSTER
C62: SECTION 2A: HEALTH ‐ GENERAL
C63: SECITON 2B: EBOLA AWARENESS
C64: SECTION 2C: HEALTH ‐ DISABILITY
C65: SECTION 2D: HEALTH ‐ SMOKING
C66: SECTION 2E: HEALTH ‐ CHILD HEALTH
C67: SECTION 2F: HEALTH ‐ FERTILITY
C68: SECTION 3A: EDUCATION ‐ GENERAL
C69: SECTION 3B: EDUCATION ‐ EXPENDITURE
C70: SECTION 3C: EDUCATION ‐ LITERACY
C71: SECTION 3D: EDUCATION ‐ TRAINING
C72: SECTION 4A: LABOUR FORCE PARTICIPATION
C73: SECTION 4B: UNEMPLOYMENT SCREENING
C74: SECTION 4C: LABOUR ‐ OVERVIEW LAST 7 DAYS
C75: SECTION 4D: MAIN JOB
C76: SECTION 4E: SECONDARY JOB
C77: SECTION 4F: JOB LAST 12 MONTHS IF DIFFERENT FROM EITHER PRIMARY OR SECONDARY JOB
C78: SECTION 5: MIGRATION
C79: SECTION 6: DECISION‐MAKING
C80: SECTION 7A: CREDIT RECEIVED
C81: SECTION 7B: CREDIT DENIED
C82: SECTION 7C: SAVINGS
C83: SECTION 8A: HOUSING
C84: SECTION 8B: HOUSING EXPENSES
C85: SECTION 9: OWNERSHIP OF DURABLE ASSETS
C86: SECTION 10: ENVIRONMENT
C87: SECTION 11: GOVERNANCE
C88: SECTION 12A: TRANSFERS RECEIVED
C89: SECTION 12B: TRANSFERS GIVEN OUT
C90: SECTION 13: SUBJECTIVE POVERTY
C91: SECTION 14: ACCESS TO THE NEAREST SOCIAL AMENITY
C92: SECTION 15A: CRIME AND SECURITY ‐ HOUSEHOLD MEMBERS
C93: SECTION 15B: CRIME AND SECURITY ‐ COMMUNITY
C94: SECTION 16: IDENTIFICATION OF RESPONDENTS FOR PART 2
B95: · | C95: Part 2: Household Consumption and Expenditure
C96: SECTION 1A: FOOD CONSUMPTION EXPENDITURE
C97: SECTION 1B: FOOD CONSUMPTION EXPENDITURE
C98: SECTION 2A: NON‐FOOD LAST SEVEN DAYS
C99: SECTION 2B: NON‐FOOD LAST 1 MONTH
C100: SECTION 2C: NON‐FOOD LAST 3 MONTHS
C101: SECTION 2D: NON‐FOOD LAST 12 MONTHS
C102: SECTION 3A: AGRICULTURE HOLDING
C103: SECTION 3B: CROP PRODUCTION
C104: SECTION 3C: TRANSFORMATION (PROCESSING) OF AGRICULTURAL PRODUCTS
C105: SECTION 3D: CROP COSTS AND EXPENSES
C106: SECTION 3E: LIVESTOCK
C107: SECTION 3F: LIVESTOCK AND FISHING COSTS AND EXPENSES
C108: SECTION 4A: HOUSEHOLD INCOME
C109: SECTION 4B: MISCELLANEOUS INCOME
C110: SECTION 4C: MISCELLANEOUS EXPENDITURES
C111: SECTION 5: NON‐AGRICULTURAL HOUSEHOLD ENTERPRISES
B112: · | C112: Part 3: Price questionnaire
B113: · | C113: Part 4: Community Questionnaire
A117: Training of survey teams
C118: Recruitment of field staff was based on previous experience in IHS or a similar household survey, educational attainment, knowledge of the major local languages and the willingness to work away from home during the period of the survey. Training of field staff was conducted by technical and senior officials of GBoS with support from the World Bank Technical Assistants. The training lasted for 10 days during which field staff were taken through the survey instruments on the content and flow of the questions. The last three days of the training was used to translate the questionnaires into three major local languages (Wolof, Mandinka and Fula). All participants were required as a pre-condition for selection, to pass an evaluation test couple with an active participation in mock interviews conducted in the local languages. A pre-test was conducted towards the end of the training to test the tools to determine their suitability for the actual data collection implementation. The outcome of the activity pointed to issues such as the need for team spirit, adequacy of time allocated for each module questionnaire and other meaningful comments made by field staff during the debriefing session. This helped the implementing team to remedy some of the likely limitations with the tools and mode of field operations in general.
A120: Survey organisation
C121: The IHS 2015/16 data collection was conducted for a period of 12 months starting from May 2015 to April 2016. This survey period was divided into four quarters during which teams visited and conducted household interviews in the selected EAs to capture seasonal variations. Twelve teams of five enumerators each with a team leader were constituted for the data collection. To cater for unforeseen circumstances such as illness withdrawal or suspension of field staff, personnel hired for the coding exercise were included in the main training. This was to equip them with the requisite knowledge of performing the duties and responsibilities of an enumerator, to use them as replacement when the need arises, to avoid interruption or delay in the exercise. Each team was provided with equipment including a vehicle, bags, plastic folders, notepads, pens, staplers, stapling pins and twines. The team leaders were responsible for supervising and ensuring that all interviews are properly conducted to maintain quality and consistency of the data collected.
A123: Data Collection
C124: IHS is one of the largest and most comprehensive surveys conducted by GBoS. Thus, it requires hiring large number of field staff with duration of one year, which makes it susceptible to non-sampling errors. However, measures were instituted in the design and implementation of fieldwork to ensure that non-sampling errors are minimized largely. Two field coordinators both senior staff of GBoS were designated as field coordinators, responsible for steering the fieldwork activities mainly by visiting teams once a month to ensure field staff are following instructions as per the interviewers’ manual. They were also responsible for providing any required logistics for the teams in the field.
A126: Data Processing
C127: The volume of data collected from the IHS was massive and called for advance arrangements to avoid delays in data capture. Consequently, 48 data entry clerks were hired and formed into two teams of 24 each. Each team had a data entry operator whose assignment was to ensure that data collected are captured into the computer. Data was captured using a stand-alone programme created using Census and Survey Processing System (CSPro) software. The domesticated data capture programme was developed by GBoS staff and piloted during the training of data entry clerks. Based on data entry experience, the programme was refined and upgraded on a continuous basis. Computer-based quality controls and continuous refining of program brought about several benefits: Firstly, ex-post office data entry and cleaning processes ensured that the database is internally consistent. It significantly improved the quality of the information, because it permits correction of errors and inconsistencies. Secondly, it generated databases that are ready for tabulation and analysis in a timely manner. In fact, parts of the database were prepared as the survey was being conducted, thus giving the survey manager and coordinators the ability to effectively monitor field operations. Thirdly, an indirect advantage of integration was that it fostered the application of uniform criteria by all interviewers throughout the data collection period. The completed questionnaires were sent to GBoS by the field coordinators at the end of every cycle. At the Bureau, one coordinator was responsible for receiving and dispatching questionnaires in every cycle. A second coordinator was charged with quality control of the data entry operation. Completed questionnaires received from the field were stored in an exclusive store. These were organised in such a way that they were easily accessible during the data entry and cleaning processes. Data captured on computers were transferred to three different computers. The final data set was shared with the World Bank team to provide technical assistance in the data analysis.

Sheet Tab1.1
A1: Table 1.1
A2: Sample Size by District
C3: Census number of households | D3: Sample size | E3: Response rate | I3: Census number of households | J3: Sample size | K3: Response rate
A4: THE GAMBIA | C4: 217610 | D4: ='Tab1.2'!E5*20 -> 13340 | E4: ='[2]2015_Tables-1'!$B$11 -> 13281
B5: Urban | C5: 146194 | D5: ='Tab1.2'!C6*20 -> 3340 | E5: ='[2]2015_Tables-1'!B61 -> 3335
B6: Rural | C6: 71416 | D6: ='Tab1.2'!D7*20 -> 10000 | E6: ='[2]2015_Tables-1'!B62 -> 9946
A7: Banjul | C7: 6643 | D7: ='Tab1.2'!E8*20 -> 360 | E7: ='[2]2015_Tables-1'!$B$3 -> 357 | G7: Janjanbureh | I7: 11849 | J7: ='Tab1.2'!E43*20 -> 1680 | K7: ='[2]2015_Tables-1'!$B$9 -> 1673
B8: Urban | C8: 6643 | D8: ='Tab1.2'!E9*20 -> 360 | E8: ='[2]2015_Tables-1'!$B$15 -> 357 | H8: Niamina Dankunku | I8: 648 | J8: ='Tab1.2'!E44*20 -> 240 | K8: ='[2]2015_Tables-1'!B44 -> 240
A9: Kanifing | C9: 60103 | D9: ='Tab1.2'!E10*20 -> 420 | E9: ='[2]2015_Tables-1'!$B$4 -> 420 | H9: Niamina West | I9: 752 | J9: ='Tab1.2'!E45*20 -> 260 | K9: ='[2]2015_Tables-1'!B45 -> 260
B10: Urban | C10: 60103 | D10: ='Tab1.2'!E11*20 -> 420 | E10: ='[2]2015_Tables-1'!$B$16 -> 420 | H10: Niamina East | I10: 2439 | J10: ='Tab1.2'!E46*20 -> 340 | K10: ='[2]2015_Tables-1'!B46 -> 340
A11: Brikama | C11: 82006 | D11: ='Tab1.2'!E12*20 -> 2960 | E11: ='[2]2015_Tables-1'!$B$5 -> 2939 | H11: Lower Fuladu West | I11: 3262 | J11: ='Tab1.2'!E47*20 -> 340 | K11: ='[2]2015_Tables-1'!B47 -> 333
B12: Kombo North | C12: 43661 | D12: ='Tab1.2'!E13*20 -> 400 | E12: ='[2]2015_Tables-1'!B17 -> 400 | H12: Upper Fuladu West | I12: 4318 | J12: ='Tab1.2'!E48*20 -> 360 | K12: ='[2]2015_Tables-1'!B48 -> 360
B13: Kombo South | C13: 11833 | D13: ='Tab1.2'!E14*20 -> 380 | E13: ='[2]2015_Tables-1'!B18 -> 380 | H13: Janjanbureh | I13: 430 | J13: ='Tab1.2'!E49*20 -> 140 | K13: ='[2]2015_Tables-1'!B49 -> 140
B14: Kombo Central | C14: 15876 | D14: ='Tab1.2'!E15*20 -> 380 | E14: ='[2]2015_Tables-1'!B19 -> 380 | G14: Basse | I14: 15819 | J14: ='Tab1.2'!E50*20 -> 2220 | K14: ='[2]2015_Tables-1'!$B$10 -> 2201
B15: Kombo East | C15: 4366 | D15: ='Tab1.2'!E16*20 -> 360 | E15: ='[2]2015_Tables-1'!B20 -> 360 | H15: Jimara | I15: 2591 | J15: ='Tab1.2'!E51*20 -> 340 | K15: ='[2]2015_Tables-1'!B50 -> 340
B16: Foni Brefet | C16: 1509 | D16: ='Tab1.2'!E17*20 -> 300 | E16: ='[2]2015_Tables-1'!B21 -> 300 | H16: Basse | I16: 5215 | J16: ='Tab1.2'!E52*20 -> 360 | K16: ='[2]2015_Tables-1'!B51 -> 360
B17: Foni Bintang | C17: 1788 | D17: ='Tab1.2'!E18*20 -> 340 | E17: ='[2]2015_Tables-1'!B22 -> 320 | H17: Tumana | I17: 2105 | J17: ='Tab1.2'!E53*20 -> 320 | K17: ='[2]2015_Tables-1'!B52 -> 320
B18: Foni Kansalla | C18: 1562 | D18: ='Tab1.2'!E19*20 -> 300 | E18: ='[2]2015_Tables-1'!B23 -> 300 | H18: Kantora | I18: 1846 | J18: ='Tab1.2'!E54*20 -> 320 | K18: ='[2]2015_Tables-1'!B53 -> 320
B19: Foni Bundali | C19: 721 | D19: ='Tab1.2'!E20*20 -> 260 | E19: ='[2]2015_Tables-1'!B24 -> 259 | H19: Wuli West | I19: 1364 | J19: ='Tab1.2'!E55*20 -> 300 | K19: ='[2]2015_Tables-1'!B54 -> 298
B20: Foni Jarrol | C20: 690 | D20: ='Tab1.2'!E21*20 -> 240 | E20: ='[2]2015_Tables-1'!B25 -> 240 | H20: Wuli East | I20: 1300 | J20: ='Tab1.2'!E56*20 -> 300 | K20: ='[2]2015_Tables-1'!B55 -> 296
A21: Mansakonko | C21: 9668 | D21: ='Tab1.2'!E22*20 -> 1800 | E21: ='[2]2015_Tables-1'!$B$6 -> 1798 | H21: Sandu | I21: 1398 | J21: ='Tab1.2'!E57*20 -> 280 | K21: ='[2]2015_Tables-1'!B56 -> 267
B22: Kiang West | C22: 1784 | D22: ='Tab1.2'!E23*20 -> 320 | E22: ='[2]2015_Tables-1'!B26 -> 319
B23: Kiang Cental | C23: 1056 | D23: ='Tab1.2'!E24*20 -> 280 | E23: ='[2]2015_Tables-1'!B27 -> 280
B24: Kiang East | C24: 750 | D24: ='Tab1.2'!E25*20 -> 260 | E24: ='[2]2015_Tables-1'!B28 -> 259
B25: Jarra West | C25: 3527 | D25: ='Tab1.2'!E26*20 -> 340 | E25: ='[2]2015_Tables-1'!B29 -> 340
B26: Jarra Central | C26: 919 | D26: ='Tab1.2'!E27*20 -> 280 | E26: ='[2]2015_Tables-1'!B30 -> 280
B27: Jarra East | C27: 1632 | D27: ='Tab1.2'!E28*20 -> 320 | E27: ='[2]2015_Tables-1'!B31 -> 320
A28: Kerewan | C28: 22609 | D28: ='Tab1.2'!E29*20 -> 2320 | E28: ='[2]2015_Tables-1'!$B$7 -> 2317
B29: Lower Niumi | C29: 6386 | D29: ='Tab1.2'!E30*20 -> 360 | E29: ='[2]2015_Tables-1'!B32 -> 360
B30: Upper Niumi | C30: 2763 | D30: ='Tab1.2'!E31*20 -> 320 | E30: ='[2]2015_Tables-1'!B33 -> 320
B31: Jokadu | C31: 2011 | D31: ='Tab1.2'!E32*20 -> 320 | E31: ='[2]2015_Tables-1'!B34 -> 319
B32: Lower Badibu | C32: 1893 | D32: ='Tab1.2'!E33*20 -> 320 | E32: ='[2]2015_Tables-1'!B35 -> 320
B33: Central Badibu | C33: 2019 | D33: ='Tab1.2'!E34*20 -> 320 | E33: ='[2]2015_Tables-1'!B36 -> 320
B34: Illiasa | C34: 5514 | D34: ='Tab1.2'!E35*20 -> 360 | E34: ='[2]2015_Tables-1'!B37 -> 359
B35: Sabach Sanjal | C35: 2023 | D35: ='Tab1.2'!E36*20 -> 320 | E35: ='[2]2015_Tables-1'!B38 -> 319
A36: Kuntaur | C36: 8913 | D36: ='Tab1.2'!E37*20 -> 1580 | E36: ='[2]2015_Tables-1'!$B$8 -> 1576
B37: Lower Saloum | C37: 1614 | D37: ='Tab1.2'!E38*20 -> 320 | E37: ='[2]2015_Tables-1'!B39 -> 320
B38: Upper Saloum | C38: 1731 | D38: ='Tab1.2'!E39*20 -> 320 | E38: ='[2]2015_Tables-1'!B40 -> 319
B39: Nianija | C39: 949 | D39: ='Tab1.2'!E40*20 -> 280 | E39: ='[2]2015_Tables-1'!B41 -> 280
B40: Niani | C40: 2613 | D40: ='Tab1.2'!E41*20 -> 340 | E40: ='[2]2015_Tables-1'!B42 -> 337
B41: Sami | C41: 2006 | D41: ='Tab1.2'!E42*20 -> 320 | E41: ='[2]2015_Tables-1'!B43 -> 320

Sheet Sheet1

Sheet Sheet2

Sheet Sheet3

Sheet Sheet4

Sheet Sheet5

Sheet Sheet6

Sheet Sheet7

Sheet Sheet8

Sheet Sheet9

Sheet Sheet10

Sheet Sheet11

Sheet Sheet12

Sheet Tab1.2
A1: Table 1.2
A2: Sample Size for the Gambia Integrated Household Survey (IHS)
C3: No. of Clusters | F3: No. of Households | I3: Total Number of Respondents
C4: Urban | D4: Rural | E4: Total | F4: Urban | G4: Rural | H4: Total | I4: Urban | J4: Rural | K4: Total
A5: THE GAMBIA | C5: ='[2]2015_Tables-1'!B157 -> 167 | D5: ='[2]2015_Tables-1'!C157 -> 500 | E5: ='[2]2015_Tables-1'!D157 -> 667 | F5: ='[2]2015_Tables-1'!B183 -> 3335 | G5: ='[2]2015_Tables-1'!C183 -> 9946 | H5: ='[2]2015_Tables-1'!D183 -> 13281 | I5: ='[2]2015_Tables-1'!B243 -> 20703 | J5: ='[2]2015_Tables-1'!C243 -> 85094 | K5: ='[2]2015_Tables-1'!D243 -> 105797
B6: Urban | C6: =C5 -> 167 | D6: .. | E6: =D6 -> .. | F6: =F5 -> 3335 | H6: =F6 -> 3335 | I6: ='[2]2015_Tables-1'!B243 -> 20703 | K6: =I6 -> 20703
B7: Rural | C7: .. | D7: =D5 -> 500 | E7: =E5 -> 667 | G7: =G5 -> 9946 | H7: =G7 -> 9946 | J7: ='[2]2015_Tables-1'!C243 -> 85094 | K7: =J7 -> 85094
A8: Banjul | C8: ='[2]2015_Tables-1'!B162 -> 18 | D8: ='[2]2015_Tables-1'!C162 -> 0 | E8: ='[2]2015_Tables-1'!D162 -> 18 | F8: ='[2]2015_Tables-1'!B175 -> 357 | G8: ='[2]2015_Tables-1'!C175 -> 0 | H8: ='[2]2015_Tables-1'!D175 -> 357 | I8: ='[2]2015_Tables-1'!B235 -> 1469 | J8: ='[2]2015_Tables-1'!C235 -> 0 | K8: ='[2]2015_Tables-1'!D235 -> 1469
B9: Urban | C9: ='[2]2015_Tables-1'!B115 -> 18 | D9: ='[2]2015_Tables-1'!C115 -> 0 | E9: ='[2]2015_Tables-1'!D115 -> 18 | F9: ='[2]2015_Tables-1'!B188 -> 357 | G9: ='[2]2015_Tables-1'!C188 -> 0 | H9: ='[2]2015_Tables-1'!$B$188 -> 357 | I9: ='[2]2015_Tables-1'!B248 -> 1469 | J9: ='[2]2015_Tables-1'!C248 -> 0 | K9: ='[2]2015_Tables-1'!D248 -> 1469
A10: Kanifing | C10: ='[2]2015_Tables-1'!B163 -> 21 | D10: ='[2]2015_Tables-1'!C163 -> 0 | E10: ='[2]2015_Tables-1'!D163 -> 21 | F10: ='[2]2015_Tables-1'!B176 -> 420 | G10: ='[2]2015_Tables-1'!C176 -> 0 | H10: ='[2]2015_Tables-1'!D176 -> 420 | I10: ='[2]2015_Tables-1'!B236 -> 2306 | J10: ='[2]2015_Tables-1'!C236 -> 0 | K10: ='[2]2015_Tables-1'!D236 -> 2306
B11: Urban | C11: ='[2]2015_Tables-1'!B116 -> 21 | D11: ='[2]2015_Tables-1'!C116 -> 0 | E11: ='[2]2015_Tables-1'!D116 -> 21 | F11: ='[2]2015_Tables-1'!B189 -> 420 | G11: ='[2]2015_Tables-1'!C189 -> 0 | H11: ='[2]2015_Tables-1'!D189 -> 420 | I11: ='[2]2015_Tables-1'!B249 -> 2306 | J11: ='[2]2015_Tables-1'!C249 -> 0 | K11: ='[2]2015_Tables-1'!D249 -> 2306
A12: Brikama | C12: ='[2]2015_Tables-1'!B164 -> 49 | D12: ='[2]2015_Tables-1'!C164 -> 99 | E12: ='[2]2015_Tables-1'!D164 -> 148 | F12: ='[2]2015_Tables-1'!B177 -> 979 | G12: ='[2]2015_Tables-1'!C177 -> 1960 | H12: ='[2]2015_Tables-1'!D177 -> 2939 | I12: ='[2]2015_Tables-1'!B237 -> 6901 | J12: ='[2]2015_Tables-1'!C237 -> 16823 | K12: ='[2]2015_Tables-1'!D237 -> 23724
B13: Kombo North | C13: ='[2]2015_Tables-1'!B117 -> 18 | D13: ='[2]2015_Tables-1'!C117 -> 2 | E13: ='[2]2015_Tables-1'!D117 -> 20 | F13: ='[2]2015_Tables-1'!B190 -> 360 | G13: ='[2]2015_Tables-1'!C190 -> 40 | H13: ='[2]2015_Tables-1'!D190 -> 400 | I13: ='[2]2015_Tables-1'!B250 -> 2196 | J13: ='[2]2015_Tables-1'!C250 -> 333 | K13: ='[2]2015_Tables-1'!D250 -> 2529
B14: Kombo South | C14: ='[2]2015_Tables-1'!B118 -> 9 | D14: ='[2]2015_Tables-1'!C118 -> 10 | E14: ='[2]2015_Tables-1'!D118 -> 19 | F14: ='[2]2015_Tables-1'!B191 -> 180 | G14: ='[2]2015_Tables-1'!C191 -> 200 | H14: ='[2]2015_Tables-1'!D191 -> 380 | I14: ='[2]2015_Tables-1'!B251 -> 1267 | J14: ='[2]2015_Tables-1'!C251 -> 1680 | K14: ='[2]2015_Tables-1'!D251 -> 2947
B15: Kombo Central | C15: ='[2]2015_Tables-1'!B119 -> 15 | D15: ='[2]2015_Tables-1'!C119 -> 4 | E15: ='[2]2015_Tables-1'!D119 -> 19 | F15: ='[2]2015_Tables-1'!B192 -> 300 | G15: ='[2]2015_Tables-1'!C192 -> 80 | H15: ='[2]2015_Tables-1'!D192 -> 380 | I15: ='[2]2015_Tables-1'!B252 -> 2225 | J15: ='[2]2015_Tables-1'!C252 -> 744 | K15: ='[2]2015_Tables-1'!D252 -> 2969
B16: Kombo East | C16: ='[2]2015_Tables-1'!B120 -> 2 | D16: ='[2]2015_Tables-1'!C120 -> 16 | E16: ='[2]2015_Tables-1'!D120 -> 18 | F16: ='[2]2015_Tables-1'!B193 -> 40 | G16: ='[2]2015_Tables-1'!C193 -> 320 | H16: ='[2]2015_Tables-1'!D193 -> 360 | I16: ='[2]2015_Tables-1'!B253 -> 361 | J16: ='[2]2015_Tables-1'!C253 -> 2519 | K16: ='[2]2015_Tables-1'!D253 -> 2880
B17: Foni Brefet | C17: ='[2]2015_Tables-1'!B121 -> 0 | D17: ='[2]2015_Tables-1'!C121 -> 15 | E17: ='[2]2015_Tables-1'!D121 -> 15 | F17: ='[2]2015_Tables-1'!B194 -> 0 | G17: ='[2]2015_Tables-1'!C194 -> 300 | H17: ='[2]2015_Tables-1'!D194 -> 300 | I17: ='[2]2015_Tables-1'!B254 -> 0 | J17: ='[2]2015_Tables-1'!C254 -> 2534 | K17: ='[2]2015_Tables-1'!D254 -> 2534
B18: Foni Bintang | C18: ='[2]2015_Tables-1'!B122 -> 3 | D18: ='[2]2015_Tables-1'!C122 -> 14 | E18: ='[2]2015_Tables-1'!D122 -> 17 | F18: ='[2]2015_Tables-1'!B195 -> 59 | G18: ='[2]2015_Tables-1'!C195 -> 261 | H18: ='[2]2015_Tables-1'!D195 -> 320 | I18: ='[2]2015_Tables-1'!B255 -> 536 | J18: ='[2]2015_Tables-1'!C255 -> 2480 | K18: ='[2]2015_Tables-1'!D255 -> 3016
B19: Foni Kansalla | C19: ='[2]2015_Tables-1'!B123 -> 2 | D19: ='[2]2015_Tables-1'!C123 -> 13 | E19: ='[2]2015_Tables-1'!D123 -> 15 | F19: ='[2]2015_Tables-1'!B196 -> 40 | G19: ='[2]2015_Tables-1'!C196 -> 260 | H19: ='[2]2015_Tables-1'!D196 -> 300 | I19: ='[2]2015_Tables-1'!B256 -> 316 | J19: ='[2]2015_Tables-1'!C256 -> 2066 | K19: ='[2]2015_Tables-1'!D256 -> 2382
B20: Foni Bundali | C20: ='[2]2015_Tables-1'!B124 -> 0 | D20: ='[2]2015_Tables-1'!C124 -> 13 | E20: ='[2]2015_Tables-1'!D124 -> 13 | F20: ='[2]2015_Tables-1'!B197 -> 0 | G20: ='[2]2015_Tables-1'!C197 -> 259 | H20: ='[2]2015_Tables-1'!D197 -> 259 | I20: ='[2]2015_Tables-1'!B257 -> 0 | J20: ='[2]2015_Tables-1'!C257 -> 2604 | K20: ='[2]2015_Tables-1'!D257 -> 2604
B21: Foni Jarrol | C21: ='[2]2015_Tables-1'!B125 -> 0 | D21: ='[2]2015_Tables-1'!C125 -> 12 | E21: ='[2]2015_Tables-1'!D125 -> 12 | F21: ='[2]2015_Tables-1'!B198 -> 0 | G21: ='[2]2015_Tables-1'!C198 -> 240 | H21: ='[2]2015_Tables-1'!D198 -> 240 | I21: ='[2]2015_Tables-1'!B258 -> 0 | J21: ='[2]2015_Tables-1'!C258 -> 1863 | K21: ='[2]2015_Tables-1'!D258 -> 1863
A22: Mansakonko | C22: ='[2]2015_Tables-1'!B165 -> 9 | D22: ='[2]2015_Tables-1'!C165 -> 81 | E22: ='[2]2015_Tables-1'!D165 -> 90 | F22: ='[2]2015_Tables-1'!B178 -> 180 | G22: ='[2]2015_Tables-1'!C178 -> 1618 | H22: ='[2]2015_Tables-1'!D178 -> 1798 | I22: ='[2]2015_Tables-1'!B238 -> 1068 | J22: ='[2]2015_Tables-1'!C238 -> 11497 | K22: ='[2]2015_Tables-1'!D238 -> 12565
B23: Kiang West | C23: ='[2]2015_Tables-1'!B126 -> 0 | D23: ='[2]2015_Tables-1'!C126 -> 16 | E23: ='[2]2015_Tables-1'!D126 -> 16 | F23: ='[2]2015_Tables-1'!B199 -> 0 | G23: ='[2]2015_Tables-1'!C199 -> 319 | H23: ='[2]2015_Tables-1'!D199 -> 319 | I23: ='[2]2015_Tables-1'!B259 -> 0 | J23: ='[2]2015_Tables-1'!C259 -> 2153 | K23: ='[2]2015_Tables-1'!D259 -> 2153
B24: Kiang Cental | C24: ='[2]2015_Tables-1'!B127 -> 0 | D24: ='[2]2015_Tables-1'!C127 -> 14 | E24: ='[2]2015_Tables-1'!D127 -> 14 | F24: ='[2]2015_Tables-1'!B200 -> 0 | G24: ='[2]2015_Tables-1'!C200 -> 280 | H24: ='[2]2015_Tables-1'!D200 -> 280 | I24: ='[2]2015_Tables-1'!B260 -> 0 | J24: ='[2]2015_Tables-1'!C260 -> 2077 | K24: ='[2]2015_Tables-1'!D260 -> 2077
B25: Kiang East | C25: ='[2]2015_Tables-1'!B128 -> 0 | D25: ='[2]2015_Tables-1'!C128 -> 13 | E25: ='[2]2015_Tables-1'!D128 -> 13 | F25: ='[2]2015_Tables-1'!B201 -> 0 | G25: ='[2]2015_Tables-1'!C201 -> 259 | H25: ='[2]2015_Tables-1'!D201 -> 259 | I25: ='[2]2015_Tables-1'!B261 -> 0 | J25: ='[2]2015_Tables-1'!C261 -> 1959 | K25: ='[2]2015_Tables-1'!D261 -> 1959
B26: Jarra West | C26: ='[2]2015_Tables-1'!B129 -> 9 | D26: ='[2]2015_Tables-1'!C129 -> 8 | E26: ='[2]2015_Tables-1'!D129 -> 17 | F26: ='[2]2015_Tables-1'!B202 -> 180 | G26: ='[2]2015_Tables-1'!C202 -> 160 | H26: ='[2]2015_Tables-1'!D202 -> 340 | I26: ='[2]2015_Tables-1'!B262 -> 1068 | J26: ='[2]2015_Tables-1'!C262 -> 1096 | K26: ='[2]2015_Tables-1'!D262 -> 2164
B27: Jarra Central | C27: ='[2]2015_Tables-1'!B130 -> 0 | D27: ='[2]2015_Tables-1'!C130 -> 14 | E27: ='[2]2015_Tables-1'!D130 -> 14 | F27: ='[2]2015_Tables-1'!B203 -> 0 | G27: ='[2]2015_Tables-1'!C203 -> 280 | H27: ='[2]2015_Tables-1'!D203 -> 280 | I27: ='[2]2015_Tables-1'!B263 -> 0 | J27: ='[2]2015_Tables-1'!C263 -> 1841 | K27: ='[2]2015_Tables-1'!D263 -> 1841
B28: Jarra East | C28: ='[2]2015_Tables-1'!B131 -> 0 | D28: ='[2]2015_Tables-1'!C131 -> 16 | E28: ='[2]2015_Tables-1'!D131 -> 16 | F28: ='[2]2015_Tables-1'!B204 -> 0 | G28: ='[2]2015_Tables-1'!C204 -> 320 | H28: ='[2]2015_Tables-1'!D204 -> 320 | I28: ='[2]2015_Tables-1'!B264 -> 0 | J28: ='[2]2015_Tables-1'!C264 -> 2371 | K28: ='[2]2015_Tables-1'!D264 -> 2371
A29: Kerewan | C29: ='[2]2015_Tables-1'!B166 -> 26 | D29: ='[2]2015_Tables-1'!C166 -> 90 | E29: ='[2]2015_Tables-1'!D166 -> 116 | F29: ='[2]2015_Tables-1'!B179 -> 519 | G29: ='[2]2015_Tables-1'!C179 -> 1798 | H29: ='[2]2015_Tables-1'!D179 -> 2317 | I29: ='[2]2015_Tables-1'!B239 -> 3671 | J29: ='[2]2015_Tables-1'!C239 -> 15983 | K29: ='[2]2015_Tables-1'!D239 -> 19654
B30: Lower Niumi | C30: ='[2]2015_Tables-1'!B132 -> 9 | D30: ='[2]2015_Tables-1'!C132 -> 9 | E30: ='[2]2015_Tables-1'!D132 -> 18 | F30: ='[2]2015_Tables-1'!B205 -> 180 | G30: ='[2]2015_Tables-1'!C205 -> 180 | H30: ='[2]2015_Tables-1'!D205 -> 360 | I30: ='[2]2015_Tables-1'!B265 -> 1079 | J30: ='[2]2015_Tables-1'!C265 -> 1437 | K30: ='[2]2015_Tables-1'!D265 -> 2516
B31: Upper Niumi | C31: ='[2]2015_Tables-1'!B133 -> 0 | D31: ='[2]2015_Tables-1'!C133 -> 16 | E31: ='[2]2015_Tables-1'!D133 -> 16 | F31: ='[2]2015_Tables-1'!B206 -> 0 | G31: ='[2]2015_Tables-1'!C206 -> 320 | H31: ='[2]2015_Tables-1'!D206 -> 320 | I31: ='[2]2015_Tables-1'!B266 -> 0 | J31: ='[2]2015_Tables-1'!C266 -> 2746 | K31: ='[2]2015_Tables-1'!D266 -> 2746
B32: Jokadu | C32: ='[2]2015_Tables-1'!B134 -> 0 | D32: ='[2]2015_Tables-1'!C134 -> 16 | E32: ='[2]2015_Tables-1'!D134 -> 16 | F32: ='[2]2015_Tables-1'!B207 -> 0 | G32: ='[2]2015_Tables-1'!C207 -> 319 | H32: ='[2]2015_Tables-1'!D207 -> 319 | I32: ='[2]2015_Tables-1'!B267 -> 0 | J32: ='[2]2015_Tables-1'!C267 -> 2786 | K32: ='[2]2015_Tables-1'!D267 -> 2786
B33: Lower Badibu | C33: ='[2]2015_Tables-1'!B135 -> 5 | D33: ='[2]2015_Tables-1'!C135 -> 11 | E33: ='[2]2015_Tables-1'!D135 -> 16 | F33: ='[2]2015_Tables-1'!B208 -> 100 | G33: ='[2]2015_Tables-1'!C208 -> 220 | H33: ='[2]2015_Tables-1'!D208 -> 320 | I33: ='[2]2015_Tables-1'!B268 -> 569 | J33: ='[2]2015_Tables-1'!C268 -> 2076 | K33: ='[2]2015_Tables-1'!D268 -> 2645
B34: Central Badibu | C34: ='[2]2015_Tables-1'!B136 -> 0 | D34: ='[2]2015_Tables-1'!C136 -> 16 | E34: ='[2]2015_Tables-1'!D136 -> 16 | F34: ='[2]2015_Tables-1'!B209 -> 0 | G34: ='[2]2015_Tables-1'!C209 -> 320 | H34: ='[2]2015_Tables-1'!D209 -> 320 | I34: ='[2]2015_Tables-1'!B269 -> 0 | J34: ='[2]2015_Tables-1'!C269 -> 2744 | K34: ='[2]2015_Tables-1'!D269 -> 2744
B35: Illiasa | C35: ='[2]2015_Tables-1'!B137 -> 12 | D35: ='[2]2015_Tables-1'!C137 -> 6 | E35: ='[2]2015_Tables-1'!D137 -> 18 | F35: ='[2]2015_Tables-1'!B210 -> 239 | G35: ='[2]2015_Tables-1'!C210 -> 120 | H35: ='[2]2015_Tables-1'!D210 -> 359 | I35: ='[2]2015_Tables-1'!B270 -> 2023 | J35: ='[2]2015_Tables-1'!C270 -> 1198 | K35: ='[2]2015_Tables-1'!D270 -> 3221
B36: Sabach Sanjal | C36: ='[2]2015_Tables-1'!B138 -> 0 | D36: ='[2]2015_Tables-1'!C138 -> 16 | E36: ='[2]2015_Tables-1'!D138 -> 16 | F36: ='[2]2015_Tables-1'!B211 -> 0 | G36: ='[2]2015_Tables-1'!C211 -> 319 | H36: ='[2]2015_Tables-1'!D211 -> 319 | I36: ='[2]2015_Tables-1'!B271 -> 0 | J36: ='[2]2015_Tables-1'!C271 -> 2996 | K36: ='[2]2015_Tables-1'!D271 -> 2996
A37: Kuntaur | C37: ='[2]2015_Tables-1'!B167 -> 6 | D37: ='[2]2015_Tables-1'!C167 -> 73 | E37: ='[2]2015_Tables-1'!D167 -> 79 | F37: ='[2]2015_Tables-1'!B180 -> 120 | G37: ='[2]2015_Tables-1'!C180 -> 1456 | H37: ='[2]2015_Tables-1'!D180 -> 1576 | I37: ='[2]2015_Tables-1'!B240 -> 728 | J37: ='[2]2015_Tables-1'!C240 -> 13416 | K37: ='[2]2015_Tables-1'!D240 -> 14144
B38: Lower Saloum | C38: ='[2]2015_Tables-1'!B139 -> 5 | D38: ='[2]2015_Tables-1'!C139 -> 11 | E38: ='[2]2015_Tables-1'!D139 -> 16 | F38: ='[2]2015_Tables-1'!B212 -> 100 | G38: ='[2]2015_Tables-1'!C212 -> 220 | H38: ='[2]2015_Tables-1'!D212 -> 320 | I38: ='[2]2015_Tables-1'!B272 -> 623 | J38: ='[2]2015_Tables-1'!C272 -> 1971 | K38: ='[2]2015_Tables-1'!D272 -> 2594
B39: Upper Saloum | C39: ='[2]2015_Tables-1'!B140 -> 0 | D39: ='[2]2015_Tables-1'!C140 -> 16 | E39: ='[2]2015_Tables-1'!D140 -> 16 | F39: ='[2]2015_Tables-1'!B213 -> 0 | G39: ='[2]2015_Tables-1'!C213 -> 319 | H39: ='[2]2015_Tables-1'!D213 -> 319 | I39: ='[2]2015_Tables-1'!B273 -> 0 | J39: ='[2]2015_Tables-1'!C273 -> 3052 | K39: ='[2]2015_Tables-1'!D273 -> 3052
B40: Nianija | C40: ='[2]2015_Tables-1'!B141 -> 0 | D40: ='[2]2015_Tables-1'!C141 -> 14 | E40: ='[2]2015_Tables-1'!D141 -> 14 | F40: ='[2]2015_Tables-1'!B214 -> 0 | G40: ='[2]2015_Tables-1'!C214 -> 280 | H40: ='[2]2015_Tables-1'!D214 -> 280 | I40: ='[2]2015_Tables-1'!B274 -> 0 | J40: ='[2]2015_Tables-1'!C274 -> 2499 | K40: ='[2]2015_Tables-1'!D274 -> 2499
B41: Niani | C41: ='[2]2015_Tables-1'!B142 -> 1 | D41: ='[2]2015_Tables-1'!C142 -> 16 | E41: ='[2]2015_Tables-1'!D142 -> 17 | F41: ='[2]2015_Tables-1'!B215 -> 20 | G41: ='[2]2015_Tables-1'!C215 -> 317 | H41: ='[2]2015_Tables-1'!D215 -> 337 | I41: ='[2]2015_Tables-1'!B275 -> 105 | J41: ='[2]2015_Tables-1'!C275 -> 2742 | K41: ='[2]2015_Tables-1'!D275 -> 2847
B42: Sami | C42: ='[2]2015_Tables-1'!B143 -> 0 | D42: ='[2]2015_Tables-1'!C143 -> 16 | E42: ='[2]2015_Tables-1'!D143 -> 16 | F42: ='[2]2015_Tables-1'!B216 -> 0 | G42: ='[2]2015_Tables-1'!C216 -> 320 | H42: ='[2]2015_Tables-1'!D216 -> 320 | I42: ='[2]2015_Tables-1'!B276 -> 0 | J42: ='[2]2015_Tables-1'!C276 -> 3152 | K42: ='[2]2015_Tables-1'!D276 -> 3152 | L42: cont'd
A43: Janjanbureh | C43: ='[2]2015_Tables-1'!B168 -> 19 | D43: ='[2]2015_Tables-1'!C168 -> 65 | E43: ='[2]2015_Tables-1'!D168 -> 84 | F43: ='[2]2015_Tables-1'!B181 -> 380 | G43: ='[2]2015_Tables-1'!C181 -> 1293 | H43: ='[2]2015_Tables-1'!D181 -> 1673 | I43: ='[2]2015_Tables-1'!B241 -> 2444 | J43: ='[2]2015_Tables-1'!C241 -> 12148 | K43: ='[2]2015_Tables-1'!D241 -> 14592
B44: Niamina Dankunku | C44: ='[2]2015_Tables-1'!B144 -> 0 | D44: ='[2]2015_Tables-1'!C144 -> 12 | E44: ='[2]2015_Tables-1'!D144 -> 12 | F44: ='[2]2015_Tables-1'!B217 -> 0 | G44: ='[2]2015_Tables-1'!C217 -> 240 | H44: ='[2]2015_Tables-1'!D217 -> 240 | I44: ='[2]2015_Tables-1'!B277 -> 0 | J44: ='[2]2015_Tables-1'!C277 -> 1700 | K44: ='[2]2015_Tables-1'!D277 -> 1700
B45: Niamina West | C45: ='[2]2015_Tables-1'!B145 -> 0 | D45: ='[2]2015_Tables-1'!C145 -> 13 | E45: ='[2]2015_Tables-1'!D145 -> 13 | F45: ='[2]2015_Tables-1'!B218 -> 0 | G45: ='[2]2015_Tables-1'!C218 -> 260 | H45: ='[2]2015_Tables-1'!D218 -> 260 | I45: ='[2]2015_Tables-1'!B278 -> 0 | J45: ='[2]2015_Tables-1'!C278 -> 2407 | K45: ='[2]2015_Tables-1'!D278 -> 2407
B46: Niamina East | C46: ='[2]2015_Tables-1'!B146 -> 0 | D46: ='[2]2015_Tables-1'!C146 -> 17 | E46: ='[2]2015_Tables-1'!D146 -> 17 | F46: ='[2]2015_Tables-1'!B219 -> 0 | G46: ='[2]2015_Tables-1'!C219 -> 340 | H46: ='[2]2015_Tables-1'!D219 -> 340 | I46: ='[2]2015_Tables-1'!B279 -> 0 | J46: ='[2]2015_Tables-1'!C279 -> 3286 | K46: ='[2]2015_Tables-1'!D279 -> 3286
B47: Lower Fuladu West | C47: ='[2]2015_Tables-1'!B147 -> 6 | D47: ='[2]2015_Tables-1'!C147 -> 11 | E47: ='[2]2015_Tables-1'!D147 -> 17 | F47: ='[2]2015_Tables-1'!B220 -> 120 | G47: ='[2]2015_Tables-1'!C220 -> 213 | H47: ='[2]2015_Tables-1'!D220 -> 333 | I47: ='[2]2015_Tables-1'!B280 -> 949 | J47: ='[2]2015_Tables-1'!C280 -> 2662 | K47: ='[2]2015_Tables-1'!D280 -> 3611
B48: Upper Fuladu West | C48: ='[2]2015_Tables-1'!B148 -> 6 | D48: ='[2]2015_Tables-1'!C148 -> 12 | E48: ='[2]2015_Tables-1'!D148 -> 18 | F48: ='[2]2015_Tables-1'!B221 -> 120 | G48: ='[2]2015_Tables-1'!C221 -> 240 | H48: ='[2]2015_Tables-1'!D221 -> 360 | I48: ='[2]2015_Tables-1'!B281 -> 648 | J48: ='[2]2015_Tables-1'!C281 -> 2093 | K48: ='[2]2015_Tables-1'!D281 -> 2741
B49: Janjanbureh | C49: ='[2]2015_Tables-1'!B149 -> 7 | D49: ='[2]2015_Tables-1'!C149 -> 0 | E49: ='[2]2015_Tables-1'!D149 -> 7 | F49: ='[2]2015_Tables-1'!B222 -> 140 | G49: ='[2]2015_Tables-1'!C222 -> 0 | H49: ='[2]2015_Tables-1'!D222 -> 140 | I49: ='[2]2015_Tables-1'!B282 -> 847 | J49: ='[2]2015_Tables-1'!C282 -> 0 | K49: ='[2]2015_Tables-1'!D282 -> 847
A50: Basse | C50: ='[2]2015_Tables-1'!B169 -> 19 | D50: ='[2]2015_Tables-1'!C169 -> 92 | E50: ='[2]2015_Tables-1'!D169 -> 111 | F50: ='[2]2015_Tables-1'!B188 -> 357 | G50: ='[2]2015_Tables-1'!C188 -> 0 | H50: ='[2]2015_Tables-1'!D188 -> 357 | I50: ='[2]2015_Tables-1'!B242 -> 2116 | J50: ='[2]2015_Tables-1'!C242 -> 15227 | K50: ='[2]2015_Tables-1'!D242 -> 17343
B51: Jimara | C51: ='[2]2015_Tables-1'!B150 -> 1 | D51: ='[2]2015_Tables-1'!C150 -> 16 | E51: ='[2]2015_Tables-1'!D150 -> 17 | F51: ='[2]2015_Tables-1'!B223 -> 20 | G51: ='[2]2015_Tables-1'!C223 -> 320 | H51: ='[2]2015_Tables-1'!D223 -> 340 | I51: ='[2]2015_Tables-1'!B283 -> 143 | J51: ='[2]2015_Tables-1'!C283 -> 2310 | K51: ='[2]2015_Tables-1'!D283 -> 2453
B52: Basse | C52: ='[2]2015_Tables-1'!B151 -> 16 | D52: ='[2]2015_Tables-1'!C151 -> 2 | E52: ='[2]2015_Tables-1'!D151 -> 18 | F52: ='[2]2015_Tables-1'!B224 -> 320 | G52: ='[2]2015_Tables-1'!C224 -> 40 | H52: ='[2]2015_Tables-1'!D224 -> 360 | I52: ='[2]2015_Tables-1'!B284 -> 1536 | J52: ='[2]2015_Tables-1'!C284 -> 259 | K52: ='[2]2015_Tables-1'!D284 -> 1795
B53: Tumana | C53: ='[2]2015_Tables-1'!B152 -> 0 | D53: ='[2]2015_Tables-1'!C152 -> 16 | E53: ='[2]2015_Tables-1'!D152 -> 16 | F53: ='[2]2015_Tables-1'!B225 -> 0 | G53: ='[2]2015_Tables-1'!C225 -> 320 | H53: ='[2]2015_Tables-1'!D225 -> 320 | I53: ='[2]2015_Tables-1'!B285 -> 0 | J53: ='[2]2015_Tables-1'!C285 -> 2379 | K53: ='[2]2015_Tables-1'!D285 -> 2379
B54: Kantora | C54: ='[2]2015_Tables-1'!B153 -> 0 | D54: ='[2]2015_Tables-1'!C153 -> 16 | E54: ='[2]2015_Tables-1'!D153 -> 16 | F54: ='[2]2015_Tables-1'!B226 -> 0 | G54: ='[2]2015_Tables-1'!C226 -> 320 | H54: ='[2]2015_Tables-1'!D226 -> 320 | I54: ='[2]2015_Tables-1'!B286 -> 0 | J54: ='[2]2015_Tables-1'!C286 -> 2883 | K54: ='[2]2015_Tables-1'!D286 -> 2883
B55: Wuli West | C55: ='[2]2015_Tables-1'!B154 -> 0 | D55: ='[2]2015_Tables-1'!C154 -> 15 | E55: ='[2]2015_Tables-1'!D154 -> 15 | F55: ='[2]2015_Tables-1'!B227 -> 0 | G55: ='[2]2015_Tables-1'!C227 -> 298 | H55: ='[2]2015_Tables-1'!D227 -> 298 | I55: ='[2]2015_Tables-1'!B287 -> 0 | J55: ='[2]2015_Tables-1'!C287 -> 2797 | K55: ='[2]2015_Tables-1'!D287 -> 2797
B56: Wuli East | C56: ='[2]2015_Tables-1'!B155 -> 0 | D56: ='[2]2015_Tables-1'!C155 -> 15 | E56: ='[2]2015_Tables-1'!D155 -> 15 | F56: ='[2]2015_Tables-1'!B228 -> 0 | G56: ='[2]2015_Tables-1'!C228 -> 296 | H56: ='[2]2015_Tables-1'!D228 -> 296 | I56: ='[2]2015_Tables-1'!B288 -> 0 | J56: ='[2]2015_Tables-1'!C288 -> 2677 | K56: ='[2]2015_Tables-1'!D288 -> 2677
B57: Sandu | C57: ='[2]2015_Tables-1'!B156 -> 2 | D57: ='[2]2015_Tables-1'!C156 -> 12 | E57: ='[2]2015_Tables-1'!D156 -> 14 | F57: ='[2]2015_Tables-1'!B229 -> 40 | G57: ='[2]2015_Tables-1'!C229 -> 227 | H57: ='[2]2015_Tables-1'!D229 -> 267 | I57: ='[2]2015_Tables-1'!B289 -> 437 | J57: ='[2]2015_Tables-1'!C289 -> 1922 | K57: ='[2]2015_Tables-1'!D289 -> 2359
A59: Note:
B60: Includes all persons listed in survey (both regular and non-regular household members).
B61: The analysis from Table 2.1 is based on regular household members.

Sheet Tab2.1
A1: Table 2.1
A2: Distribution of Population by Sex and District
D3: Male | F3: Female | H3: Sex ratio | I3: Mean household size
C4: Count | D4: Count | E4: Percent | F4: Count | G4: Percent
A5: THE GAMBIA | C5: ='[3]2015_Tables-2'!D66 -> 1922950 | D5: ='[3]2015_Tables-2'!B66 -> 915357 | E5: ='[3]2015_Tables-2'!B133 -> 47.6 | F5: ='[3]2015_Tables-2'!C66 -> 1007593 | G5: ='[3]2015_Tables-2'!C133 -> 52.4 | H5: =D5/F5*100 -> 90.84590703 | I5: ='[3]2015_Tables-2'!B197 -> 6.9
B6: Urban | C6: ='[3]2015_Tables-2'!D64 -> 1057467 | D6: ='[3]2015_Tables-2'!B64 -> 503304 | E6: ='[3]2015_Tables-2'!B131 -> 47.6 | F6: ='[3]2015_Tables-2'!C64 -> 554163 | G6: ='[3]2015_Tables-2'!C131 -> 52.4 | H6: =D6/F6*100 -> 90.82237537 | I6: ='[3]2015_Tables-2'!B195 -> 6
B7: Rural | C7: ='[3]2015_Tables-2'!D65 -> 865483 | D7: ='[3]2015_Tables-2'!B65 -> 412053 | E7: ='[3]2015_Tables-2'!B132 -> 47.6 | F7: ='[3]2015_Tables-2'!C65 -> 453430 | G7: ='[3]2015_Tables-2'!C132 -> 52.4 | H7: 90.87466643 | I7: ='[3]2015_Tables-2'!B196 -> 8.4
A8: Banjul | C8: ='[3]2015_Tables-2'!D4 -> 30703 | D8: ='[3]2015_Tables-2'!B4 -> 15704 | E8: ='[3]2015_Tables-2'!B71 -> 51.1 | F8: ='[3]2015_Tables-2'!C4 -> 14999 | G8: ='[3]2015_Tables-2'!C71 -> 48.9 | H8: 104.7003134 | I8: ='[3]2015_Tables-2'!B137 -> 4.1
B9: Urban | C9: ='[3]2015_Tables-2'!D17 -> 30703 | D9: ='[3]2015_Tables-2'!B17 -> 15704 | E9: ='[3]2015_Tables-2'!B84 -> 51.1 | F9: ='[3]2015_Tables-2'!C17 -> 14999 | G9: ='[3]2015_Tables-2'!C84 -> 48.9 | H9: 104.7003134 | I9: ='[3]2015_Tables-2'!B149 -> 4.1
A10: Kanifing | C10: ='[3]2015_Tables-2'!D5 -> 383545 | D10: ='[3]2015_Tables-2'!B5 -> 179016 | E10: ='[3]2015_Tables-2'!B72 -> 46.7 | F10: ='[3]2015_Tables-2'!C5 -> 204529 | G10: ='[3]2015_Tables-2'!C72 -> 53.3 | H10: 87.52597431 | I10: ='[3]2015_Tables-2'!B138 -> 5.5
B11: Urban | C11: ='[3]2015_Tables-2'!D18 -> 383545 | D11: ='[3]2015_Tables-2'!B18 -> 179016 | E11: ='[3]2015_Tables-2'!B85 -> 46.7 | F11: ='[3]2015_Tables-2'!C18 -> 204529 | G11: ='[3]2015_Tables-2'!C85 -> 53.3 | H11: 87.52597431 | I11: ='[3]2015_Tables-2'!B150 -> 5.5
A12: Brikama | C12: ='[3]2015_Tables-2'!D6 -> 730895 | D12: ='[3]2015_Tables-2'!B6 -> 354559 | E12: ='[3]2015_Tables-2'!B73 -> 48.5 | F12: ='[3]2015_Tables-2'!C6 -> 376336 | G12: ='[3]2015_Tables-2'!C73 -> 51.5 | H12: 94.21341567 | I12: ='[3]2015_Tables-2'!B139 -> 7
B13: Kombo North | C13: ='[3]2015_Tables-2'!D19 -> 360147 | D13: ='[3]2015_Tables-2'!B19 -> 172963 | E13: ='[3]2015_Tables-2'!B86 -> 48 | F13: ='[3]2015_Tables-2'!C19 -> 187184 | G13: ='[3]2015_Tables-2'!C86 -> 52 | H13: 92.40266262 | I13: ='[3]2015_Tables-2'!B151 -> 6.3
B14: Kombo South | C14: ='[3]2015_Tables-2'!D20 -> 113315 | D14: ='[3]2015_Tables-2'!B20 -> 55717 | E14: ='[3]2015_Tables-2'!B87 -> 49.2 | F14: ='[3]2015_Tables-2'!C20 -> 57598 | G14: ='[3]2015_Tables-2'!C87 -> 50.8 | H14: 96.73426161 | I14: ='[3]2015_Tables-2'!B152 -> 7.7
B15: Kombo Central | C15: ='[3]2015_Tables-2'!D21 -> 148599 | D15: ='[3]2015_Tables-2'!B21 -> 73329 | E15: ='[3]2015_Tables-2'!B88 -> 49.3 | F15: ='[3]2015_Tables-2'!C21 -> 75270 | G15: ='[3]2015_Tables-2'!C88 -> 50.7 | H15: 97.42128338 | I15: ='[3]2015_Tables-2'!B153 -> 7.8
B16: Kombo East | C16: ='[3]2015_Tables-2'!D22 -> 44874 | D16: ='[3]2015_Tables-2'!B22 -> 21802 | E16: ='[3]2015_Tables-2'!B89 -> 48.6 | F16: ='[3]2015_Tables-2'!C22 -> 23072 | G16: ='[3]2015_Tables-2'!C89 -> 51.4 | H16: 94.49549237 | I16: ='[3]2015_Tables-2'!B154 -> 8
B17: Foni Brefet | C17: ='[3]2015_Tables-2'!D23 -> 15412 | D17: ='[3]2015_Tables-2'!B23 -> 7412 | E17: ='[3]2015_Tables-2'!B90 -> 48.1 | F17: ='[3]2015_Tables-2'!C23 -> 8000 | G17: ='[3]2015_Tables-2'!C90 -> 51.9 | H17: 92.65 | I17: ='[3]2015_Tables-2'!B155 -> 8.5
B18: Foni Bintang | C18: ='[3]2015_Tables-2'!D24 -> 18167 | D18: ='[3]2015_Tables-2'!B24 -> 8855 | E18: ='[3]2015_Tables-2'!B91 -> 48.7 | F18: ='[3]2015_Tables-2'!C24 -> 9312 | G18: ='[3]2015_Tables-2'!C91 -> 51.3 | H18: 95.09235395 | I18: ='[3]2015_Tables-2'!B156 -> 9.3
B19: Foni Kansalla | C19: ='[3]2015_Tables-2'!D25 -> 14989 | D19: ='[3]2015_Tables-2'!B25 -> 6947 | E19: ='[3]2015_Tables-2'!B92 -> 46.3 | F19: ='[3]2015_Tables-2'!C25 -> 8042 | G19: ='[3]2015_Tables-2'!C92 -> 53.7 | H19: 86.38398408 | I19: ='[3]2015_Tables-2'!B157 -> 7.9
B20: Foni Bundali | C20: ='[3]2015_Tables-2'!D26 -> 8088 | D20: ='[3]2015_Tables-2'!B26 -> 4207 | E20: ='[3]2015_Tables-2'!B93 -> 52 | F20: ='[3]2015_Tables-2'!C26 -> 3881 | G20: ='[3]2015_Tables-2'!C93 -> 48 | H20: 108.3998969 | I20: ='[3]2015_Tables-2'!B158 -> 9.9
B21: Foni Jarrol | C21: ='[3]2015_Tables-2'!D27 -> 7304 | D21: ='[3]2015_Tables-2'!B27 -> 3327 | E21: ='[3]2015_Tables-2'!B94 -> 45.6 | F21: ='[3]2015_Tables-2'!C27 -> 3977 | G21: ='[3]2015_Tables-2'!C94 -> 54.4 | H21: 83.65602213 | I21: ='[3]2015_Tables-2'!B159 -> 7.7
A22: Mansakonko | C22: ='[3]2015_Tables-2'!D7 -> 82201 | D22: ='[3]2015_Tables-2'!B7 -> 38437 | E22: ='[3]2015_Tables-2'!B74 -> 46.8 | F22: ='[3]2015_Tables-2'!C7 -> 43764 | G22: ='[3]2015_Tables-2'!C74 -> 53.2 | H22: 87.82789507 | I22: ='[3]2015_Tables-2'!B140 -> 6.9
B23: Kiang West | C23: ='[3]2015_Tables-2'!D28 -> 15204 | D23: ='[3]2015_Tables-2'!B28 -> 7067 | E23: ='[3]2015_Tables-2'!B95 -> 46.5 | F23: ='[3]2015_Tables-2'!C28 -> 8137 | G23: ='[3]2015_Tables-2'!C95 -> 53.5 | H23: 86.85019049 | I23: ='[3]2015_Tables-2'!B160 -> 6.8
B24: Kiang Cental | C24: ='[3]2015_Tables-2'!D29 -> 8785 | D24: ='[3]2015_Tables-2'!B29 -> 4139 | E24: ='[3]2015_Tables-2'!B96 -> 47.1 | F24: ='[3]2015_Tables-2'!C29 -> 4646 | G24: ='[3]2015_Tables-2'!C96 -> 52.9 | H24: 89.087387 | I24: ='[3]2015_Tables-2'!B161 -> 7.7
B25: Kiang East | C25: ='[3]2015_Tables-2'!D30 -> 6898 | D25: ='[3]2015_Tables-2'!B30 -> 3061 | E25: ='[3]2015_Tables-2'!B97 -> 44.4 | F25: ='[3]2015_Tables-2'!C30 -> 3837 | G25: ='[3]2015_Tables-2'!C97 -> 55.6 | H25: 79.77586656 | I25: ='[3]2015_Tables-2'!B162 -> 7.3
B26: Jarra West | C26: ='[3]2015_Tables-2'!D31 -> 26589 | D26: ='[3]2015_Tables-2'!B31 -> 12312 | E26: ='[3]2015_Tables-2'!B98 -> 46.3 | F26: ='[3]2015_Tables-2'!C31 -> 14277 | G26: ='[3]2015_Tables-2'!C98 -> 53.7 | H26: 86.23660433 | I26: ='[3]2015_Tables-2'!B163 -> 6.4
B27: Jarra Central | C27: ='[3]2015_Tables-2'!D32 -> 8461 | D27: ='[3]2015_Tables-2'!B32 -> 4154 | E27: ='[3]2015_Tables-2'!B99 -> 49.1 | F27: ='[3]2015_Tables-2'!C32 -> 4307 | G27: ='[3]2015_Tables-2'!C99 -> 50.9 | H27: 96.44764337 | I27: ='[3]2015_Tables-2'!B164 -> 6.6
B28: Jarra East | C28: ='[3]2015_Tables-2'!D33 -> 16263 | D28: ='[3]2015_Tables-2'!B33 -> 7703 | E28: ='[3]2015_Tables-2'!B100 -> 47.4 | F28: ='[3]2015_Tables-2'!C33 -> 8560 | G28: ='[3]2015_Tables-2'!C100 -> 52.6 | H28: 89.98831776 | I28: ='[3]2015_Tables-2'!B165 -> 7.3
A29: Kerewan | C29: ='[3]2015_Tables-2'!D8 -> 225516 | D29: ='[3]2015_Tables-2'!B8 -> 105832 | E29: ='[3]2015_Tables-2'!B75 -> 46.9 | F29: ='[3]2015_Tables-2'!C8 -> 119684 | G29: ='[3]2015_Tables-2'!C75 -> 53.1 | H29: 88.42618896 | I29: ='[3]2015_Tables-2'!B141 -> 8.2
B30: Lower Niumi | C30: ='[3]2015_Tables-2'!D34 -> 58498 | D30: ='[3]2015_Tables-2'!B34 -> 27666 | E30: ='[3]2015_Tables-2'!B101 -> 47.3 | F30: ='[3]2015_Tables-2'!C34 -> 30832 | G30: ='[3]2015_Tables-2'!C101 -> 52.7 | H30: 89.73144785 | I30: ='[3]2015_Tables-2'!B166 -> 7.1
B31: Upper Niumi | C31: ='[3]2015_Tables-2'!D35 -> 31643 | D31: ='[3]2015_Tables-2'!B35 -> 14923 | E31: ='[3]2015_Tables-2'!B102 -> 47.2 | F31: ='[3]2015_Tables-2'!C35 -> 16720 | G31: ='[3]2015_Tables-2'!C102 -> 52.8 | H31: 89.25239234 | I31: ='[3]2015_Tables-2'!B167 -> 8.1
B32: Jokadu | C32: ='[3]2015_Tables-2'!D36 -> 22863 | D32: ='[3]2015_Tables-2'!B36 -> 10908 | E32: ='[3]2015_Tables-2'!B103 -> 47.7 | F32: ='[3]2015_Tables-2'!C36 -> 11955 | G32: ='[3]2015_Tables-2'!C103 -> 52.3 | H32: 91.24215809 | I32: ='[3]2015_Tables-2'!B168 -> 8.8
B33: Lower Badibu | C33: ='[3]2015_Tables-2'!D37 -> 18405 | D33: ='[3]2015_Tables-2'!B37 -> 8318 | E33: ='[3]2015_Tables-2'!B104 -> 45.2 | F33: ='[3]2015_Tables-2'!C37 -> 10086 | G33: ='[3]2015_Tables-2'!C104 -> 54.8 | H33: 82.47075154 | I33: ='[3]2015_Tables-2'!B169 -> 8.2
B34: Central Badibu | C34: ='[3]2015_Tables-2'!D38 -> 19972 | D34: ='[3]2015_Tables-2'!B38 -> 9289 | E34: ='[3]2015_Tables-2'!B105 -> 46.5 | F34: ='[3]2015_Tables-2'!C38 -> 10683 | G34: ='[3]2015_Tables-2'!C105 -> 53.5 | H34: 86.95123093 | I34: ='[3]2015_Tables-2'!B170 -> 8.8
B35: Illiasa | C35: ='[3]2015_Tables-2'!D39 -> 49821 | D35: ='[3]2015_Tables-2'!B39 -> 23322 | E35: ='[3]2015_Tables-2'!B106 -> 46.8 | F35: ='[3]2015_Tables-2'!C39 -> 26499 | G35: ='[3]2015_Tables-2'!C106 -> 53.2 | H35: 88.01086833 | I35: ='[3]2015_Tables-2'!B171 -> 9
B36: Sabach Sanjal | C36: ='[3]2015_Tables-2'!D40 -> 24314 | D36: ='[3]2015_Tables-2'!B40 -> 11405 | E36: ='[3]2015_Tables-2'!B107 -> 46.9 | F36: ='[3]2015_Tables-2'!C40 -> 12909 | G36: ='[3]2015_Tables-2'!C107 -> 53.1 | H36: 88.34921373 | I36: ='[3]2015_Tables-2'!B172 -> 9.4
A37: Kuntaur | C37: ='[3]2015_Tables-2'!D9 -> 98966 | D37: ='[3]2015_Tables-2'!B9 -> 45959 | E37: ='[3]2015_Tables-2'!B76 -> 46.4 | F37: ='[3]2015_Tables-2'!C9 -> 53007 | G37: ='[3]2015_Tables-2'!C76 -> 53.6 | H37: 86.70364292 | I37: ='[3]2015_Tables-2'!B142 -> 9
B38: Lower Saloum | C38: ='[3]2015_Tables-2'!D41 -> 15807 | D38: ='[3]2015_Tables-2'!B41 -> 6898 | E38: ='[3]2015_Tables-2'!B108 -> 43.6 | F38: ='[3]2015_Tables-2'!C41 -> 8909 | G38: ='[3]2015_Tables-2'!C108 -> 56.4 | H38: 77.42732069 | I38: ='[3]2015_Tables-2'!B173 -> 8.2
B39: Upper Saloum | C39: ='[3]2015_Tables-2'!D42 -> 19110 | D39: ='[3]2015_Tables-2'!B42 -> 8732 | E39: ='[3]2015_Tables-2'!B109 -> 45.7 | F39: ='[3]2015_Tables-2'!C42 -> 10378 | G39: ='[3]2015_Tables-2'!C109 -> 54.3 | H39: 84.13952592 | I39: ='[3]2015_Tables-2'!B174 -> 9.5
B40: Nianija | C40: ='[3]2015_Tables-2'!D43 -> 10107 | D40: ='[3]2015_Tables-2'!B43 -> 5107 | E40: ='[3]2015_Tables-2'!B110 -> 50.5 | F40: ='[3]2015_Tables-2'!C43 -> 5000 | G40: ='[3]2015_Tables-2'!C110 -> 49.5 | H40: 102.14 | I40: ='[3]2015_Tables-2'!B175 -> 9
B41: Niani | C41: ='[3]2015_Tables-2'!D44 -> 29006 | D41: ='[3]2015_Tables-2'!B44 -> 13526 | E41: ='[3]2015_Tables-2'!B111 -> 46.6 | F41: ='[3]2015_Tables-2'!C44 -> 15480 | G41: ='[3]2015_Tables-2'!C111 -> 53.4 | H41: 87.37726098 | I41: ='[3]2015_Tables-2'!B176 -> 8.7
B42: Sami | C42: ='[3]2015_Tables-2'!D45 -> 24935 | D42: ='[3]2015_Tables-2'!B45 -> 11696 | E42: ='[3]2015_Tables-2'!B112 -> 46.9 | F42: ='[3]2015_Tables-2'!C45 -> 13239 | G42: ='[3]2015_Tables-2'!C112 -> 53.1 | H42: 88.34504117 | I42: ='[3]2015_Tables-2'!B177 -> 9.7 | J42: cont'd
A43: Janjanbureh | C43: ='[3]2015_Tables-2'!D10 -> 127332 | D43: ='[3]2015_Tables-2'!B10 -> 59684 | E43: ='[3]2015_Tables-2'!B77 -> 46.9 | F43: ='[3]2015_Tables-2'!C10 -> 67649 | G43: ='[3]2015_Tables-2'!C77 -> 53.1 | H43: 88.22599004 | I43: ='[3]2015_Tables-2'!B143 -> 8.8
B44: Niamina Dankunku | C44: ='[3]2015_Tables-2'!D46 -> 6186 | D44: ='[3]2015_Tables-2'!B46 -> 2938 | E44: ='[3]2015_Tables-2'!B113 -> 47.5 | F44: ='[3]2015_Tables-2'!C46 -> 3248 | G44: ='[3]2015_Tables-2'!C113 -> 52.5 | H44: 90.45566502 | I44: ='[3]2015_Tables-2'!B178 -> 6.9
B45: Niamina West | C45: ='[3]2015_Tables-2'!D47 -> 7262 | D45: ='[3]2015_Tables-2'!B47 -> 3343 | E45: ='[3]2015_Tables-2'!B114 -> 46 | F45: ='[3]2015_Tables-2'!C47 -> 3920 | G45: ='[3]2015_Tables-2'!C114 -> 54 | H45: 85.28061224 | I45: ='[3]2015_Tables-2'!B179 -> 9.6
B46: Niamina East | C46: ='[3]2015_Tables-2'!D48 -> 24754 | D46: ='[3]2015_Tables-2'!B48 -> 11142 | E46: ='[3]2015_Tables-2'!B115 -> 45 | F46: ='[3]2015_Tables-2'!C48 -> 13612 | G46: ='[3]2015_Tables-2'!C115 -> 55 | H46: 81.85424625 | I46: ='[3]2015_Tables-2'!B180 -> 9.8
B47: Lower Fuladu West | C47: ='[3]2015_Tables-2'!D49 -> 40481 | D47: ='[3]2015_Tables-2'!B49 -> 19306 | E47: ='[3]2015_Tables-2'!B116 -> 47.7 | F47: ='[3]2015_Tables-2'!C49 -> 21175 | G47: ='[3]2015_Tables-2'!C116 -> 52.3 | H47: 91.17355372 | I47: ='[3]2015_Tables-2'!B181 -> 10.9
B48: Upper Fuladu West | C48: ='[3]2015_Tables-2'!D50 -> 44796 | D48: ='[3]2015_Tables-2'!B50 -> 21125 | E48: ='[3]2015_Tables-2'!B117 -> 47.2 | F48: ='[3]2015_Tables-2'!C50 -> 23671 | G48: ='[3]2015_Tables-2'!C117 -> 52.8 | H48: 89.24422289 | I48: ='[3]2015_Tables-2'!B182 -> 7.6
B49: Janjanbureh | C49: ='[3]2015_Tables-2'!D51 -> 3853 | D49: ='[3]2015_Tables-2'!B51 -> 1831 | E49: ='[3]2015_Tables-2'!B118 -> 47.5 | F49: ='[3]2015_Tables-2'!C51 -> 2023 | G49: ='[3]2015_Tables-2'!C118 -> 52.5 | H49: 90.50914483 | I49: ='[3]2015_Tables-2'!B183 -> 5.9
A50: Basse | C50: ='[3]2015_Tables-2'!D11 -> 243791 | D50: ='[3]2015_Tables-2'!B11 -> 116166 | E50: ='[3]2015_Tables-2'!B78 -> 47.6 | F50: ='[3]2015_Tables-2'!C11 -> 127625 | G50: ='[3]2015_Tables-2'!C78 -> 52.4 | H50: 91.02135162 | I50: ='[3]2015_Tables-2'!B144 -> 7
B51: Jimara | C51: ='[3]2015_Tables-2'!D52 -> 44665 | D51: ='[3]2015_Tables-2'!B52 -> 21322 | E51: ='[3]2015_Tables-2'!B119 -> 47.7 | F51: ='[3]2015_Tables-2'!C52 -> 23343 | G51: ='[3]2015_Tables-2'!C119 -> 52.3 | H51: 91.34215825 | I51: ='[3]2015_Tables-2'!B184 -> 7.1
B52: Basse | C52: ='[3]2015_Tables-2'!D53 -> 50462 | D52: ='[3]2015_Tables-2'!B53 -> 25440 | E52: ='[3]2015_Tables-2'!B120 -> 50.4 | F52: ='[3]2015_Tables-2'!C53 -> 25022 | G52: ='[3]2015_Tables-2'!C120 -> 49.6 | H52: 101.6705299 | I52: ='[3]2015_Tables-2'!B185 -> 5.1
B53: Tumana | C53: ='[3]2015_Tables-2'!D54 -> 38237 | D53: ='[3]2015_Tables-2'!B54 -> 17730 | E53: ='[3]2015_Tables-2'!B121 -> 46.4 | F53: ='[3]2015_Tables-2'!C54 -> 20506 | G53: ='[3]2015_Tables-2'!C121 -> 53.6 | H53: 86.46249878 | I53: ='[3]2015_Tables-2'!B186 -> 7.3
B54: Kantora | C54: ='[3]2015_Tables-2'!D55 -> 39416 | D54: ='[3]2015_Tables-2'!B55 -> 17729 | E54: ='[3]2015_Tables-2'!B122 -> 45 | F54: ='[3]2015_Tables-2'!C55 -> 21687 | G54: ='[3]2015_Tables-2'!C122 -> 55 | H54: 81.74943515 | I54: ='[3]2015_Tables-2'!B187 -> 8.2
B55: Wuli West | C55: ='[3]2015_Tables-2'!D56 -> 22431 | D55: ='[3]2015_Tables-2'!B56 -> 10829 | E55: ='[3]2015_Tables-2'!B123 -> 48.3 | F55: ='[3]2015_Tables-2'!C56 -> 11602 | G55: ='[3]2015_Tables-2'!C123 -> 51.7 | H55: 93.33735563 | I55: ='[3]2015_Tables-2'!B188 -> 8.6
B56: Wuli East | C56: ='[3]2015_Tables-2'!D57 -> 24266 | D56: ='[3]2015_Tables-2'!B57 -> 11322 | E56: ='[3]2015_Tables-2'!B124 -> 46.7 | F56: ='[3]2015_Tables-2'!C57 -> 12944 | G56: ='[3]2015_Tables-2'!C124 -> 53.3 | H56: 87.46909765 | I56: ='[3]2015_Tables-2'!B189 -> 8.1
B57: Sandu | C57: ='[3]2015_Tables-2'!D58 -> 24314 | D57: ='[3]2015_Tables-2'!B58 -> 11793 | E57: ='[3]2015_Tables-2'!B125 -> 48.5 | F57: ='[3]2015_Tables-2'!C58 -> 12522 | G57: ='[3]2015_Tables-2'!C125 -> 51.5 | H57: 94.17824629 | I57: ='[3]2015_Tables-2'!B190 -> 8.5
A58: Population 0-35 years
B59: Total | C59: ='[3]2015_Tables-2'!D1754 -> 1529083 | D59: ='[3]2015_Tables-2'!B1754 -> 718994 | E59: ='[3]2015_Tables-2'!B1762 -> 47 | F59: ='[3]2015_Tables-2'!C1754 -> 810089 | G59: ='[3]2015_Tables-2'!C1762 -> 53 | H59: =D59/F59*100 -> 88.75493927 | I59: ..
B60: 0-14 years | C60: ='[3]2015_Tables-2'!D1751 -> 838234 | D60: ='[3]2015_Tables-2'!B1751 -> 421038 | E60: ='[3]2015_Tables-2'!B1759 -> 50.2 | F60: ='[3]2015_Tables-2'!D1751 -> 838234 | G60: ='[3]2015_Tables-2'!C1759 -> 49.8 | H60: 50.22917228 | I60: ..
B61: 15-17 years | C61: ='[3]2015_Tables-2'!D1752 -> 126022 | D61: ='[3]2015_Tables-2'!B1752 -> 56630 | E61: ='[3]2015_Tables-2'!B1760 -> 44.9 | F61: ='[3]2015_Tables-2'!D1752 -> 126022 | G61: ='[3]2015_Tables-2'!C1760 -> 55.1 | H61: =D61/F61*100 -> 44.93659837 | I61: ..
B62: 18-35 years | C62: ='[3]2015_Tables-2'!D1753 -> 564827 | D62: ='[3]2015_Tables-2'!B1753 -> 241326 | E62: ='[3]2015_Tables-2'!B1761 -> 42.7 | F62: ='[3]2015_Tables-2'!D1753 -> 564827 | G62: ='[3]2015_Tables-2'!C1761 -> 57.3 | H62: 42.72564874 | I62: ..

Sheet Tab2.2
A1: Table 2.2
A2: Distribution of Households by Household Composition (size) and District
C3: Count | D3: 1 | E3: 2-4 | F3: 5-6 | G3: 7-10 | H3: 11+ | I3: Mean Household Size
D4: person | E4: persons | F4: persons | G4: persons | H4: persons
A5: THE GAMBIA | C5: ='Tab7.1'!C5 -> 280659 | D5: ='[3]2015_Tables-2'!B264 -> 8 | E5: ='[3]2015_Tables-2'!C264 -> 24.1 | F5: ='[3]2015_Tables-2'!D264 -> 23.2 | G5: ='[3]2015_Tables-2'!E264 -> 31.8 | H5: ='[3]2015_Tables-2'!F264 -> 12.8 | I5: ='Tab2.1'!I5 -> 6.9
B6: Urban | C6: ='Tab7.1'!C6 -> 177686 | D6: ='[3]2015_Tables-2'!B262 -> 10.8 | E6: ='[3]2015_Tables-2'!C262 -> 28.4 | F6: ='[3]2015_Tables-2'!D262 -> 25 | G6: ='[3]2015_Tables-2'!E262 -> 27.7 | H6: ='[3]2015_Tables-2'!F262 -> 8.1 | I6: ='Tab2.1'!I6 -> 6
B7: Rural | C7: ='Tab7.1'!C7 -> 102973 | D7: ='[3]2015_Tables-2'!B263 -> 3.2 | E7: ='[3]2015_Tables-2'!C263 -> 16.7 | F7: ='[3]2015_Tables-2'!D263 -> 20.3 | G7: ='[3]2015_Tables-2'!E263 -> 38.9 | H7: ='[3]2015_Tables-2'!F263 -> 21 | I7: ='Tab2.1'!I7 -> 8.4
A8: Banjul | C8: ='Tab7.1'!C8 -> 7403 | D8: ='[3]2015_Tables-2'!B202 -> 26.2 | E8: ='[3]2015_Tables-2'!C202 -> 31.4 | F8: ='[3]2015_Tables-2'!D202 -> 24.1 | G8: ='[3]2015_Tables-2'!E202 -> 15.7 | H8: ='[3]2015_Tables-2'!F202 -> 2.7 | I8: ='Tab2.1'!I8 -> 4.1
B9: Urban | C9: ='Tab7.1'!C9 -> 7403 | D9: ='[3]2015_Tables-2'!B215 -> 26.2 | E9: ='[3]2015_Tables-2'!C215 -> 31.4 | F9: ='[3]2015_Tables-2'!D215 -> 24.1 | G9: ='[3]2015_Tables-2'!E215 -> 15.7 | H9: ='[3]2015_Tables-2'!F215 -> 2.7 | I9: ='Tab2.1'!I9 -> 4.1
A10: Kanifing | C10: ='Tab7.1'!C10 -> 70018 | D10: ='[3]2015_Tables-2'!B203 -> 11.7 | E10: ='[3]2015_Tables-2'!C203 -> 31.7 | F10: ='[3]2015_Tables-2'!D203 -> 27.1 | G10: ='[3]2015_Tables-2'!E203 -> 23.6 | H10: ='[3]2015_Tables-2'!F203 -> 5.9 | I10: ='Tab2.1'!I10 -> 5.5
B11: Urban | C11: ='Tab7.1'!C11 -> 70018 | D11: ='[3]2015_Tables-2'!B216 -> 11.7 | E11: ='[3]2015_Tables-2'!C216 -> 31.7 | F11: ='[3]2015_Tables-2'!D216 -> 27.1 | G11: ='[3]2015_Tables-2'!E216 -> 23.6 | H11: ='[3]2015_Tables-2'!F216 -> 5.9 | I11: ='Tab2.1'!I11 -> 5.5
A12: Brikama | C12: ='Tab7.1'!C12 -> 103690 | D12: ='[3]2015_Tables-2'!B204 -> 6.4 | E12: ='[3]2015_Tables-2'!C204 -> 23.4 | F12: ='[3]2015_Tables-2'!D204 -> 23.1 | G12: ='[3]2015_Tables-2'!E204 -> 34 | H12: ='[3]2015_Tables-2'!F204 -> 13.1 | I12: ='Tab2.1'!I12 -> 7
B13: Kombo North | C13: ='Tab7.1'!C13 -> 56983 | D13: ='[3]2015_Tables-2'!B217 -> 7.7 | E13: ='[3]2015_Tables-2'!C217 -> 26.8 | F13: ='[3]2015_Tables-2'!D217 -> 24.2 | G13: ='[3]2015_Tables-2'!E217 -> 31.8 | H13: ='[3]2015_Tables-2'!F217 -> 9.5 | I13: ='Tab2.1'!I13 -> 6.3
B14: Kombo South | C14: ='Tab7.1'!C14 -> 14684 | D14: ='[3]2015_Tables-2'!B218 -> 6.5 | E14: ='[3]2015_Tables-2'!C218 -> 21.5 | F14: ='[3]2015_Tables-2'!D218 -> 23 | G14: ='[3]2015_Tables-2'!E218 -> 34.5 | H14: ='[3]2015_Tables-2'!F218 -> 14.5 | I14: ='Tab2.1'!I14 -> 7.7
B15: Kombo Central | C15: ='Tab7.1'!C15 -> 18975 | D15: ='[3]2015_Tables-2'!B219 -> 4.6 | E15: ='[3]2015_Tables-2'!C219 -> 20.6 | F15: ='[3]2015_Tables-2'!D219 -> 20.8 | G15: ='[3]2015_Tables-2'!E219 -> 37.1 | H15: ='[3]2015_Tables-2'!F219 -> 16.9 | I15: ='Tab2.1'!I15 -> 7.8
B16: Kombo East | C16: ='Tab7.1'!C16 -> 5631 | D16: ='[3]2015_Tables-2'!B220 -> 4.5 | E16: ='[3]2015_Tables-2'!C220 -> 16 | F16: ='[3]2015_Tables-2'!D220 -> 25.9 | G16: ='[3]2015_Tables-2'!E220 -> 36.5 | H16: ='[3]2015_Tables-2'!F220 -> 17.1 | I16: ='Tab2.1'!I16 -> 8
B17: Foni Brefet | C17: ='Tab7.1'!C17 -> 1818 | D17: ='[3]2015_Tables-2'!B221 -> 1 | E17: ='[3]2015_Tables-2'!C221 -> 15 | F17: ='[3]2015_Tables-2'!D221 -> 21.5 | G17: ='[3]2015_Tables-2'!E221 -> 41.4 | H17: ='[3]2015_Tables-2'!F221 -> 21.1 | I17: ='Tab2.1'!I17 -> 8.5
B18: Foni Bintang | C18: ='Tab7.1'!C18 -> 1948 | D18: ='[3]2015_Tables-2'!B222 -> 0.8 | E18: ='[3]2015_Tables-2'!C222 -> 13.8 | F18: ='[3]2015_Tables-2'!D222 -> 16.5 | G18: ='[3]2015_Tables-2'!E222 -> 34.9 | H18: ='[3]2015_Tables-2'!F222 -> 33.9 | I18: ='Tab2.1'!I18 -> 9.3
B19: Foni Kansalla | C19: ='Tab7.1'!C19 -> 1888 | D19: ='[3]2015_Tables-2'!B223 -> 2.6 | E19: ='[3]2015_Tables-2'!C223 -> 15.9 | F19: ='[3]2015_Tables-2'!D223 -> 20.7 | G19: ='[3]2015_Tables-2'!E223 -> 40.9 | H19: ='[3]2015_Tables-2'!F223 -> 20 | I19: ='Tab2.1'!I19 -> 7.9
B20: Foni Bundali | C20: ='Tab7.1'!C20 -> 816 | D20: ='[3]2015_Tables-2'!B224 -> 0.6 | E20: ='[3]2015_Tables-2'!C224 -> 8.5 | F20: ='[3]2015_Tables-2'!D224 -> 17.2 | G20: ='[3]2015_Tables-2'!E224 -> 42.6 | H20: ='[3]2015_Tables-2'!F224 -> 31 | I20: ='Tab2.1'!I20 -> 9.9
B21: Foni Jarrol | C21: ='Tab7.1'!C21 -> 946 | D21: ='[3]2015_Tables-2'!B225 -> 5.7 | E21: ='[3]2015_Tables-2'!C225 -> 16.4 | F21: ='[3]2015_Tables-2'!D225 -> 17.3 | G21: ='[3]2015_Tables-2'!E225 -> 43 | H21: ='[3]2015_Tables-2'!F225 -> 17.6 | I21: ='Tab2.1'!I21 -> 7.7
A22: Mansakonko | C22: ='Tab7.1'!C22 -> 11984 | D22: ='[3]2015_Tables-2'!B205 -> 3.2 | E22: ='[3]2015_Tables-2'!C205 -> 22.1 | F22: ='[3]2015_Tables-2'!D205 -> 25.1 | G22: ='[3]2015_Tables-2'!E205 -> 42 | H22: ='[3]2015_Tables-2'!F205 -> 7.7 | I22: ='Tab2.1'!I22 -> 6.9
B23: Kiang West | C23: ='Tab7.1'!C23 -> 2230 | D23: ='[3]2015_Tables-2'!B226 -> 4.5 | E23: ='[3]2015_Tables-2'!C226 -> 17.7 | F23: ='[3]2015_Tables-2'!D226 -> 26.1 | G23: ='[3]2015_Tables-2'!E226 -> 41.6 | H23: ='[3]2015_Tables-2'!F226 -> 10.1 | I23: ='Tab2.1'!I23 -> 6.8
B24: Kiang Cental | C24: ='Tab7.1'!C24 -> 1148 | D24: ='[3]2015_Tables-2'!B227 -> 3.2 | E24: ='[3]2015_Tables-2'!C227 -> 14.4 | F24: ='[3]2015_Tables-2'!D227 -> 27 | G24: ='[3]2015_Tables-2'!E227 -> 41.2 | H24: ='[3]2015_Tables-2'!F227 -> 14.3 | I24: ='Tab2.1'!I24 -> 7.7
B25: Kiang East | C25: ='Tab7.1'!C25 -> 939 | D25: ='[3]2015_Tables-2'!B228 -> 2.1 | E25: ='[3]2015_Tables-2'!C228 -> 22.6 | F25: ='[3]2015_Tables-2'!D228 -> 23.4 | G25: ='[3]2015_Tables-2'!E228 -> 38.8 | H25: ='[3]2015_Tables-2'!F228 -> 13.1 | I25: ='Tab2.1'!I25 -> 7.3
B26: Jarra West | C26: ='Tab7.1'!C26 -> 4162 | D26: ='[3]2015_Tables-2'!B229 -> 4.3 | E26: ='[3]2015_Tables-2'!C229 -> 24.4 | F26: ='[3]2015_Tables-2'!D229 -> 24.8 | G26: ='[3]2015_Tables-2'!E229 -> 42.8 | H26: ='[3]2015_Tables-2'!F229 -> 3.7 | I26: ='Tab2.1'!I26 -> 6.4
B27: Jarra Central | C27: ='Tab7.1'!C27 -> 1289 | D27: ='[3]2015_Tables-2'!B230 -> 0.8 | E27: ='[3]2015_Tables-2'!C230 -> 22.5 | F27: ='[3]2015_Tables-2'!D230 -> 30.6 | G27: ='[3]2015_Tables-2'!E230 -> 43.3 | H27: ='[3]2015_Tables-2'!F230 -> 2.7 | I27: ='Tab2.1'!I27 -> 6.6
B28: Jarra East | C28: ='Tab7.1'!C28 -> 2216 | D28: ='[3]2015_Tables-2'!B231 -> 1.6 | E28: ='[3]2015_Tables-2'!C231 -> 25.6 | F28: ='[3]2015_Tables-2'!D231 -> 21.1 | G28: ='[3]2015_Tables-2'!E231 -> 42 | H28: ='[3]2015_Tables-2'!F231 -> 9.8 | I28: ='Tab2.1'!I28 -> 7.3
A29: Kerewan | C29: ='Tab7.1'!C29 -> 27478 | D29: ='[3]2015_Tables-2'!B206 -> 4.9 | E29: ='[3]2015_Tables-2'!C206 -> 14.3 | F29: ='[3]2015_Tables-2'!D206 -> 20 | G29: ='[3]2015_Tables-2'!E206 -> 40.5 | H29: ='[3]2015_Tables-2'!F206 -> 20.3 | I29: ='Tab2.1'!I29 -> 8.2
B30: Lower Niumi | C30: ='Tab7.1'!C30 -> 8295 | D30: ='[3]2015_Tables-2'!B232 -> 6.6 | E30: ='[3]2015_Tables-2'!C232 -> 17.4 | F30: ='[3]2015_Tables-2'!D232 -> 25.9 | G30: ='[3]2015_Tables-2'!E232 -> 39.7 | H30: ='[3]2015_Tables-2'!F232 -> 10.5 | I30: ='Tab2.1'!I30 -> 7.1
B31: Upper Niumi | C31: ='Tab7.1'!C31 -> 3928 | D31: ='[3]2015_Tables-2'!B233 -> 5.6 | E31: ='[3]2015_Tables-2'!C233 -> 14.2 | F31: ='[3]2015_Tables-2'!D233 -> 18.7 | G31: ='[3]2015_Tables-2'!E233 -> 44.1 | H31: ='[3]2015_Tables-2'!F233 -> 17.4 | I31: ='Tab2.1'!I31 -> 8.1
B32: Jokadu | C32: ='Tab7.1'!C32 -> 2594 | D32: ='[3]2015_Tables-2'!B234 -> 2.2 | E32: ='[3]2015_Tables-2'!C234 -> 9.8 | F32: ='[3]2015_Tables-2'!D234 -> 15.5 | G32: ='[3]2015_Tables-2'!E234 -> 51.5 | H32: ='[3]2015_Tables-2'!F234 -> 20.9 | I32: ='Tab2.1'!I32 -> 8.8
B33: Lower Badibu | C33: ='Tab7.1'!C33 -> 2236 | D33: ='[3]2015_Tables-2'!B235 -> 8.3 | E33: ='[3]2015_Tables-2'!C235 -> 16 | F33: ='[3]2015_Tables-2'!D235 -> 17.4 | G33: ='[3]2015_Tables-2'!E235 -> 34.2 | H33: ='[3]2015_Tables-2'!F235 -> 24.1 | I33: ='Tab2.1'!I33 -> 8.2
B34: Central Badibu | C34: ='Tab7.1'!C34 -> 2279 | D34: ='[3]2015_Tables-2'!B236 -> 1.1 | E34: ='[3]2015_Tables-2'!C236 -> 13.6 | F34: ='[3]2015_Tables-2'!D236 -> 18.2 | G34: ='[3]2015_Tables-2'!E236 -> 40.6 | H34: ='[3]2015_Tables-2'!F236 -> 26.4 | I34: ='Tab2.1'!I34 -> 8.8
B35: Illiasa | C35: ='Tab7.1'!C35 -> 5556 | D35: ='[3]2015_Tables-2'!B237 -> 4.3 | E35: ='[3]2015_Tables-2'!C237 -> 12.6 | F35: ='[3]2015_Tables-2'!D237 -> 17.9 | G35: ='[3]2015_Tables-2'!E237 -> 37.6 | H35: ='[3]2015_Tables-2'!F237 -> 27.7 | I35: ='Tab2.1'!I35 -> 9
B36: Sabach Sanjal | C36: ='Tab7.1'!C36 -> 2589 | D36: ='[3]2015_Tables-2'!B238 -> 2.3 | E36: ='[3]2015_Tables-2'!C238 -> 12.1 | F36: ='[3]2015_Tables-2'!D238 -> 16.5 | G36: ='[3]2015_Tables-2'!E238 -> 38.4 | H36: ='[3]2015_Tables-2'!F238 -> 30.6 | I36: ='Tab2.1'!I36 -> 9.4
A37: Kuntaur | C37: ='Tab7.1'!C37 -> 10963 | D37: ='[3]2015_Tables-2'!B207 -> 2.9 | E37: ='[3]2015_Tables-2'!C207 -> 13 | F37: ='[3]2015_Tables-2'!D207 -> 17.8 | G37: ='[3]2015_Tables-2'!E207 -> 40.9 | H37: ='[3]2015_Tables-2'!F207 -> 25.4 | I37: ='Tab2.1'!I37 -> 9
B38: Lower Saloum | C38: ='Tab7.1'!C38 -> 1935 | D38: ='[3]2015_Tables-2'!B239 -> 4.3 | E38: ='[3]2015_Tables-2'!C239 -> 14.7 | F38: ='[3]2015_Tables-2'!D239 -> 23.2 | G38: ='[3]2015_Tables-2'!E239 -> 36.2 | H38: ='[3]2015_Tables-2'!F239 -> 21.7 | I38: ='Tab2.1'!I38 -> 8.2
B39: Upper Saloum | C39: ='Tab7.1'!C39 -> 2006 | D39: ='[3]2015_Tables-2'!B240 -> 2.6 | E39: ='[3]2015_Tables-2'!C240 -> 10 | F39: ='[3]2015_Tables-2'!D240 -> 14.9 | G39: ='[3]2015_Tables-2'!E240 -> 44.8 | H39: ='[3]2015_Tables-2'!F240 -> 27.7 | I39: ='Tab2.1'!I39 -> 9.5
B40: Nianija | C40: ='Tab7.1'!C40 -> 1121 | D40: ='[3]2015_Tables-2'!B241 -> 1.6 | E40: ='[3]2015_Tables-2'!C241 -> 16.9 | F40: ='[3]2015_Tables-2'!D241 -> 16.7 | G40: ='[3]2015_Tables-2'!E241 -> 40.4 | H40: ='[3]2015_Tables-2'!F241 -> 24.5 | I40: ='Tab2.1'!I40 -> 9
B41: Niani | C41: ='Tab7.1'!C41 -> 3337 | D41: ='[3]2015_Tables-2'!B242 -> 3.1 | E41: ='[3]2015_Tables-2'!C242 -> 13.8 | F41: ='[3]2015_Tables-2'!D242 -> 21 | G41: ='[3]2015_Tables-2'!E242 -> 41 | H41: ='[3]2015_Tables-2'!F242 -> 21 | I41: ='Tab2.1'!I41 -> 8.7
B42: Sami | C42: ='Tab7.1'!C42 -> 2564 | D42: ='[3]2015_Tables-2'!B243 -> 2.3 | E42: ='[3]2015_Tables-2'!C243 -> 11.4 | F42: ='[3]2015_Tables-2'!D243 -> 12.3 | G42: ='[3]2015_Tables-2'!E243 -> 41.6 | H42: ='[3]2015_Tables-2'!F243 -> 32.4 | I42: ='Tab2.1'!I42 -> 9.7 | J42: cont'd
A43: Janjanbureh | C43: ='Tab7.1'!I5 -> 14465 | D43: ='[3]2015_Tables-2'!B208 -> 7.2 | E43: ='[3]2015_Tables-2'!C208 -> 14.8 | F43: ='[3]2015_Tables-2'!D208 -> 17.2 | G43: ='[3]2015_Tables-2'!E208 -> 35.9 | H43: ='[3]2015_Tables-2'!F208 -> 25 | I43: ='Tab2.1'!I43 -> 8.8
B44: Niamina Dankunku | C44: ='Tab7.1'!I6 -> 894 | D44: ='[3]2015_Tables-2'!B244 -> 2.4 | E44: ='[3]2015_Tables-2'!C244 -> 21.7 | F44: ='[3]2015_Tables-2'!D244 -> 27.3 | G44: ='[3]2015_Tables-2'!E244 -> 41.9 | H44: ='[3]2015_Tables-2'!F244 -> 6.6 | I44: ='Tab2.1'!I44 -> 6.9
B45: Niamina West | C45: ='Tab7.1'!I7 -> 758 | D45: ='[3]2015_Tables-2'!B245 -> 1.4 | E45: ='[3]2015_Tables-2'!C245 -> 9.1 | F45: ='[3]2015_Tables-2'!D245 -> 20.1 | G45: ='[3]2015_Tables-2'!E245 -> 39.1 | H45: ='[3]2015_Tables-2'!F245 -> 30.3 | I45: ='Tab2.1'!I45 -> 9.6
B46: Niamina East | C46: ='Tab7.1'!I8 -> 2521 | D46: ='[3]2015_Tables-2'!B246 -> 4.7 | E46: ='[3]2015_Tables-2'!C246 -> 10.5 | F46: ='[3]2015_Tables-2'!D246 -> 14.4 | G46: ='[3]2015_Tables-2'!E246 -> 39.9 | H46: ='[3]2015_Tables-2'!F246 -> 30.5 | I46: ='Tab2.1'!I46 -> 9.8
B47: Lower Fuladu West | C47: ='Tab7.1'!I9 -> 3714 | D47: ='[3]2015_Tables-2'!B247 -> 4.9 | E47: ='[3]2015_Tables-2'!C247 -> 13.4 | F47: ='[3]2015_Tables-2'!D247 -> 13 | G47: ='[3]2015_Tables-2'!E247 -> 32.4 | H47: ='[3]2015_Tables-2'!F247 -> 36.2 | I47: ='Tab2.1'!I47 -> 10.9
B48: Upper Fuladu West | C48: ='Tab7.1'!I10 -> 5925 | D48: ='[3]2015_Tables-2'!B248 -> 9.8 | E48: ='[3]2015_Tables-2'!C248 -> 15.8 | F48: ='[3]2015_Tables-2'!D248 -> 19.5 | G48: ='[3]2015_Tables-2'!E248 -> 35.6 | H48: ='[3]2015_Tables-2'!F248 -> 19.3 | I48: ='Tab2.1'!I48 -> 7.6
B49: Janjanbureh | C49: ='Tab7.1'!I11 -> 653 | D49: ='[3]2015_Tables-2'!B249 -> 19.7 | E49: ='[3]2015_Tables-2'!C249 -> 26.4 | F49: ='[3]2015_Tables-2'!D249 -> 13.8 | G49: ='[3]2015_Tables-2'!E249 -> 30.5 | H49: ='[3]2015_Tables-2'!F249 -> 9.6 | I49: ='Tab2.1'!I49 -> 5.9
A50: Basse | C50: ='Tab7.1'!I12 -> 34659 | D50: ='[3]2015_Tables-2'!B209 -> 7.7 | E50: ='[3]2015_Tables-2'!C209 -> 25.1 | F50: ='[3]2015_Tables-2'!D209 -> 21.8 | G50: ='[3]2015_Tables-2'!E209 -> 30.1 | H50: ='[3]2015_Tables-2'!F209 -> 15.2 | I50: ='Tab2.1'!I50 -> 7
B51: Jimara | C51: ='Tab7.1'!I13 -> 6267 | D51: ='[3]2015_Tables-2'!B250 -> 3.9 | E51: ='[3]2015_Tables-2'!C250 -> 26 | F51: ='[3]2015_Tables-2'!D250 -> 19.9 | G51: ='[3]2015_Tables-2'!E250 -> 33.2 | H51: ='[3]2015_Tables-2'!F250 -> 17.1 | I51: ='Tab2.1'!I51 -> 7.1
B52: Basse | C52: ='Tab7.1'!I14 -> 9867 | D52: ='[3]2015_Tables-2'!B251 -> 21.2 | E52: ='[3]2015_Tables-2'!C251 -> 27.3 | F52: ='[3]2015_Tables-2'!D251 -> 19.5 | G52: ='[3]2015_Tables-2'!E251 -> 26.3 | H52: ='[3]2015_Tables-2'!F251 -> 5.8 | I52: ='Tab2.1'!I52 -> 5.1
B53: Tumana | C53: ='Tab7.1'!I15 -> 5213 | D53: ='[3]2015_Tables-2'!B252 -> 2.1 | E53: ='[3]2015_Tables-2'!C252 -> 21 | F53: ='[3]2015_Tables-2'!D252 -> 25.9 | G53: ='[3]2015_Tables-2'!E252 -> 31.7 | H53: ='[3]2015_Tables-2'!F252 -> 19.3 | I53: ='Tab2.1'!I53 -> 7.3
B54: Kantora | C54: ='Tab7.1'!I16 -> 4830 | D54: ='[3]2015_Tables-2'!B253 -> 2.4 | E54: ='[3]2015_Tables-2'!C253 -> 24.8 | F54: ='[3]2015_Tables-2'!D253 -> 22.3 | G54: ='[3]2015_Tables-2'!E253 -> 30.8 | H54: ='[3]2015_Tables-2'!F253 -> 19.8 | I54: ='Tab2.1'!I54 -> 8.2
B55: Wuli West | C55: ='Tab7.1'!I17 -> 2611 | D55: ='[3]2015_Tables-2'!B254 -> 0.6 | E55: ='[3]2015_Tables-2'!C254 -> 24.2 | F55: ='[3]2015_Tables-2'!D254 -> 25.1 | G55: ='[3]2015_Tables-2'!E254 -> 28.8 | H55: ='[3]2015_Tables-2'!F254 -> 21.4 | I55: ='Tab2.1'!I55 -> 8.6
B56: Wuli East | C56: ='Tab7.1'!I18 -> 3011 | D56: ='[3]2015_Tables-2'!B255 -> 0.3 | E56: ='[3]2015_Tables-2'!C255 -> 25 | F56: ='[3]2015_Tables-2'!D255 -> 22.3 | G56: ='[3]2015_Tables-2'!E255 -> 34.7 | H56: ='[3]2015_Tables-2'!F255 -> 17.7 | I56: ='Tab2.1'!I56 -> 8.1
B57: Sandu | C57: ='Tab7.1'!I19 -> 2860 | D57: ='[3]2015_Tables-2'!B256 -> 3 | E57: ='[3]2015_Tables-2'!C256 -> 24.6 | F57: ='[3]2015_Tables-2'!D256 -> 22.9 | G57: ='[3]2015_Tables-2'!E256 -> 29.3 | H57: ='[3]2015_Tables-2'!F256 -> 20.3 | I57: ='Tab2.1'!I57 -> 8.5
A58: HOUSEHOLD HEAD SEX
B59: Male | C59: ='[3]2015_Tables-2'!$G$1731 -> 228644 | D59: ='[3]2015_Tables-2'!B1738 -> 8.4 | E59: ='[3]2015_Tables-2'!C1738 -> 21.9 | F59: ='[3]2015_Tables-2'!D1738 -> 22.1 | G59: ='[3]2015_Tables-2'!E1738 -> 33.3 | H59: ='[3]2015_Tables-2'!F1738 -> 14.3 | I59: ='[3]2015_Tables-2'!B1744 -> 7.1
B60: Female | C60: ='[3]2015_Tables-2'!$G$1732 -> 52015 | D60: ='[3]2015_Tables-2'!B1739 -> 6.2 | E60: ='[3]2015_Tables-2'!C1739 -> 33.8 | F60: ='[3]2015_Tables-2'!D1739 -> 28.3 | G60: ='[3]2015_Tables-2'!E1739 -> 25.1 | H60: ='[3]2015_Tables-2'!F1739 -> 6.5 | I60: ='[3]2015_Tables-2'!B1745 -> 5.7

Sheet Tab2.3
A1: Table 2.3
A2: Distribution of Population by Sex, Area of Residence and Broad Age-groups
C3: Total | D3: Male | F3: Female
C4: Count | D4: Count | E4: Percent | F4: Count | G4: Percent
A5: THE GAMBIA | C5: ='[3]2015_Tables-2'!D283 -> 1922950 | D5: ='[3]2015_Tables-2'!B283 -> 915357 | E5: ='[3]2015_Tables-2'!B340 -> 47.6 | F5: ='[3]2015_Tables-2'!C283 -> 1007593 | G5: ='[3]2015_Tables-2'!C340 -> 52.4
B6: 0 - 4 years | C6: ='[3]2015_Tables-2'!D269 -> 311156 | D6: ='[3]2015_Tables-2'!B269 -> 155654 | E6: ='[3]2015_Tables-2'!B326 -> 50 | F6: ='[3]2015_Tables-2'!C269 -> 155502 | G6: ='[3]2015_Tables-2'!C326 -> 50
B7: 5 - 9 years | C7: ='[3]2015_Tables-2'!D270 -> 298089 | D7: ='[3]2015_Tables-2'!B270 -> 150122 | E7: ='[3]2015_Tables-2'!B327 -> 50.4 | F7: ='[3]2015_Tables-2'!C270 -> 147966 | G7: ='[3]2015_Tables-2'!C327 -> 49.6
B8: 10 - 14 years | C8: ='[3]2015_Tables-2'!D271 -> 228988 | D8: ='[3]2015_Tables-2'!B271 -> 115261 | E8: ='[3]2015_Tables-2'!B328 -> 50.3 | F8: ='[3]2015_Tables-2'!C271 -> 113727 | G8: ='[3]2015_Tables-2'!C328 -> 49.7
B9: 15 - 19 years | C9: ='[3]2015_Tables-2'!D272 -> 198367 | D9: ='[3]2015_Tables-2'!B272 -> 87274 | E9: ='[3]2015_Tables-2'!B329 -> 44 | F9: ='[3]2015_Tables-2'!C272 -> 111093 | G9: ='[3]2015_Tables-2'!C329 -> 56
B10: 20 - 24 years | C10: ='[3]2015_Tables-2'!D273 -> 180479 | D10: ='[3]2015_Tables-2'!B273 -> 76050 | E10: ='[3]2015_Tables-2'!B330 -> 42.1 | F10: ='[3]2015_Tables-2'!C273 -> 104429 | G10: ='[3]2015_Tables-2'!C330 -> 57.9
B11: 25 - 29 years | C11: ='[3]2015_Tables-2'!D274 -> 151669 | D11: ='[3]2015_Tables-2'!B274 -> 62431 | E11: ='[3]2015_Tables-2'!B331 -> 41.2 | F11: ='[3]2015_Tables-2'!C274 -> 89237 | G11: ='[3]2015_Tables-2'!C331 -> 58.8
B12: 30 - 34 years | C12: ='[3]2015_Tables-2'!D275 -> 127754 | D12: ='[3]2015_Tables-2'!B275 -> 57532 | E12: ='[3]2015_Tables-2'!B332 -> 45 | F12: ='[3]2015_Tables-2'!C275 -> 70222 | G12: ='[3]2015_Tables-2'!C332 -> 55
B13: 35 - 39 years | C13: ='[3]2015_Tables-2'!D276 -> 109161 | D13: ='[3]2015_Tables-2'!B276 -> 49913 | E13: ='[3]2015_Tables-2'!B333 -> 45.7 | F13: ='[3]2015_Tables-2'!C276 -> 59248 | G13: ='[3]2015_Tables-2'!C333 -> 54.3
B14: 40 - 44 years | C14: ='[3]2015_Tables-2'!D277 -> 81698 | D14: ='[3]2015_Tables-2'!B277 -> 39032 | E14: ='[3]2015_Tables-2'!B334 -> 47.8 | F14: ='[3]2015_Tables-2'!C277 -> 42666 | G14: ='[3]2015_Tables-2'!C334 -> 52.2
B15: 45 - 49 years | C15: ='[3]2015_Tables-2'!D278 -> 61757 | D15: ='[3]2015_Tables-2'!B278 -> 32235 | E15: ='[3]2015_Tables-2'!B335 -> 52.2 | F15: ='[3]2015_Tables-2'!C278 -> 29522 | G15: ='[3]2015_Tables-2'!C335 -> 47.8
B16: 50 - 54 years | C16: ='[3]2015_Tables-2'!D279 -> 52727 | D16: ='[3]2015_Tables-2'!B279 -> 27286 | E16: ='[3]2015_Tables-2'!B336 -> 51.7 | F16: ='[3]2015_Tables-2'!C279 -> 25441 | G16: ='[3]2015_Tables-2'!C336 -> 48.3
B17: 55 - 59 years | C17: ='[3]2015_Tables-2'!D280 -> 35759 | D17: ='[3]2015_Tables-2'!B280 -> 18075 | E17: ='[3]2015_Tables-2'!B337 -> 50.5 | F17: ='[3]2015_Tables-2'!C280 -> 17685 | G17: ='[3]2015_Tables-2'!C337 -> 49.5
B18: 60 - 64 years | C18: ='[3]2015_Tables-2'!D281 -> 30155 | D18: ='[3]2015_Tables-2'!B281 -> 16034 | E18: ='[3]2015_Tables-2'!B338 -> 53.2 | F18: ='[3]2015_Tables-2'!C281 -> 14121 | G18: ='[3]2015_Tables-2'!C338 -> 46.8
B19: 65+ years | C19: ='[3]2015_Tables-2'!D282 -> 55191 | D19: ='[3]2015_Tables-2'!B282 -> 28457 | E19: ='[3]2015_Tables-2'!B339 -> 51.6 | F19: ='[3]2015_Tables-2'!C282 -> 26734 | G19: ='[3]2015_Tables-2'!C339 -> 48.4
A20: URBAN | C20: ='[3]2015_Tables-2'!D302 -> 1057467 | D20: ='[3]2015_Tables-2'!B302 -> 503304 | E20: ='[3]2015_Tables-2'!B359 -> 47.6 | F20: ='[3]2015_Tables-2'!C302 -> 554163 | G20: ='[3]2015_Tables-2'!C359 -> 52.4
B21: 0 - 4 years | C21: ='[3]2015_Tables-2'!D288 -> 156283 | D21: ='[3]2015_Tables-2'!B288 -> 76198 | E21: ='[3]2015_Tables-2'!B345 -> 48.8 | F21: ='[3]2015_Tables-2'!C288 -> 80085 | G21: ='[3]2015_Tables-2'!C345 -> 51.2
B22: 5 - 9 years | C22: ='[3]2015_Tables-2'!D289 -> 145387 | D22: ='[3]2015_Tables-2'!B289 -> 71306 | E22: ='[3]2015_Tables-2'!B346 -> 49 | F22: ='[3]2015_Tables-2'!C289 -> 74081 | G22: ='[3]2015_Tables-2'!C346 -> 51
B23: 10 - 14 years | C23: ='[3]2015_Tables-2'!D290 -> 114825 | D23: ='[3]2015_Tables-2'!B290 -> 58394 | E23: ='[3]2015_Tables-2'!B347 -> 50.9 | F23: ='[3]2015_Tables-2'!C290 -> 56431 | G23: ='[3]2015_Tables-2'!C347 -> 49.1
B24: 15 - 19 years | C24: ='[3]2015_Tables-2'!D291 -> 114445 | D24: ='[3]2015_Tables-2'!B291 -> 47786 | E24: ='[3]2015_Tables-2'!B348 -> 41.8 | F24: ='[3]2015_Tables-2'!C291 -> 66660 | G24: ='[3]2015_Tables-2'!C348 -> 58.2
B25: 20 - 24 years | C25: ='[3]2015_Tables-2'!D292 -> 115445 | D25: ='[3]2015_Tables-2'!B292 -> 47655 | E25: ='[3]2015_Tables-2'!B349 -> 41.3 | F25: ='[3]2015_Tables-2'!C292 -> 67790 | G25: ='[3]2015_Tables-2'!C349 -> 58.7
B26: 25 - 29 years | C26: ='[3]2015_Tables-2'!D293 -> 96080 | D26: ='[3]2015_Tables-2'!B293 -> 40579 | E26: ='[3]2015_Tables-2'!B350 -> 42.2 | F26: ='[3]2015_Tables-2'!C293 -> 55501 | G26: ='[3]2015_Tables-2'!C350 -> 57.8
B27: 30 - 34 years | C27: ='[3]2015_Tables-2'!D294 -> 78401 | D27: ='[3]2015_Tables-2'!B294 -> 38439 | E27: ='[3]2015_Tables-2'!B351 -> 49 | F27: ='[3]2015_Tables-2'!C294 -> 39962 | G27: ='[3]2015_Tables-2'!C351 -> 51
B28: 35 - 39 years | C28: ='[3]2015_Tables-2'!D295 -> 66199 | D28: ='[3]2015_Tables-2'!B295 -> 32130 | E28: ='[3]2015_Tables-2'!B352 -> 48.5 | F28: ='[3]2015_Tables-2'!C295 -> 34069 | G28: ='[3]2015_Tables-2'!C352 -> 51.5
B29: 40 - 44 years | C29: ='[3]2015_Tables-2'!D296 -> 47312 | D29: ='[3]2015_Tables-2'!B296 -> 23918 | E29: ='[3]2015_Tables-2'!B353 -> 50.6 | F29: ='[3]2015_Tables-2'!C296 -> 23394 | G29: ='[3]2015_Tables-2'!C353 -> 49.4
B30: 45 - 49 years | C30: ='[3]2015_Tables-2'!D297 -> 34649 | D30: ='[3]2015_Tables-2'!B297 -> 19389 | E30: ='[3]2015_Tables-2'!B354 -> 56 | F30: ='[3]2015_Tables-2'!C297 -> 15260 | G30: ='[3]2015_Tables-2'!C354 -> 44
B31: 50 - 54 years | C31: ='[3]2015_Tables-2'!D298 -> 28742 | D31: ='[3]2015_Tables-2'!B298 -> 16285 | E31: ='[3]2015_Tables-2'!B355 -> 56.7 | F31: ='[3]2015_Tables-2'!C298 -> 12457 | G31: ='[3]2015_Tables-2'!C355 -> 43.3
B32: 55 - 59 years | C32: ='[3]2015_Tables-2'!D299 -> 20122 | D32: ='[3]2015_Tables-2'!B299 -> 9561 | E32: ='[3]2015_Tables-2'!B356 -> 47.5 | F32: ='[3]2015_Tables-2'!C299 -> 10562 | G32: ='[3]2015_Tables-2'!C356 -> 52.5
B33: 60 - 64 years | C33: ='[3]2015_Tables-2'!D300 -> 14511 | D33: ='[3]2015_Tables-2'!B300 -> 8600 | E33: ='[3]2015_Tables-2'!B357 -> 59.3 | F33: ='[3]2015_Tables-2'!C300 -> 5911 | G33: ='[3]2015_Tables-2'!C357 -> 40.7
B34: 65+ years | C34: ='[3]2015_Tables-2'!D301 -> 25063 | D34: ='[3]2015_Tables-2'!B301 -> 13063 | E34: ='[3]2015_Tables-2'!B358 -> 52.1 | F34: ='[3]2015_Tables-2'!C301 -> 12000 | G34: ='[3]2015_Tables-2'!C358 -> 47.9
A35: RURAL | C35: ='[3]2015_Tables-2'!D321 -> 865483 | D35: ='[3]2015_Tables-2'!B321 -> 412053 | E35: ='[3]2015_Tables-2'!B378 -> 47.6 | F35: ='[3]2015_Tables-2'!C321 -> 453430 | G35: ='[3]2015_Tables-2'!C378 -> 52.4
B36: 0 - 4 years | C36: ='[3]2015_Tables-2'!D307 -> 154874 | D36: ='[3]2015_Tables-2'!B307 -> 79456 | E36: ='[3]2015_Tables-2'!B364 -> 51.3 | F36: ='[3]2015_Tables-2'!C307 -> 75418 | G36: ='[3]2015_Tables-2'!C364 -> 48.7
B37: 5 - 9 years | C37: ='[3]2015_Tables-2'!D308 -> 152702 | D37: ='[3]2015_Tables-2'!B308 -> 78816 | E37: ='[3]2015_Tables-2'!B365 -> 51.6 | F37: ='[3]2015_Tables-2'!C308 -> 73886 | G37: ='[3]2015_Tables-2'!C365 -> 48.4
B38: 10 - 14 years | C38: ='[3]2015_Tables-2'!D309 -> 114164 | D38: ='[3]2015_Tables-2'!B309 -> 56868 | E38: ='[3]2015_Tables-2'!B366 -> 49.8 | F38: ='[3]2015_Tables-2'!C309 -> 57296 | G38: ='[3]2015_Tables-2'!C366 -> 50.2
B39: 15 - 19 years | C39: ='[3]2015_Tables-2'!D310 -> 83922 | D39: ='[3]2015_Tables-2'!B310 -> 39489 | E39: ='[3]2015_Tables-2'!B367 -> 47.1 | F39: ='[3]2015_Tables-2'!C310 -> 44433 | G39: ='[3]2015_Tables-2'!C367 -> 52.9
B40: 20 - 24 years | C40: ='[3]2015_Tables-2'!D311 -> 65034 | D40: ='[3]2015_Tables-2'!B311 -> 28395 | E40: ='[3]2015_Tables-2'!B368 -> 43.7 | F40: ='[3]2015_Tables-2'!C311 -> 36639 | G40: ='[3]2015_Tables-2'!C368 -> 56.3
B41: 25 - 29 years | C41: ='[3]2015_Tables-2'!D312 -> 55589 | D41: ='[3]2015_Tables-2'!B312 -> 21852 | E41: ='[3]2015_Tables-2'!B369 -> 39.3 | F41: ='[3]2015_Tables-2'!C312 -> 33737 | G41: ='[3]2015_Tables-2'!C369 -> 60.7
B42: 30 - 34 years | C42: ='[3]2015_Tables-2'!D313 -> 49352 | D42: ='[3]2015_Tables-2'!B313 -> 19093 | E42: ='[3]2015_Tables-2'!B370 -> 38.7 | F42: ='[3]2015_Tables-2'!C313 -> 30259 | G42: ='[3]2015_Tables-2'!C370 -> 61.3
B43: 35 - 39 years | C43: ='[3]2015_Tables-2'!D314 -> 42961 | D43: ='[3]2015_Tables-2'!B314 -> 17783 | E43: ='[3]2015_Tables-2'!B371 -> 41.4 | F43: ='[3]2015_Tables-2'!C314 -> 25178 | G43: ='[3]2015_Tables-2'!C371 -> 58.6
B44: 40 - 44 years | C44: ='[3]2015_Tables-2'!D315 -> 34386 | D44: ='[3]2015_Tables-2'!B315 -> 15114 | E44: ='[3]2015_Tables-2'!B372 -> 44 | F44: ='[3]2015_Tables-2'!C315 -> 19272 | G44: ='[3]2015_Tables-2'!C372 -> 56
B45: 45 - 49 years | C45: ='[3]2015_Tables-2'!D316 -> 27107 | D45: ='[3]2015_Tables-2'!B316 -> 12846 | E45: ='[3]2015_Tables-2'!B373 -> 47.4 | F45: ='[3]2015_Tables-2'!C316 -> 14262 | G45: ='[3]2015_Tables-2'!C373 -> 52.6
B46: 50 - 54 years | C46: ='[3]2015_Tables-2'!D317 -> 23985 | D46: ='[3]2015_Tables-2'!B317 -> 11001 | E46: ='[3]2015_Tables-2'!B374 -> 45.9 | F46: ='[3]2015_Tables-2'!C317 -> 12984 | G46: ='[3]2015_Tables-2'!C374 -> 54.1
B47: 55 - 59 years | C47: ='[3]2015_Tables-2'!D318 -> 15637 | D47: ='[3]2015_Tables-2'!B318 -> 8514 | E47: ='[3]2015_Tables-2'!B375 -> 54.4 | F47: ='[3]2015_Tables-2'!C318 -> 7123 | G47: ='[3]2015_Tables-2'!C375 -> 45.6
B48: 60 - 64 years | C48: ='[3]2015_Tables-2'!D319 -> 15644 | D48: ='[3]2015_Tables-2'!B319 -> 7434 | E48: ='[3]2015_Tables-2'!B376 -> 47.5 | F48: ='[3]2015_Tables-2'!C319 -> 8210 | G48: ='[3]2015_Tables-2'!C376 -> 52.5
B49: 65+ years | C49: ='[3]2015_Tables-2'!D320 -> 30128 | D49: ='[3]2015_Tables-2'!B320 -> 15393 | E49: ='[3]2015_Tables-2'!B377 -> 51.1 | F49: ='[3]2015_Tables-2'!C320 -> 14734 | G49: ='[3]2015_Tables-2'!C377 -> 48.9

Sheet Tab2.4
A1: Table 2.4
A2: Distribution of Population (Population Pyramid) by Sex, Area of Residence and Broad Age-groups
C3: Total | E3: Male | G3: Female
C4: Count | D4: Percent | E4: Count | F4: Per cent | G4: Count | H4: Per cent
A5: THE GAMBIA | C5: ='Tab2.3'!C5 -> 1922950 | D5: =C5/$C$5*100 -> 100 | E5: ='Tab2.3'!D5 -> 915357 | F5: =E5/$E$5*100 -> 100 | G5: ='Tab2.3'!F5 -> 1007593 | H5: =G5/$G$5*100 -> 100
B6: 0 - 4 years | C6: ='Tab2.3'!C6 -> 311156 | D6: =C6/$C$5*100 -> 16.18117996 | E6: ='Tab2.3'!D6 -> 155654 | F6: =E6/$E$5*100 -> 17.00473149 | G6: ='Tab2.3'!F6 -> 155502 | H6: =G6/$G$5*100 -> 15.4330171
B7: 5 - 9 years | C7: ='Tab2.3'!C7 -> 298089 | D7: 15.50165111 | E7: ='Tab2.3'!D7 -> 150122 | F7: 16.40037712 | G7: ='Tab2.3'!F7 -> 147966 | H7: 14.68509607
B8: 10 - 14 years | C8: ='Tab2.3'!C8 -> 228988 | D8: 11.90816194 | E8: ='Tab2.3'!D8 -> 115261 | F8: 12.59191769 | G8: ='Tab2.3'!F8 -> 113727 | H8: 11.28699783
B9: 15 - 19 years | C9: ='Tab2.3'!C9 -> 198367 | D9: 10.31576484 | E9: ='Tab2.3'!D9 -> 87274 | F9: 9.534422089 | G9: ='Tab2.3'!F9 -> 111093 | H9: 11.02558275
B10: 20 - 24 years | C10: ='Tab2.3'!C10 -> 180479 | D10: 9.385527445 | E10: ='Tab2.3'!D10 -> 76050 | F10: 8.308233837 | G10: ='Tab2.3'!F10 -> 104429 | H10: 10.36420459
B11: 25 - 29 years | C11: ='Tab2.3'!C11 -> 151669 | D11: 7.887308562 | E11: ='Tab2.3'!D11 -> 62431 | F11: 6.820399036 | G11: ='Tab2.3'!F11 -> 89237 | H11: 8.856452953
B12: 30 - 34 years | C12: ='Tab2.3'!C12 -> 127754 | D12: 6.643646481 | E12: ='Tab2.3'!D12 -> 57532 | F12: 6.285198016 | G12: ='Tab2.3'!F12 -> 70222 | H12: 6.96928224
B13: 35 - 39 years | C13: ='Tab2.3'!C13 -> 109161 | D13: 5.676746665 | E13: ='Tab2.3'!D13 -> 49913 | F13: 5.452845174 | G13: ='Tab2.3'!F13 -> 59248 | H13: 5.880152006
B14: 40 - 44 years | C14: ='Tab2.3'!C14 -> 81698 | D14: 4.248576406 | E14: ='Tab2.3'!D14 -> 39032 | F14: 4.264128641 | G14: ='Tab2.3'!F14 -> 42666 | H14: 4.234447838
B15: 45 - 49 years | C15: ='Tab2.3'!C15 -> 61757 | D15: 3.211575964 | E15: ='Tab2.3'!D15 -> 32235 | F15: 3.521576827 | G15: ='Tab2.3'!F15 -> 29522 | H15: 2.929952868
B16: 50 - 54 years | C16: ='Tab2.3'!C16 -> 52727 | D16: 2.741984971 | E16: ='Tab2.3'!D16 -> 27286 | F16: 2.980913458 | G16: ='Tab2.3'!F16 -> 25441 | H16: 2.52492822
B17: 55 - 59 years | C17: ='Tab2.3'!C17 -> 35759 | D17: 1.859590733 | E17: ='Tab2.3'!D17 -> 18075 | F17: 1.974639403 | G17: ='Tab2.3'!F17 -> 17685 | H17: 1.755172972
B18: 60 - 64 years | C18: ='Tab2.3'!C18 -> 30155 | D18: 1.568163499 | E18: ='Tab2.3'!D18 -> 16034 | F18: 1.75166629 | G18: ='Tab2.3'!F18 -> 14121 | H18: 1.401458724
B19: 65+ years | C19: ='Tab2.3'!C19 -> 55191 | D19: 2.870121428 | E19: ='Tab2.3'!D19 -> 28457 | F19: 3.108841687 | G19: ='Tab2.3'!F19 -> 26734 | H19: 2.653253844
A20: URBAN | C20: ='Tab2.3'!C20 -> 1057467 | D20: =C20/$C$20*100 -> 100 | E20: ='Tab2.3'!D20 -> 503304 | F20: =E20/$E$20*100 -> 100 | G20: ='Tab2.3'!F20 -> 554163 | H20: =G20/$G$20*100 -> 100
B21: 0 - 4 years | C21: ='Tab2.3'!C21 -> 156283 | D21: =C21/$C$20*100 -> 14.77899547 | E21: ='Tab2.3'!D21 -> 76198 | F21: =E21/$E$20*100 -> 15.1395578 | G21: ='Tab2.3'!F21 -> 80085 | H21: 14.45152419
B22: 5 - 9 years | C22: ='Tab2.3'!C22 -> 145387 | D22: 13.7486087 | E22: ='Tab2.3'!D22 -> 71306 | F22: 14.16758063 | G22: ='Tab2.3'!F22 -> 74081 | H22: 13.36808845
B23: 10 - 14 years | C23: ='Tab2.3'!C23 -> 114825 | D23: 10.85849488 | E23: ='Tab2.3'!D23 -> 58394 | F23: 11.6021331 | G23: ='Tab2.3'!F23 -> 56431 | H23: 10.18310497
B24: 15 - 19 years | C24: ='Tab2.3'!C24 -> 114445 | D24: 10.82255995 | E24: ='Tab2.3'!D24 -> 47786 | F24: 9.494460604 | G24: ='Tab2.3'!F24 -> 66660 | H24: 12.02895177
B25: 20 - 24 years | C25: ='Tab2.3'!C25 -> 115445 | D25: 10.91712555 | E25: ='Tab2.3'!D25 -> 47655 | F25: 9.468432597 | G25: ='Tab2.3'!F25 -> 67790 | H25: 12.23286289
B26: 25 - 29 years | C26: ='Tab2.3'!C26 -> 96080 | D26: 9.085862727 | E26: ='Tab2.3'!D26 -> 40579 | F26: 8.062522849 | G26: ='Tab2.3'!F26 -> 55501 | H26: 10.01528431
B27: 30 - 34 years | C27: ='Tab2.3'!C27 -> 78401 | D27: 7.414037507 | E27: ='Tab2.3'!D27 -> 38439 | F27: 7.637332507 | G27: ='Tab2.3'!F27 -> 39962 | H27: 7.211235683
B28: 35 - 39 years | C28: ='Tab2.3'!C28 -> 66199 | D28: 6.260148071 | E28: ='Tab2.3'!D28 -> 32130 | F28: 6.383815746 | G28: ='Tab2.3'!F28 -> 34069 | H28: 6.147830151
B29: 40 - 44 years | C29: ='Tab2.3'!C29 -> 47312 | D29: 4.474087607 | E29: ='Tab2.3'!D29 -> 23918 | F29: 4.752197479 | G29: ='Tab2.3'!F29 -> 23394 | H29: 4.221501616
B30: 45 - 49 years | C30: ='Tab2.3'!C30 -> 34649 | D30: 3.276603431 | E30: ='Tab2.3'!D30 -> 19389 | F30: 3.852343713 | G30: ='Tab2.3'!F30 -> 15260 | H30: 2.753702431
B31: 50 - 54 years | C31: ='Tab2.3'!C31 -> 28742 | D31: 2.718004439 | E31: ='Tab2.3'!D31 -> 16285 | F31: 3.235619029 | G31: ='Tab2.3'!F31 -> 12457 | H31: 2.247894573
B32: 55 - 59 years | C32: ='Tab2.3'!C32 -> 20122 | D32: 1.902848978 | E32: ='Tab2.3'!D32 -> 9561 | F32: 1.899647132 | G32: ='Tab2.3'!F32 -> 10562 | H32: 1.905937423
B33: 60 - 64 years | C33: ='Tab2.3'!C33 -> 14511 | D33: 1.372241403 | E33: ='Tab2.3'!D33 -> 8600 | F33: 1.708708852 | G33: ='Tab2.3'!F33 -> 5911 | H33: 1.066653674
B34: 65+ years | C34: ='Tab2.3'!C34 -> 25063 | D34: 2.370097601 | E34: ='Tab2.3'!D34 -> 13063 | F34: 2.595449271 | G34: ='Tab2.3'!F34 -> 12000 | H34: 2.165427861
A35: RURAL | C35: ='Tab2.3'!C35 -> 865483 | D35: =C35/$C$35*100 -> 100 | E35: ='Tab2.3'!D35 -> 412053 | F35: =E35/$E$35*100 -> 100 | G35: ='Tab2.3'!F35 -> 453430 | H35: =SUM(H36:H49) -> 100.0002205
B36: 0 - 4 years | C36: ='Tab2.3'!C36 -> 154874 | D36: =C36/$C$35*100 -> 17.8945167 | E36: ='Tab2.3'!D36 -> 79456 | F36: =E36/$E$35*100 -> 19.28295632 | G36: ='Tab2.3'!F36 -> 75418 | H36: =G36/$G$35*100 -> 16.63277683
B37: 5 - 9 years | C37: ='Tab2.3'!C37 -> 152702 | D37: 17.64355857 | E37: ='Tab2.3'!D37 -> 78816 | F37: 19.12763649 | G37: ='Tab2.3'!F37 -> 73886 | H37: 16.2949077
B38: 10 - 14 years | C38: ='Tab2.3'!C38 -> 114164 | D38: 13.1907848 | E38: ='Tab2.3'!D38 -> 56868 | F38: 13.80113723 | G38: ='Tab2.3'!F38 -> 57296 | H38: 12.63612906
B39: 15 - 19 years | C39: ='Tab2.3'!C39 -> 83922 | D39: 9.696550943 | E39: ='Tab2.3'!D39 -> 39489 | F39: 9.583475912 | G39: ='Tab2.3'!F39 -> 44433 | H39: 9.799307501
B40: 20 - 24 years | C40: ='Tab2.3'!C40 -> 65034 | D40: 7.514185721 | E40: ='Tab2.3'!D40 -> 28395 | F40: 6.891103814 | G40: ='Tab2.3'!F40 -> 36639 | H40: 8.080409324
B41: 25 - 29 years | C41: ='Tab2.3'!C41 -> 55589 | D41: 6.422887567 | E41: ='Tab2.3'!D41 -> 21852 | F41: 5.303201287 | G41: ='Tab2.3'!F41 -> 33737 | H41: 7.440398739
B42: 30 - 34 years | C42: ='Tab2.3'!C42 -> 49352 | D42: 5.702249495 | E42: ='Tab2.3'!D42 -> 19093 | F42: 4.633627228 | G42: ='Tab2.3'!F42 -> 30259 | H42: 6.673356417
B43: 35 - 39 years | C43: ='Tab2.3'!C43 -> 42961 | D43: 4.963817891 | E43: ='Tab2.3'!D43 -> 17783 | F43: 4.31570696 | G43: ='Tab2.3'!F43 -> 25178 | H43: 5.552786538
B44: 40 - 44 years | C44: ='Tab2.3'!C44 -> 34386 | D44: 3.973041643 | E44: ='Tab2.3'!D44 -> 15114 | F44: 3.667974751 | G44: ='Tab2.3'!F44 -> 19272 | H44: 4.250270163
B45: 45 - 49 years | C45: ='Tab2.3'!C45 -> 27107 | D45: 3.13200837 | E45: ='Tab2.3'!D45 -> 12846 | F45: 3.11756012 | G45: ='Tab2.3'!F45 -> 14262 | H45: 3.14535871
B46: 50 - 54 years | C46: ='Tab2.3'!C46 -> 23985 | D46: 2.771284936 | E46: ='Tab2.3'!D46 -> 11001 | F46: 2.669802186 | G46: ='Tab2.3'!F46 -> 12984 | H46: 2.863507046
B47: 55 - 59 years | C47: ='Tab2.3'!C47 -> 15637 | D47: 1.806736816 | E47: ='Tab2.3'!D47 -> 8514 | F47: 2.066239052 | G47: ='Tab2.3'!F47 -> 7123 | H47: 1.570915025
B48: 60 - 64 years | C48: ='Tab2.3'!C48 -> 15644 | D48: 1.807545613 | E48: ='Tab2.3'!D48 -> 7434 | F48: 1.804136846 | G48: ='Tab2.3'!F48 -> 8210 | H48: 1.810643319
B49: 65+ years | C49: ='Tab2.3'!C49 -> 30128 | D49: 3.48106202 | E49: ='Tab2.3'!D49 -> 15393 | F49: 3.735684487 | G49: ='Tab2.3'!F49 -> 14734 | H49: 3.249454161

Sheet Tab2.5
A1: Table 2.5
A2: Distribution of Population Structure and Age Dependency Ratio by District
C3: Count | D3: 0-14 years | F3: 15-64 years | H3: 65+ years | J3: Age dependency ratio
D4: Count | E4: Percent | F4: Count | G4: Percent | H4: Count | I4: Percent
A5: THE GAMBIA | C5: ='[3]2015_Tables-2'!E559 -> 1922950 | D5: ='[3]2015_Tables-2'!B559 -> 838234 | E5: ='[3]2015_Tables-2'!B626 -> 43.6 | F5: ='[3]2015_Tables-2'!C559 -> 1029525 | G5: ='[3]2015_Tables-2'!C626 -> 53.5 | H5: ='[3]2015_Tables-2'!D559 -> 55191 | I5: ='[3]2015_Tables-2'!D626 -> 2.9 | J5: =(D5+H5)/F5*100 -> 86.78031131
B6: Urban | C6: ='[3]2015_Tables-2'!E557 -> 1057467 | D6: ='[3]2015_Tables-2'!B557 -> 416494 | E6: ='[3]2015_Tables-2'!B624 -> 39.4 | F6: ='[3]2015_Tables-2'!C557 -> 615909 | G6: ='[3]2015_Tables-2'!C624 -> 58.2 | H6: ='[3]2015_Tables-2'!D557 -> 25063 | I6: ='[3]2015_Tables-2'!D624 -> 2.4 | J6: 71.69192202
B7: Rural | C7: ='[3]2015_Tables-2'!E558 -> 865483 | D7: ='[3]2015_Tables-2'!B558 -> 421739 | E7: ='[3]2015_Tables-2'!B625 -> 48.7 | F7: ='[3]2015_Tables-2'!C558 -> 413616 | G7: ='[3]2015_Tables-2'!C625 -> 47.8 | H7: ='[3]2015_Tables-2'!D558 -> 30128 | I7: ='[3]2015_Tables-2'!D625 -> 3.5 | J7: 109.2479498
A8: Banjul | C8: ='[3]2015_Tables-2'!E497 -> 30703 | D8: ='[3]2015_Tables-2'!B497 -> 9726 | E8: ='[3]2015_Tables-2'!B564 -> 31.7 | F8: ='[3]2015_Tables-2'!C497 -> 19810 | G8: ='[3]2015_Tables-2'!C564 -> 64.5 | H8: ='[3]2015_Tables-2'!D497 -> 1167 | I8: ='[3]2015_Tables-2'!D564 -> 3.8 | J8: 54.98738011
B9: Urban | C9: ='[3]2015_Tables-2'!E510 -> 30703 | D9: ='[3]2015_Tables-2'!B510 -> 9726 | E9: ='[3]2015_Tables-2'!B577 -> 31.7 | F9: ='[3]2015_Tables-2'!C510 -> 19810 | G9: ='[3]2015_Tables-2'!C577 -> 64.5 | H9: ='[3]2015_Tables-2'!D510 -> 1167 | I9: ='[3]2015_Tables-2'!D577 -> 3.8 | J9: 54.98738011
A10: Kanifing | C10: ='[3]2015_Tables-2'!E498 -> 383545 | D10: ='[3]2015_Tables-2'!B498 -> 142165 | E10: ='[3]2015_Tables-2'!B565 -> 37.1 | F10: ='[3]2015_Tables-2'!C498 -> 232155 | G10: ='[3]2015_Tables-2'!C565 -> 60.5 | H10: ='[3]2015_Tables-2'!D498 -> 9225 | I10: ='[3]2015_Tables-2'!D565 -> 2.4 | J10: 65.21074282
B11: Urban | C11: ='[3]2015_Tables-2'!E511 -> 383545 | D11: ='[3]2015_Tables-2'!B511 -> 142165 | E11: ='[3]2015_Tables-2'!B578 -> 37.1 | F11: ='[3]2015_Tables-2'!C511 -> 232155 | G11: ='[3]2015_Tables-2'!C578 -> 60.5 | H11: ='[3]2015_Tables-2'!D511 -> 9225 | I11: ='[3]2015_Tables-2'!D578 -> 2.4 | J11: 65.21074282
A12: Brikama | C12: ='[3]2015_Tables-2'!E499 -> 730895 | D12: ='[3]2015_Tables-2'!B499 -> 310348 | E12: ='[3]2015_Tables-2'!B566 -> 42.5 | F12: ='[3]2015_Tables-2'!C499 -> 402942 | G12: ='[3]2015_Tables-2'!C566 -> 55.1 | H12: ='[3]2015_Tables-2'!D499 -> 17605 | I12: ='[3]2015_Tables-2'!D566 -> 2.4 | J12: 81.38962928
B13: Kombo North | C13: ='[3]2015_Tables-2'!E512 -> 360147 | D13: ='[3]2015_Tables-2'!B512 -> 145923 | E13: ='[3]2015_Tables-2'!B579 -> 40.5 | F13: ='[3]2015_Tables-2'!C512 -> 206823 | G13: ='[3]2015_Tables-2'!C579 -> 57.4 | H13: ='[3]2015_Tables-2'!D512 -> 7401 | I13: ='[3]2015_Tables-2'!D579 -> 2.1 | J13: 74.13295427
B14: Kombo South | C14: ='[3]2015_Tables-2'!E513 -> 113315 | D14: ='[3]2015_Tables-2'!B513 -> 51446 | E14: ='[3]2015_Tables-2'!B580 -> 45.4 | F14: ='[3]2015_Tables-2'!C513 -> 58798 | G14: ='[3]2015_Tables-2'!C580 -> 51.9 | H14: ='[3]2015_Tables-2'!D513 -> 3071 | I14: ='[3]2015_Tables-2'!D580 -> 2.7 | J14: 92.71914011
B15: Kombo Central | C15: ='[3]2015_Tables-2'!E514 -> 148599 | D15: ='[3]2015_Tables-2'!B514 -> 62636 | E15: ='[3]2015_Tables-2'!B581 -> 42.2 | F15: ='[3]2015_Tables-2'!C514 -> 82899 | G15: ='[3]2015_Tables-2'!C581 -> 55.8 | H15: ='[3]2015_Tables-2'!D514 -> 3064 | I15: ='[3]2015_Tables-2'!D581 -> 2.1 | J15: 79.25306699
B16: Kombo East | C16: ='[3]2015_Tables-2'!E515 -> 44874 | D16: ='[3]2015_Tables-2'!B515 -> 20409 | E16: ='[3]2015_Tables-2'!B582 -> 45.5 | F16: ='[3]2015_Tables-2'!C515 -> 23251 | G16: ='[3]2015_Tables-2'!C582 -> 51.8 | H16: ='[3]2015_Tables-2'!D515 -> 1213 | I16: ='[3]2015_Tables-2'!D582 -> 2.7 | J16: 92.99384973
B17: Foni Brefet | C17: ='[3]2015_Tables-2'!E516 -> 15412 | D17: ='[3]2015_Tables-2'!B516 -> 7351 | E17: ='[3]2015_Tables-2'!B583 -> 47.7 | F17: ='[3]2015_Tables-2'!C516 -> 7400 | G17: ='[3]2015_Tables-2'!C583 -> 48 | H17: ='[3]2015_Tables-2'!D516 -> 660 | I17: ='[3]2015_Tables-2'!D583 -> 4.3 | J17: 108.2567568
B18: Foni Bintang | C18: ='[3]2015_Tables-2'!E517 -> 18167 | D18: ='[3]2015_Tables-2'!B517 -> 8442 | E18: ='[3]2015_Tables-2'!B584 -> 46.5 | F18: ='[3]2015_Tables-2'!C517 -> 8885 | G18: ='[3]2015_Tables-2'!C584 -> 48.9 | H18: ='[3]2015_Tables-2'!D517 -> 840 | I18: ='[3]2015_Tables-2'!D584 -> 4.6 | J18: 104.4682048
B19: Foni Kansalla | C19: ='[3]2015_Tables-2'!E518 -> 14989 | D19: ='[3]2015_Tables-2'!B518 -> 6854 | E19: ='[3]2015_Tables-2'!B585 -> 45.7 | F19: ='[3]2015_Tables-2'!C518 -> 7387 | G19: ='[3]2015_Tables-2'!C585 -> 49.3 | H19: ='[3]2015_Tables-2'!D518 -> 749 | I19: ='[3]2015_Tables-2'!D585 -> 5 | J19: 102.9240558
B20: Foni Bundali | C20: ='[3]2015_Tables-2'!E519 -> 8088 | D20: ='[3]2015_Tables-2'!B519 -> 3985 | E20: ='[3]2015_Tables-2'!B586 -> 49.3 | F20: ='[3]2015_Tables-2'!C519 -> 3856 | G20: ='[3]2015_Tables-2'!C586 -> 47.7 | H20: ='[3]2015_Tables-2'!D519 -> 248 | I20: ='[3]2015_Tables-2'!D586 -> 3.1 | J20: 109.776971
B21: Foni Jarrol | C21: ='[3]2015_Tables-2'!E520 -> 7304 | D21: ='[3]2015_Tables-2'!B520 -> 3302 | E21: ='[3]2015_Tables-2'!B587 -> 45.2 | F21: ='[3]2015_Tables-2'!C520 -> 3643 | G21: ='[3]2015_Tables-2'!C587 -> 49.9 | H21: ='[3]2015_Tables-2'!D520 -> 359 | I21: ='[3]2015_Tables-2'!D587 -> 4.9 | J21: 100.4940983
A22: Mansakonko | C22: ='[3]2015_Tables-2'!E500 -> 82201 | D22: ='[3]2015_Tables-2'!B500 -> 38345 | E22: ='[3]2015_Tables-2'!B567 -> 46.6 | F22: ='[3]2015_Tables-2'!C500 -> 40508 | G22: ='[3]2015_Tables-2'!C567 -> 49.3 | H22: ='[3]2015_Tables-2'!D500 -> 3348 | I22: ='[3]2015_Tables-2'!D567 -> 4.1 | J22: 102.9253481
B23: Kiang West | C23: ='[3]2015_Tables-2'!E521 -> 15204 | D23: ='[3]2015_Tables-2'!B521 -> 7154 | E23: ='[3]2015_Tables-2'!B588 -> 47.1 | F23: ='[3]2015_Tables-2'!C521 -> 7287 | G23: ='[3]2015_Tables-2'!C588 -> 47.9 | H23: ='[3]2015_Tables-2'!D521 -> 763 | I23: ='[3]2015_Tables-2'!D588 -> 5 | J23: 108.6455331
B24: Kiang Cental | C24: ='[3]2015_Tables-2'!E522 -> 8785 | D24: ='[3]2015_Tables-2'!B522 -> 4205 | E24: ='[3]2015_Tables-2'!B589 -> 47.9 | F24: ='[3]2015_Tables-2'!C522 -> 4142 | G24: ='[3]2015_Tables-2'!C589 -> 47.2 | H24: ='[3]2015_Tables-2'!D522 -> 437 | I24: ='[3]2015_Tables-2'!D589 -> 5 | J24: 112.0714631
B25: Kiang East | C25: ='[3]2015_Tables-2'!E523 -> 6898 | D25: ='[3]2015_Tables-2'!B523 -> 3098 | E25: ='[3]2015_Tables-2'!B590 -> 44.9 | F25: ='[3]2015_Tables-2'!C523 -> 3434 | G25: ='[3]2015_Tables-2'!C590 -> 49.8 | H25: ='[3]2015_Tables-2'!D523 -> 367 | I25: ='[3]2015_Tables-2'!D590 -> 5.3 | J25: 100.9027373
B26: Jarra West | C26: ='[3]2015_Tables-2'!E524 -> 26589 | D26: ='[3]2015_Tables-2'!B524 -> 12391 | E26: ='[3]2015_Tables-2'!B591 -> 46.6 | F26: ='[3]2015_Tables-2'!C524 -> 13408 | G26: ='[3]2015_Tables-2'!C591 -> 50.4 | H26: ='[3]2015_Tables-2'!D524 -> 790 | I26: ='[3]2015_Tables-2'!D591 -> 3 | J26: 98.30698091
B27: Jarra Central | C27: ='[3]2015_Tables-2'!E525 -> 8461 | D27: ='[3]2015_Tables-2'!B525 -> 4032 | E27: ='[3]2015_Tables-2'!B592 -> 47.7 | F27: ='[3]2015_Tables-2'!C525 -> 4158 | G27: ='[3]2015_Tables-2'!C592 -> 49.1 | H27: ='[3]2015_Tables-2'!D525 -> 271 | I27: ='[3]2015_Tables-2'!D592 -> 3.2 | J27: 103.4872535
B28: Jarra East | C28: ='[3]2015_Tables-2'!E526 -> 16263 | D28: ='[3]2015_Tables-2'!B526 -> 7464 | E28: ='[3]2015_Tables-2'!B593 -> 45.9 | F28: ='[3]2015_Tables-2'!C526 -> 8079 | G28: ='[3]2015_Tables-2'!C593 -> 49.7 | H28: ='[3]2015_Tables-2'!D526 -> 721 | I28: ='[3]2015_Tables-2'!D593 -> 4.4 | J28: 101.3120436
A29: Kerewan | C29: ='[3]2015_Tables-2'!E501 -> 225516 | D29: ='[3]2015_Tables-2'!B501 -> 105968 | E29: ='[3]2015_Tables-2'!B568 -> 47 | F29: ='[3]2015_Tables-2'!C501 -> 111320 | G29: ='[3]2015_Tables-2'!C568 -> 49.4 | H29: ='[3]2015_Tables-2'!D501 -> 8228 | I29: ='[3]2015_Tables-2'!D568 -> 3.6 | J29: 102.5835429
B30: Lower Niumi | C30: ='[3]2015_Tables-2'!E527 -> 58498 | D30: ='[3]2015_Tables-2'!B527 -> 25913 | E30: ='[3]2015_Tables-2'!B594 -> 44.3 | F30: ='[3]2015_Tables-2'!C527 -> 30840 | G30: ='[3]2015_Tables-2'!C594 -> 52.7 | H30: ='[3]2015_Tables-2'!D527 -> 1745 | I30: ='[3]2015_Tables-2'!D594 -> 3 | J30: 89.68223087
B31: Upper Niumi | C31: ='[3]2015_Tables-2'!E528 -> 31643 | D31: ='[3]2015_Tables-2'!B528 -> 15035 | E31: ='[3]2015_Tables-2'!B595 -> 47.5 | F31: ='[3]2015_Tables-2'!C528 -> 15095 | G31: ='[3]2015_Tables-2'!C595 -> 47.7 | H31: ='[3]2015_Tables-2'!D528 -> 1513 | I31: ='[3]2015_Tables-2'!D595 -> 4.8 | J31: 109.6257039
B32: Jokadu | C32: ='[3]2015_Tables-2'!E529 -> 22863 | D32: ='[3]2015_Tables-2'!B529 -> 11173 | E32: ='[3]2015_Tables-2'!B596 -> 48.9 | F32: ='[3]2015_Tables-2'!C529 -> 10692 | G32: ='[3]2015_Tables-2'!C596 -> 46.8 | H32: ='[3]2015_Tables-2'!D529 -> 998 | I32: ='[3]2015_Tables-2'!D596 -> 4.4 | J32: 113.8327722
B33: Lower Badibu | C33: ='[3]2015_Tables-2'!E530 -> 18405 | D33: ='[3]2015_Tables-2'!B530 -> 8896 | E33: ='[3]2015_Tables-2'!B597 -> 48.3 | F33: ='[3]2015_Tables-2'!C530 -> 8825 | G33: ='[3]2015_Tables-2'!C597 -> 48 | H33: ='[3]2015_Tables-2'!D530 -> 683 | I33: ='[3]2015_Tables-2'!D597 -> 3.7 | J33: 108.5439093
B34: Central Badibu | C34: ='[3]2015_Tables-2'!E531 -> 19972 | D34: ='[3]2015_Tables-2'!B531 -> 9829 | E34: ='[3]2015_Tables-2'!B598 -> 49.2 | F34: ='[3]2015_Tables-2'!C531 -> 9177 | G34: ='[3]2015_Tables-2'!C598 -> 45.9 | H34: ='[3]2015_Tables-2'!D531 -> 967 | I34: ='[3]2015_Tables-2'!D598 -> 4.8 | J34: 117.6419309
B35: Illiasa | C35: ='[3]2015_Tables-2'!E532 -> 49821 | D35: ='[3]2015_Tables-2'!B532 -> 22985 | E35: ='[3]2015_Tables-2'!B599 -> 46.1 | F35: ='[3]2015_Tables-2'!C532 -> 25260 | G35: ='[3]2015_Tables-2'!C599 -> 50.7 | H35: ='[3]2015_Tables-2'!D532 -> 1576 | I35: ='[3]2015_Tables-2'!D599 -> 3.2 | J35: 97.2327791
B36: Sabach Sanjal | C36: ='[3]2015_Tables-2'!E533 -> 24314 | D36: ='[3]2015_Tables-2'!B533 -> 12137 | E36: ='[3]2015_Tables-2'!B600 -> 49.9 | F36: ='[3]2015_Tables-2'!C533 -> 11431 | G36: ='[3]2015_Tables-2'!C600 -> 47 | H36: ='[3]2015_Tables-2'!D533 -> 746 | I36: ='[3]2015_Tables-2'!D600 -> 3.1 | J36: 112.7023008
A37: Kuntaur | C37: ='[3]2015_Tables-2'!E502 -> 98966 | D37: ='[3]2015_Tables-2'!B502 -> 49682 | E37: ='[3]2015_Tables-2'!B569 -> 50.2 | F37: ='[3]2015_Tables-2'!C502 -> 45914 | G37: ='[3]2015_Tables-2'!C569 -> 46.4 | H37: ='[3]2015_Tables-2'!D502 -> 3370 | I37: ='[3]2015_Tables-2'!D569 -> 3.4 | J37: =(D37+H37)/F37*100 -> 115.5464564
B38: Lower Saloum | C38: ='[3]2015_Tables-2'!E534 -> 15807 | D38: ='[3]2015_Tables-2'!B534 -> 7208 | E38: ='[3]2015_Tables-2'!B601 -> 45.6 | F38: ='[3]2015_Tables-2'!C534 -> 8101 | G38: ='[3]2015_Tables-2'!C601 -> 51.2 | H38: ='[3]2015_Tables-2'!D534 -> 499 | I38: ='[3]2015_Tables-2'!D601 -> 3.2 | J38: 95.13640291
B39: Upper Saloum | C39: ='[3]2015_Tables-2'!E535 -> 19110 | D39: ='[3]2015_Tables-2'!B535 -> 10119 | E39: ='[3]2015_Tables-2'!B602 -> 53 | F39: ='[3]2015_Tables-2'!C535 -> 8454 | G39: ='[3]2015_Tables-2'!C602 -> 44.2 | H39: ='[3]2015_Tables-2'!D535 -> 537 | I39: ='[3]2015_Tables-2'!D602 -> 2.8 | J39: 126.0468417
B40: Nianija | C40: ='[3]2015_Tables-2'!E536 -> 10107 | D40: ='[3]2015_Tables-2'!B536 -> 5088 | E40: ='[3]2015_Tables-2'!B603 -> 50.3 | F40: ='[3]2015_Tables-2'!C536 -> 4660 | G40: ='[3]2015_Tables-2'!C603 -> 46.1 | H40: ='[3]2015_Tables-2'!D536 -> 359 | I40: ='[3]2015_Tables-2'!D603 -> 3.6 | J40: 116.888412
B41: Niani | C41: ='[3]2015_Tables-2'!E537 -> 29006 | D41: ='[3]2015_Tables-2'!B537 -> 14822 | E41: ='[3]2015_Tables-2'!B604 -> 51.1 | F41: ='[3]2015_Tables-2'!C537 -> 13295 | G41: ='[3]2015_Tables-2'!C604 -> 45.8 | H41: ='[3]2015_Tables-2'!D537 -> 889 | I41: ='[3]2015_Tables-2'!D604 -> 3.1 | J41: 118.1722452
B42: Sami | C42: ='[3]2015_Tables-2'!E538 -> 24935 | D42: ='[3]2015_Tables-2'!B538 -> 12445 | E42: ='[3]2015_Tables-2'!B605 -> 49.9 | F42: ='[3]2015_Tables-2'!C538 -> 11404 | G42: ='[3]2015_Tables-2'!C605 -> 45.7 | H42: ='[3]2015_Tables-2'!D538 -> 1086 | I42: ='[3]2015_Tables-2'!D605 -> 4.4 | J42: 118.6513504 | K42: cont'd
A43: Janjanbureh | C43: ='[3]2015_Tables-2'!E503 -> 127332 | D43: ='[3]2015_Tables-2'!B503 -> 61456 | E43: ='[3]2015_Tables-2'!B570 -> 48.3 | F43: ='[3]2015_Tables-2'!C503 -> 61403 | G43: ='[3]2015_Tables-2'!C570 -> 48.2 | H43: ='[3]2015_Tables-2'!D503 -> 4474 | I43: ='[3]2015_Tables-2'!D570 -> 3.5 | J43: 107.3726039
B44: Niamina Dankunku | C44: ='[3]2015_Tables-2'!E539 -> 6186 | D44: ='[3]2015_Tables-2'!B539 -> 2866 | E44: ='[3]2015_Tables-2'!B606 -> 46.3 | F44: ='[3]2015_Tables-2'!C539 -> 3071 | G44: ='[3]2015_Tables-2'!C606 -> 49.6 | H44: ='[3]2015_Tables-2'!D539 -> 249 | I44: ='[3]2015_Tables-2'!D606 -> 4 | J44: 101.4327581
B45: Niamina West | C45: ='[3]2015_Tables-2'!E540 -> 7262 | D45: ='[3]2015_Tables-2'!B540 -> 3557 | E45: ='[3]2015_Tables-2'!B607 -> 49 | F45: ='[3]2015_Tables-2'!C540 -> 3439 | G45: ='[3]2015_Tables-2'!C607 -> 47.4 | H45: ='[3]2015_Tables-2'!D540 -> 266 | I45: ='[3]2015_Tables-2'!D607 -> 3.7 | J45: 111.1660366
B46: Niamina East | C46: ='[3]2015_Tables-2'!E541 -> 24754 | D46: ='[3]2015_Tables-2'!B541 -> 12270 | E46: ='[3]2015_Tables-2'!B608 -> 49.6 | F46: ='[3]2015_Tables-2'!C541 -> 11727 | G46: ='[3]2015_Tables-2'!C608 -> 47.4 | H46: ='[3]2015_Tables-2'!D541 -> 757 | I46: ='[3]2015_Tables-2'!D608 -> 3.1 | J46: 111.0855291
B47: Lower Fuladu West | C47: ='[3]2015_Tables-2'!E542 -> 40481 | D47: ='[3]2015_Tables-2'!B542 -> 19742 | E47: ='[3]2015_Tables-2'!B609 -> 48.8 | F47: ='[3]2015_Tables-2'!C542 -> 19279 | G47: ='[3]2015_Tables-2'!C609 -> 47.6 | H47: ='[3]2015_Tables-2'!D542 -> 1460 | I47: ='[3]2015_Tables-2'!D609 -> 3.6 | J47: 109.9745837
B48: Upper Fuladu West | C48: ='[3]2015_Tables-2'!E543 -> 44796 | D48: ='[3]2015_Tables-2'!B543 -> 21452 | E48: ='[3]2015_Tables-2'!B610 -> 47.9 | F48: ='[3]2015_Tables-2'!C543 -> 21770 | G48: ='[3]2015_Tables-2'!C610 -> 48.6 | H48: ='[3]2015_Tables-2'!D543 -> 1575 | I48: ='[3]2015_Tables-2'!D610 -> 3.5 | J48: 105.7740009
B49: Janjanbureh | C49: ='[3]2015_Tables-2'!E544 -> 3853 | D49: ='[3]2015_Tables-2'!B544 -> 1568 | E49: ='[3]2015_Tables-2'!B611 -> 40.7 | F49: ='[3]2015_Tables-2'!C544 -> 2118 | G49: ='[3]2015_Tables-2'!C611 -> 55 | H49: ='[3]2015_Tables-2'!D544 -> 167 | I49: ='[3]2015_Tables-2'!D611 -> 4.3 | J49: 81.91690274
A50: Basse | C50: ='[3]2015_Tables-2'!E504 -> 243791 | D50: ='[3]2015_Tables-2'!B504 -> 120544 | E50: ='[3]2015_Tables-2'!B571 -> 49.4 | F50: ='[3]2015_Tables-2'!C504 -> 115472 | G50: ='[3]2015_Tables-2'!C571 -> 47.4 | H50: ='[3]2015_Tables-2'!D504 -> 7775 | I50: ='[3]2015_Tables-2'!D571 -> 3.2 | J50: 111.1256408
B51: Jimara | C51: ='[3]2015_Tables-2'!E545 -> 44665 | D51: ='[3]2015_Tables-2'!B545 -> 22063 | E51: ='[3]2015_Tables-2'!B612 -> 49.4 | F51: ='[3]2015_Tables-2'!C545 -> 21002 | G51: ='[3]2015_Tables-2'!C612 -> 47 | H51: ='[3]2015_Tables-2'!D545 -> 1599 | I51: ='[3]2015_Tables-2'!D612 -> 3.6 | J51: 112.6654604
B52: Basse | C52: ='[3]2015_Tables-2'!E546 -> 50462 | D52: ='[3]2015_Tables-2'!B546 -> 22653 | E52: ='[3]2015_Tables-2'!B613 -> 44.9 | F52: ='[3]2015_Tables-2'!C546 -> 26572 | G52: ='[3]2015_Tables-2'!C613 -> 52.7 | H52: ='[3]2015_Tables-2'!D546 -> 1237 | I52: ='[3]2015_Tables-2'!D613 -> 2.5 | J52: 89.90666867
B53: Tumana | C53: ='[3]2015_Tables-2'!E547 -> 38237 | D53: ='[3]2015_Tables-2'!B547 -> 19848 | E53: ='[3]2015_Tables-2'!B614 -> 51.9 | F53: ='[3]2015_Tables-2'!C547 -> 17019 | G53: ='[3]2015_Tables-2'!C614 -> 44.5 | H53: ='[3]2015_Tables-2'!D547 -> 1370 | I53: ='[3]2015_Tables-2'!D614 -> 3.6 | J53: 124.6724249
B54: Kantora | C54: ='[3]2015_Tables-2'!E548 -> 39416 | D54: ='[3]2015_Tables-2'!B548 -> 19703 | E54: ='[3]2015_Tables-2'!B615 -> 50 | F54: ='[3]2015_Tables-2'!C548 -> 18076 | G54: ='[3]2015_Tables-2'!C615 -> 45.9 | H54: ='[3]2015_Tables-2'!D548 -> 1637 | I54: ='[3]2015_Tables-2'!D615 -> 4.2 | J54: 118.0570923
B55: Wuli West | C55: ='[3]2015_Tables-2'!E549 -> 22431 | D55: ='[3]2015_Tables-2'!B549 -> 11229 | E55: ='[3]2015_Tables-2'!B616 -> 50.1 | F55: ='[3]2015_Tables-2'!C549 -> 10629 | G55: ='[3]2015_Tables-2'!C616 -> 47.4 | H55: ='[3]2015_Tables-2'!D549 -> 572 | I55: ='[3]2015_Tables-2'!D616 -> 2.6 | J55: 111.0264371
B56: Wuli East | C56: ='[3]2015_Tables-2'!E550 -> 24266 | D56: ='[3]2015_Tables-2'!B550 -> 12495 | E56: ='[3]2015_Tables-2'!B617 -> 51.5 | F56: ='[3]2015_Tables-2'!C550 -> 11107 | G56: ='[3]2015_Tables-2'!C617 -> 45.8 | H56: ='[3]2015_Tables-2'!D550 -> 664 | I56: ='[3]2015_Tables-2'!D617 -> 2.7 | J56: 118.4748357
B57: Sandu | C57: ='[3]2015_Tables-2'!E551 -> 24314 | D57: ='[3]2015_Tables-2'!B551 -> 12554 | E57: ='[3]2015_Tables-2'!B618 -> 51.6 | F57: ='[3]2015_Tables-2'!C551 -> 11065 | G57: ='[3]2015_Tables-2'!C618 -> 45.5 | H57: ='[3]2015_Tables-2'!D551 -> 696 | I57: ='[3]2015_Tables-2'!D618 -> 2.9 | J57: 119.7469498

Sheet Tab2.6
A1: Table 2.6
A2: Distribuition of Household Members Relationship to Head and District
C3: Count | D3: Head | E3: Spouse | F3: Child | G3: Grand-child | H3: Parent | I3: Other relative | J3: Non-relative
A4: THE GAMBIA | C4: ='[3]2015_Tables-2'!I693 -> 1922950 | D4: ='[3]2015_Tables-2'!B760 -> 14.6 | E4: ='[3]2015_Tables-2'!C760 -> 12.7 | F4: ='[3]2015_Tables-2'!D760 -> 48.5 | G4: ='[3]2015_Tables-2'!E760 -> 6.9 | H4: ='[3]2015_Tables-2'!F760 -> 2 | I4: ='[3]2015_Tables-2'!G760 -> 14.2 | J4: ='[3]2015_Tables-2'!H760 -> 1.1
B5: Urban | C5: ='[3]2015_Tables-2'!I691 -> 1057467 | D5: ='[3]2015_Tables-2'!B758 -> 16.8 | E5: ='[3]2015_Tables-2'!C758 -> 11.9 | F5: ='[3]2015_Tables-2'!D758 -> 47.7 | G5: ='[3]2015_Tables-2'!E758 -> 6.5 | H5: ='[3]2015_Tables-2'!F758 -> 1.4 | I5: ='[3]2015_Tables-2'!G758 -> 14.6 | J5: ='[3]2015_Tables-2'!H758 -> 1.2
B6: Rural | C6: ='[3]2015_Tables-2'!I692 -> 865483 | D6: ='[3]2015_Tables-2'!B759 -> 11.9 | E6: ='[3]2015_Tables-2'!C759 -> 13.7 | F6: ='[3]2015_Tables-2'!D759 -> 49.4 | G6: ='[3]2015_Tables-2'!E759 -> 7.5 | H6: ='[3]2015_Tables-2'!F759 -> 2.7 | I6: ='[3]2015_Tables-2'!G759 -> 13.7 | J6: ='[3]2015_Tables-2'!H759 -> 1.1
A7: Banjul | C7: ='[3]2015_Tables-2'!I631 -> 30703 | D7: ='[3]2015_Tables-2'!B698 -> 24.1 | E7: ='[3]2015_Tables-2'!C698 -> 11 | F7: ='[3]2015_Tables-2'!D698 -> 42.4 | G7: ='[3]2015_Tables-2'!E698 -> 9.2 | H7: ='[3]2015_Tables-2'!F698 -> 0.5 | I7: ='[3]2015_Tables-2'!G698 -> 11.4 | J7: ='[3]2015_Tables-2'!H698 -> 1.4
B8: Urban | C8: ='[3]2015_Tables-2'!I644 -> 30703 | D8: ='[3]2015_Tables-2'!B711 -> 24.1 | E8: ='[3]2015_Tables-2'!C711 -> 11 | F8: ='[3]2015_Tables-2'!D711 -> 42.4 | G8: ='[3]2015_Tables-2'!E711 -> 9.2 | H8: ='[3]2015_Tables-2'!F711 -> 0.5 | I8: ='[3]2015_Tables-2'!G711 -> 11.4 | J8: ='[3]2015_Tables-2'!H711 -> 1.4
A9: Kanifing | C9: ='[3]2015_Tables-2'!I632 -> 383545 | D9: ='[3]2015_Tables-2'!B699 -> 18.3 | E9: ='[3]2015_Tables-2'!C699 -> 11.1 | F9: ='[3]2015_Tables-2'!D699 -> 47.3 | G9: ='[3]2015_Tables-2'!E699 -> 6.3 | H9: ='[3]2015_Tables-2'!F699 -> 1.1 | I9: ='[3]2015_Tables-2'!G699 -> 15.2 | J9: ='[3]2015_Tables-2'!H699 -> 0.7
B10: Urban | C10: ='[3]2015_Tables-2'!I645 -> 383545 | D10: ='[3]2015_Tables-2'!B712 -> 18.3 | E10: ='[3]2015_Tables-2'!C712 -> 11.1 | F10: ='[3]2015_Tables-2'!D712 -> 47.3 | G10: ='[3]2015_Tables-2'!E712 -> 6.3 | H10: ='[3]2015_Tables-2'!F712 -> 1.1 | I10: ='[3]2015_Tables-2'!G712 -> 15.2 | J10: ='[3]2015_Tables-2'!H712 -> 0.7
A11: Brikama | C11: ='[3]2015_Tables-2'!I633 -> 730895 | D11: ='[3]2015_Tables-2'!B700 -> 14.2 | E11: ='[3]2015_Tables-2'!C700 -> 11.9 | F11: ='[3]2015_Tables-2'!D700 -> 48.5 | G11: ='[3]2015_Tables-2'!E700 -> 7.1 | H11: ='[3]2015_Tables-2'!F700 -> 1.6 | I11: ='[3]2015_Tables-2'!G700 -> 15.2 | J11: ='[3]2015_Tables-2'!H700 -> 1.5
B12: Kombo North | C12: ='[3]2015_Tables-2'!I646 -> 360147 | D12: ='[3]2015_Tables-2'!B713 -> 15.8 | E12: ='[3]2015_Tables-2'!C713 -> 12.3 | F12: ='[3]2015_Tables-2'!D713 -> 47.7 | G12: ='[3]2015_Tables-2'!E713 -> 6.3 | H12: ='[3]2015_Tables-2'!F713 -> 1.4 | I12: ='[3]2015_Tables-2'!G713 -> 15.3 | J12: ='[3]2015_Tables-2'!H713 -> 1.2
B13: Kombo South | C13: ='[3]2015_Tables-2'!I647 -> 113315 | D13: ='[3]2015_Tables-2'!B714 -> 13 | E13: ='[3]2015_Tables-2'!C714 -> 11.5 | F13: ='[3]2015_Tables-2'!D714 -> 48.9 | G13: ='[3]2015_Tables-2'!E714 -> 8 | H13: ='[3]2015_Tables-2'!F714 -> 1.9 | I13: ='[3]2015_Tables-2'!G714 -> 14.1 | J13: ='[3]2015_Tables-2'!H714 -> 2.7
B14: Kombo Central | C14: ='[3]2015_Tables-2'!I648 -> 148599 | D14: ='[3]2015_Tables-2'!B715 -> 12.8 | E14: ='[3]2015_Tables-2'!C715 -> 10.9 | F14: ='[3]2015_Tables-2'!D715 -> 52.1 | G14: ='[3]2015_Tables-2'!E715 -> 6.6 | H14: ='[3]2015_Tables-2'!F715 -> 1.2 | I14: ='[3]2015_Tables-2'!G715 -> 14.9 | J14: ='[3]2015_Tables-2'!H715 -> 1.5
B15: Kombo East | C15: ='[3]2015_Tables-2'!I649 -> 44874 | D15: ='[3]2015_Tables-2'!B716 -> 12.5 | E15: ='[3]2015_Tables-2'!C716 -> 12 | F15: ='[3]2015_Tables-2'!D716 -> 48.1 | G15: ='[3]2015_Tables-2'!E716 -> 8.1 | H15: ='[3]2015_Tables-2'!F716 -> 2.2 | I15: ='[3]2015_Tables-2'!G716 -> 15.8 | J15: ='[3]2015_Tables-2'!H716 -> 1.1
B16: Foni Brefet | C16: ='[3]2015_Tables-2'!I650 -> 15412 | D16: ='[3]2015_Tables-2'!B717 -> 11.8 | E16: ='[3]2015_Tables-2'!C717 -> 11.3 | F16: ='[3]2015_Tables-2'!D717 -> 44.8 | G16: ='[3]2015_Tables-2'!E717 -> 9.9 | H16: ='[3]2015_Tables-2'!F717 -> 2.8 | I16: ='[3]2015_Tables-2'!G717 -> 18.1 | J16: ='[3]2015_Tables-2'!H717 -> 1.2
B17: Foni Bintang | C17: ='[3]2015_Tables-2'!I651 -> 18167 | D17: ='[3]2015_Tables-2'!B718 -> 10.7 | E17: ='[3]2015_Tables-2'!C718 -> 12.7 | F17: ='[3]2015_Tables-2'!D718 -> 45 | G17: ='[3]2015_Tables-2'!E718 -> 10.6 | H17: ='[3]2015_Tables-2'!F718 -> 2.6 | I17: ='[3]2015_Tables-2'!G718 -> 17.4 | J17: ='[3]2015_Tables-2'!H718 -> 1
B18: Foni Kansalla | C18: ='[3]2015_Tables-2'!I652 -> 14989 | D18: ='[3]2015_Tables-2'!B719 -> 12.6 | E18: ='[3]2015_Tables-2'!C719 -> 13.1 | F18: ='[3]2015_Tables-2'!D719 -> 44 | G18: ='[3]2015_Tables-2'!E719 -> 9.9 | H18: ='[3]2015_Tables-2'!F719 -> 3.1 | I18: ='[3]2015_Tables-2'!G719 -> 16.2 | J18: ='[3]2015_Tables-2'!H719 -> 1.1
B19: Foni Bundali | C19: ='[3]2015_Tables-2'!I653 -> 8088 | D19: ='[3]2015_Tables-2'!B720 -> 10.1 | E19: ='[3]2015_Tables-2'!C720 -> 12 | F19: ='[3]2015_Tables-2'!D720 -> 46.7 | G19: ='[3]2015_Tables-2'!E720 -> 6.5 | H19: ='[3]2015_Tables-2'!F720 -> 2.2 | I19: ='[3]2015_Tables-2'!G720 -> 18.4 | J19: ='[3]2015_Tables-2'!H720 -> 4.1
B20: Foni Jarrol | C20: ='[3]2015_Tables-2'!I654 -> 7304 | D20: ='[3]2015_Tables-2'!B721 -> 13 | E20: ='[3]2015_Tables-2'!C721 -> 11.4 | F20: ='[3]2015_Tables-2'!D721 -> 40.2 | G20: ='[3]2015_Tables-2'!E721 -> 14.5 | H20: ='[3]2015_Tables-2'!F721 -> 2.7 | I20: ='[3]2015_Tables-2'!G721 -> 17.3 | J20: ='[3]2015_Tables-2'!H721 -> 0.9
A21: Mansakonko | C21: ='[3]2015_Tables-2'!I634 -> 82201 | D21: ='[3]2015_Tables-2'!B701 -> 14.6 | E21: ='[3]2015_Tables-2'!C701 -> 14.4 | F21: ='[3]2015_Tables-2'!D701 -> 49.3 | G21: ='[3]2015_Tables-2'!E701 -> 8.5 | H21: ='[3]2015_Tables-2'!F701 -> 2.6 | I21: ='[3]2015_Tables-2'!G701 -> 9.7 | J21: ='[3]2015_Tables-2'!H701 -> 1
B22: Kiang West | C22: ='[3]2015_Tables-2'!I655 -> 15204 | D22: ='[3]2015_Tables-2'!B722 -> 14.7 | E22: ='[3]2015_Tables-2'!C722 -> 11.8 | F22: ='[3]2015_Tables-2'!D722 -> 47.6 | G22: ='[3]2015_Tables-2'!E722 -> 10 | H22: ='[3]2015_Tables-2'!F722 -> 3 | I22: ='[3]2015_Tables-2'!G722 -> 12 | J22: ='[3]2015_Tables-2'!H722 -> 0.8
B23: Kiang Cental | C23: ='[3]2015_Tables-2'!I656 -> 8785 | D23: ='[3]2015_Tables-2'!B723 -> 13.1 | E23: ='[3]2015_Tables-2'!C723 -> 13.8 | F23: ='[3]2015_Tables-2'!D723 -> 43.9 | G23: ='[3]2015_Tables-2'!E723 -> 11.8 | H23: ='[3]2015_Tables-2'!F723 -> 2.7 | I23: ='[3]2015_Tables-2'!G723 -> 14.3 | J23: ='[3]2015_Tables-2'!H723 -> 0.4
B24: Kiang East | C24: ='[3]2015_Tables-2'!I657 -> 6898 | D24: ='[3]2015_Tables-2'!B724 -> 13.6 | E24: ='[3]2015_Tables-2'!C724 -> 15.2 | F24: ='[3]2015_Tables-2'!D724 -> 44.6 | G24: ='[3]2015_Tables-2'!E724 -> 8 | H24: ='[3]2015_Tables-2'!F724 -> 3.5 | I24: ='[3]2015_Tables-2'!G724 -> 14.4 | J24: ='[3]2015_Tables-2'!H724 -> 0.7
B25: Jarra West | C25: ='[3]2015_Tables-2'!I658 -> 26589 | D25: ='[3]2015_Tables-2'!B725 -> 15.7 | E25: ='[3]2015_Tables-2'!C725 -> 14.6 | F25: ='[3]2015_Tables-2'!D725 -> 50.6 | G25: ='[3]2015_Tables-2'!E725 -> 8.3 | H25: ='[3]2015_Tables-2'!F725 -> 2.2 | I25: ='[3]2015_Tables-2'!G725 -> 7.5 | J25: ='[3]2015_Tables-2'!H725 -> 1.1
B26: Jarra Central | C26: ='[3]2015_Tables-2'!I659 -> 8461 | D26: ='[3]2015_Tables-2'!B726 -> 15.2 | E26: ='[3]2015_Tables-2'!C726 -> 16.6 | F26: ='[3]2015_Tables-2'!D726 -> 53.6 | G26: ='[3]2015_Tables-2'!E726 -> 5.1 | H26: ='[3]2015_Tables-2'!F726 -> 2.4 | I26: ='[3]2015_Tables-2'!G726 -> 6.5 | J26: ='[3]2015_Tables-2'!H726 -> 0.5
B27: Jarra East | C27: ='[3]2015_Tables-2'!I660 -> 16263 | D27: ='[3]2015_Tables-2'!B727 -> 13.6 | E27: ='[3]2015_Tables-2'!C727 -> 15.2 | F27: ='[3]2015_Tables-2'!D727 -> 51.3 | G27: ='[3]2015_Tables-2'!E727 -> 7.7 | H27: ='[3]2015_Tables-2'!F727 -> 2.3 | I27: ='[3]2015_Tables-2'!G727 -> 8.3 | J27: ='[3]2015_Tables-2'!H727 -> 1.6
A28: Kerewan | C28: ='[3]2015_Tables-2'!I635 -> 225516 | D28: ='[3]2015_Tables-2'!B702 -> 12.2 | E28: ='[3]2015_Tables-2'!C702 -> 12.6 | F28: ='[3]2015_Tables-2'!D702 -> 48 | G28: ='[3]2015_Tables-2'!E702 -> 8.5 | H28: ='[3]2015_Tables-2'!F702 -> 2.9 | I28: ='[3]2015_Tables-2'!G702 -> 14.1 | J28: ='[3]2015_Tables-2'!H702 -> 1.8
B29: Lower Niumi | C29: ='[3]2015_Tables-2'!I661 -> 58498 | D29: ='[3]2015_Tables-2'!B728 -> 14.2 | E29: ='[3]2015_Tables-2'!C728 -> 11.9 | F29: ='[3]2015_Tables-2'!D728 -> 47.9 | G29: ='[3]2015_Tables-2'!E728 -> 9.4 | H29: ='[3]2015_Tables-2'!F728 -> 2.3 | I29: ='[3]2015_Tables-2'!G728 -> 12.4 | J29: ='[3]2015_Tables-2'!H728 -> 1.9
B30: Upper Niumi | C30: ='[3]2015_Tables-2'!I662 -> 31643 | D30: ='[3]2015_Tables-2'!B729 -> 12.4 | E30: ='[3]2015_Tables-2'!C729 -> 13.6 | F30: ='[3]2015_Tables-2'!D729 -> 45.9 | G30: ='[3]2015_Tables-2'!E729 -> 7.9 | H30: ='[3]2015_Tables-2'!F729 -> 2.9 | I30: ='[3]2015_Tables-2'!G729 -> 16.2 | J30: ='[3]2015_Tables-2'!H729 -> 1.1
B31: Jokadu | C31: ='[3]2015_Tables-2'!I663 -> 22863 | D31: ='[3]2015_Tables-2'!B730 -> 11.3 | E31: ='[3]2015_Tables-2'!C730 -> 13.2 | F31: ='[3]2015_Tables-2'!D730 -> 50.7 | G31: ='[3]2015_Tables-2'!E730 -> 6.3 | H31: ='[3]2015_Tables-2'!F730 -> 4.1 | I31: ='[3]2015_Tables-2'!G730 -> 13.3 | J31: ='[3]2015_Tables-2'!H730 -> 1
B32: Lower Badibu | C32: ='[3]2015_Tables-2'!I664 -> 18405 | D32: ='[3]2015_Tables-2'!B731 -> 12.1 | E32: ='[3]2015_Tables-2'!C731 -> 11.7 | F32: ='[3]2015_Tables-2'!D731 -> 49 | G32: ='[3]2015_Tables-2'!E731 -> 8.4 | H32: ='[3]2015_Tables-2'!F731 -> 3.1 | I32: ='[3]2015_Tables-2'!G731 -> 13.2 | J32: ='[3]2015_Tables-2'!H731 -> 2.5
B33: Central Badibu | C33: ='[3]2015_Tables-2'!I665 -> 19972 | D33: ='[3]2015_Tables-2'!B732 -> 11.4 | E33: ='[3]2015_Tables-2'!C732 -> 11.8 | F33: ='[3]2015_Tables-2'!D732 -> 47.9 | G33: ='[3]2015_Tables-2'!E732 -> 10 | H33: ='[3]2015_Tables-2'!F732 -> 3.1 | I33: ='[3]2015_Tables-2'!G732 -> 14.6 | J33: ='[3]2015_Tables-2'!H732 -> 1.2
B34: Illiasa | C34: ='[3]2015_Tables-2'!I666 -> 49821 | D34: ='[3]2015_Tables-2'!B733 -> 11.2 | E34: ='[3]2015_Tables-2'!C733 -> 12.3 | F34: ='[3]2015_Tables-2'!D733 -> 47.9 | G34: ='[3]2015_Tables-2'!E733 -> 9.2 | H34: ='[3]2015_Tables-2'!F733 -> 2.5 | I34: ='[3]2015_Tables-2'!G733 -> 15.1 | J34: ='[3]2015_Tables-2'!H733 -> 1.8
B35: Sabach Sanjal | C35: ='[3]2015_Tables-2'!I667 -> 24314 | D35: ='[3]2015_Tables-2'!B734 -> 10.6 | E35: ='[3]2015_Tables-2'!C734 -> 13.9 | F35: ='[3]2015_Tables-2'!D734 -> 47.9 | G35: ='[3]2015_Tables-2'!E734 -> 6.4 | H35: ='[3]2015_Tables-2'!F734 -> 3.7 | I35: ='[3]2015_Tables-2'!G734 -> 14.4 | J35: ='[3]2015_Tables-2'!H734 -> 3.1
A36: Kuntaur | C36: ='[3]2015_Tables-2'!I636 -> 98966 | D36: ='[3]2015_Tables-2'!B703 -> 11.1 | E36: ='[3]2015_Tables-2'!C703 -> 14.2 | F36: ='[3]2015_Tables-2'!D703 -> 48.9 | G36: ='[3]2015_Tables-2'!E703 -> 7.8 | H36: ='[3]2015_Tables-2'!F703 -> 2.8 | I36: ='[3]2015_Tables-2'!G703 -> 14.1 | J36: ='[3]2015_Tables-2'!H703 -> 1.1
B37: Lower Saloum | C37: ='[3]2015_Tables-2'!I668 -> 15807 | D37: ='[3]2015_Tables-2'!B735 -> 12.2 | E37: ='[3]2015_Tables-2'!C735 -> 15.5 | F37: ='[3]2015_Tables-2'!D735 -> 49.3 | G37: ='[3]2015_Tables-2'!E735 -> 8.5 | H37: ='[3]2015_Tables-2'!F735 -> 2.7 | I37: ='[3]2015_Tables-2'!G735 -> 11.8 | J37: ='[3]2015_Tables-2'!H735 -> 0
B38: Upper Saloum | C38: ='[3]2015_Tables-2'!I669 -> 19110 | D38: ='[3]2015_Tables-2'!B736 -> 10.5 | E38: ='[3]2015_Tables-2'!C736 -> 15.2 | F38: ='[3]2015_Tables-2'!D736 -> 49.8 | G38: ='[3]2015_Tables-2'!E736 -> 5.1 | H38: ='[3]2015_Tables-2'!F736 -> 3.6 | I38: ='[3]2015_Tables-2'!G736 -> 12.8 | J38: ='[3]2015_Tables-2'!H736 -> 3
B39: Nianija | C39: ='[3]2015_Tables-2'!I670 -> 10107 | D39: ='[3]2015_Tables-2'!B737 -> 11.1 | E39: ='[3]2015_Tables-2'!C737 -> 15.4 | F39: ='[3]2015_Tables-2'!D737 -> 49.5 | G39: ='[3]2015_Tables-2'!E737 -> 5.6 | H39: ='[3]2015_Tables-2'!F737 -> 2.7 | I39: ='[3]2015_Tables-2'!G737 -> 14.6 | J39: ='[3]2015_Tables-2'!H737 -> 1.2
B40: Niani | C40: ='[3]2015_Tables-2'!I671 -> 29006 | D40: ='[3]2015_Tables-2'!B738 -> 11.5 | E40: ='[3]2015_Tables-2'!C738 -> 13.3 | F40: ='[3]2015_Tables-2'!D738 -> 48.6 | G40: ='[3]2015_Tables-2'!E738 -> 9 | H40: ='[3]2015_Tables-2'!F738 -> 2.5 | I40: ='[3]2015_Tables-2'!G738 -> 14.9 | J40: ='[3]2015_Tables-2'!H738 -> 0.1
B41: Sami | C41: ='[3]2015_Tables-2'!I672 -> 24935 | D41: ='[3]2015_Tables-2'!B739 -> 10.3 | E41: ='[3]2015_Tables-2'!C739 -> 13.2 | F41: ='[3]2015_Tables-2'!D739 -> 48.1 | G41: ='[3]2015_Tables-2'!E739 -> 8.7 | H41: ='[3]2015_Tables-2'!F739 -> 2.8 | I41: ='[3]2015_Tables-2'!G739 -> 15.4 | J41: ='[3]2015_Tables-2'!H739 -> 1.4 | K41: cont'd
A42: Janjanbureh | C42: ='[3]2015_Tables-2'!I637 -> 127332 | D42: ='[3]2015_Tables-2'!B704 -> 11.4 | E42: ='[3]2015_Tables-2'!C704 -> 13.3 | F42: ='[3]2015_Tables-2'!D704 -> 46.7 | G42: ='[3]2015_Tables-2'!E704 -> 8.6 | H42: ='[3]2015_Tables-2'!F704 -> 2.5 | I42: ='[3]2015_Tables-2'!G704 -> 17 | J42: ='[3]2015_Tables-2'!H704 -> 0.6
B43: Niamina Dankunku | C43: ='[3]2015_Tables-2'!I673 -> 6186 | D43: ='[3]2015_Tables-2'!B740 -> 14.5 | E43: ='[3]2015_Tables-2'!C740 -> 17.3 | F43: ='[3]2015_Tables-2'!D740 -> 50.9 | G43: ='[3]2015_Tables-2'!E740 -> 5.7 | H43: ='[3]2015_Tables-2'!F740 -> 2.1 | I43: ='[3]2015_Tables-2'!G740 -> 9.4 | J43: ='[3]2015_Tables-2'!H740 -> 0.1
B44: Niamina West | C44: ='[3]2015_Tables-2'!I674 -> 7262 | D44: ='[3]2015_Tables-2'!B741 -> 10.4 | E44: ='[3]2015_Tables-2'!C741 -> 13.6 | F44: ='[3]2015_Tables-2'!D741 -> 48.3 | G44: ='[3]2015_Tables-2'!E741 -> 7.8 | H44: ='[3]2015_Tables-2'!F741 -> 3.1 | I44: ='[3]2015_Tables-2'!G741 -> 16.4 | J44: ='[3]2015_Tables-2'!H741 -> 0.4
B45: Niamina East | C45: ='[3]2015_Tables-2'!I675 -> 24754 | D45: ='[3]2015_Tables-2'!B742 -> 10.2 | E45: ='[3]2015_Tables-2'!C742 -> 14.4 | F45: ='[3]2015_Tables-2'!D742 -> 46.6 | G45: ='[3]2015_Tables-2'!E742 -> 7.1 | H45: ='[3]2015_Tables-2'!F742 -> 3.5 | I45: ='[3]2015_Tables-2'!G742 -> 18 | J45: ='[3]2015_Tables-2'!H742 -> 0.2
B46: Lower Fuladu West | C46: ='[3]2015_Tables-2'!I676 -> 40481 | D46: ='[3]2015_Tables-2'!B743 -> 9.2 | E46: ='[3]2015_Tables-2'!C743 -> 11.4 | F46: ='[3]2015_Tables-2'!D743 -> 43.3 | G46: ='[3]2015_Tables-2'!E743 -> 9.3 | H46: ='[3]2015_Tables-2'!F743 -> 2.6 | I46: ='[3]2015_Tables-2'!G743 -> 23.5 | J46: ='[3]2015_Tables-2'!H743 -> 0.7
B47: Upper Fuladu West | C47: ='[3]2015_Tables-2'!I677 -> 44796 | D47: ='[3]2015_Tables-2'!B744 -> 13.2 | E47: ='[3]2015_Tables-2'!C744 -> 14.1 | F47: ='[3]2015_Tables-2'!D744 -> 49.7 | G47: ='[3]2015_Tables-2'!E744 -> 8.7 | H47: ='[3]2015_Tables-2'!F744 -> 1.9 | I47: ='[3]2015_Tables-2'!G744 -> 11.8 | J47: ='[3]2015_Tables-2'!H744 -> 0.6
B48: Janjanbureh | C48: ='[3]2015_Tables-2'!I678 -> 3853 | D48: ='[3]2015_Tables-2'!B745 -> 16.9 | E48: ='[3]2015_Tables-2'!C745 -> 9.9 | F48: ='[3]2015_Tables-2'!D745 -> 39 | G48: ='[3]2015_Tables-2'!E745 -> 14.2 | H48: ='[3]2015_Tables-2'!F745 -> 1.2 | I48: ='[3]2015_Tables-2'!G745 -> 16.5 | J48: ='[3]2015_Tables-2'!H745 -> 2.3
A49: Basse | C49: ='[3]2015_Tables-2'!I638 -> 243791 | D49: ='[3]2015_Tables-2'!B705 -> 14.2 | E49: ='[3]2015_Tables-2'!C705 -> 16.4 | F49: ='[3]2015_Tables-2'!D705 -> 52 | G49: ='[3]2015_Tables-2'!E705 -> 4.1 | H49: ='[3]2015_Tables-2'!F705 -> 2.9 | I49: ='[3]2015_Tables-2'!G705 -> 10 | J49: ='[3]2015_Tables-2'!H705 -> 0.4
B50: Jimara | C50: ='[3]2015_Tables-2'!I679 -> 44665 | D50: ='[3]2015_Tables-2'!B746 -> 14 | E50: ='[3]2015_Tables-2'!C746 -> 18.2 | F50: ='[3]2015_Tables-2'!D746 -> 55.1 | G50: ='[3]2015_Tables-2'!E746 -> 2.8 | H50: ='[3]2015_Tables-2'!F746 -> 3 | I50: ='[3]2015_Tables-2'!G746 -> 6.8 | J50: ='[3]2015_Tables-2'!H746 -> 0
B51: Basse | C51: ='[3]2015_Tables-2'!I680 -> 50462 | D51: ='[3]2015_Tables-2'!B747 -> 19.6 | E51: ='[3]2015_Tables-2'!C747 -> 17.4 | F51: ='[3]2015_Tables-2'!D747 -> 51 | G51: ='[3]2015_Tables-2'!E747 -> 2.7 | H51: ='[3]2015_Tables-2'!F747 -> 2.8 | I51: ='[3]2015_Tables-2'!G747 -> 6.5 | J51: ='[3]2015_Tables-2'!H747 -> 0.1
B52: Tumana | C52: ='[3]2015_Tables-2'!I681 -> 38237 | D52: ='[3]2015_Tables-2'!B748 -> 13.6 | E52: ='[3]2015_Tables-2'!C748 -> 17.9 | F52: ='[3]2015_Tables-2'!D748 -> 59.5 | G52: ='[3]2015_Tables-2'!E748 -> 2.6 | H52: ='[3]2015_Tables-2'!F748 -> 2.9 | I52: ='[3]2015_Tables-2'!G748 -> 2.9 | J52: ='[3]2015_Tables-2'!H748 -> 0.6
B53: Kantora | C53: ='[3]2015_Tables-2'!I682 -> 39416 | D53: ='[3]2015_Tables-2'!B749 -> 12.3 | E53: ='[3]2015_Tables-2'!C749 -> 16.4 | F53: ='[3]2015_Tables-2'!D749 -> 48.6 | G53: ='[3]2015_Tables-2'!E749 -> 6.2 | H53: ='[3]2015_Tables-2'!F749 -> 3.5 | I53: ='[3]2015_Tables-2'!G749 -> 12.2 | J53: ='[3]2015_Tables-2'!H749 -> 0.7
B54: Wuli West | C54: ='[3]2015_Tables-2'!I683 -> 22431 | D54: ='[3]2015_Tables-2'!B750 -> 11.6 | E54: ='[3]2015_Tables-2'!C750 -> 13.8 | F54: ='[3]2015_Tables-2'!D750 -> 48.4 | G54: ='[3]2015_Tables-2'!E750 -> 5.7 | H54: ='[3]2015_Tables-2'!F750 -> 2.2 | I54: ='[3]2015_Tables-2'!G750 -> 17.6 | J54: ='[3]2015_Tables-2'!H750 -> 0.7
B55: Wuli East | C55: ='[3]2015_Tables-2'!I684 -> 24266 | D55: ='[3]2015_Tables-2'!B751 -> 12.4 | E55: ='[3]2015_Tables-2'!C751 -> 14 | F55: ='[3]2015_Tables-2'!D751 -> 50.9 | G55: ='[3]2015_Tables-2'!E751 -> 4.7 | H55: ='[3]2015_Tables-2'!F751 -> 3.3 | I55: ='[3]2015_Tables-2'!G751 -> 14.6 | J55: ='[3]2015_Tables-2'!H751 -> 0.2
B56: Sandu | C56: ='[3]2015_Tables-2'!I685 -> 24314 | D56: ='[3]2015_Tables-2'!B752 -> 11.8 | E56: ='[3]2015_Tables-2'!C752 -> 13.4 | F56: ='[3]2015_Tables-2'!D752 -> 46.7 | G56: ='[3]2015_Tables-2'!E752 -> 6.4 | H56: ='[3]2015_Tables-2'!F752 -> 2.5 | I56: ='[3]2015_Tables-2'!G752 -> 18.8 | J56: ='[3]2015_Tables-2'!H752 -> 0.5
B58: Child includes children by birth or step-chidlren
B59: Parents include bilogical parent/step-parent/parents-in-law
B60: Other relatives include brother/ sister, niece/nephew, son/daughter-inlaw, other relatives.

Sheet Tab2.7
A1: Table 2.7
A2: Distribution of Population (12 years and above) by Marital Status and District
C3: Count | D3: Married | I3: Never married | J3: Divorced/ separated | K3: Widowed
D4: Mono-gamous | E4: Polygamous
E5: Total | F5: 2 | G5: 3 | H5: 4+
A6: THE GAMBIA | C6: ='[3]2015_Tables-2'!I827 -> 1214638 | D6: ='[3]2015_Tables-2'!B894 -> 35.1 | E6: =SUM(F6:H6) -> 17 | F6: ='[3]2015_Tables-2'!C894 -> 12.8 | G6: ='[3]2015_Tables-2'!D894 -> 3.2 | H6: ='[3]2015_Tables-2'!E894 -> 1 | I6: ='[3]2015_Tables-2'!F894 -> 42.8 | J6: ='[3]2015_Tables-2'!G894 -> 1.6 | K6: ='[3]2015_Tables-2'!H894 -> 3.5
B7: Urban | C7: ='[3]2015_Tables-2'!I825 -> 706038 | D7: ='[3]2015_Tables-2'!B892 -> 36.9 | E7: =SUM(F7:H7) -> 11.6 | F7: ='[3]2015_Tables-2'!C892 -> 9 | G7: ='[3]2015_Tables-2'!D892 -> 2 | H7: ='[3]2015_Tables-2'!E892 -> 0.6 | I7: ='[3]2015_Tables-2'!F892 -> 46.2 | J7: ='[3]2015_Tables-2'!G892 -> 2.2 | K7: ='[3]2015_Tables-2'!H892 -> 3.1
B8: Rural | C8: ='[3]2015_Tables-2'!I826 -> 508600 | D8: ='[3]2015_Tables-2'!B893 -> 32.5 | E8: 24.5 | F8: ='[3]2015_Tables-2'!C893 -> 18 | G8: ='[3]2015_Tables-2'!D893 -> 5 | H8: ='[3]2015_Tables-2'!E893 -> 1.5 | I8: ='[3]2015_Tables-2'!F893 -> 38.2 | J8: ='[3]2015_Tables-2'!G893 -> 0.9 | K8: ='[3]2015_Tables-2'!H893 -> 4
A9: Banjul | C9: ='[3]2015_Tables-2'!I765 -> 22580 | D9: ='[3]2015_Tables-2'!B832 -> 37.4 | E9: 5 | F9: ='[3]2015_Tables-2'!C832 -> 4.7 | G9: ='[3]2015_Tables-2'!D832 -> 0.2 | H9: ='[3]2015_Tables-2'!E832 -> 0.1 | I9: ='[3]2015_Tables-2'!F832 -> 47.1 | J9: ='[3]2015_Tables-2'!G832 -> 4.8 | K9: ='[3]2015_Tables-2'!H832 -> 5.7
B10: Urban | C10: ='[3]2015_Tables-2'!I778 -> 22580 | D10: ='[3]2015_Tables-2'!B845 -> 37.4 | E10: 5 | F10: ='[3]2015_Tables-2'!C845 -> 4.7 | G10: ='[3]2015_Tables-2'!D845 -> 0.2 | H10: ='[3]2015_Tables-2'!E845 -> 0.1 | I10: ='[3]2015_Tables-2'!F845 -> 47.1 | J10: ='[3]2015_Tables-2'!G845 -> 4.8 | K10: ='[3]2015_Tables-2'!H845 -> 5.7
A11: Kanifing | C11: ='[3]2015_Tables-2'!I766 -> 264727 | D11: ='[3]2015_Tables-2'!B833 -> 38.6 | E11: 9.2 | F11: ='[3]2015_Tables-2'!C833 -> 7.5 | G11: ='[3]2015_Tables-2'!D833 -> 1.2 | H11: ='[3]2015_Tables-2'!E833 -> 0.5 | I11: ='[3]2015_Tables-2'!F833 -> 46.9 | J11: ='[3]2015_Tables-2'!G833 -> 3 | K11: ='[3]2015_Tables-2'!H833 -> 2.4
B12: Urban | C12: ='[3]2015_Tables-2'!I779 -> 264727 | D12: ='[3]2015_Tables-2'!B846 -> 38.6 | E12: 9.2 | F12: ='[3]2015_Tables-2'!C846 -> 7.5 | G12: ='[3]2015_Tables-2'!D846 -> 1.2 | H12: ='[3]2015_Tables-2'!E846 -> 0.5 | I12: ='[3]2015_Tables-2'!F846 -> 46.9 | J12: ='[3]2015_Tables-2'!G846 -> 3 | K12: ='[3]2015_Tables-2'!H846 -> 2.4
A13: Brikama | C13: ='[3]2015_Tables-2'!I767 -> 468592 | D13: ='[3]2015_Tables-2'!B834 -> 35.2 | E13: 13.4 | F13: ='[3]2015_Tables-2'!C834 -> 10.3 | G13: ='[3]2015_Tables-2'!D834 -> 2.4 | H13: ='[3]2015_Tables-2'!E834 -> 0.7 | I13: ='[3]2015_Tables-2'!F834 -> 46.6 | J13: ='[3]2015_Tables-2'!G834 -> 1.3 | K13: ='[3]2015_Tables-2'!H834 -> 3.4
B14: Kombo North | C14: ='[3]2015_Tables-2'!I780 -> 235856 | D14: ='[3]2015_Tables-2'!B847 -> 37.3 | E14: 10.6 | F14: ='[3]2015_Tables-2'!C847 -> 8.5 | G14: ='[3]2015_Tables-2'!D847 -> 1.6 | H14: ='[3]2015_Tables-2'!E847 -> 0.5 | I14: ='[3]2015_Tables-2'!F847 -> 47.5 | J14: ='[3]2015_Tables-2'!G847 -> 1.3 | K14: ='[3]2015_Tables-2'!H847 -> 3.2
B15: Kombo South | C15: ='[3]2015_Tables-2'!I781 -> 69654 | D15: ='[3]2015_Tables-2'!B848 -> 36.8 | E15: 15.7 | F15: ='[3]2015_Tables-2'!C848 -> 11.1 | G15: ='[3]2015_Tables-2'!D848 -> 3.2 | H15: ='[3]2015_Tables-2'!E848 -> 1.4 | I15: ='[3]2015_Tables-2'!F848 -> 43.5 | J15: ='[3]2015_Tables-2'!G848 -> 1.2 | K15: ='[3]2015_Tables-2'!H848 -> 2.8
B16: Kombo Central | C16: ='[3]2015_Tables-2'!I782 -> 96146 | D16: ='[3]2015_Tables-2'!B849 -> 30.4 | E16: 15.2 | F16: ='[3]2015_Tables-2'!C849 -> 11.6 | G16: ='[3]2015_Tables-2'!D849 -> 3 | H16: ='[3]2015_Tables-2'!E849 -> 0.6 | I16: ='[3]2015_Tables-2'!F849 -> 49.7 | J16: ='[3]2015_Tables-2'!G849 -> 1.6 | K16: ='[3]2015_Tables-2'!H849 -> 3.2
B17: Kombo East | C17: ='[3]2015_Tables-2'!I783 -> 27619 | D17: ='[3]2015_Tables-2'!B850 -> 35.9 | E17: 17.6 | F17: ='[3]2015_Tables-2'!C850 -> 13.3 | G17: ='[3]2015_Tables-2'!D850 -> 3.3 | H17: ='[3]2015_Tables-2'!E850 -> 1 | I17: ='[3]2015_Tables-2'!F850 -> 41.7 | J17: ='[3]2015_Tables-2'!G850 -> 1.4 | K17: ='[3]2015_Tables-2'!H850 -> 3.4
B18: Foni Brefet | C18: ='[3]2015_Tables-2'!I784 -> 9329 | D18: ='[3]2015_Tables-2'!B851 -> 34 | E18: 17 | F18: ='[3]2015_Tables-2'!C851 -> 14 | G18: ='[3]2015_Tables-2'!D851 -> 1.8 | H18: ='[3]2015_Tables-2'!E851 -> 1.2 | I18: ='[3]2015_Tables-2'!F851 -> 42.7 | J18: ='[3]2015_Tables-2'!G851 -> 0.7 | K18: ='[3]2015_Tables-2'!H851 -> 5.7
B19: Foni Bintang | C19: ='[3]2015_Tables-2'!I785 -> 11243 | D19: ='[3]2015_Tables-2'!B852 -> 30.5 | E19: 21.4 | F19: ='[3]2015_Tables-2'!C852 -> 15.8 | G19: ='[3]2015_Tables-2'!D852 -> 4.3 | H19: ='[3]2015_Tables-2'!E852 -> 1.3 | I19: ='[3]2015_Tables-2'!F852 -> 42.1 | J19: ='[3]2015_Tables-2'!G852 -> 1 | K19: ='[3]2015_Tables-2'!H852 -> 5
B20: Foni Kansalla | C20: ='[3]2015_Tables-2'!I786 -> 9358 | D20: ='[3]2015_Tables-2'!B853 -> 29.3 | E20: 19.4 | F20: ='[3]2015_Tables-2'!C853 -> 13.8 | G20: ='[3]2015_Tables-2'!D853 -> 4.7 | H20: ='[3]2015_Tables-2'!E853 -> 0.9 | I20: ='[3]2015_Tables-2'!F853 -> 43.2 | J20: ='[3]2015_Tables-2'!G853 -> 0.8 | K20: ='[3]2015_Tables-2'!H853 -> 7.3
B21: Foni Bundali | C21: ='[3]2015_Tables-2'!I787 -> 4753 | D21: ='[3]2015_Tables-2'!B854 -> 30.5 | E21: 20.4 | F21: ='[3]2015_Tables-2'!C854 -> 15.3 | G21: ='[3]2015_Tables-2'!D854 -> 4.4 | H21: ='[3]2015_Tables-2'!E854 -> 0.7 | I21: ='[3]2015_Tables-2'!F854 -> 45.2 | J21: ='[3]2015_Tables-2'!G854 -> 0.7 | K21: ='[3]2015_Tables-2'!H854 -> 3.2
B22: Foni Jarrol | C22: ='[3]2015_Tables-2'!I788 -> 4634 | D22: ='[3]2015_Tables-2'!B855 -> 30.5 | E22: 19.3 | F22: ='[3]2015_Tables-2'!C855 -> 15.2 | G22: ='[3]2015_Tables-2'!D855 -> 3 | H22: ='[3]2015_Tables-2'!E855 -> 1.1 | I22: ='[3]2015_Tables-2'!F855 -> 43.1 | J22: ='[3]2015_Tables-2'!G855 -> 1.2 | K22: ='[3]2015_Tables-2'!H855 -> 5.8
A23: Mansakonko | C23: ='[3]2015_Tables-2'!I768 -> 50141 | D23: ='[3]2015_Tables-2'!B835 -> 31.6 | E23: 25.8 | F23: ='[3]2015_Tables-2'!C835 -> 18 | G23: ='[3]2015_Tables-2'!D835 -> 5.9 | H23: ='[3]2015_Tables-2'!E835 -> 1.9 | I23: ='[3]2015_Tables-2'!F835 -> 37.2 | J23: ='[3]2015_Tables-2'!G835 -> 1 | K23: ='[3]2015_Tables-2'!H835 -> 4.4
B24: Kiang West | C24: ='[3]2015_Tables-2'!I789 -> 9426 | D24: ='[3]2015_Tables-2'!B856 -> 28.3 | E24: 23.8 | F24: ='[3]2015_Tables-2'!C856 -> 15.6 | G24: ='[3]2015_Tables-2'!D856 -> 5.6 | H24: ='[3]2015_Tables-2'!E856 -> 2.6 | I24: ='[3]2015_Tables-2'!F856 -> 42.8 | J24: ='[3]2015_Tables-2'!G856 -> 0.9 | K24: ='[3]2015_Tables-2'!H856 -> 4.2
B25: Kiang Cental | C25: ='[3]2015_Tables-2'!I790 -> 5217 | D25: ='[3]2015_Tables-2'!B857 -> 29.1 | E25: 28.3 | F25: ='[3]2015_Tables-2'!C857 -> 20 | G25: ='[3]2015_Tables-2'!D857 -> 5.3 | H25: ='[3]2015_Tables-2'!E857 -> 3 | I25: ='[3]2015_Tables-2'!F857 -> 37 | J25: ='[3]2015_Tables-2'!G857 -> 0.9 | K25: ='[3]2015_Tables-2'!H857 -> 4.7
B26: Kiang East | C26: ='[3]2015_Tables-2'!I791 -> 4244 | D26: ='[3]2015_Tables-2'!B858 -> 30.4 | E26: 28.8 | F26: ='[3]2015_Tables-2'!C858 -> 19.2 | G26: ='[3]2015_Tables-2'!D858 -> 7.8 | H26: ='[3]2015_Tables-2'!E858 -> 1.8 | I26: ='[3]2015_Tables-2'!F858 -> 34.2 | J26: ='[3]2015_Tables-2'!G858 -> 1.2 | K26: ='[3]2015_Tables-2'!H858 -> 5.3
B27: Jarra West | C27: ='[3]2015_Tables-2'!I792 -> 16072 | D27: ='[3]2015_Tables-2'!B859 -> 35.3 | E27: 22.6 | F27: ='[3]2015_Tables-2'!C859 -> 16.8 | G27: ='[3]2015_Tables-2'!D859 -> 5.1 | H27: ='[3]2015_Tables-2'!E859 -> 0.7 | I27: ='[3]2015_Tables-2'!F859 -> 36.2 | J27: ='[3]2015_Tables-2'!G859 -> 1.2 | K27: ='[3]2015_Tables-2'!H859 -> 4.8
B28: Jarra Central | C28: ='[3]2015_Tables-2'!I793 -> 5026 | D28: ='[3]2015_Tables-2'!B860 -> 35.8 | E28: 25.8 | F28: ='[3]2015_Tables-2'!C860 -> 20.9 | G28: ='[3]2015_Tables-2'!D860 -> 4.7 | H28: ='[3]2015_Tables-2'!E860 -> 0.2 | I28: ='[3]2015_Tables-2'!F860 -> 34.1 | J28: ='[3]2015_Tables-2'!G860 -> 0.6 | K28: ='[3]2015_Tables-2'!H860 -> 3.9
B29: Jarra East | C29: ='[3]2015_Tables-2'!I794 -> 10157 | D29: ='[3]2015_Tables-2'!B861 -> 28.7 | E29: 30 | F29: ='[3]2015_Tables-2'!C861 -> 19.2 | G29: ='[3]2015_Tables-2'!D861 -> 7.6 | H29: ='[3]2015_Tables-2'!E861 -> 3.2 | I29: ='[3]2015_Tables-2'!F861 -> 36.5 | J29: ='[3]2015_Tables-2'!G861 -> 0.8 | K29: ='[3]2015_Tables-2'!H861 -> 4
A30: Kerewan | C30: ='[3]2015_Tables-2'!I769 -> 136630 | D30: ='[3]2015_Tables-2'!B836 -> 32.8 | E30: 21.4 | F30: ='[3]2015_Tables-2'!C836 -> 16 | G30: ='[3]2015_Tables-2'!D836 -> 4 | H30: ='[3]2015_Tables-2'!E836 -> 1.4 | I30: ='[3]2015_Tables-2'!F836 -> 40.6 | J30: ='[3]2015_Tables-2'!G836 -> 1 | K30: ='[3]2015_Tables-2'!H836 -> 4.2
B31: Lower Niumi | C31: ='[3]2015_Tables-2'!I795 -> 36863 | D31: ='[3]2015_Tables-2'!B862 -> 34.9 | E31: 14.7 | F31: ='[3]2015_Tables-2'!C862 -> 11.4 | G31: ='[3]2015_Tables-2'!D862 -> 2.6 | H31: ='[3]2015_Tables-2'!E862 -> 0.7 | I31: ='[3]2015_Tables-2'!F862 -> 44.3 | J31: ='[3]2015_Tables-2'!G862 -> 1.7 | K31: ='[3]2015_Tables-2'!H862 -> 4.3
B32: Upper Niumi | C32: ='[3]2015_Tables-2'!I796 -> 18962 | D32: ='[3]2015_Tables-2'!B863 -> 37.5 | E32: 19.3 | F32: ='[3]2015_Tables-2'!C863 -> 14.6 | G32: ='[3]2015_Tables-2'!D863 -> 2.1 | H32: ='[3]2015_Tables-2'!E863 -> 2.6 | I32: ='[3]2015_Tables-2'!F863 -> 37.1 | J32: ='[3]2015_Tables-2'!G863 -> 0.9 | K32: ='[3]2015_Tables-2'!H863 -> 5.1
B33: Jokadu | C33: ='[3]2015_Tables-2'!I797 -> 13507 | D33: ='[3]2015_Tables-2'!B864 -> 33 | E33: 20.8 | F33: ='[3]2015_Tables-2'!C864 -> 16.6 | G33: ='[3]2015_Tables-2'!D864 -> 2.8 | H33: ='[3]2015_Tables-2'!E864 -> 1.4 | I33: ='[3]2015_Tables-2'!F864 -> 40.6 | J33: ='[3]2015_Tables-2'!G864 -> 0.8 | K33: ='[3]2015_Tables-2'!H864 -> 4.7
B34: Lower Badibu | C34: ='[3]2015_Tables-2'!I798 -> 10941 | D34: ='[3]2015_Tables-2'!B865 -> 28.2 | E34: 25.4 | F34: ='[3]2015_Tables-2'!C865 -> 16.9 | G34: ='[3]2015_Tables-2'!D865 -> 6.3 | H34: ='[3]2015_Tables-2'!E865 -> 2.2 | I34: ='[3]2015_Tables-2'!F865 -> 41.4 | J34: ='[3]2015_Tables-2'!G865 -> 0.9 | K34: ='[3]2015_Tables-2'!H865 -> 4.1
B35: Central Badibu | C35: ='[3]2015_Tables-2'!I799 -> 11808 | D35: ='[3]2015_Tables-2'!B866 -> 31.7 | E35: 25.6 | F35: ='[3]2015_Tables-2'!C866 -> 20.6 | G35: ='[3]2015_Tables-2'!D866 -> 3.8 | H35: ='[3]2015_Tables-2'!E866 -> 1.2 | I35: ='[3]2015_Tables-2'!F866 -> 38.2 | J35: ='[3]2015_Tables-2'!G866 -> 0.7 | K35: ='[3]2015_Tables-2'!H866 -> 3.8
B36: Illiasa | C36: ='[3]2015_Tables-2'!I800 -> 30590 | D36: ='[3]2015_Tables-2'!B867 -> 29.5 | E36: 25 | F36: ='[3]2015_Tables-2'!C867 -> 18.1 | G36: ='[3]2015_Tables-2'!D867 -> 5.7 | H36: ='[3]2015_Tables-2'!E867 -> 1.2 | I36: ='[3]2015_Tables-2'!F867 -> 40.9 | J36: ='[3]2015_Tables-2'!G867 -> 0.8 | K36: ='[3]2015_Tables-2'!H867 -> 3.8
B37: Sabach Sanjal | C37: ='[3]2015_Tables-2'!I801 -> 13959 | D37: ='[3]2015_Tables-2'!B868 -> 32.7 | E37: 27.4 | F37: ='[3]2015_Tables-2'!C868 -> 19.8 | G37: ='[3]2015_Tables-2'!D868 -> 6.4 | H37: ='[3]2015_Tables-2'!E868 -> 1.2 | I37: ='[3]2015_Tables-2'!F868 -> 36.2 | J37: ='[3]2015_Tables-2'!G868 -> 0.5 | K37: ='[3]2015_Tables-2'!H868 -> 3.2
A38: Kuntaur | C38: ='[3]2015_Tables-2'!I770 -> 56465 | D38: ='[3]2015_Tables-2'!B837 -> 32.2 | E38: 29 | F38: ='[3]2015_Tables-2'!C837 -> 22.5 | G38: ='[3]2015_Tables-2'!D837 -> 5 | H38: ='[3]2015_Tables-2'!E837 -> 1.5 | I38: ='[3]2015_Tables-2'!F837 -> 34.4 | J38: ='[3]2015_Tables-2'!G837 -> 0.8 | K38: ='[3]2015_Tables-2'!H837 -> 3.6
B39: Lower Saloum | C39: ='[3]2015_Tables-2'!I802 -> 9647 | D39: ='[3]2015_Tables-2'!B869 -> 31.6 | E39: 27.5 | F39: ='[3]2015_Tables-2'!C869 -> 20.3 | G39: ='[3]2015_Tables-2'!D869 -> 5.6 | H39: ='[3]2015_Tables-2'!E869 -> 1.6 | I39: ='[3]2015_Tables-2'!F869 -> 36.8 | J39: ='[3]2015_Tables-2'!G869 -> 1 | K39: ='[3]2015_Tables-2'!H869 -> 3.1
B40: Upper Saloum | C40: ='[3]2015_Tables-2'!I803 -> 10265 | D40: ='[3]2015_Tables-2'!B870 -> 31.7 | E40: 34.6 | F40: ='[3]2015_Tables-2'!C870 -> 26.7 | G40: ='[3]2015_Tables-2'!D870 -> 6.6 | H40: ='[3]2015_Tables-2'!E870 -> 1.3 | I40: ='[3]2015_Tables-2'!F870 -> 30.2 | J40: ='[3]2015_Tables-2'!G870 -> 0.7 | K40: ='[3]2015_Tables-2'!H870 -> 2.8
B41: Nianija | C41: ='[3]2015_Tables-2'!I804 -> 5844 | D41: ='[3]2015_Tables-2'!B871 -> 32.6 | E41: 25.9 | F41: ='[3]2015_Tables-2'!C871 -> 18.5 | G41: ='[3]2015_Tables-2'!D871 -> 6 | H41: ='[3]2015_Tables-2'!E871 -> 1.4 | I41: ='[3]2015_Tables-2'!F871 -> 38.3 | J41: ='[3]2015_Tables-2'!G871 -> 0.4 | K41: ='[3]2015_Tables-2'!H871 -> 2.8
B42: Niani | C42: ='[3]2015_Tables-2'!I805 -> 16274 | D42: ='[3]2015_Tables-2'!B872 -> 35.2 | E42: 25.9 | F42: ='[3]2015_Tables-2'!C872 -> 20.6 | G42: ='[3]2015_Tables-2'!D872 -> 4 | H42: ='[3]2015_Tables-2'!E872 -> 1.3 | I42: ='[3]2015_Tables-2'!F872 -> 34.1 | J42: ='[3]2015_Tables-2'!G872 -> 0.8 | K42: ='[3]2015_Tables-2'!H872 -> 3.9
B43: Sami | C43: ='[3]2015_Tables-2'!I806 -> 14436 | D43: ='[3]2015_Tables-2'!B873 -> 29.5 | E43: 30.2 | F43: ='[3]2015_Tables-2'!C873 -> 24.5 | G43: ='[3]2015_Tables-2'!D873 -> 4 | H43: ='[3]2015_Tables-2'!E873 -> 1.7 | I43: ='[3]2015_Tables-2'!F873 -> 34.7 | J43: ='[3]2015_Tables-2'!G873 -> 0.9 | K43: ='[3]2015_Tables-2'!H873 -> 4.6 | L43: cont'd
A44: Janjanbureh | C44: ='[3]2015_Tables-2'!I771 -> 74907 | D44: ='[3]2015_Tables-2'!B838 -> 32.5 | E44: 25.9 | F44: ='[3]2015_Tables-2'!C838 -> 18.7 | G44: ='[3]2015_Tables-2'!D838 -> 5.9 | H44: ='[3]2015_Tables-2'!E838 -> 1.3 | I44: ='[3]2015_Tables-2'!F838 -> 36.2 | J44: ='[3]2015_Tables-2'!G838 -> 1 | K44: ='[3]2015_Tables-2'!H838 -> 4.5
B45: Niamina Dankunku | C45: ='[3]2015_Tables-2'!I807 -> 3849 | D45: ='[3]2015_Tables-2'!B874 -> 36.3 | E45: 24.3 | F45: ='[3]2015_Tables-2'!C874 -> 17.1 | G45: ='[3]2015_Tables-2'!D874 -> 4.8 | H45: ='[3]2015_Tables-2'!E874 -> 2.4 | I45: ='[3]2015_Tables-2'!F874 -> 35.2 | J45: ='[3]2015_Tables-2'!G874 -> 0.7 | K45: ='[3]2015_Tables-2'!H874 -> 3.5
B46: Niamina West | C46: ='[3]2015_Tables-2'!I808 -> 4228 | D46: ='[3]2015_Tables-2'!B875 -> 31.9 | E46: 24.9 | F46: ='[3]2015_Tables-2'!C875 -> 19.3 | G46: ='[3]2015_Tables-2'!D875 -> 4.1 | H46: ='[3]2015_Tables-2'!E875 -> 1.5 | I46: ='[3]2015_Tables-2'!F875 -> 37.6 | J46: ='[3]2015_Tables-2'!G875 -> 0.4 | K46: ='[3]2015_Tables-2'!H875 -> 5.1
B47: Niamina East | C47: ='[3]2015_Tables-2'!I809 -> 14138 | D47: ='[3]2015_Tables-2'!B876 -> 30.7 | E47: 29.7 | F47: ='[3]2015_Tables-2'!C876 -> 20.8 | G47: ='[3]2015_Tables-2'!D876 -> 7 | H47: ='[3]2015_Tables-2'!E876 -> 1.9 | I47: ='[3]2015_Tables-2'!F876 -> 33.7 | J47: ='[3]2015_Tables-2'!G876 -> 1.1 | K47: ='[3]2015_Tables-2'!H876 -> 4.9
B48: Lower Fuladu West | C48: ='[3]2015_Tables-2'!I810 -> 23693 | D48: ='[3]2015_Tables-2'!B877 -> 28.9 | E48: 27.3 | F48: ='[3]2015_Tables-2'!C877 -> 19.2 | G48: ='[3]2015_Tables-2'!D877 -> 6.9 | H48: ='[3]2015_Tables-2'!E877 -> 1.2 | I48: ='[3]2015_Tables-2'!F877 -> 37.9 | J48: ='[3]2015_Tables-2'!G877 -> 0.9 | K48: ='[3]2015_Tables-2'!H877 -> 5.1
B49: Upper Fuladu West | C49: ='[3]2015_Tables-2'!I811 -> 26432 | D49: ='[3]2015_Tables-2'!B878 -> 36.2 | E49: 24 | F49: ='[3]2015_Tables-2'!C878 -> 17.8 | G49: ='[3]2015_Tables-2'!D878 -> 5.2 | H49: ='[3]2015_Tables-2'!E878 -> 1 | I49: ='[3]2015_Tables-2'!F878 -> 35.1 | J49: ='[3]2015_Tables-2'!G878 -> 1.1 | K49: ='[3]2015_Tables-2'!H878 -> 3.6
B50: Janjanbureh | C50: ='[3]2015_Tables-2'!I812 -> 2567 | D50: ='[3]2015_Tables-2'!B879 -> 32.5 | E50: 15.7 | F50: ='[3]2015_Tables-2'!C879 -> 12.6 | G50: ='[3]2015_Tables-2'!D879 -> 2.7 | H50: ='[3]2015_Tables-2'!E879 -> 0.4 | I50: ='[3]2015_Tables-2'!F879 -> 43.4 | J50: ='[3]2015_Tables-2'!G879 -> 1.9 | K50: ='[3]2015_Tables-2'!H879 -> 6.4
A51: Basse | C51: ='[3]2015_Tables-2'!I772 -> 140597 | D51: ='[3]2015_Tables-2'!B839 -> 33.6 | E51: 28.4 | F51: ='[3]2015_Tables-2'!C839 -> 20.4 | G51: ='[3]2015_Tables-2'!D839 -> 6.5 | H51: ='[3]2015_Tables-2'!E839 -> 1.5 | I51: ='[3]2015_Tables-2'!F839 -> 33 | J51: ='[3]2015_Tables-2'!G839 -> 1 | K51: ='[3]2015_Tables-2'!H839 -> 3.9
B52: Jimara | C52: ='[3]2015_Tables-2'!I813 -> 25970 | D52: ='[3]2015_Tables-2'!B880 -> 26.5 | E52: 33.8 | F52: ='[3]2015_Tables-2'!C880 -> 23.5 | G52: ='[3]2015_Tables-2'!D880 -> 9.1 | H52: ='[3]2015_Tables-2'!E880 -> 1.2 | I52: ='[3]2015_Tables-2'!F880 -> 34.7 | J52: ='[3]2015_Tables-2'!G880 -> 0.9 | K52: ='[3]2015_Tables-2'!H880 -> 4.1
B53: Basse | C53: ='[3]2015_Tables-2'!I814 -> 31260 | D53: ='[3]2015_Tables-2'!B881 -> 36.3 | E53: 24.3 | F53: ='[3]2015_Tables-2'!C881 -> 18.7 | G53: ='[3]2015_Tables-2'!D881 -> 5 | H53: ='[3]2015_Tables-2'!E881 -> 0.6 | I53: ='[3]2015_Tables-2'!F881 -> 34.2 | J53: ='[3]2015_Tables-2'!G881 -> 1.5 | K53: ='[3]2015_Tables-2'!H881 -> 3.8
B54: Tumana | C54: ='[3]2015_Tables-2'!I815 -> 21374 | D54: ='[3]2015_Tables-2'!B882 -> 31.3 | E54: 31 | F54: ='[3]2015_Tables-2'!C882 -> 21.8 | G54: ='[3]2015_Tables-2'!D882 -> 6.7 | H54: ='[3]2015_Tables-2'!E882 -> 2.5 | I54: ='[3]2015_Tables-2'!F882 -> 32.7 | J54: ='[3]2015_Tables-2'!G882 -> 0.7 | K54: ='[3]2015_Tables-2'!H882 -> 4.2
B55: Kantora | C55: ='[3]2015_Tables-2'!I816 -> 22225 | D55: ='[3]2015_Tables-2'!B883 -> 30 | E55: 36.4 | F55: ='[3]2015_Tables-2'!C883 -> 23.1 | G55: ='[3]2015_Tables-2'!D883 -> 10.3 | H55: ='[3]2015_Tables-2'!E883 -> 3 | I55: ='[3]2015_Tables-2'!F883 -> 29.4 | J55: ='[3]2015_Tables-2'!G883 -> 1 | K55: ='[3]2015_Tables-2'!H883 -> 3.3
B56: Wuli West | C56: ='[3]2015_Tables-2'!I817 -> 12775 | D56: ='[3]2015_Tables-2'!B884 -> 37.7 | E56: 24.1 | F56: ='[3]2015_Tables-2'!C884 -> 17.6 | G56: ='[3]2015_Tables-2'!D884 -> 5 | H56: ='[3]2015_Tables-2'!E884 -> 1.5 | I56: ='[3]2015_Tables-2'!F884 -> 33.9 | J56: ='[3]2015_Tables-2'!G884 -> 1 | K56: ='[3]2015_Tables-2'!H884 -> 3.4
B57: Wuli East | C57: ='[3]2015_Tables-2'!I818 -> 13633 | D57: ='[3]2015_Tables-2'!B885 -> 41.2 | E57: 19.2 | F57: ='[3]2015_Tables-2'!C885 -> 14.9 | G57: ='[3]2015_Tables-2'!D885 -> 3 | H57: ='[3]2015_Tables-2'!E885 -> 1.3 | I57: ='[3]2015_Tables-2'!F885 -> 34 | J57: ='[3]2015_Tables-2'!G885 -> 0.8 | K57: ='[3]2015_Tables-2'!H885 -> 4.9
B58: Sandu | C58: ='[3]2015_Tables-2'!I819 -> 13360 | D58: ='[3]2015_Tables-2'!B886 -> 39.6 | E58: 24.4 | F58: ='[3]2015_Tables-2'!C886 -> 20.2 | G58: ='[3]2015_Tables-2'!D886 -> 3.5 | H58: ='[3]2015_Tables-2'!E886 -> 0.7 | I58: ='[3]2015_Tables-2'!F886 -> 31.9 | J58: ='[3]2015_Tables-2'!G886 -> 0.5 | K58: ='[3]2015_Tables-2'!H886 -> 3.6

Sheet Tab2.8
A1: Table 2.8
A2: Distribution of Population (12 years and above) by Marital Status, Sex and Broad Age-groups
C3: Count | D3: Married | I3: Never married | J3: Divorced/ separated | K3: Widowed
D4: Mono-gamous | E4: Polygamous
E5: Total | F5: 2 | G5: 3 | H5: 4+
A6: THE GAMBIA | C6: ='[3]2015_Tables-2'!I1641 -> 1214638 | D6: ='[3]2015_Tables-2'!B1658 -> 35.1 | E6: =SUM(F6:H6) -> 17 | F6: ='[3]2015_Tables-2'!C1658 -> 12.8 | G6: ='[3]2015_Tables-2'!D1658 -> 3.2 | H6: ='[3]2015_Tables-2'!E1658 -> 1 | I6: ='[3]2015_Tables-2'!F1658 -> 42.8 | J6: ='[3]2015_Tables-2'!G1658 -> 1.6 | K6: ='[3]2015_Tables-2'!H1658 -> 3.5
B7: 12 - 14 years | C7: ='[3]2015_Tables-2'!I1629 -> 129922 | D7: ='[3]2015_Tables-2'!B1646 -> 0.7 | E7: =SUM(F7:H7) -> 0 | F7: ='[3]2015_Tables-2'!C1646 -> 0 | G7: ='[3]2015_Tables-2'!D1646 -> 0 | H7: ='[3]2015_Tables-2'!E1646 -> 0 | I7: ='[3]2015_Tables-2'!F1646 -> 99.2 | J7: ='[3]2015_Tables-2'!G1646 -> 0 | K7: ='[3]2015_Tables-2'!H1646 -> 0
B8: 15 - 19 years | C8: ='[3]2015_Tables-2'!I1630 -> 198367 | D8: ='[3]2015_Tables-2'!B1647 -> 8.6 | E8: 1.5 | F8: ='[3]2015_Tables-2'!C1647 -> 1.3 | G8: ='[3]2015_Tables-2'!D1647 -> 0.2 | H8: ='[3]2015_Tables-2'!E1647 -> 0 | I8: ='[3]2015_Tables-2'!F1647 -> 89.8 | J8: ='[3]2015_Tables-2'!G1647 -> 0.1 | K8: ='[3]2015_Tables-2'!H1647 -> 0.1
B9: 20 - 24 years | C9: ='[3]2015_Tables-2'!I1631 -> 180479 | D9: ='[3]2015_Tables-2'!B1648 -> 28.9 | E9: 5.7 | F9: ='[3]2015_Tables-2'!C1648 -> 5 | G9: ='[3]2015_Tables-2'!D1648 -> 0.6 | H9: ='[3]2015_Tables-2'!E1648 -> 0.1 | I9: ='[3]2015_Tables-2'!F1648 -> 64.4 | J9: ='[3]2015_Tables-2'!G1648 -> 0.9 | K9: ='[3]2015_Tables-2'!H1648 -> 0.1
B10: 25 - 29 years | C10: ='[3]2015_Tables-2'!I1632 -> 151669 | D10: ='[3]2015_Tables-2'!B1649 -> 48.4 | E10: 11.1 | F10: ='[3]2015_Tables-2'!C1649 -> 9.6 | G10: ='[3]2015_Tables-2'!D1649 -> 1.4 | H10: ='[3]2015_Tables-2'!E1649 -> 0.1 | I10: ='[3]2015_Tables-2'!F1649 -> 38.3 | J10: ='[3]2015_Tables-2'!G1649 -> 1.6 | K10: ='[3]2015_Tables-2'!H1649 -> 0.5
B11: 30 - 34 years | C11: ='[3]2015_Tables-2'!I1633 -> 127754 | D11: ='[3]2015_Tables-2'!B1650 -> 58.2 | E11: 19.6 | F11: ='[3]2015_Tables-2'!C1650 -> 16 | G11: ='[3]2015_Tables-2'!D1650 -> 3 | H11: ='[3]2015_Tables-2'!E1650 -> 0.6 | I11: ='[3]2015_Tables-2'!F1650 -> 18.7 | J11: ='[3]2015_Tables-2'!G1650 -> 2.6 | K11: ='[3]2015_Tables-2'!H1650 -> 0.9
B12: 35 - 39 years | C12: ='[3]2015_Tables-2'!I1634 -> 109161 | D12: ='[3]2015_Tables-2'!B1651 -> 60.3 | E12: 27.1 | F12: ='[3]2015_Tables-2'!C1651 -> 20.9 | G12: ='[3]2015_Tables-2'!D1651 -> 5 | H12: ='[3]2015_Tables-2'!E1651 -> 1.2 | I12: ='[3]2015_Tables-2'!F1651 -> 8.1 | J12: ='[3]2015_Tables-2'!G1651 -> 2.8 | K12: ='[3]2015_Tables-2'!H1651 -> 1.8
B13: 40 - 44 years | C13: ='[3]2015_Tables-2'!I1635 -> 81698 | D13: ='[3]2015_Tables-2'!B1652 -> 54.7 | E13: 34.8 | F13: ='[3]2015_Tables-2'!C1652 -> 27.1 | G13: ='[3]2015_Tables-2'!D1652 -> 6 | H13: ='[3]2015_Tables-2'!E1652 -> 1.7 | I13: ='[3]2015_Tables-2'!F1652 -> 3.5 | J13: ='[3]2015_Tables-2'!G1652 -> 3.9 | K13: ='[3]2015_Tables-2'!H1652 -> 3.1
B14: 45 - 49 years | C14: ='[3]2015_Tables-2'!I1636 -> 61757 | D14: ='[3]2015_Tables-2'!B1653 -> 53 | E14: 38.1 | F14: ='[3]2015_Tables-2'!C1653 -> 28.3 | G14: ='[3]2015_Tables-2'!D1653 -> 7.4 | H14: ='[3]2015_Tables-2'!E1653 -> 2.4 | I14: ='[3]2015_Tables-2'!F1653 -> 1.8 | J14: ='[3]2015_Tables-2'!G1653 -> 2.7 | K14: ='[3]2015_Tables-2'!H1653 -> 4.4
B15: 50 - 54 years | C15: ='[3]2015_Tables-2'!I1637 -> 52727 | D15: ='[3]2015_Tables-2'!B1654 -> 45.3 | E15: 41.7 | F15: ='[3]2015_Tables-2'!C1654 -> 30.3 | G15: ='[3]2015_Tables-2'!D1654 -> 8.1 | H15: ='[3]2015_Tables-2'!E1654 -> 3.3 | I15: ='[3]2015_Tables-2'!F1654 -> 1.1 | J15: ='[3]2015_Tables-2'!G1654 -> 2.4 | K15: ='[3]2015_Tables-2'!H1654 -> 9.5
B16: 55 - 59 years | C16: ='[3]2015_Tables-2'!I1638 -> 35759 | D16: ='[3]2015_Tables-2'!B1655 -> 39.4 | E16: 40.9 | F16: ='[3]2015_Tables-2'!C1655 -> 28 | G16: ='[3]2015_Tables-2'!D1655 -> 9.8 | H16: ='[3]2015_Tables-2'!E1655 -> 3.1 | I16: ='[3]2015_Tables-2'!F1655 -> 1.8 | J16: ='[3]2015_Tables-2'!G1655 -> 2.8 | K16: ='[3]2015_Tables-2'!H1655 -> 15.1
B17: 60 - 64 years | C17: ='[3]2015_Tables-2'!I1639 -> 30155 | D17: ='[3]2015_Tables-2'!B1656 -> 37.9 | E17: 42.1 | F17: ='[3]2015_Tables-2'!C1656 -> 27.3 | G17: ='[3]2015_Tables-2'!D1656 -> 11.2 | H17: ='[3]2015_Tables-2'!E1656 -> 3.6 | I17: ='[3]2015_Tables-2'!F1656 -> 1.2 | J17: ='[3]2015_Tables-2'!G1656 -> 1.9 | K17: ='[3]2015_Tables-2'!H1656 -> 16.9
B18: 65+ years | C18: ='[3]2015_Tables-2'!I1640 -> 55191 | D18: ='[3]2015_Tables-2'!B1657 -> 27.9 | E18: 37 | F18: ='[3]2015_Tables-2'!C1657 -> 21.9 | G18: ='[3]2015_Tables-2'!D1657 -> 10.7 | H18: ='[3]2015_Tables-2'!E1657 -> 4.4 | I18: ='[3]2015_Tables-2'!F1657 -> 1.2 | J18: ='[3]2015_Tables-2'!G1657 -> 2.5 | K18: ='[3]2015_Tables-2'!H1657 -> 31.4
A19: MALE | C19: ='[3]2015_Tables-2'!I1675 -> 557397 | D19: ='[3]2015_Tables-2'!B1692 -> 35.2 | E19: 11.7 | F19: ='[3]2015_Tables-2'!C1692 -> 9.3 | G19: ='[3]2015_Tables-2'!D1692 -> 1.9 | H19: ='[3]2015_Tables-2'!E1692 -> 0.5 | I19: ='[3]2015_Tables-2'!F1692 -> 51.7 | J19: ='[3]2015_Tables-2'!G1692 -> 1 | K19: ='[3]2015_Tables-2'!H1692 -> 0.5
B20: 12 - 14 years | C20: ='[3]2015_Tables-2'!I1663 -> 63078 | D20: ='[3]2015_Tables-2'!B1680 -> 0.6 | E20: 0 | F20: ='[3]2015_Tables-2'!C1680 -> 0 | G20: ='[3]2015_Tables-2'!D1680 -> 0 | H20: ='[3]2015_Tables-2'!E1680 -> 0 | I20: ='[3]2015_Tables-2'!F1680 -> 99.3 | J20: ='[3]2015_Tables-2'!G1680 -> 0 | K20: ='[3]2015_Tables-2'!H1680 -> 0
B21: 15 - 19 years | C21: ='[3]2015_Tables-2'!I1664 -> 87274 | D21: ='[3]2015_Tables-2'!B1681 -> 1.2 | E21: 0 | F21: ='[3]2015_Tables-2'!C1681 -> 0 | G21: ='[3]2015_Tables-2'!D1681 -> 0 | H21: ='[3]2015_Tables-2'!E1681 -> 0 | I21: ='[3]2015_Tables-2'!F1681 -> 98.8 | J21: ='[3]2015_Tables-2'!G1681 -> 0 | K21: ='[3]2015_Tables-2'!H1681 -> 0
B22: 20 - 24 years | C22: ='[3]2015_Tables-2'!I1665 -> 76050 | D22: ='[3]2015_Tables-2'!B1682 -> 7.7 | E22: 0.2 | F22: ='[3]2015_Tables-2'!C1682 -> 0.2 | G22: ='[3]2015_Tables-2'!D1682 -> 0 | H22: ='[3]2015_Tables-2'!E1682 -> 0 | I22: ='[3]2015_Tables-2'!F1682 -> 92 | J22: ='[3]2015_Tables-2'!G1682 -> 0.1 | K22: ='[3]2015_Tables-2'!H1682 -> 0
B23: 25 - 29 years | C23: ='[3]2015_Tables-2'!I1666 -> 62431 | D23: ='[3]2015_Tables-2'!B1683 -> 31.4 | E23: 1.1 | F23: ='[3]2015_Tables-2'!C1683 -> 1.1 | G23: ='[3]2015_Tables-2'!D1683 -> 0 | H23: ='[3]2015_Tables-2'!E1683 -> 0 | I23: ='[3]2015_Tables-2'!F1683 -> 66.7 | J23: ='[3]2015_Tables-2'!G1683 -> 0.2 | K23: ='[3]2015_Tables-2'!H1683 -> 0.6
B24: 30 - 34 years | C24: ='[3]2015_Tables-2'!I1667 -> 57532 | D24: ='[3]2015_Tables-2'!B1684 -> 62.6 | E24: 4.4 | F24: ='[3]2015_Tables-2'!C1684 -> 4.1 | G24: ='[3]2015_Tables-2'!D1684 -> 0.3 | H24: ='[3]2015_Tables-2'!E1684 -> 0 | I24: ='[3]2015_Tables-2'!F1684 -> 31.3 | J24: ='[3]2015_Tables-2'!G1684 -> 1.4 | K24: ='[3]2015_Tables-2'!H1684 -> 0.4
B25: 35 - 39 years | C25: ='[3]2015_Tables-2'!I1668 -> 49913 | D25: ='[3]2015_Tables-2'!B1685 -> 73.6 | E25: 11 | F25: ='[3]2015_Tables-2'!C1685 -> 9.8 | G25: ='[3]2015_Tables-2'!D1685 -> 1.2 | H25: ='[3]2015_Tables-2'!E1685 -> 0 | I25: ='[3]2015_Tables-2'!F1685 -> 12.3 | J25: ='[3]2015_Tables-2'!G1685 -> 2.4 | K25: ='[3]2015_Tables-2'!H1685 -> 0.6
B26: 40 - 44 years | C26: ='[3]2015_Tables-2'!I1669 -> 39032 | D26: ='[3]2015_Tables-2'!B1686 -> 70 | E26: 21.7 | F26: ='[3]2015_Tables-2'!C1686 -> 20.1 | G26: ='[3]2015_Tables-2'!D1686 -> 1.4 | H26: ='[3]2015_Tables-2'!E1686 -> 0.2 | I26: ='[3]2015_Tables-2'!F1686 -> 4.2 | J26: ='[3]2015_Tables-2'!G1686 -> 3.6 | K26: ='[3]2015_Tables-2'!H1686 -> 0.6
B27: 45 - 49 years | C27: ='[3]2015_Tables-2'!I1670 -> 32235 | D27: ='[3]2015_Tables-2'!B1687 -> 68.4 | E27: 26.7 | F27: ='[3]2015_Tables-2'!C1687 -> 23.7 | G27: ='[3]2015_Tables-2'!D1687 -> 3 | H27: ='[3]2015_Tables-2'!E1687 -> 0 | I27: ='[3]2015_Tables-2'!F1687 -> 2.4 | J27: ='[3]2015_Tables-2'!G1687 -> 2.2 | K27: ='[3]2015_Tables-2'!H1687 -> 0.3
B28: 50 - 54 years | C28: ='[3]2015_Tables-2'!I1671 -> 27286 | D28: ='[3]2015_Tables-2'!B1688 -> 61.2 | E28: 36.5 | F28: ='[3]2015_Tables-2'!C1688 -> 29.9 | G28: ='[3]2015_Tables-2'!D1688 -> 5.8 | H28: ='[3]2015_Tables-2'!E1688 -> 0.8 | I28: ='[3]2015_Tables-2'!F1688 -> 1.3 | J28: ='[3]2015_Tables-2'!G1688 -> 0.4 | K28: ='[3]2015_Tables-2'!H1688 -> 0.4
B29: 55 - 59 years | C29: ='[3]2015_Tables-2'!I1672 -> 18075 | D29: ='[3]2015_Tables-2'!B1689 -> 52.9 | E29: 43.2 | F29: ='[3]2015_Tables-2'!C1689 -> 33.8 | G29: ='[3]2015_Tables-2'!D1689 -> 7.5 | H29: ='[3]2015_Tables-2'!E1689 -> 1.9 | I29: ='[3]2015_Tables-2'!F1689 -> 2.5 | J29: ='[3]2015_Tables-2'!G1689 -> 0.5 | K29: ='[3]2015_Tables-2'!H1689 -> 0.8
B30: 60 - 64 years | C30: ='[3]2015_Tables-2'!I1673 -> 16034 | D30: ='[3]2015_Tables-2'!B1690 -> 52.7 | E30: 43.1 | F30: ='[3]2015_Tables-2'!C1690 -> 31.9 | G30: ='[3]2015_Tables-2'!D1690 -> 9.5 | H30: ='[3]2015_Tables-2'!E1690 -> 1.7 | I30: ='[3]2015_Tables-2'!F1690 -> 0.9 | J30: ='[3]2015_Tables-2'!G1690 -> 0.8 | K30: ='[3]2015_Tables-2'!H1690 -> 2.6
B31: 65+ years | C31: ='[3]2015_Tables-2'!I1674 -> 28457 | D31: ='[3]2015_Tables-2'!B1691 -> 43.6 | E31: 50.8 | F31: ='[3]2015_Tables-2'!C1691 -> 31.3 | G31: ='[3]2015_Tables-2'!D1691 -> 13.9 | H31: ='[3]2015_Tables-2'!E1691 -> 5.6 | I31: ='[3]2015_Tables-2'!F1691 -> 0.4 | J31: ='[3]2015_Tables-2'!G1691 -> 2.6 | K31: ='[3]2015_Tables-2'!H1691 -> 2.6
A32: FEMALE | C32: ='[3]2015_Tables-2'!I1709 -> 657241 | D32: ='[3]2015_Tables-2'!B1726 -> 35 | E32: 21.6 | F32: ='[3]2015_Tables-2'!C1726 -> 15.8 | G32: ='[3]2015_Tables-2'!D1726 -> 4.4 | H32: ='[3]2015_Tables-2'!E1726 -> 1.4 | I32: ='[3]2015_Tables-2'!F1726 -> 35.3 | J32: ='[3]2015_Tables-2'!G1726 -> 2.2 | K32: ='[3]2015_Tables-2'!H1726 -> 6
B33: 12 - 14 years | C33: ='[3]2015_Tables-2'!I1697 -> 66844 | D33: ='[3]2015_Tables-2'!B1714 -> 0.8 | E33: 0.1 | F33: ='[3]2015_Tables-2'!C1714 -> 0.1 | G33: ='[3]2015_Tables-2'!D1714 -> 0 | H33: ='[3]2015_Tables-2'!E1714 -> 0 | I33: ='[3]2015_Tables-2'!F1714 -> 99.1 | J33: ='[3]2015_Tables-2'!G1714 -> 0 | K33: ='[3]2015_Tables-2'!H1714 -> 0
B34: 15 - 19 years | C34: ='[3]2015_Tables-2'!I1698 -> 111093 | D34: ='[3]2015_Tables-2'!B1715 -> 14.4 | E34: 2.6 | F34: ='[3]2015_Tables-2'!C1715 -> 2.3 | G34: ='[3]2015_Tables-2'!D1715 -> 0.3 | H34: ='[3]2015_Tables-2'!E1715 -> 0 | I34: ='[3]2015_Tables-2'!F1715 -> 82.8 | J34: ='[3]2015_Tables-2'!G1715 -> 0.1 | K34: ='[3]2015_Tables-2'!H1715 -> 0.1
B35: 20 - 24 years | C35: ='[3]2015_Tables-2'!I1699 -> 104429 | D35: ='[3]2015_Tables-2'!B1716 -> 44.4 | E35: 9.6 | F35: ='[3]2015_Tables-2'!C1716 -> 8.5 | G35: ='[3]2015_Tables-2'!D1716 -> 1 | H35: ='[3]2015_Tables-2'!E1716 -> 0.1 | I35: ='[3]2015_Tables-2'!F1716 -> 44.3 | J35: ='[3]2015_Tables-2'!G1716 -> 1.5 | K35: ='[3]2015_Tables-2'!H1716 -> 0.2
B36: 25 - 29 years | C36: ='[3]2015_Tables-2'!I1700 -> 89237 | D36: ='[3]2015_Tables-2'!B1717 -> 60.4 | E36: 18.1 | F36: ='[3]2015_Tables-2'!C1717 -> 15.5 | G36: ='[3]2015_Tables-2'!D1717 -> 2.4 | H36: ='[3]2015_Tables-2'!E1717 -> 0.2 | I36: ='[3]2015_Tables-2'!F1717 -> 18.4 | J36: ='[3]2015_Tables-2'!G1717 -> 2.6 | K36: ='[3]2015_Tables-2'!H1717 -> 0.5
B37: 30 - 34 years | C37: ='[3]2015_Tables-2'!I1701 -> 70222 | D37: ='[3]2015_Tables-2'!B1718 -> 54.6 | E37: 32 | F37: ='[3]2015_Tables-2'!C1718 -> 25.7 | G37: ='[3]2015_Tables-2'!D1718 -> 5.2 | H37: ='[3]2015_Tables-2'!E1718 -> 1.1 | I37: ='[3]2015_Tables-2'!F1718 -> 8.5 | J37: ='[3]2015_Tables-2'!G1718 -> 3.6 | K37: ='[3]2015_Tables-2'!H1718 -> 1.3
B38: 35 - 39 years | C38: ='[3]2015_Tables-2'!I1702 -> 59248 | D38: ='[3]2015_Tables-2'!B1719 -> 49 | E38: 40.5 | F38: ='[3]2015_Tables-2'!C1719 -> 30.2 | G38: ='[3]2015_Tables-2'!D1719 -> 8.2 | H38: ='[3]2015_Tables-2'!E1719 -> 2.1 | I38: ='[3]2015_Tables-2'!F1719 -> 4.5 | J38: ='[3]2015_Tables-2'!G1719 -> 3.1 | K38: ='[3]2015_Tables-2'!H1719 -> 2.8
B39: 40 - 44 years | C39: ='[3]2015_Tables-2'!I1703 -> 42666 | D39: ='[3]2015_Tables-2'!B1720 -> 40.7 | E39: 46.9 | F39: ='[3]2015_Tables-2'!C1720 -> 33.6 | G39: ='[3]2015_Tables-2'!D1720 -> 10.2 | H39: ='[3]2015_Tables-2'!E1720 -> 3.1 | I39: ='[3]2015_Tables-2'!F1720 -> 2.9 | J39: ='[3]2015_Tables-2'!G1720 -> 4.2 | K39: ='[3]2015_Tables-2'!H1720 -> 5.3
B40: 45 - 49 years | C40: ='[3]2015_Tables-2'!I1704 -> 29522 | D40: ='[3]2015_Tables-2'!B1721 -> 36 | E40: 50.6 | F40: ='[3]2015_Tables-2'!C1721 -> 33.4 | G40: ='[3]2015_Tables-2'!D1721 -> 12.2 | H40: ='[3]2015_Tables-2'!E1721 -> 5 | I40: ='[3]2015_Tables-2'!F1721 -> 1.2 | J40: ='[3]2015_Tables-2'!G1721 -> 3.3 | K40: ='[3]2015_Tables-2'!H1721 -> 8.8
B41: 50 - 54 years | C41: ='[3]2015_Tables-2'!I1705 -> 25441 | D41: ='[3]2015_Tables-2'!B1722 -> 28.2 | E41: 47.1 | F41: ='[3]2015_Tables-2'!C1722 -> 30.8 | G41: ='[3]2015_Tables-2'!D1722 -> 10.5 | H41: ='[3]2015_Tables-2'!E1722 -> 5.8 | I41: ='[3]2015_Tables-2'!F1722 -> 0.9 | J41: ='[3]2015_Tables-2'!G1722 -> 4.5 | K41: ='[3]2015_Tables-2'!H1722 -> 19.2
B42: 55 - 59 years | C42: ='[3]2015_Tables-2'!I1706 -> 17685 | D42: ='[3]2015_Tables-2'!B1723 -> 25.6 | E42: 38.6 | F42: ='[3]2015_Tables-2'!C1723 -> 22.1 | G42: ='[3]2015_Tables-2'!D1723 -> 12.2 | H42: ='[3]2015_Tables-2'!E1723 -> 4.3 | I42: ='[3]2015_Tables-2'!F1723 -> 1.1 | J42: ='[3]2015_Tables-2'!G1723 -> 5.1 | K42: ='[3]2015_Tables-2'!H1723 -> 29.7
B43: 60 - 64 years | C43: ='[3]2015_Tables-2'!I1707 -> 14121 | D43: ='[3]2015_Tables-2'!B1724 -> 21.2 | E43: 41 | F43: ='[3]2015_Tables-2'!C1724 -> 22 | G43: ='[3]2015_Tables-2'!D1724 -> 13.2 | H43: ='[3]2015_Tables-2'!E1724 -> 5.8 | I43: ='[3]2015_Tables-2'!F1724 -> 1.6 | J43: ='[3]2015_Tables-2'!G1724 -> 3.1 | K43: ='[3]2015_Tables-2'!H1724 -> 33.2
B44: 65+ years | C44: ='[3]2015_Tables-2'!I1708 -> 26734 | D44: ='[3]2015_Tables-2'!B1725 -> 11.1 | E44: 22.4 | F44: ='[3]2015_Tables-2'!C1725 -> 12 | G44: ='[3]2015_Tables-2'!D1725 -> 7.3 | H44: ='[3]2015_Tables-2'!E1725 -> 3.1 | I44: ='[3]2015_Tables-2'!F1725 -> 2.1 | J44: ='[3]2015_Tables-2'!G1725 -> 2.5 | K44: ='[3]2015_Tables-2'!H1725 -> 62.1

Sheet Tab2.9
A1: Table 2.9
A2: Distribution of Children (0-17 years) Orphaned and Father Living at Home
C3: Father | I3: Mother
C4: Alive | G4: Living in Household | I4: Alive | M4: Living in Household
C5: Count | D5: Yes | E5: No | F5: Count | G5: Yes | H5: No | I5: Count | J5: Yes | K5: No | L5: Count | M5: Yes | N5: No
A6: THE GAMBIA | C6: ='[3]2015_Tables-2'!D961 -> 964256 | D6: ='[3]2015_Tables-2'!B1028 -> 93.4 | E6: ='[3]2015_Tables-2'!C1028 -> 6.6 | F6: ='[3]2015_Tables-2'!D1095 -> 900935 | G6: ='[3]2015_Tables-2'!B1162 -> 75.1 | H6: ='[3]2015_Tables-2'!C1162 -> 24.9 | I6: ='[3]2015_Tables-2'!D1229 -> 964256 | J6: ='[3]2015_Tables-2'!B1296 -> 97.9 | K6: ='[3]2015_Tables-2'!C1296 -> 2.1 | L6: ='[3]2015_Tables-2'!D1363 -> 943746 | M6: ='[3]2015_Tables-2'!B1430 -> 86.9 | N6: ='[3]2015_Tables-2'!C1430 -> 13.1
B7: Urban | C7: ='[3]2015_Tables-2'!D959 -> 488699 | D7: ='[3]2015_Tables-2'!B1026 -> 92.8 | E7: ='[3]2015_Tables-2'!C1026 -> 7.2 | F7: ='[3]2015_Tables-2'!D1093 -> 453277 | G7: ='[3]2015_Tables-2'!B1160 -> 71.3 | H7: ='[3]2015_Tables-2'!C1160 -> 28.7 | I7: ='[3]2015_Tables-2'!D1227 -> 488699 | J7: ='[3]2015_Tables-2'!B1294 -> 97.7 | K7: ='[3]2015_Tables-2'!C1294 -> 2.3 | L7: ='[3]2015_Tables-2'!D1361 -> 477306 | M7: ='[3]2015_Tables-2'!B1428 -> 85.7 | N7: ='[3]2015_Tables-2'!C1428 -> 14.3
B8: Rural | C8: ='[3]2015_Tables-2'!D960 -> 475557 | D8: ='[3]2015_Tables-2'!B1027 -> 94.1 | E8: ='[3]2015_Tables-2'!C1027 -> 5.9 | F8: ='[3]2015_Tables-2'!D1094 -> 447658 | G8: ='[3]2015_Tables-2'!B1161 -> 78.9 | H8: ='[3]2015_Tables-2'!C1161 -> 21.1 | I8: ='[3]2015_Tables-2'!D1228 -> 475557 | J8: ='[3]2015_Tables-2'!B1295 -> 98.1 | K8: ='[3]2015_Tables-2'!C1295 -> 1.9 | L8: ='[3]2015_Tables-2'!D1362 -> 466440 | M8: ='[3]2015_Tables-2'!B1429 -> 88.2 | N8: ='[3]2015_Tables-2'!C1429 -> 11.8
A9: Banjul | C9: ='[3]2015_Tables-2'!D899 -> 11612 | D9: ='[3]2015_Tables-2'!B966 -> 92.6 | E9: ='[3]2015_Tables-2'!C966 -> 7.4 | F9: ='[3]2015_Tables-2'!D1033 -> 10754 | G9: ='[3]2015_Tables-2'!B1100 -> 73.8 | H9: ='[3]2015_Tables-2'!C1100 -> 26.2 | I9: ='[3]2015_Tables-2'!D1167 -> 11612 | J9: ='[3]2015_Tables-2'!B1234 -> 98.5 | K9: ='[3]2015_Tables-2'!C1234 -> 1.5 | L9: ='[3]2015_Tables-2'!D1301 -> 11432 | M9: ='[3]2015_Tables-2'!B1368 -> 87.7 | N9: ='[3]2015_Tables-2'!C1368 -> 12.3
B10: Urban | C10: ='[3]2015_Tables-2'!D912 -> 11612 | D10: ='[3]2015_Tables-2'!B979 -> 92.6 | E10: ='[3]2015_Tables-2'!C979 -> 7.4 | F10: ='[3]2015_Tables-2'!D1046 -> 10754 | G10: ='[3]2015_Tables-2'!B1113 -> 73.8 | H10: ='[3]2015_Tables-2'!C1113 -> 26.2 | I10: ='[3]2015_Tables-2'!D1180 -> 11612 | J10: ='[3]2015_Tables-2'!B1247 -> 98.5 | K10: ='[3]2015_Tables-2'!C1247 -> 1.5 | L10: ='[3]2015_Tables-2'!D1314 -> 11432 | M10: ='[3]2015_Tables-2'!B1381 -> 87.7 | N10: ='[3]2015_Tables-2'!C1381 -> 12.3
A11: Kanifing | C11: ='[3]2015_Tables-2'!D900 -> 169271 | D11: ='[3]2015_Tables-2'!B967 -> 92.8 | E11: ='[3]2015_Tables-2'!C967 -> 7.2 | F11: ='[3]2015_Tables-2'!D1034 -> 157083 | G11: ='[3]2015_Tables-2'!B1101 -> 66.7 | H11: ='[3]2015_Tables-2'!C1101 -> 33.3 | I11: ='[3]2015_Tables-2'!D1168 -> 169271 | J11: ='[3]2015_Tables-2'!B1235 -> 97.9 | K11: ='[3]2015_Tables-2'!C1235 -> 2.1 | L11: ='[3]2015_Tables-2'!D1302 -> 165677 | M11: ='[3]2015_Tables-2'!B1369 -> 86 | N11: ='[3]2015_Tables-2'!C1369 -> 14
B12: Urban | C12: ='[3]2015_Tables-2'!D913 -> 169271 | D12: ='[3]2015_Tables-2'!B980 -> 92.8 | E12: ='[3]2015_Tables-2'!C980 -> 7.2 | F12: ='[3]2015_Tables-2'!D1047 -> 157083 | G12: ='[3]2015_Tables-2'!B1114 -> 66.7 | H12: ='[3]2015_Tables-2'!C1114 -> 33.3 | I12: ='[3]2015_Tables-2'!D1181 -> 169271 | J12: ='[3]2015_Tables-2'!B1248 -> 97.9 | K12: ='[3]2015_Tables-2'!C1248 -> 2.1 | L12: ='[3]2015_Tables-2'!D1315 -> 165677 | M12: ='[3]2015_Tables-2'!B1382 -> 86 | N12: ='[3]2015_Tables-2'!C1382 -> 14
A13: Brikama | C13: ='[3]2015_Tables-2'!D901 -> 359252 | D13: ='[3]2015_Tables-2'!B968 -> 93 | E13: ='[3]2015_Tables-2'!C968 -> 7 | F13: ='[3]2015_Tables-2'!D1035 -> 333938 | G13: ='[3]2015_Tables-2'!B1102 -> 73.7 | H13: ='[3]2015_Tables-2'!C1102 -> 26.3 | I13: ='[3]2015_Tables-2'!D1169 -> 359252 | J13: ='[3]2015_Tables-2'!B1236 -> 97.5 | K13: ='[3]2015_Tables-2'!C1236 -> 2.5 | L13: ='[3]2015_Tables-2'!D1303 -> 350347 | M13: ='[3]2015_Tables-2'!B1370 -> 84.8 | N13: ='[3]2015_Tables-2'!C1370 -> 15.2
B14: Kombo North | C14: ='[3]2015_Tables-2'!D914 -> 169199 | D14: ='[3]2015_Tables-2'!B981 -> 93.1 | E14: ='[3]2015_Tables-2'!C981 -> 6.9 | F14: ='[3]2015_Tables-2'!D1048 -> 157534 | G14: ='[3]2015_Tables-2'!B1115 -> 74.7 | H14: ='[3]2015_Tables-2'!C1115 -> 25.3 | I14: ='[3]2015_Tables-2'!D1182 -> 169199 | J14: ='[3]2015_Tables-2'!B1249 -> 98 | K14: ='[3]2015_Tables-2'!C1249 -> 2 | L14: ='[3]2015_Tables-2'!D1316 -> 165742 | M14: ='[3]2015_Tables-2'!B1383 -> 86.7 | N14: ='[3]2015_Tables-2'!C1383 -> 13.3
B15: Kombo South | C15: ='[3]2015_Tables-2'!D915 -> 59149 | D15: ='[3]2015_Tables-2'!B982 -> 94.4 | E15: ='[3]2015_Tables-2'!C982 -> 5.6 | F15: ='[3]2015_Tables-2'!D1049 -> 55847 | G15: ='[3]2015_Tables-2'!B1116 -> 72.9 | H15: ='[3]2015_Tables-2'!C1116 -> 27.1 | I15: ='[3]2015_Tables-2'!D1183 -> 59149 | J15: ='[3]2015_Tables-2'!B1250 -> 97.5 | K15: ='[3]2015_Tables-2'!C1250 -> 2.5 | L15: ='[3]2015_Tables-2'!D1317 -> 57676 | M15: ='[3]2015_Tables-2'!B1384 -> 83 | N15: ='[3]2015_Tables-2'!C1384 -> 17
B16: Kombo Central | C16: ='[3]2015_Tables-2'!D916 -> 73247 | D16: ='[3]2015_Tables-2'!B983 -> 91.7 | E16: ='[3]2015_Tables-2'!C983 -> 8.3 | F16: ='[3]2015_Tables-2'!D1050 -> 67196 | G16: ='[3]2015_Tables-2'!B1117 -> 74.7 | H16: ='[3]2015_Tables-2'!C1117 -> 25.3 | I16: ='[3]2015_Tables-2'!D1184 -> 73247 | J16: ='[3]2015_Tables-2'!B1251 -> 97.1 | K16: ='[3]2015_Tables-2'!C1251 -> 2.9 | L16: ='[3]2015_Tables-2'!D1318 -> 71119 | M16: ='[3]2015_Tables-2'!B1385 -> 84.3 | N16: ='[3]2015_Tables-2'!C1385 -> 15.7
B17: Kombo East | C17: ='[3]2015_Tables-2'!D917 -> 23271 | D17: ='[3]2015_Tables-2'!B984 -> 94.1 | E17: ='[3]2015_Tables-2'!C984 -> 5.9 | F17: ='[3]2015_Tables-2'!D1051 -> 21904 | G17: ='[3]2015_Tables-2'!B1118 -> 73.4 | H17: ='[3]2015_Tables-2'!C1118 -> 26.6 | I17: ='[3]2015_Tables-2'!D1185 -> 23271 | J17: ='[3]2015_Tables-2'!B1252 -> 97.1 | K17: ='[3]2015_Tables-2'!C1252 -> 2.9 | L17: ='[3]2015_Tables-2'!D1319 -> 22604 | M17: ='[3]2015_Tables-2'!B1386 -> 84.7 | N17: ='[3]2015_Tables-2'!C1386 -> 15.3
B18: Foni Brefet | C18: ='[3]2015_Tables-2'!D918 -> 8406 | D18: ='[3]2015_Tables-2'!B985 -> 91.1 | E18: ='[3]2015_Tables-2'!C985 -> 8.9 | F18: ='[3]2015_Tables-2'!D1052 -> 7658 | G18: ='[3]2015_Tables-2'!B1119 -> 67.8 | H18: ='[3]2015_Tables-2'!C1119 -> 32.2 | I18: ='[3]2015_Tables-2'!D1186 -> 8406 | J18: ='[3]2015_Tables-2'!B1253 -> 96.7 | K18: ='[3]2015_Tables-2'!C1253 -> 3.3 | L18: ='[3]2015_Tables-2'!D1320 -> 8126 | M18: ='[3]2015_Tables-2'!B1387 -> 80.5 | N18: ='[3]2015_Tables-2'!C1387 -> 19.5
B19: Foni Bintang | C19: ='[3]2015_Tables-2'!D919 -> 9657 | D19: ='[3]2015_Tables-2'!B986 -> 92.3 | E19: ='[3]2015_Tables-2'!C986 -> 7.7 | F19: ='[3]2015_Tables-2'!D1053 -> 8918 | G19: ='[3]2015_Tables-2'!B1120 -> 71.2 | H19: ='[3]2015_Tables-2'!C1120 -> 28.8 | I19: ='[3]2015_Tables-2'!D1187 -> 9657 | J19: ='[3]2015_Tables-2'!B1254 -> 97.5 | K19: ='[3]2015_Tables-2'!C1254 -> 2.5 | L19: ='[3]2015_Tables-2'!D1321 -> 9412 | M19: ='[3]2015_Tables-2'!B1388 -> 80 | N19: ='[3]2015_Tables-2'!C1388 -> 20
B20: Foni Kansalla | C20: ='[3]2015_Tables-2'!D920 -> 7934 | D20: ='[3]2015_Tables-2'!B987 -> 90.4 | E20: ='[3]2015_Tables-2'!C987 -> 9.6 | F20: ='[3]2015_Tables-2'!D1054 -> 7176 | G20: ='[3]2015_Tables-2'!B1121 -> 65.2 | H20: ='[3]2015_Tables-2'!C1121 -> 34.8 | I20: ='[3]2015_Tables-2'!D1188 -> 7934 | J20: ='[3]2015_Tables-2'!B1255 -> 95.4 | K20: ='[3]2015_Tables-2'!C1255 -> 4.6 | L20: ='[3]2015_Tables-2'!D1322 -> 7568 | M20: ='[3]2015_Tables-2'!B1389 -> 76.8 | N20: ='[3]2015_Tables-2'!C1389 -> 23.2
B21: Foni Bundali | C21: ='[3]2015_Tables-2'!D921 -> 4576 | D21: ='[3]2015_Tables-2'!B988 -> 92.5 | E21: ='[3]2015_Tables-2'!C988 -> 7.5 | F21: ='[3]2015_Tables-2'!D1055 -> 4231 | G21: ='[3]2015_Tables-2'!B1122 -> 72.1 | H21: ='[3]2015_Tables-2'!C1122 -> 27.9 | I21: ='[3]2015_Tables-2'!D1189 -> 4576 | J21: ='[3]2015_Tables-2'!B1256 -> 96.7 | K21: ='[3]2015_Tables-2'!C1256 -> 3.3 | L21: ='[3]2015_Tables-2'!D1323 -> 4426 | M21: ='[3]2015_Tables-2'!B1390 -> 79.2 | N21: ='[3]2015_Tables-2'!C1390 -> 20.8
B22: Foni Jarrol | C22: ='[3]2015_Tables-2'!D922 -> 3812 | D22: ='[3]2015_Tables-2'!B989 -> 91.1 | E22: ='[3]2015_Tables-2'!C989 -> 8.9 | F22: ='[3]2015_Tables-2'!D1056 -> 3474 | G22: ='[3]2015_Tables-2'!B1123 -> 59.1 | H22: ='[3]2015_Tables-2'!C1123 -> 40.9 | I22: ='[3]2015_Tables-2'!D1190 -> 3812 | J22: ='[3]2015_Tables-2'!B1257 -> 96.4 | K22: ='[3]2015_Tables-2'!C1257 -> 3.6 | L22: ='[3]2015_Tables-2'!D1324 -> 3675 | M22: ='[3]2015_Tables-2'!B1391 -> 79.5 | N22: ='[3]2015_Tables-2'!C1391 -> 20.5
A23: Mansakonko | C23: ='[3]2015_Tables-2'!D902 -> 43862 | D23: ='[3]2015_Tables-2'!B969 -> 92.4 | E23: ='[3]2015_Tables-2'!C969 -> 7.6 | F23: ='[3]2015_Tables-2'!D1036 -> 40538 | G23: ='[3]2015_Tables-2'!B1103 -> 72.7 | H23: ='[3]2015_Tables-2'!C1103 -> 27.3 | I23: ='[3]2015_Tables-2'!D1170 -> 43862 | J23: ='[3]2015_Tables-2'!B1237 -> 98.3 | K23: ='[3]2015_Tables-2'!C1237 -> 1.7 | L23: ='[3]2015_Tables-2'!D1304 -> 43098 | M23: ='[3]2015_Tables-2'!B1371 -> 84.4 | N23: ='[3]2015_Tables-2'!C1371 -> 15.6
B24: Kiang West | C24: ='[3]2015_Tables-2'!D923 -> 8426 | D24: ='[3]2015_Tables-2'!B990 -> 91.4 | E24: ='[3]2015_Tables-2'!C990 -> 8.6 | F24: ='[3]2015_Tables-2'!D1057 -> 7703 | G24: ='[3]2015_Tables-2'!B1124 -> 64.3 | H24: ='[3]2015_Tables-2'!C1124 -> 35.7 | I24: ='[3]2015_Tables-2'!D1191 -> 8426 | J24: ='[3]2015_Tables-2'!B1258 -> 98.8 | K24: ='[3]2015_Tables-2'!C1258 -> 1.2 | L24: ='[3]2015_Tables-2'!D1325 -> 8325 | M24: ='[3]2015_Tables-2'!B1392 -> 79 | N24: ='[3]2015_Tables-2'!C1392 -> 21
B25: Kiang Cental | C25: ='[3]2015_Tables-2'!D924 -> 4792 | D25: ='[3]2015_Tables-2'!B991 -> 90.4 | E25: ='[3]2015_Tables-2'!C991 -> 9.6 | F25: ='[3]2015_Tables-2'!D1058 -> 4334 | G25: ='[3]2015_Tables-2'!B1125 -> 70.1 | H25: ='[3]2015_Tables-2'!C1125 -> 29.9 | I25: ='[3]2015_Tables-2'!D1192 -> 4792 | J25: ='[3]2015_Tables-2'!B1259 -> 96.6 | K25: ='[3]2015_Tables-2'!C1259 -> 3.4 | L25: ='[3]2015_Tables-2'!D1326 -> 4628 | M25: ='[3]2015_Tables-2'!B1393 -> 81.3 | N25: ='[3]2015_Tables-2'!C1393 -> 18.7
B26: Kiang East | C26: ='[3]2015_Tables-2'!D925 -> 3510 | D26: ='[3]2015_Tables-2'!B992 -> 93.8 | E26: ='[3]2015_Tables-2'!C992 -> 6.2 | F26: ='[3]2015_Tables-2'!D1059 -> 3293 | G26: ='[3]2015_Tables-2'!B1126 -> 73.4 | H26: ='[3]2015_Tables-2'!C1126 -> 26.6 | I26: ='[3]2015_Tables-2'!D1193 -> 3510 | J26: ='[3]2015_Tables-2'!B1260 -> 96.9 | K26: ='[3]2015_Tables-2'!C1260 -> 3.1 | L26: ='[3]2015_Tables-2'!D1327 -> 3400 | M26: ='[3]2015_Tables-2'!B1394 -> 83.2 | N26: ='[3]2015_Tables-2'!C1394 -> 16.8
B27: Jarra West | C27: ='[3]2015_Tables-2'!D926 -> 14070 | D27: ='[3]2015_Tables-2'!B993 -> 93 | E27: ='[3]2015_Tables-2'!C993 -> 7 | F27: ='[3]2015_Tables-2'!D1060 -> 13088 | G27: ='[3]2015_Tables-2'!B1127 -> 74.1 | H27: ='[3]2015_Tables-2'!C1127 -> 25.9 | I27: ='[3]2015_Tables-2'!D1194 -> 14070 | J27: ='[3]2015_Tables-2'!B1261 -> 99 | K27: ='[3]2015_Tables-2'!C1261 -> 1 | L27: ='[3]2015_Tables-2'!D1328 -> 13933 | M27: ='[3]2015_Tables-2'!B1395 -> 85.3 | N27: ='[3]2015_Tables-2'!C1395 -> 14.7
B28: Jarra Central | C28: ='[3]2015_Tables-2'!D927 -> 4541 | D28: ='[3]2015_Tables-2'!B994 -> 94.4 | E28: ='[3]2015_Tables-2'!C994 -> 5.6 | F28: ='[3]2015_Tables-2'!D1061 -> 4287 | G28: ='[3]2015_Tables-2'!B1128 -> 83.6 | H28: ='[3]2015_Tables-2'!C1128 -> 16.4 | I28: ='[3]2015_Tables-2'!D1195 -> 4541 | J28: ='[3]2015_Tables-2'!B1262 -> 97.7 | K28: ='[3]2015_Tables-2'!C1262 -> 2.3 | L28: ='[3]2015_Tables-2'!D1329 -> 4436 | M28: ='[3]2015_Tables-2'!B1396 -> 89.9 | N28: ='[3]2015_Tables-2'!C1396 -> 10.1
B29: Jarra East | C29: ='[3]2015_Tables-2'!D928 -> 8523 | D29: ='[3]2015_Tables-2'!B995 -> 91.9 | E29: ='[3]2015_Tables-2'!C995 -> 8.1 | F29: ='[3]2015_Tables-2'!D1062 -> 7834 | G29: ='[3]2015_Tables-2'!B1129 -> 74 | H29: ='[3]2015_Tables-2'!C1129 -> 26 | I29: ='[3]2015_Tables-2'!D1196 -> 8523 | J29: ='[3]2015_Tables-2'!B1263 -> 98.3 | K29: ='[3]2015_Tables-2'!C1263 -> 1.7 | L29: ='[3]2015_Tables-2'!D1330 -> 8376 | M29: ='[3]2015_Tables-2'!B1397 -> 87.2 | N29: ='[3]2015_Tables-2'!C1397 -> 12.8 | O29: cont'd
A30: Kerewan | C30: ='[3]2015_Tables-2'!D903 -> 121074 | D30: ='[3]2015_Tables-2'!B970 -> 93.5 | E30: ='[3]2015_Tables-2'!C970 -> 6.5 | F30: ='[3]2015_Tables-2'!D1037 -> 113225 | G30: ='[3]2015_Tables-2'!B1104 -> 76.2 | H30: ='[3]2015_Tables-2'!C1104 -> 23.8 | I30: ='[3]2015_Tables-2'!D1171 -> 121074 | J30: ='[3]2015_Tables-2'!B1238 -> 98.1 | K30: ='[3]2015_Tables-2'!C1238 -> 1.9 | L30: ='[3]2015_Tables-2'!D1305 -> 118800 | M30: ='[3]2015_Tables-2'!B1372 -> 85.7 | N30: ='[3]2015_Tables-2'!C1372 -> 14.3
B31: Lower Niumi | C31: ='[3]2015_Tables-2'!D929 -> 30212 | D31: ='[3]2015_Tables-2'!B996 -> 92.7 | E31: ='[3]2015_Tables-2'!C996 -> 7.3 | F31: ='[3]2015_Tables-2'!D1063 -> 27998 | G31: ='[3]2015_Tables-2'!B1130 -> 72.5 | H31: ='[3]2015_Tables-2'!C1130 -> 27.5 | I31: ='[3]2015_Tables-2'!D1197 -> 30212 | J31: ='[3]2015_Tables-2'!B1264 -> 98 | K31: ='[3]2015_Tables-2'!C1264 -> 2 | L31: ='[3]2015_Tables-2'!D1331 -> 29606 | M31: ='[3]2015_Tables-2'!B1398 -> 84.6 | N31: ='[3]2015_Tables-2'!C1398 -> 15.4
B32: Upper Niumi | C32: ='[3]2015_Tables-2'!D930 -> 16770 | D32: ='[3]2015_Tables-2'!B997 -> 93.6 | E32: ='[3]2015_Tables-2'!C997 -> 6.4 | F32: ='[3]2015_Tables-2'!D1064 -> 15689 | G32: ='[3]2015_Tables-2'!B1131 -> 80 | H32: ='[3]2015_Tables-2'!C1131 -> 20 | I32: ='[3]2015_Tables-2'!D1198 -> 16770 | J32: ='[3]2015_Tables-2'!B1265 -> 97.4 | K32: ='[3]2015_Tables-2'!C1265 -> 2.6 | L32: ='[3]2015_Tables-2'!D1332 -> 16337 | M32: ='[3]2015_Tables-2'!B1399 -> 87.5 | N32: ='[3]2015_Tables-2'!C1399 -> 12.5
B33: Jokadu | C33: ='[3]2015_Tables-2'!D931 -> 12826 | D33: ='[3]2015_Tables-2'!B998 -> 94.3 | E33: ='[3]2015_Tables-2'!C998 -> 5.7 | F33: ='[3]2015_Tables-2'!D1065 -> 12097 | G33: ='[3]2015_Tables-2'!B1132 -> 81.9 | H33: ='[3]2015_Tables-2'!C1132 -> 18.1 | I33: ='[3]2015_Tables-2'!D1199 -> 12826 | J33: ='[3]2015_Tables-2'!B1266 -> 97.7 | K33: ='[3]2015_Tables-2'!C1266 -> 2.3 | L33: ='[3]2015_Tables-2'!D1333 -> 12532 | M33: ='[3]2015_Tables-2'!B1400 -> 86.1 | N33: ='[3]2015_Tables-2'!C1400 -> 13.9
B34: Lower Badibu | C34: ='[3]2015_Tables-2'!D932 -> 10208 | D34: ='[3]2015_Tables-2'!B999 -> 94 | E34: ='[3]2015_Tables-2'!C999 -> 6 | F34: ='[3]2015_Tables-2'!D1066 -> 9598 | G34: ='[3]2015_Tables-2'!B1133 -> 75.3 | H34: ='[3]2015_Tables-2'!C1133 -> 24.7 | I34: ='[3]2015_Tables-2'!D1200 -> 10208 | J34: ='[3]2015_Tables-2'!B1267 -> 97.5 | K34: ='[3]2015_Tables-2'!C1267 -> 2.5 | L34: ='[3]2015_Tables-2'!D1334 -> 9955 | M34: ='[3]2015_Tables-2'!B1401 -> 84.7 | N34: ='[3]2015_Tables-2'!C1401 -> 15.3
B35: Central Badibu | C35: ='[3]2015_Tables-2'!D933 -> 11116 | D35: ='[3]2015_Tables-2'!B1000 -> 94.3 | E35: ='[3]2015_Tables-2'!C1000 -> 5.7 | F35: ='[3]2015_Tables-2'!D1067 -> 10486 | G35: ='[3]2015_Tables-2'!B1134 -> 72.6 | H35: ='[3]2015_Tables-2'!C1134 -> 27.4 | I35: ='[3]2015_Tables-2'!D1201 -> 11116 | J35: ='[3]2015_Tables-2'!B1268 -> 98.9 | K35: ='[3]2015_Tables-2'!C1268 -> 1.1 | L35: ='[3]2015_Tables-2'!D1335 -> 10997 | M35: ='[3]2015_Tables-2'!B1402 -> 86.8 | N35: ='[3]2015_Tables-2'!C1402 -> 13.2
B36: Illiasa | C36: ='[3]2015_Tables-2'!D934 -> 26306 | D36: ='[3]2015_Tables-2'!B1001 -> 93 | E36: ='[3]2015_Tables-2'!C1001 -> 7 | F36: ='[3]2015_Tables-2'!D1068 -> 24459 | G36: ='[3]2015_Tables-2'!B1135 -> 74.8 | H36: ='[3]2015_Tables-2'!C1135 -> 25.2 | I36: ='[3]2015_Tables-2'!D1202 -> 26306 | J36: ='[3]2015_Tables-2'!B1269 -> 98.3 | K36: ='[3]2015_Tables-2'!C1269 -> 1.7 | L36: ='[3]2015_Tables-2'!D1336 -> 25853 | M36: ='[3]2015_Tables-2'!B1403 -> 85.6 | N36: ='[3]2015_Tables-2'!C1403 -> 14.4
B37: Sabach Sanjal | C37: ='[3]2015_Tables-2'!D935 -> 13636 | D37: ='[3]2015_Tables-2'!B1002 -> 94.6 | E37: ='[3]2015_Tables-2'!C1002 -> 5.4 | F37: ='[3]2015_Tables-2'!D1069 -> 12897 | G37: ='[3]2015_Tables-2'!B1136 -> 80.7 | H37: ='[3]2015_Tables-2'!C1136 -> 19.3 | I37: ='[3]2015_Tables-2'!D1203 -> 13636 | J37: ='[3]2015_Tables-2'!B1270 -> 99.1 | K37: ='[3]2015_Tables-2'!C1270 -> 0.9 | L37: ='[3]2015_Tables-2'!D1337 -> 13519 | M37: ='[3]2015_Tables-2'!B1404 -> 85.6 | N37: ='[3]2015_Tables-2'!C1404 -> 14.4
A38: Kuntaur | C38: ='[3]2015_Tables-2'!D904 -> 55749 | D38: ='[3]2015_Tables-2'!B971 -> 95.2 | E38: ='[3]2015_Tables-2'!C971 -> 4.8 | F38: ='[3]2015_Tables-2'!D1038 -> 53046 | G38: ='[3]2015_Tables-2'!B1105 -> 82.6 | H38: ='[3]2015_Tables-2'!C1105 -> 17.4 | I38: ='[3]2015_Tables-2'!D1172 -> 55749 | J38: ='[3]2015_Tables-2'!B1239 -> 97.8 | K38: ='[3]2015_Tables-2'!C1239 -> 2.2 | L38: ='[3]2015_Tables-2'!D1306 -> 54544 | M38: ='[3]2015_Tables-2'!B1373 -> 89.3 | N38: ='[3]2015_Tables-2'!C1373 -> 10.7
B39: Lower Saloum | C39: ='[3]2015_Tables-2'!D936 -> 8273 | D39: ='[3]2015_Tables-2'!B1003 -> 96 | E39: ='[3]2015_Tables-2'!C1003 -> 4 | F39: ='[3]2015_Tables-2'!D1070 -> 7941 | G39: ='[3]2015_Tables-2'!B1137 -> 83.1 | H39: ='[3]2015_Tables-2'!C1137 -> 16.9 | I39: ='[3]2015_Tables-2'!D1204 -> 8273 | J39: ='[3]2015_Tables-2'!B1271 -> 98.3 | K39: ='[3]2015_Tables-2'!C1271 -> 1.7 | L39: ='[3]2015_Tables-2'!D1338 -> 8129 | M39: ='[3]2015_Tables-2'!B1405 -> 89.9 | N39: ='[3]2015_Tables-2'!C1405 -> 10.1
B40: Upper Saloum | C40: ='[3]2015_Tables-2'!D937 -> 11041 | D40: ='[3]2015_Tables-2'!B1004 -> 96.8 | E40: ='[3]2015_Tables-2'!C1004 -> 3.2 | F40: ='[3]2015_Tables-2'!D1071 -> 10687 | G40: ='[3]2015_Tables-2'!B1138 -> 83.6 | H40: ='[3]2015_Tables-2'!C1138 -> 16.4 | I40: ='[3]2015_Tables-2'!D1205 -> 11041 | J40: ='[3]2015_Tables-2'!B1272 -> 98.2 | K40: ='[3]2015_Tables-2'!C1272 -> 1.8 | L40: ='[3]2015_Tables-2'!D1339 -> 10846 | M40: ='[3]2015_Tables-2'!B1406 -> 90.4 | N40: ='[3]2015_Tables-2'!C1406 -> 9.6
B41: Nianija | C41: ='[3]2015_Tables-2'!D938 -> 5729 | D41: ='[3]2015_Tables-2'!B1005 -> 96.1 | E41: ='[3]2015_Tables-2'!C1005 -> 3.9 | F41: ='[3]2015_Tables-2'!D1072 -> 5503 | G41: ='[3]2015_Tables-2'!B1139 -> 79.3 | H41: ='[3]2015_Tables-2'!C1139 -> 20.7 | I41: ='[3]2015_Tables-2'!D1206 -> 5729 | J41: ='[3]2015_Tables-2'!B1273 -> 97.3 | K41: ='[3]2015_Tables-2'!C1273 -> 2.7 | L41: ='[3]2015_Tables-2'!D1340 -> 5573 | M41: ='[3]2015_Tables-2'!B1407 -> 83.5 | N41: ='[3]2015_Tables-2'!C1407 -> 16.5
B42: Niani | C42: ='[3]2015_Tables-2'!D939 -> 16607 | D42: ='[3]2015_Tables-2'!B1006 -> 93.1 | E42: ='[3]2015_Tables-2'!C1006 -> 6.9 | F42: ='[3]2015_Tables-2'!D1073 -> 15462 | G42: ='[3]2015_Tables-2'!B1140 -> 82.5 | H42: ='[3]2015_Tables-2'!C1140 -> 17.5 | I42: ='[3]2015_Tables-2'!D1207 -> 16607 | J42: ='[3]2015_Tables-2'!B1274 -> 97.4 | K42: ='[3]2015_Tables-2'!C1274 -> 2.6 | L42: ='[3]2015_Tables-2'!D1341 -> 16176 | M42: ='[3]2015_Tables-2'!B1408 -> 90 | N42: ='[3]2015_Tables-2'!C1408 -> 10
B43: Sami | C43: ='[3]2015_Tables-2'!D940 -> 14100 | D43: ='[3]2015_Tables-2'!B1007 -> 95.4 | E43: ='[3]2015_Tables-2'!C1007 -> 4.6 | F43: ='[3]2015_Tables-2'!D1074 -> 13452 | G43: ='[3]2015_Tables-2'!B1141 -> 82.9 | H43: ='[3]2015_Tables-2'!C1141 -> 17.1 | I43: ='[3]2015_Tables-2'!D1208 -> 14100 | J43: ='[3]2015_Tables-2'!B1275 -> 98 | K43: ='[3]2015_Tables-2'!C1275 -> 2 | L43: ='[3]2015_Tables-2'!D1342 -> 13819 | M43: ='[3]2015_Tables-2'!B1409 -> 89.8 | N43: ='[3]2015_Tables-2'!C1409 -> 10.2
A44: Janjanbureh | C44: ='[3]2015_Tables-2'!D905 -> 68946 | D44: ='[3]2015_Tables-2'!B972 -> 93.9 | E44: ='[3]2015_Tables-2'!C972 -> 6.1 | F44: ='[3]2015_Tables-2'!D1039 -> 64751 | G44: ='[3]2015_Tables-2'!B1106 -> 80.4 | H44: ='[3]2015_Tables-2'!C1106 -> 19.6 | I44: ='[3]2015_Tables-2'!D1173 -> 68946 | J44: ='[3]2015_Tables-2'!B1240 -> 97.9 | K44: ='[3]2015_Tables-2'!C1240 -> 2.1 | L44: ='[3]2015_Tables-2'!D1307 -> 67493 | M44: ='[3]2015_Tables-2'!B1374 -> 88.6 | N44: ='[3]2015_Tables-2'!C1374 -> 11.4
B45: Niamina Dankunku | C45: ='[3]2015_Tables-2'!D941 -> 3264 | D45: ='[3]2015_Tables-2'!B1008 -> 94.5 | E45: ='[3]2015_Tables-2'!C1008 -> 5.5 | F45: ='[3]2015_Tables-2'!D1075 -> 3083 | G45: ='[3]2015_Tables-2'!B1142 -> 82.6 | H45: ='[3]2015_Tables-2'!C1142 -> 17.4 | I45: ='[3]2015_Tables-2'!D1209 -> 3264 | J45: ='[3]2015_Tables-2'!B1276 -> 98 | K45: ='[3]2015_Tables-2'!C1276 -> 2 | L45: ='[3]2015_Tables-2'!D1343 -> 3197 | M45: ='[3]2015_Tables-2'!B1410 -> 90.7 | N45: ='[3]2015_Tables-2'!C1410 -> 9.3
B46: Niamina West | C46: ='[3]2015_Tables-2'!D942 -> 4002 | D46: ='[3]2015_Tables-2'!B1009 -> 94.2 | E46: ='[3]2015_Tables-2'!C1009 -> 5.8 | F46: ='[3]2015_Tables-2'!D1076 -> 3770 | G46: ='[3]2015_Tables-2'!B1143 -> 82.6 | H46: ='[3]2015_Tables-2'!C1143 -> 17.4 | I46: ='[3]2015_Tables-2'!D1210 -> 4002 | J46: ='[3]2015_Tables-2'!B1277 -> 97.7 | K46: ='[3]2015_Tables-2'!C1277 -> 2.3 | L46: ='[3]2015_Tables-2'!D1344 -> 3909 | M46: ='[3]2015_Tables-2'!B1411 -> 88.1 | N46: ='[3]2015_Tables-2'!C1411 -> 11.9
B47: Niamina East | C47: ='[3]2015_Tables-2'!D943 -> 13618 | D47: ='[3]2015_Tables-2'!B1010 -> 96.5 | E47: ='[3]2015_Tables-2'!C1010 -> 3.5 | F47: ='[3]2015_Tables-2'!D1077 -> 13147 | G47: ='[3]2015_Tables-2'!B1144 -> 79.6 | H47: ='[3]2015_Tables-2'!C1144 -> 20.4 | I47: ='[3]2015_Tables-2'!D1211 -> 13618 | J47: ='[3]2015_Tables-2'!B1278 -> 98.3 | K47: ='[3]2015_Tables-2'!C1278 -> 1.7 | L47: ='[3]2015_Tables-2'!D1345 -> 13390 | M47: ='[3]2015_Tables-2'!B1412 -> 86.2 | N47: ='[3]2015_Tables-2'!C1412 -> 13.8
B48: Lower Fuladu West | C48: ='[3]2015_Tables-2'!D944 -> 22189 | D48: ='[3]2015_Tables-2'!B1011 -> 91.7 | E48: ='[3]2015_Tables-2'!C1011 -> 8.3 | F48: ='[3]2015_Tables-2'!D1078 -> 20341 | G48: ='[3]2015_Tables-2'!B1145 -> 80.5 | H48: ='[3]2015_Tables-2'!C1145 -> 19.5 | I48: ='[3]2015_Tables-2'!D1212 -> 22189 | J48: ='[3]2015_Tables-2'!B1279 -> 98.5 | K48: ='[3]2015_Tables-2'!C1279 -> 1.5 | L48: ='[3]2015_Tables-2'!D1346 -> 21865 | M48: ='[3]2015_Tables-2'!B1413 -> 89.3 | N48: ='[3]2015_Tables-2'!C1413 -> 10.7
B49: Upper Fuladu West | C49: ='[3]2015_Tables-2'!D945 -> 24025 | D49: ='[3]2015_Tables-2'!B1012 -> 94.7 | E49: ='[3]2015_Tables-2'!C1012 -> 5.3 | F49: ='[3]2015_Tables-2'!D1079 -> 22744 | G49: ='[3]2015_Tables-2'!B1146 -> 81.6 | H49: ='[3]2015_Tables-2'!C1146 -> 18.4 | I49: ='[3]2015_Tables-2'!D1213 -> 24025 | J49: ='[3]2015_Tables-2'!B1280 -> 97.1 | K49: ='[3]2015_Tables-2'!C1280 -> 2.9 | L49: ='[3]2015_Tables-2'!D1347 -> 23318 | M49: ='[3]2015_Tables-2'!B1414 -> 90.2 | N49: ='[3]2015_Tables-2'!C1414 -> 9.8
B50: Janjanbureh | C50: ='[3]2015_Tables-2'!D946 -> 1849 | D50: ='[3]2015_Tables-2'!B1013 -> 90.1 | E50: ='[3]2015_Tables-2'!C1013 -> 9.9 | F50: ='[3]2015_Tables-2'!D1080 -> 1666 | G50: ='[3]2015_Tables-2'!B1147 -> 57.5 | H50: ='[3]2015_Tables-2'!C1147 -> 42.5 | I50: ='[3]2015_Tables-2'!D1214 -> 1849 | J50: ='[3]2015_Tables-2'!B1281 -> 98.1 | K50: ='[3]2015_Tables-2'!C1281 -> 1.9 | L50: ='[3]2015_Tables-2'!D1348 -> 1814 | M50: ='[3]2015_Tables-2'!B1415 -> 72.4 | N50: ='[3]2015_Tables-2'!C1415 -> 27.6
A51: Basse | C51: ='[3]2015_Tables-2'!D906 -> 134490 | D51: ='[3]2015_Tables-2'!B973 -> 94.9 | E51: ='[3]2015_Tables-2'!C973 -> 5.1 | F51: ='[3]2015_Tables-2'!D1040 -> 127601 | G51: ='[3]2015_Tables-2'!B1107 -> 83 | H51: ='[3]2015_Tables-2'!C1107 -> 17 | I51: ='[3]2015_Tables-2'!D1174 -> 134490 | J51: ='[3]2015_Tables-2'!B1241 -> 98.4 | K51: ='[3]2015_Tables-2'!C1241 -> 1.6 | L51: ='[3]2015_Tables-2'!D1308 -> 132354 | M51: ='[3]2015_Tables-2'!B1375 -> 93.7 | N51: ='[3]2015_Tables-2'!C1375 -> 6.3
B52: Jimara | C52: ='[3]2015_Tables-2'!D947 -> 24737 | D52: ='[3]2015_Tables-2'!B1014 -> 92.5 | E52: ='[3]2015_Tables-2'!C1014 -> 7.5 | F52: ='[3]2015_Tables-2'!D1081 -> 22890 | G52: ='[3]2015_Tables-2'!B1148 -> 84.6 | H52: ='[3]2015_Tables-2'!C1148 -> 15.4 | I52: ='[3]2015_Tables-2'!D1215 -> 24737 | J52: ='[3]2015_Tables-2'!B1282 -> 99.6 | K52: ='[3]2015_Tables-2'!C1282 -> 0.4 | L52: ='[3]2015_Tables-2'!D1349 -> 24633 | M52: ='[3]2015_Tables-2'!B1416 -> 92.8 | N52: ='[3]2015_Tables-2'!C1416 -> 7.2
B53: Basse | C53: ='[3]2015_Tables-2'!D948 -> 25662 | D53: ='[3]2015_Tables-2'!B1015 -> 92.7 | E53: ='[3]2015_Tables-2'!C1015 -> 7.3 | F53: ='[3]2015_Tables-2'!D1082 -> 23795 | G53: ='[3]2015_Tables-2'!B1149 -> 85.3 | H53: ='[3]2015_Tables-2'!C1149 -> 14.7 | I53: ='[3]2015_Tables-2'!D1216 -> 25662 | J53: ='[3]2015_Tables-2'!B1283 -> 96.9 | K53: ='[3]2015_Tables-2'!C1283 -> 3.1 | L53: ='[3]2015_Tables-2'!D1350 -> 24857 | M53: ='[3]2015_Tables-2'!B1417 -> 90.2 | N53: ='[3]2015_Tables-2'!C1417 -> 9.8
B54: Tumana | C54: ='[3]2015_Tables-2'!D949 -> 22139 | D54: ='[3]2015_Tables-2'!B1016 -> 96.3 | E54: ='[3]2015_Tables-2'!C1016 -> 3.7 | F54: ='[3]2015_Tables-2'!D1083 -> 21323 | G54: ='[3]2015_Tables-2'!B1150 -> 88.6 | H54: ='[3]2015_Tables-2'!C1150 -> 11.4 | I54: ='[3]2015_Tables-2'!D1217 -> 22139 | J54: ='[3]2015_Tables-2'!B1284 -> 98.8 | K54: ='[3]2015_Tables-2'!C1284 -> 1.2 | L54: ='[3]2015_Tables-2'!D1351 -> 21874 | M54: ='[3]2015_Tables-2'!B1418 -> 94 | N54: ='[3]2015_Tables-2'!C1418 -> 6
B55: Kantora | C55: ='[3]2015_Tables-2'!D950 -> 21803 | D55: ='[3]2015_Tables-2'!B1017 -> 96.1 | E55: ='[3]2015_Tables-2'!C1017 -> 3.9 | F55: ='[3]2015_Tables-2'!D1084 -> 20957 | G55: ='[3]2015_Tables-2'!B1151 -> 76.8 | H55: ='[3]2015_Tables-2'!C1151 -> 23.2 | I55: ='[3]2015_Tables-2'!D1218 -> 21803 | J55: ='[3]2015_Tables-2'!B1285 -> 98.1 | K55: ='[3]2015_Tables-2'!C1285 -> 1.9 | L55: ='[3]2015_Tables-2'!D1352 -> 21394 | M55: ='[3]2015_Tables-2'!B1419 -> 95.8 | N55: ='[3]2015_Tables-2'!C1419 -> 4.2
B56: Wuli West | C56: ='[3]2015_Tables-2'!D951 -> 12534 | D56: ='[3]2015_Tables-2'!B1018 -> 96.4 | E56: ='[3]2015_Tables-2'!C1018 -> 3.6 | F56: ='[3]2015_Tables-2'!D1085 -> 12088 | G56: ='[3]2015_Tables-2'!B1152 -> 78.2 | H56: ='[3]2015_Tables-2'!C1152 -> 21.8 | I56: ='[3]2015_Tables-2'!D1219 -> 12534 | J56: ='[3]2015_Tables-2'!B1286 -> 98.2 | K56: ='[3]2015_Tables-2'!C1286 -> 1.8 | L56: ='[3]2015_Tables-2'!D1353 -> 12311 | M56: ='[3]2015_Tables-2'!B1420 -> 94.8 | N56: ='[3]2015_Tables-2'!C1420 -> 5.2
B57: Wuli East | C57: ='[3]2015_Tables-2'!D952 -> 13630 | D57: ='[3]2015_Tables-2'!B1019 -> 95.4 | E57: ='[3]2015_Tables-2'!C1019 -> 4.6 | F57: ='[3]2015_Tables-2'!D1086 -> 13006 | G57: ='[3]2015_Tables-2'!B1153 -> 85.4 | H57: ='[3]2015_Tables-2'!C1153 -> 14.6 | I57: ='[3]2015_Tables-2'!D1220 -> 13630 | J57: ='[3]2015_Tables-2'!B1287 -> 98.3 | K57: ='[3]2015_Tables-2'!C1287 -> 1.7 | L57: ='[3]2015_Tables-2'!D1354 -> 13394 | M57: ='[3]2015_Tables-2'!B1421 -> 95.3 | N57: ='[3]2015_Tables-2'!C1421 -> 4.7
B58: Sandu | C58: ='[3]2015_Tables-2'!D953 -> 13984 | D58: ='[3]2015_Tables-2'!B1020 -> 96.9 | E58: ='[3]2015_Tables-2'!C1020 -> 3.1 | F58: ='[3]2015_Tables-2'!D1087 -> 13543 | G58: ='[3]2015_Tables-2'!B1154 -> 78.7 | H58: ='[3]2015_Tables-2'!C1154 -> 21.3 | I58: ='[3]2015_Tables-2'!D1221 -> 13984 | J58: ='[3]2015_Tables-2'!B1288 -> 99.3 | K58: ='[3]2015_Tables-2'!C1288 -> 0.7 | L58: ='[3]2015_Tables-2'!D1355 -> 13892 | M58: ='[3]2015_Tables-2'!B1422 -> 95 | N58: ='[3]2015_Tables-2'!C1422 -> 5

Sheet Tab2.10
A1: Table 2.10
A2: Distribution of Children (0-17 years) Orphanedhood by District
C3: Count | D3: Living with both | E3: Living with mother only but not with father | G3: Living with father only but not with mother | I3: Not living with either parent
E4: Father alive | F4: Father dead | G4: Mother alive | H4: Mother dead | I4: Only father alive | J4: Only mother alive | K4: Both alive | L4: Both dead
A5: THE GAMBIA | C5: ='[3]2015_Tables-2'!K1497 -> 964256 | D5: ='[3]2015_Tables-2'!B1564 -> 67.9 | E5: ='[3]2015_Tables-2'!C1564 -> 13.2 | F5: ='[3]2015_Tables-2'!D1564 -> 4 | G5: ='[3]2015_Tables-2'!E1564 -> 1.7 | H5: ='[3]2015_Tables-2'!F1564 -> 0.5 | I5: ='[3]2015_Tables-2'!G1564 -> 0.9 | J5: ='[3]2015_Tables-2'!H1564 -> 1.9 | K5: ='[3]2015_Tables-2'!I1564 -> 9.2 | L5: ='[3]2015_Tables-2'!J1564 -> 0.7
B6: Urban | C6: ='[3]2015_Tables-2'!K1495 -> 488699 | D6: ='[3]2015_Tables-2'!B1562 -> 63.4 | E6: ='[3]2015_Tables-2'!C1562 -> 16.1 | F6: ='[3]2015_Tables-2'!D1562 -> 4.2 | G6: ='[3]2015_Tables-2'!E1562 -> 2.4 | H6: ='[3]2015_Tables-2'!F1562 -> 0.3 | I6: ='[3]2015_Tables-2'!G1562 -> 1.1 | J6: ='[3]2015_Tables-2'!H1562 -> 2.1 | K6: ='[3]2015_Tables-2'!I1562 -> 9.5 | L6: ='[3]2015_Tables-2'!J1562 -> 0.9
B7: Rural | C7: ='[3]2015_Tables-2'!K1496 -> 475557 | D7: ='[3]2015_Tables-2'!B1563 -> 72.4 | E7: ='[3]2015_Tables-2'!C1563 -> 10.3 | F7: ='[3]2015_Tables-2'!D1563 -> 3.8 | G7: ='[3]2015_Tables-2'!E1563 -> 1.1 | H7: ='[3]2015_Tables-2'!F1563 -> 0.7 | I7: ='[3]2015_Tables-2'!G1563 -> 0.8 | J7: ='[3]2015_Tables-2'!H1563 -> 1.7 | K7: ='[3]2015_Tables-2'!I1563 -> 8.8 | L7: ='[3]2015_Tables-2'!J1563 -> 0.4
A8: Banjul | C8: ='[3]2015_Tables-2'!K1435 -> 11612 | D8: ='[3]2015_Tables-2'!B1502 -> 64.9 | E8: ='[3]2015_Tables-2'!C1502 -> 15.8 | F8: ='[3]2015_Tables-2'!D1502 -> 5.6 | G8: ='[3]2015_Tables-2'!E1502 -> 3.1 | H8: ='[3]2015_Tables-2'!F1502 -> 0.3 | I8: ='[3]2015_Tables-2'!G1502 -> 0.5 | J8: ='[3]2015_Tables-2'!H1502 -> 1.1 | K8: ='[3]2015_Tables-2'!I1502 -> 7.9 | L8: ='[3]2015_Tables-2'!J1502 -> 0.7
B9: Urban | C9: ='[3]2015_Tables-2'!K1448 -> 11612 | D9: ='[3]2015_Tables-2'!B1515 -> 64.9 | E9: ='[3]2015_Tables-2'!C1515 -> 15.8 | F9: ='[3]2015_Tables-2'!D1515 -> 5.6 | G9: ='[3]2015_Tables-2'!E1515 -> 3.1 | H9: ='[3]2015_Tables-2'!F1515 -> 0.3 | I9: ='[3]2015_Tables-2'!G1515 -> 0.5 | J9: ='[3]2015_Tables-2'!H1515 -> 1.1 | K9: ='[3]2015_Tables-2'!I1515 -> 7.9 | L9: ='[3]2015_Tables-2'!J1515 -> 0.7
A10: Kanifing | C10: ='[3]2015_Tables-2'!K1436 -> 169271 | D10: ='[3]2015_Tables-2'!B1503 -> 58.9 | E10: ='[3]2015_Tables-2'!C1503 -> 21.2 | F10: ='[3]2015_Tables-2'!D1503 -> 4.2 | G10: ='[3]2015_Tables-2'!E1503 -> 2.8 | H10: ='[3]2015_Tables-2'!F1503 -> 0.2 | I10: ='[3]2015_Tables-2'!G1503 -> 0.9 | J10: ='[3]2015_Tables-2'!H1503 -> 2 | K10: ='[3]2015_Tables-2'!I1503 -> 8.9 | L10: ='[3]2015_Tables-2'!J1503 -> 1.1
B11: Urban | C11: ='[3]2015_Tables-2'!K1449 -> 169271 | D11: ='[3]2015_Tables-2'!B1516 -> 58.9 | E11: ='[3]2015_Tables-2'!C1516 -> 21.2 | F11: ='[3]2015_Tables-2'!D1516 -> 4.2 | G11: ='[3]2015_Tables-2'!E1516 -> 2.8 | H11: ='[3]2015_Tables-2'!F1516 -> 0.2 | I11: ='[3]2015_Tables-2'!G1516 -> 0.9 | J11: ='[3]2015_Tables-2'!H1516 -> 2 | K11: ='[3]2015_Tables-2'!I1516 -> 8.9 | L11: ='[3]2015_Tables-2'!J1516 -> 1.1
A12: Brikama | C12: ='[3]2015_Tables-2'!K1437 -> 359252 | D12: ='[3]2015_Tables-2'!B1504 -> 66.1 | E12: ='[3]2015_Tables-2'!C1504 -> 12.7 | F12: ='[3]2015_Tables-2'!D1504 -> 4 | G12: ='[3]2015_Tables-2'!E1504 -> 1.9 | H12: ='[3]2015_Tables-2'!F1504 -> 0.5 | I12: ='[3]2015_Tables-2'!G1504 -> 1.2 | J12: ='[3]2015_Tables-2'!H1504 -> 2.3 | K12: ='[3]2015_Tables-2'!I1504 -> 10.6 | L12: ='[3]2015_Tables-2'!J1504 -> 0.8
B13: Kombo North | C13: ='[3]2015_Tables-2'!K1450 -> 169199 | D13: ='[3]2015_Tables-2'!B1517 -> 67.7 | E13: ='[3]2015_Tables-2'!C1517 -> 13.3 | F13: ='[3]2015_Tables-2'!D1517 -> 4 | G13: ='[3]2015_Tables-2'!E1517 -> 1.9 | H13: ='[3]2015_Tables-2'!F1517 -> 0 | I13: ='[3]2015_Tables-2'!G1517 -> 1.2 | J13: ='[3]2015_Tables-2'!H1517 -> 2.1 | K13: ='[3]2015_Tables-2'!I1517 -> 9.1 | L13: ='[3]2015_Tables-2'!J1517 -> 0.8
B14: Kombo South | C14: ='[3]2015_Tables-2'!K1451 -> 59149 | D14: ='[3]2015_Tables-2'!B1518 -> 66.7 | E14: ='[3]2015_Tables-2'!C1518 -> 11.7 | F14: ='[3]2015_Tables-2'!D1518 -> 2.5 | G14: ='[3]2015_Tables-2'!E1518 -> 1.5 | H14: ='[3]2015_Tables-2'!F1518 -> 0.7 | I14: ='[3]2015_Tables-2'!G1518 -> 1.1 | J14: ='[3]2015_Tables-2'!H1518 -> 2.3 | K14: ='[3]2015_Tables-2'!I1518 -> 12.8 | L14: ='[3]2015_Tables-2'!J1518 -> 0.8
B15: Kombo Central | C15: ='[3]2015_Tables-2'!K1452 -> 73247 | D15: ='[3]2015_Tables-2'!B1519 -> 65.3 | E15: ='[3]2015_Tables-2'!C1519 -> 11.4 | F15: ='[3]2015_Tables-2'!D1519 -> 5.1 | G15: ='[3]2015_Tables-2'!E1519 -> 2.1 | H15: ='[3]2015_Tables-2'!F1519 -> 1.1 | I15: ='[3]2015_Tables-2'!G1519 -> 1.3 | J15: ='[3]2015_Tables-2'!H1519 -> 2.7 | K15: ='[3]2015_Tables-2'!I1519 -> 10.5 | L15: ='[3]2015_Tables-2'!J1519 -> 0.5
B16: Kombo East | C16: ='[3]2015_Tables-2'!K1453 -> 23271 | D16: ='[3]2015_Tables-2'!B1520 -> 65.8 | E16: ='[3]2015_Tables-2'!C1520 -> 13.3 | F16: ='[3]2015_Tables-2'!D1520 -> 3.1 | G16: ='[3]2015_Tables-2'!E1520 -> 1.7 | H16: ='[3]2015_Tables-2'!F1520 -> 1.5 | I16: ='[3]2015_Tables-2'!G1520 -> 0.6 | J16: ='[3]2015_Tables-2'!H1520 -> 2 | K16: ='[3]2015_Tables-2'!I1520 -> 11.2 | L16: ='[3]2015_Tables-2'!J1520 -> 0.8
B17: Foni Brefet | C17: ='[3]2015_Tables-2'!K1454 -> 8406 | D17: ='[3]2015_Tables-2'!B1521 -> 59.3 | E17: ='[3]2015_Tables-2'!C1521 -> 14.1 | F17: ='[3]2015_Tables-2'!D1521 -> 4.5 | G17: ='[3]2015_Tables-2'!E1521 -> 1.8 | H17: ='[3]2015_Tables-2'!F1521 -> 0.7 | I17: ='[3]2015_Tables-2'!G1521 -> 1.7 | J17: ='[3]2015_Tables-2'!H1521 -> 3.5 | K17: ='[3]2015_Tables-2'!I1521 -> 13.5 | L17: ='[3]2015_Tables-2'!J1521 -> 0.9
B18: Foni Bintang | C18: ='[3]2015_Tables-2'!K1455 -> 9657 | D18: ='[3]2015_Tables-2'!B1522 -> 61.9 | E18: ='[3]2015_Tables-2'!C1522 -> 12.8 | F18: ='[3]2015_Tables-2'!D1522 -> 3.4 | G18: ='[3]2015_Tables-2'!E1522 -> 3.4 | H18: ='[3]2015_Tables-2'!F1522 -> 0.5 | I18: ='[3]2015_Tables-2'!G1522 -> 1.1 | J18: ='[3]2015_Tables-2'!H1522 -> 3.4 | K18: ='[3]2015_Tables-2'!I1522 -> 12.7 | L18: ='[3]2015_Tables-2'!J1522 -> 0.9
B19: Foni Kansalla | C19: ='[3]2015_Tables-2'!K1456 -> 7934 | D19: ='[3]2015_Tables-2'!B1523 -> 54.9 | E19: ='[3]2015_Tables-2'!C1523 -> 13.4 | F19: ='[3]2015_Tables-2'!D1523 -> 5 | G19: ='[3]2015_Tables-2'!E1523 -> 3.1 | H19: ='[3]2015_Tables-2'!F1523 -> 1 | I19: ='[3]2015_Tables-2'!G1523 -> 2.8 | J19: ='[3]2015_Tables-2'!H1523 -> 3.6 | K19: ='[3]2015_Tables-2'!I1523 -> 15.3 | L19: ='[3]2015_Tables-2'!J1523 -> 0.9
B20: Foni Bundali | C20: ='[3]2015_Tables-2'!K1457 -> 4576 | D20: ='[3]2015_Tables-2'!B1524 -> 62.9 | E20: ='[3]2015_Tables-2'!C1524 -> 9.4 | F20: ='[3]2015_Tables-2'!D1524 -> 4.3 | G20: ='[3]2015_Tables-2'!E1524 -> 2.9 | H20: ='[3]2015_Tables-2'!F1524 -> 0.8 | I20: ='[3]2015_Tables-2'!G1524 -> 1.4 | J20: ='[3]2015_Tables-2'!H1524 -> 2.2 | K20: ='[3]2015_Tables-2'!I1524 -> 15 | L20: ='[3]2015_Tables-2'!J1524 -> 1.1
B21: Foni Jarrol | C21: ='[3]2015_Tables-2'!K1458 -> 3812 | D21: ='[3]2015_Tables-2'!B1525 -> 51.9 | E21: ='[3]2015_Tables-2'!C1525 -> 19.8 | F21: ='[3]2015_Tables-2'!D1525 -> 5 | G21: ='[3]2015_Tables-2'!E1525 -> 1.5 | H21: ='[3]2015_Tables-2'!F1525 -> 0.5 | I21: ='[3]2015_Tables-2'!G1525 -> 1.8 | J21: ='[3]2015_Tables-2'!H1525 -> 2.6 | K21: ='[3]2015_Tables-2'!I1525 -> 15.7 | L21: ='[3]2015_Tables-2'!J1525 -> 1.3
A22: Mansakonko | C22: ='[3]2015_Tables-2'!K1438 -> 43862 | D22: ='[3]2015_Tables-2'!B1505 -> 65.1 | E22: ='[3]2015_Tables-2'!C1505 -> 12.8 | F22: ='[3]2015_Tables-2'!D1505 -> 5 | G22: ='[3]2015_Tables-2'!E1505 -> 1.5 | H22: ='[3]2015_Tables-2'!F1505 -> 0.7 | I22: ='[3]2015_Tables-2'!G1505 -> 0.6 | J22: ='[3]2015_Tables-2'!H1505 -> 2.1 | K22: ='[3]2015_Tables-2'!I1505 -> 11.8 | L22: ='[3]2015_Tables-2'!J1505 -> 0.5
B23: Kiang West | C23: ='[3]2015_Tables-2'!K1459 -> 8426 | D23: ='[3]2015_Tables-2'!B1526 -> 56.3 | E23: ='[3]2015_Tables-2'!C1526 -> 16.3 | F23: ='[3]2015_Tables-2'!D1526 -> 5.5 | G23: ='[3]2015_Tables-2'!E1526 -> 2 | H23: ='[3]2015_Tables-2'!F1526 -> 0.4 | I23: ='[3]2015_Tables-2'!G1526 -> 0.5 | J23: ='[3]2015_Tables-2'!H1526 -> 2.8 | K23: ='[3]2015_Tables-2'!I1526 -> 15.9 | L23: ='[3]2015_Tables-2'!J1526 -> 0.3
B24: Kiang Cental | C24: ='[3]2015_Tables-2'!K1460 -> 4792 | D24: ='[3]2015_Tables-2'!B1527 -> 60.6 | E24: ='[3]2015_Tables-2'!C1527 -> 13.5 | F24: ='[3]2015_Tables-2'!D1527 -> 4.5 | G24: ='[3]2015_Tables-2'!E1527 -> 1.7 | H24: ='[3]2015_Tables-2'!F1527 -> 1.1 | I24: ='[3]2015_Tables-2'!G1527 -> 0.7 | J24: ='[3]2015_Tables-2'!H1527 -> 3.4 | K24: ='[3]2015_Tables-2'!I1527 -> 12.9 | L24: ='[3]2015_Tables-2'!J1527 -> 1.7
B25: Kiang East | C25: ='[3]2015_Tables-2'!K1461 -> 3510 | D25: ='[3]2015_Tables-2'!B1528 -> 66.3 | E25: ='[3]2015_Tables-2'!C1528 -> 10.8 | F25: ='[3]2015_Tables-2'!D1528 -> 3.5 | G25: ='[3]2015_Tables-2'!E1528 -> 1.8 | H25: ='[3]2015_Tables-2'!F1528 -> 0.9 | I25: ='[3]2015_Tables-2'!G1528 -> 1.5 | J25: ='[3]2015_Tables-2'!H1528 -> 2 | K25: ='[3]2015_Tables-2'!I1528 -> 12.6 | L25: ='[3]2015_Tables-2'!J1528 -> 0.7
B26: Jarra West | C26: ='[3]2015_Tables-2'!K1462 -> 14070 | D26: ='[3]2015_Tables-2'!B1529 -> 66.9 | E26: ='[3]2015_Tables-2'!C1529 -> 11.9 | F26: ='[3]2015_Tables-2'!D1529 -> 5.8 | G26: ='[3]2015_Tables-2'!E1529 -> 1.6 | H26: ='[3]2015_Tables-2'!F1529 -> 0.4 | I26: ='[3]2015_Tables-2'!G1529 -> 0.4 | J26: ='[3]2015_Tables-2'!H1529 -> 1.1 | K26: ='[3]2015_Tables-2'!I1529 -> 11.8 | L26: ='[3]2015_Tables-2'!J1529 -> 0.1
B27: Jarra Central | C27: ='[3]2015_Tables-2'!K1463 -> 4541 | D27: ='[3]2015_Tables-2'!B1530 -> 76.5 | E27: ='[3]2015_Tables-2'!C1530 -> 8.1 | F27: ='[3]2015_Tables-2'!D1530 -> 3.2 | G27: ='[3]2015_Tables-2'!E1530 -> 0.7 | H27: ='[3]2015_Tables-2'!F1530 -> 1.7 | I27: ='[3]2015_Tables-2'!G1530 -> 0.5 | J27: ='[3]2015_Tables-2'!H1530 -> 2.2 | K27: ='[3]2015_Tables-2'!I1530 -> 7 | L27: ='[3]2015_Tables-2'!J1530 -> 0.1
B28: Jarra East | C28: ='[3]2015_Tables-2'!K1464 -> 8523 | D28: ='[3]2015_Tables-2'!B1531 -> 66.8 | E28: ='[3]2015_Tables-2'!C1531 -> 13.9 | F28: ='[3]2015_Tables-2'!D1531 -> 5 | G28: ='[3]2015_Tables-2'!E1531 -> 0.7 | H28: ='[3]2015_Tables-2'!F1531 -> 0.4 | I28: ='[3]2015_Tables-2'!G1531 -> 0.7 | J28: ='[3]2015_Tables-2'!H1531 -> 2.5 | K28: ='[3]2015_Tables-2'!I1531 -> 9.3 | L28: ='[3]2015_Tables-2'!J1531 -> 0.6
A29: Kerewan | C29: ='[3]2015_Tables-2'!K1439 -> 121074 | D29: ='[3]2015_Tables-2'!B1506 -> 69.9 | E29: ='[3]2015_Tables-2'!C1506 -> 10.1 | F29: ='[3]2015_Tables-2'!D1506 -> 4.1 | G29: ='[3]2015_Tables-2'!E1506 -> 1 | H29: ='[3]2015_Tables-2'!F1506 -> 0.4 | I29: ='[3]2015_Tables-2'!G1506 -> 0.9 | J29: ='[3]2015_Tables-2'!H1506 -> 1.8 | K29: ='[3]2015_Tables-2'!I1506 -> 11.2 | L29: ='[3]2015_Tables-2'!J1506 -> 0.6
B30: Lower Niumi | C30: ='[3]2015_Tables-2'!K1465 -> 30212 | D30: ='[3]2015_Tables-2'!B1532 -> 65.8 | E30: ='[3]2015_Tables-2'!C1532 -> 12.1 | F30: ='[3]2015_Tables-2'!D1532 -> 5 | G30: ='[3]2015_Tables-2'!E1532 -> 1.1 | H30: ='[3]2015_Tables-2'!F1532 -> 0.2 | I30: ='[3]2015_Tables-2'!G1532 -> 1.2 | J30: ='[3]2015_Tables-2'!H1532 -> 1.8 | K30: ='[3]2015_Tables-2'!I1532 -> 12.1 | L30: ='[3]2015_Tables-2'!J1532 -> 0.5
B31: Upper Niumi | C31: ='[3]2015_Tables-2'!K1466 -> 16770 | D31: ='[3]2015_Tables-2'!B1533 -> 72.8 | E31: ='[3]2015_Tables-2'!C1533 -> 7.7 | F31: ='[3]2015_Tables-2'!D1533 -> 4.6 | G31: ='[3]2015_Tables-2'!E1533 -> 1.4 | H31: ='[3]2015_Tables-2'!F1533 -> 0.6 | I31: ='[3]2015_Tables-2'!G1533 -> 1.6 | J31: ='[3]2015_Tables-2'!H1533 -> 1.4 | K31: ='[3]2015_Tables-2'!I1533 -> 9.5 | L31: ='[3]2015_Tables-2'!J1533 -> 0.4
B32: Jokadu | C32: ='[3]2015_Tables-2'!K1467 -> 12826 | D32: ='[3]2015_Tables-2'!B1534 -> 75 | E32: ='[3]2015_Tables-2'!C1534 -> 5.4 | F32: ='[3]2015_Tables-2'!D1534 -> 3.7 | G32: ='[3]2015_Tables-2'!E1534 -> 1.4 | H32: ='[3]2015_Tables-2'!F1534 -> 0.9 | I32: ='[3]2015_Tables-2'!G1534 -> 0.8 | J32: ='[3]2015_Tables-2'!H1534 -> 1.4 | K32: ='[3]2015_Tables-2'!I1534 -> 10.8 | L32: ='[3]2015_Tables-2'!J1534 -> 0.6
B33: Lower Badibu | C33: ='[3]2015_Tables-2'!K1468 -> 10208 | D33: ='[3]2015_Tables-2'!B1535 -> 69.5 | E33: ='[3]2015_Tables-2'!C1535 -> 10.1 | F33: ='[3]2015_Tables-2'!D1535 -> 3 | G33: ='[3]2015_Tables-2'!E1535 -> 0.6 | H33: ='[3]2015_Tables-2'!F1535 -> 0.7 | I33: ='[3]2015_Tables-2'!G1535 -> 0.9 | J33: ='[3]2015_Tables-2'!H1535 -> 2.1 | K33: ='[3]2015_Tables-2'!I1535 -> 12.2 | L33: ='[3]2015_Tables-2'!J1535 -> 0.8
B34: Central Badibu | C34: ='[3]2015_Tables-2'!K1469 -> 11116 | D34: ='[3]2015_Tables-2'!B1536 -> 67.6 | E34: ='[3]2015_Tables-2'!C1536 -> 14.3 | F34: ='[3]2015_Tables-2'!D1536 -> 3.9 | G34: ='[3]2015_Tables-2'!E1536 -> 0.6 | H34: ='[3]2015_Tables-2'!F1536 -> 0.3 | I34: ='[3]2015_Tables-2'!G1536 -> 0.5 | J34: ='[3]2015_Tables-2'!H1536 -> 1.6 | K34: ='[3]2015_Tables-2'!I1536 -> 10.9 | L34: ='[3]2015_Tables-2'!J1536 -> 0.2
B35: Illiasa | C35: ='[3]2015_Tables-2'!K1470 -> 26306 | D35: ='[3]2015_Tables-2'!B1537 -> 68.2 | E35: ='[3]2015_Tables-2'!C1537 -> 11.9 | F35: ='[3]2015_Tables-2'!D1537 -> 4 | G35: ='[3]2015_Tables-2'!E1537 -> 1.2 | H35: ='[3]2015_Tables-2'!F1537 -> 0.2 | I35: ='[3]2015_Tables-2'!G1537 -> 0.6 | J35: ='[3]2015_Tables-2'!H1537 -> 2.1 | K35: ='[3]2015_Tables-2'!I1537 -> 10.9 | L35: ='[3]2015_Tables-2'!J1537 -> 0.9
B36: Sabach Sanjal | C36: ='[3]2015_Tables-2'!K1471 -> 13636 | D36: ='[3]2015_Tables-2'!B1538 -> 75.7 | E36: ='[3]2015_Tables-2'!C1538 -> 6.4 | F36: ='[3]2015_Tables-2'!D1538 -> 2.8 | G36: ='[3]2015_Tables-2'!E1538 -> 0.3 | H36: ='[3]2015_Tables-2'!F1538 -> 0.3 | I36: ='[3]2015_Tables-2'!G1538 -> 0.2 | J36: ='[3]2015_Tables-2'!H1538 -> 2.3 | K36: ='[3]2015_Tables-2'!I1538 -> 11.6 | L36: ='[3]2015_Tables-2'!J1538 -> 0.3 | M36: cont'd
A37: Kuntaur | C37: ='[3]2015_Tables-2'!K1440 -> 55749 | D37: ='[3]2015_Tables-2'!B1507 -> 76.7 | E37: ='[3]2015_Tables-2'!C1507 -> 7.9 | F37: ='[3]2015_Tables-2'!D1507 -> 2.8 | G37: ='[3]2015_Tables-2'!E1507 -> 1.2 | H37: ='[3]2015_Tables-2'!F1507 -> 0.7 | I37: ='[3]2015_Tables-2'!G1507 -> 1 | J37: ='[3]2015_Tables-2'!H1507 -> 1.6 | K37: ='[3]2015_Tables-2'!I1507 -> 7.6 | L37: ='[3]2015_Tables-2'!J1507 -> 0.4
B38: Lower Saloum | C38: ='[3]2015_Tables-2'!K1472 -> 8273 | D38: ='[3]2015_Tables-2'!B1539 -> 78.3 | E38: ='[3]2015_Tables-2'!C1539 -> 8.2 | F38: ='[3]2015_Tables-2'!D1539 -> 1.8 | G38: ='[3]2015_Tables-2'!E1539 -> 0.7 | H38: ='[3]2015_Tables-2'!F1539 -> 0.8 | I38: ='[3]2015_Tables-2'!G1539 -> 0.7 | J38: ='[3]2015_Tables-2'!H1539 -> 1.9 | K38: ='[3]2015_Tables-2'!I1539 -> 7.3 | L38: ='[3]2015_Tables-2'!J1539 -> 0.3
B39: Upper Saloum | C39: ='[3]2015_Tables-2'!K1473 -> 11041 | D39: ='[3]2015_Tables-2'!B1540 -> 80 | E39: ='[3]2015_Tables-2'!C1540 -> 7.1 | F39: ='[3]2015_Tables-2'!D1540 -> 1.6 | G39: ='[3]2015_Tables-2'!E1540 -> 0.6 | H39: ='[3]2015_Tables-2'!F1540 -> 0.2 | I39: ='[3]2015_Tables-2'!G1540 -> 1.1 | J39: ='[3]2015_Tables-2'!H1540 -> 1.1 | K39: ='[3]2015_Tables-2'!I1540 -> 7.7 | L39: ='[3]2015_Tables-2'!J1540 -> 0.5
B40: Nianija | C40: ='[3]2015_Tables-2'!K1474 -> 5729 | D40: ='[3]2015_Tables-2'!B1541 -> 74.9 | E40: ='[3]2015_Tables-2'!C1541 -> 4.5 | F40: ='[3]2015_Tables-2'!D1541 -> 1.9 | G40: ='[3]2015_Tables-2'!E1541 -> 1 | H40: ='[3]2015_Tables-2'!F1541 -> 0.4 | I40: ='[3]2015_Tables-2'!G1541 -> 1.6 | J40: ='[3]2015_Tables-2'!H1541 -> 1.3 | K40: ='[3]2015_Tables-2'!I1541 -> 13.7 | L40: ='[3]2015_Tables-2'!J1541 -> 0.7
B41: Niani | C41: ='[3]2015_Tables-2'!K1475 -> 16607 | D41: ='[3]2015_Tables-2'!B1542 -> 74.1 | E41: ='[3]2015_Tables-2'!C1542 -> 9 | F41: ='[3]2015_Tables-2'!D1542 -> 4.6 | G41: ='[3]2015_Tables-2'!E1542 -> 1.5 | H41: ='[3]2015_Tables-2'!F1542 -> 1.2 | I41: ='[3]2015_Tables-2'!G1542 -> 1 | J41: ='[3]2015_Tables-2'!H1542 -> 1.9 | K41: ='[3]2015_Tables-2'!I1542 -> 6.3 | L41: ='[3]2015_Tables-2'!J1542 -> 0.4
B42: Sami | C42: ='[3]2015_Tables-2'!K1476 -> 14100 | D42: ='[3]2015_Tables-2'!B1543 -> 76.8 | E42: ='[3]2015_Tables-2'!C1543 -> 8.6 | F42: ='[3]2015_Tables-2'!D1543 -> 2.6 | G42: ='[3]2015_Tables-2'!E1543 -> 1.6 | H42: ='[3]2015_Tables-2'!F1543 -> 0.8 | I42: ='[3]2015_Tables-2'!G1543 -> 0.8 | J42: ='[3]2015_Tables-2'!H1543 -> 1.6 | K42: ='[3]2015_Tables-2'!I1543 -> 6.9 | L42: ='[3]2015_Tables-2'!J1543 -> 0.4
A43: Janjanbureh | C43: ='[3]2015_Tables-2'!K1441 -> 68946 | D43: ='[3]2015_Tables-2'!B1508 -> 73.2 | E43: ='[3]2015_Tables-2'!C1508 -> 9.2 | F43: ='[3]2015_Tables-2'!D1508 -> 4.3 | G43: ='[3]2015_Tables-2'!E1508 -> 1.3 | H43: ='[3]2015_Tables-2'!F1508 -> 0.9 | I43: ='[3]2015_Tables-2'!G1508 -> 0.9 | J43: ='[3]2015_Tables-2'!H1508 -> 1.6 | K43: ='[3]2015_Tables-2'!I1508 -> 8.3 | L43: ='[3]2015_Tables-2'!J1508 -> 0.3
B44: Niamina Dankunku | C44: ='[3]2015_Tables-2'!K1477 -> 3264 | D44: ='[3]2015_Tables-2'!B1544 -> 76.4 | E44: ='[3]2015_Tables-2'!C1544 -> 7.9 | F44: ='[3]2015_Tables-2'!D1544 -> 4.5 | G44: ='[3]2015_Tables-2'!E1544 -> 0.6 | H44: ='[3]2015_Tables-2'!F1544 -> 1 | I44: ='[3]2015_Tables-2'!G1544 -> 0.7 | J44: ='[3]2015_Tables-2'!H1544 -> 0.7 | K44: ='[3]2015_Tables-2'!I1544 -> 7.8 | L44: ='[3]2015_Tables-2'!J1544 -> 0.3
B45: Niamina West | C45: ='[3]2015_Tables-2'!K1478 -> 4002 | D45: ='[3]2015_Tables-2'!B1545 -> 75.3 | E45: ='[3]2015_Tables-2'!C1545 -> 7.2 | F45: ='[3]2015_Tables-2'!D1545 -> 3.4 | G45: ='[3]2015_Tables-2'!E1545 -> 1.9 | H45: ='[3]2015_Tables-2'!F1545 -> 0.6 | I45: ='[3]2015_Tables-2'!G1545 -> 1.1 | J45: ='[3]2015_Tables-2'!H1545 -> 1.7 | K45: ='[3]2015_Tables-2'!I1545 -> 8 | L45: ='[3]2015_Tables-2'!J1545 -> 0.6
B46: Niamina East | C46: ='[3]2015_Tables-2'!K1479 -> 13618 | D46: ='[3]2015_Tables-2'!B1546 -> 75.2 | E46: ='[3]2015_Tables-2'!C1546 -> 7.5 | F46: ='[3]2015_Tables-2'!D1546 -> 2 | G46: ='[3]2015_Tables-2'!E1546 -> 1 | H46: ='[3]2015_Tables-2'!F1546 -> 0.7 | I46: ='[3]2015_Tables-2'!G1546 -> 0.6 | J46: ='[3]2015_Tables-2'!H1546 -> 1.1 | K46: ='[3]2015_Tables-2'!I1546 -> 11.5 | L46: ='[3]2015_Tables-2'!J1546 -> 0.4
B47: Lower Fuladu West | C47: ='[3]2015_Tables-2'!K1480 -> 22189 | D47: ='[3]2015_Tables-2'!B1547 -> 71.5 | E47: ='[3]2015_Tables-2'!C1547 -> 9.8 | F47: ='[3]2015_Tables-2'!D1547 -> 6.8 | G47: ='[3]2015_Tables-2'!E1547 -> 1.8 | H47: ='[3]2015_Tables-2'!F1547 -> 0.6 | I47: ='[3]2015_Tables-2'!G1547 -> 0.6 | J47: ='[3]2015_Tables-2'!H1547 -> 1.3 | K47: ='[3]2015_Tables-2'!I1547 -> 7.5 | L47: ='[3]2015_Tables-2'!J1547 -> 0.3
B48: Upper Fuladu West | C48: ='[3]2015_Tables-2'!K1481 -> 24025 | D48: ='[3]2015_Tables-2'!B1548 -> 74.8 | E48: ='[3]2015_Tables-2'!C1548 -> 9.4 | F48: ='[3]2015_Tables-2'!D1548 -> 3.3 | G48: ='[3]2015_Tables-2'!E1548 -> 1 | H48: ='[3]2015_Tables-2'!F1548 -> 1.5 | I48: ='[3]2015_Tables-2'!G1548 -> 1.3 | J48: ='[3]2015_Tables-2'!H1548 -> 1.9 | K48: ='[3]2015_Tables-2'!I1548 -> 6.6 | L48: ='[3]2015_Tables-2'!J1548 -> 0.1
B49: Janjanbureh | C49: ='[3]2015_Tables-2'!K1482 -> 1849 | D49: ='[3]2015_Tables-2'!B1549 -> 48.7 | E49: ='[3]2015_Tables-2'!C1549 -> 18.4 | F49: ='[3]2015_Tables-2'!D1549 -> 3.9 | G49: ='[3]2015_Tables-2'!E1549 -> 2.6 | H49: ='[3]2015_Tables-2'!F1549 -> 0.5 | I49: ='[3]2015_Tables-2'!G1549 -> 0.9 | J49: ='[3]2015_Tables-2'!H1549 -> 5.5 | K49: ='[3]2015_Tables-2'!I1549 -> 18.9 | L49: ='[3]2015_Tables-2'!J1549 -> 0.5
A50: Basse | C50: ='[3]2015_Tables-2'!K1442 -> 134490 | D50: ='[3]2015_Tables-2'!B1509 -> 77 | E50: ='[3]2015_Tables-2'!C1509 -> 11.5 | F50: ='[3]2015_Tables-2'!D1509 -> 3.7 | G50: ='[3]2015_Tables-2'!E1509 -> 1 | H50: ='[3]2015_Tables-2'!F1509 -> 0.8 | I50: ='[3]2015_Tables-2'!G1509 -> 0.5 | J50: ='[3]2015_Tables-2'!H1509 -> 1.1 | K50: ='[3]2015_Tables-2'!I1509 -> 4.2 | L50: ='[3]2015_Tables-2'!J1509 -> 0.3
B51: Jimara | C51: ='[3]2015_Tables-2'!K1483 -> 24737 | D51: ='[3]2015_Tables-2'!B1550 -> 77.8 | E51: ='[3]2015_Tables-2'!C1550 -> 9.1 | F51: ='[3]2015_Tables-2'!D1550 -> 5.6 | G51: ='[3]2015_Tables-2'!E1550 -> 0.4 | H51: ='[3]2015_Tables-2'!F1550 -> 0.1 | I51: ='[3]2015_Tables-2'!G1550 -> 0.2 | J51: ='[3]2015_Tables-2'!H1550 -> 1.8 | K51: ='[3]2015_Tables-2'!I1550 -> 4.9 | L51: ='[3]2015_Tables-2'!J1550 -> 0
B52: Basse | C52: ='[3]2015_Tables-2'!K1484 -> 25662 | D52: ='[3]2015_Tables-2'!B1551 -> 76.3 | E52: ='[3]2015_Tables-2'!C1551 -> 6.3 | F52: ='[3]2015_Tables-2'!D1551 -> 4.8 | G52: ='[3]2015_Tables-2'!E1551 -> 1.7 | H52: ='[3]2015_Tables-2'!F1551 -> 1.1 | I52: ='[3]2015_Tables-2'!G1551 -> 1 | J52: ='[3]2015_Tables-2'!H1551 -> 1.5 | K52: ='[3]2015_Tables-2'!I1551 -> 6.3 | L52: ='[3]2015_Tables-2'!J1551 -> 1
B53: Tumana | C53: ='[3]2015_Tables-2'!K1485 -> 22139 | D53: ='[3]2015_Tables-2'!B1552 -> 82.8 | E53: ='[3]2015_Tables-2'!C1552 -> 7.6 | F53: ='[3]2015_Tables-2'!D1552 -> 2.5 | G53: ='[3]2015_Tables-2'!E1552 -> 1.7 | H53: ='[3]2015_Tables-2'!F1552 -> 0.8 | I53: ='[3]2015_Tables-2'!G1552 -> 0.4 | J53: ='[3]2015_Tables-2'!H1552 -> 1.1 | K53: ='[3]2015_Tables-2'!I1552 -> 3.1 | L53: ='[3]2015_Tables-2'!J1552 -> 0
B54: Kantora | C54: ='[3]2015_Tables-2'!K1486 -> 21803 | D54: ='[3]2015_Tables-2'!B1553 -> 72.3 | E54: ='[3]2015_Tables-2'!C1553 -> 18.7 | F54: ='[3]2015_Tables-2'!D1553 -> 3 | G54: ='[3]2015_Tables-2'!E1553 -> 0.4 | H54: ='[3]2015_Tables-2'!F1553 -> 1.1 | I54: ='[3]2015_Tables-2'!G1553 -> 0.5 | J54: ='[3]2015_Tables-2'!H1553 -> 0.6 | K54: ='[3]2015_Tables-2'!I1553 -> 3.1 | L54: ='[3]2015_Tables-2'!J1553 -> 0.2
B55: Wuli West | C55: ='[3]2015_Tables-2'!K1487 -> 12534 | D55: ='[3]2015_Tables-2'!B1554 -> 73.7 | E55: ='[3]2015_Tables-2'!C1554 -> 16.5 | F55: ='[3]2015_Tables-2'!D1554 -> 3 | G55: ='[3]2015_Tables-2'!E1554 -> 0.7 | H55: ='[3]2015_Tables-2'!F1554 -> 1 | I55: ='[3]2015_Tables-2'!G1554 -> 0.4 | J55: ='[3]2015_Tables-2'!H1554 -> 0.3 | K55: ='[3]2015_Tables-2'!I1554 -> 4.1 | L55: ='[3]2015_Tables-2'!J1554 -> 0.3
B56: Wuli East | C56: ='[3]2015_Tables-2'!K1488 -> 13630 | D56: ='[3]2015_Tables-2'!B1555 -> 79.4 | E56: ='[3]2015_Tables-2'!C1555 -> 11.3 | F56: ='[3]2015_Tables-2'!D1555 -> 2.9 | G56: ='[3]2015_Tables-2'!E1555 -> 1 | H56: ='[3]2015_Tables-2'!F1555 -> 1.1 | I56: ='[3]2015_Tables-2'!G1555 -> 0.3 | J56: ='[3]2015_Tables-2'!H1555 -> 1.3 | K56: ='[3]2015_Tables-2'!I1555 -> 2.3 | L56: ='[3]2015_Tables-2'!J1555 -> 0.3
B57: Sandu | C57: ='[3]2015_Tables-2'!K1489 -> 13984 | D57: ='[3]2015_Tables-2'!B1556 -> 75.6 | E57: ='[3]2015_Tables-2'!C1556 -> 16 | F57: ='[3]2015_Tables-2'!D1556 -> 2.8 | G57: ='[3]2015_Tables-2'!E1556 -> 0.5 | H57: ='[3]2015_Tables-2'!F1556 -> 0.2 | I57: ='[3]2015_Tables-2'!G1556 -> 0.2 | J57: ='[3]2015_Tables-2'!H1556 -> 0.1 | K57: ='[3]2015_Tables-2'!I1556 -> 4.4 | L57: ='[3]2015_Tables-2'!J1556 -> 0.2

Sheet Tab2.11
A1: Table 2.11
A2: Distribution of Children (0-17 years) Orphanedhood by District
C3: Count | D3: Living with both | E3: Living with mother only but not with father | G3: Living with father only but not with mother | I3: Not living with either parent
E4: Father alive | F4: Father dead | G4: Mother alive | H4: Mother dead | I4: Only father alive | J4: Only mother alive | K4: Both alive | L4: Both dead
A5: THE GAMBIA | C5: ='[3]2015_Tables-2'!K1574 -> 964256 | D5: ='[3]2015_Tables-2'!B1584 -> 67.9 | E5: ='[3]2015_Tables-2'!C1584 -> 13.2 | F5: ='[3]2015_Tables-2'!D1584 -> 4 | G5: ='[3]2015_Tables-2'!E1584 -> 1.7 | H5: ='[3]2015_Tables-2'!F1584 -> 0.5 | I5: ='[3]2015_Tables-2'!G1584 -> 0.9 | J5: ='[3]2015_Tables-2'!H1584 -> 1.9 | K5: ='[3]2015_Tables-2'!I1584 -> 9.2 | L5: ='[3]2015_Tables-2'!J1584 -> 0.7
B6: 0 - 1 years | C6: ='[3]2015_Tables-2'!K1569 -> 120326 | D6: ='[3]2015_Tables-2'!B1579 -> 78.9 | E6: ='[3]2015_Tables-2'!C1579 -> 17.7 | F6: ='[3]2015_Tables-2'!D1579 -> 1.1 | G6: ='[3]2015_Tables-2'!E1579 -> 0.7 | H6: ='[3]2015_Tables-2'!F1579 -> 0.1 | I6: ='[3]2015_Tables-2'!G1579 -> 0.1 | J6: ='[3]2015_Tables-2'!H1579 -> 0.5 | K6: ='[3]2015_Tables-2'!I1579 -> 0.9 | L6: ='[3]2015_Tables-2'!J1579 -> 0
B7: 2 - 4 years | C7: ='[3]2015_Tables-2'!K1570 -> 190830 | D7: ='[3]2015_Tables-2'!B1580 -> 75.6 | E7: ='[3]2015_Tables-2'!C1580 -> 14.6 | F7: ='[3]2015_Tables-2'!D1580 -> 2.6 | G7: ='[3]2015_Tables-2'!E1580 -> 1.3 | H7: ='[3]2015_Tables-2'!F1580 -> 0.2 | I7: ='[3]2015_Tables-2'!G1580 -> 0.3 | J7: ='[3]2015_Tables-2'!H1580 -> 0.5 | K7: ='[3]2015_Tables-2'!I1580 -> 4.9 | L7: ='[3]2015_Tables-2'!J1580 -> 0.1
B8: 5 - 9 years | C8: ='[3]2015_Tables-2'!K1571 -> 298089 | D8: ='[3]2015_Tables-2'!B1581 -> 69 | E8: ='[3]2015_Tables-2'!C1581 -> 13 | F8: ='[3]2015_Tables-2'!D1581 -> 3.3 | G8: ='[3]2015_Tables-2'!E1581 -> 2 | H8: ='[3]2015_Tables-2'!F1581 -> 0.5 | I8: ='[3]2015_Tables-2'!G1581 -> 0.8 | J8: ='[3]2015_Tables-2'!H1581 -> 1.6 | K8: ='[3]2015_Tables-2'!I1581 -> 9.6 | L8: ='[3]2015_Tables-2'!J1581 -> 0.3
B9: 10 - 14 years | C9: ='[3]2015_Tables-2'!K1572 -> 228988 | D9: ='[3]2015_Tables-2'!B1582 -> 61.8 | E9: ='[3]2015_Tables-2'!C1582 -> 11.8 | F9: ='[3]2015_Tables-2'!D1582 -> 5.6 | G9: ='[3]2015_Tables-2'!E1582 -> 2.3 | H9: ='[3]2015_Tables-2'!F1582 -> 0.7 | I9: ='[3]2015_Tables-2'!G1582 -> 1.4 | J9: ='[3]2015_Tables-2'!H1582 -> 2.9 | K9: ='[3]2015_Tables-2'!I1582 -> 12.5 | L9: ='[3]2015_Tables-2'!J1582 -> 1
B10: 15 - 17 years | C10: ='[3]2015_Tables-2'!K1573 -> 126022 | D10: ='[3]2015_Tables-2'!B1583 -> 53.9 | E10: ='[3]2015_Tables-2'!C1583 -> 9.9 | F10: ='[3]2015_Tables-2'!D1583 -> 7.8 | G10: ='[3]2015_Tables-2'!E1583 -> 1.7 | H10: ='[3]2015_Tables-2'!F1583 -> 1.1 | I10: ='[3]2015_Tables-2'!G1583 -> 2.1 | J10: ='[3]2015_Tables-2'!H1583 -> 4.4 | K10: ='[3]2015_Tables-2'!I1583 -> 16.5 | L10: ='[3]2015_Tables-2'!J1583 -> 2.5
A11: URBAN | C11: ='[3]2015_Tables-2'!K1594 -> 488699 | D11: ='[3]2015_Tables-2'!B1604 -> 63.4 | E11: ='[3]2015_Tables-2'!C1604 -> 16.1 | F11: ='[3]2015_Tables-2'!D1604 -> 4.2 | G11: ='[3]2015_Tables-2'!E1604 -> 2.4 | H11: ='[3]2015_Tables-2'!F1604 -> 0.3 | I11: ='[3]2015_Tables-2'!G1604 -> 1.1 | J11: ='[3]2015_Tables-2'!H1604 -> 2.1 | K11: ='[3]2015_Tables-2'!I1604 -> 9.5 | L11: ='[3]2015_Tables-2'!J1604 -> 0.9
B12: 0 - 1 years | C12: ='[3]2015_Tables-2'!K1589 -> 58971 | D12: ='[3]2015_Tables-2'!B1599 -> 77.3 | E12: ='[3]2015_Tables-2'!C1599 -> 19.2 | F12: ='[3]2015_Tables-2'!D1599 -> 0.7 | G12: ='[3]2015_Tables-2'!E1599 -> 1.2 | H12: ='[3]2015_Tables-2'!F1599 -> 0 | I12: ='[3]2015_Tables-2'!G1599 -> 0 | J12: ='[3]2015_Tables-2'!H1599 -> 0.9 | K12: ='[3]2015_Tables-2'!I1599 -> 0.7 | L12: ='[3]2015_Tables-2'!J1599 -> 0
B13: 2 - 4 years | C13: ='[3]2015_Tables-2'!K1590 -> 97311 | D13: ='[3]2015_Tables-2'!B1600 -> 73.7 | E13: ='[3]2015_Tables-2'!C1600 -> 15.8 | F13: ='[3]2015_Tables-2'!D1600 -> 3 | G13: ='[3]2015_Tables-2'!E1600 -> 1.8 | H13: ='[3]2015_Tables-2'!F1600 -> 0.1 | I13: ='[3]2015_Tables-2'!G1600 -> 0.3 | J13: ='[3]2015_Tables-2'!H1600 -> 0.5 | K13: ='[3]2015_Tables-2'!I1600 -> 4.8 | L13: ='[3]2015_Tables-2'!J1600 -> 0.1
B14: 5 - 9 years | C14: ='[3]2015_Tables-2'!K1591 -> 145387 | D14: ='[3]2015_Tables-2'!B1601 -> 64.9 | E14: ='[3]2015_Tables-2'!C1601 -> 16.2 | F14: ='[3]2015_Tables-2'!D1601 -> 3.5 | G14: ='[3]2015_Tables-2'!E1601 -> 2.6 | H14: ='[3]2015_Tables-2'!F1601 -> 0.3 | I14: ='[3]2015_Tables-2'!G1601 -> 1.1 | J14: ='[3]2015_Tables-2'!H1601 -> 1.7 | K14: ='[3]2015_Tables-2'!I1601 -> 9.3 | L14: ='[3]2015_Tables-2'!J1601 -> 0.3
B15: 10 - 14 years | C15: ='[3]2015_Tables-2'!K1592 -> 114825 | D15: ='[3]2015_Tables-2'!B1602 -> 55.2 | E15: ='[3]2015_Tables-2'!C1602 -> 16.3 | F15: ='[3]2015_Tables-2'!D1602 -> 6 | G15: ='[3]2015_Tables-2'!E1602 -> 3.5 | H15: ='[3]2015_Tables-2'!F1602 -> 0.3 | I15: ='[3]2015_Tables-2'!G1602 -> 1.6 | J15: ='[3]2015_Tables-2'!H1602 -> 3.1 | K15: ='[3]2015_Tables-2'!I1602 -> 12.8 | L15: ='[3]2015_Tables-2'!J1602 -> 1.2
B16: 15 - 17 years | C16: ='[3]2015_Tables-2'!K1593 -> 72204 | D16: ='[3]2015_Tables-2'!B1603 -> 48.2 | E16: ='[3]2015_Tables-2'!C1603 -> 13 | F16: ='[3]2015_Tables-2'!D1603 -> 7.5 | G16: ='[3]2015_Tables-2'!E1603 -> 1.8 | H16: ='[3]2015_Tables-2'!F1603 -> 1 | I16: ='[3]2015_Tables-2'!G1603 -> 2.4 | J16: ='[3]2015_Tables-2'!H1603 -> 4.7 | K16: ='[3]2015_Tables-2'!I1603 -> 18.1 | L16: ='[3]2015_Tables-2'!J1603 -> 3.4
A17: RURAL | C17: ='[3]2015_Tables-2'!K1614 -> 475557 | D17: ='[3]2015_Tables-2'!B1624 -> 72.4 | E17: ='[3]2015_Tables-2'!C1624 -> 10.3 | F17: ='[3]2015_Tables-2'!D1624 -> 3.8 | G17: ='[3]2015_Tables-2'!E1624 -> 1.1 | H17: ='[3]2015_Tables-2'!F1624 -> 0.7 | I17: ='[3]2015_Tables-2'!G1624 -> 0.8 | J17: ='[3]2015_Tables-2'!H1624 -> 1.7 | K17: ='[3]2015_Tables-2'!I1624 -> 8.8 | L17: ='[3]2015_Tables-2'!J1624 -> 0.4
B18: 0 - 1 years | C18: ='[3]2015_Tables-2'!K1609 -> 61355 | D18: ='[3]2015_Tables-2'!B1619 -> 80.5 | E18: ='[3]2015_Tables-2'!C1619 -> 16.2 | F18: ='[3]2015_Tables-2'!D1619 -> 1.6 | G18: ='[3]2015_Tables-2'!E1619 -> 0.2 | H18: ='[3]2015_Tables-2'!F1619 -> 0.2 | I18: ='[3]2015_Tables-2'!G1619 -> 0.1 | J18: ='[3]2015_Tables-2'!H1619 -> 0 | K18: ='[3]2015_Tables-2'!I1619 -> 1.1 | L18: ='[3]2015_Tables-2'!J1619 -> 0
B19: 2 - 4 years | C19: ='[3]2015_Tables-2'!K1610 -> 93519 | D19: ='[3]2015_Tables-2'!B1620 -> 77.6 | E19: ='[3]2015_Tables-2'!C1620 -> 13.2 | F19: ='[3]2015_Tables-2'!D1620 -> 2.1 | G19: ='[3]2015_Tables-2'!E1620 -> 0.7 | H19: ='[3]2015_Tables-2'!F1620 -> 0.3 | I19: ='[3]2015_Tables-2'!G1620 -> 0.4 | J19: ='[3]2015_Tables-2'!H1620 -> 0.5 | K19: ='[3]2015_Tables-2'!I1620 -> 5 | L19: ='[3]2015_Tables-2'!J1620 -> 0.1
B20: 5 - 9 years | C20: ='[3]2015_Tables-2'!K1611 -> 152702 | D20: ='[3]2015_Tables-2'!B1621 -> 72.8 | E20: ='[3]2015_Tables-2'!C1621 -> 9.9 | F20: ='[3]2015_Tables-2'!D1621 -> 3 | G20: ='[3]2015_Tables-2'!E1621 -> 1.4 | H20: ='[3]2015_Tables-2'!F1621 -> 0.7 | I20: ='[3]2015_Tables-2'!G1621 -> 0.5 | J20: ='[3]2015_Tables-2'!H1621 -> 1.5 | K20: ='[3]2015_Tables-2'!I1621 -> 9.9 | L20: ='[3]2015_Tables-2'!J1621 -> 0.2
B21: 10 - 14 years | C21: ='[3]2015_Tables-2'!K1612 -> 114164 | D21: ='[3]2015_Tables-2'!B1622 -> 68.4 | E21: ='[3]2015_Tables-2'!C1622 -> 7.3 | F21: ='[3]2015_Tables-2'!D1622 -> 5.2 | G21: ='[3]2015_Tables-2'!E1622 -> 1.2 | H21: ='[3]2015_Tables-2'!F1622 -> 1.1 | I21: ='[3]2015_Tables-2'!G1622 -> 1.2 | J21: ='[3]2015_Tables-2'!H1622 -> 2.8 | K21: ='[3]2015_Tables-2'!I1622 -> 12.1 | L21: ='[3]2015_Tables-2'!J1622 -> 0.7
B22: 15 - 17 years | C22: ='[3]2015_Tables-2'!K1613 -> 53818 | D22: ='[3]2015_Tables-2'!B1623 -> 61.6 | E22: ='[3]2015_Tables-2'!C1623 -> 5.8 | F22: ='[3]2015_Tables-2'!D1623 -> 8.2 | G22: ='[3]2015_Tables-2'!E1623 -> 1.6 | H22: ='[3]2015_Tables-2'!F1623 -> 1.3 | I22: ='[3]2015_Tables-2'!G1623 -> 1.7 | J22: ='[3]2015_Tables-2'!H1623 -> 4 | K22: ='[3]2015_Tables-2'!I1623 -> 14.4 | L22: ='[3]2015_Tables-2'!J1623 -> 1.3

Sheet Tab3.1
A1: Table 3.1
A2: Distribution of Adult (15 years and above) Literacy Levels by Sex and District
C3: Adult literacy rate | D3: Male | G3: Female
D4: Count | E4: Literate | F4: Illiterate | G4: Count | H4: Literate | I4: Illiterate
A5: THE GAMBIA | C5: ='[4]2015_Tables-3'!$C$133 -> 50.8 | D5: ='[4]2015_Tables-3'!D200 -> 494319 | E5: ='[4]2015_Tables-3'!C267 -> 61.8 | F5: ='[4]2015_Tables-3'!B267 -> 38.2 | G5: ='[4]2015_Tables-3'!D334 -> 590397 | H5: ='[4]2015_Tables-3'!C401 -> 41.6 | I5: ='[4]2015_Tables-3'!B401 -> 58.4
B6: Urban | C6: ='[4]2015_Tables-3'!C131 -> 61.5 | D6: ='[4]2015_Tables-3'!D198 -> 297406 | E6: ='[4]2015_Tables-3'!C265 -> 70.4 | F6: ='[4]2015_Tables-3'!B265 -> 29.6 | G6: ='[4]2015_Tables-3'!D332 -> 343566 | H6: ='[4]2015_Tables-3'!C399 -> 53.8 | I6: ='[4]2015_Tables-3'!B399 -> 46.2
B7: Rural | C7: ='[4]2015_Tables-3'!C132 -> 35.3 | D7: ='[4]2015_Tables-3'!D199 -> 196913 | E7: ='[4]2015_Tables-3'!C266 -> 48.8 | F7: ='[4]2015_Tables-3'!B266 -> 51.2 | G7: ='[4]2015_Tables-3'!D333 -> 246831 | H7: ='[4]2015_Tables-3'!C400 -> 24.5 | I7: ='[4]2015_Tables-3'!B400 -> 75.5
A8: Banjul | C8: ='[4]2015_Tables-3'!C71 -> 73.7 | D8: ='[4]2015_Tables-3'!D138 -> 10769 | E8: ='[4]2015_Tables-3'!C205 -> 83.2 | F8: ='[4]2015_Tables-3'!B205 -> 16.8 | G8: ='[4]2015_Tables-3'!D272 -> 10208 | H8: ='[4]2015_Tables-3'!C339 -> 63.7 | I8: ='[4]2015_Tables-3'!B339 -> 36.3
B9: Urban | C9: ='[4]2015_Tables-3'!C84 -> 73.7 | D9: ='[4]2015_Tables-3'!D151 -> 10769 | E9: ='[4]2015_Tables-3'!C218 -> 83.2 | F9: ='[4]2015_Tables-3'!B218 -> 16.8 | G9: ='[4]2015_Tables-3'!D285 -> 10208 | H9: ='[4]2015_Tables-3'!C352 -> 63.7 | I9: ='[4]2015_Tables-3'!B352 -> 36.3
A10: Kanifing | C10: ='[4]2015_Tables-3'!C72 -> 70 | D10: ='[4]2015_Tables-3'!D139 -> 109331 | E10: ='[4]2015_Tables-3'!C206 -> 77.6 | F10: ='[4]2015_Tables-3'!B206 -> 22.4 | G10: ='[4]2015_Tables-3'!D273 -> 132050 | H10: ='[4]2015_Tables-3'!C340 -> 63.7 | I10: ='[4]2015_Tables-3'!B340 -> 36.3
B11: Urban | C11: ='[4]2015_Tables-3'!C85 -> 70 | D11: ='[4]2015_Tables-3'!D152 -> 109331 | E11: ='[4]2015_Tables-3'!C219 -> 77.6 | F11: ='[4]2015_Tables-3'!B219 -> 22.4 | G11: ='[4]2015_Tables-3'!D286 -> 132050 | H11: ='[4]2015_Tables-3'!C353 -> 63.7 | I11: ='[4]2015_Tables-3'!B353 -> 36.3
A12: Brikama | C12: ='[4]2015_Tables-3'!C73 -> 53.3 | D12: ='[4]2015_Tables-3'!D140 -> 198361 | E12: ='[4]2015_Tables-3'!C207 -> 63.2 | F12: ='[4]2015_Tables-3'!B207 -> 36.8 | G12: ='[4]2015_Tables-3'!D274 -> 222186 | H12: ='[4]2015_Tables-3'!C341 -> 44.5 | I12: ='[4]2015_Tables-3'!B341 -> 55.5
B13: Kombo North | C13: ='[4]2015_Tables-3'!C86 -> 64 | D13: ='[4]2015_Tables-3'!D153 -> 100684 | E13: ='[4]2015_Tables-3'!C220 -> 73.2 | F13: ='[4]2015_Tables-3'!B220 -> 26.8 | G13: ='[4]2015_Tables-3'!D287 -> 113540 | H13: ='[4]2015_Tables-3'!C354 -> 55.7 | I13: ='[4]2015_Tables-3'!B354 -> 44.3
B14: Kombo South | C14: ='[4]2015_Tables-3'!C87 -> 38.8 | D14: ='[4]2015_Tables-3'!D154 -> 29413 | E14: ='[4]2015_Tables-3'!C221 -> 48.3 | F14: ='[4]2015_Tables-3'!B221 -> 51.7 | G14: ='[4]2015_Tables-3'!D288 -> 32456 | H14: ='[4]2015_Tables-3'!C355 -> 30.2 | I14: ='[4]2015_Tables-3'!B355 -> 69.8
B15: Kombo Central | C15: ='[4]2015_Tables-3'!C88 -> 49.5 | D15: ='[4]2015_Tables-3'!D155 -> 41608 | E15: ='[4]2015_Tables-3'!C222 -> 59.6 | F15: ='[4]2015_Tables-3'!B222 -> 40.4 | G15: ='[4]2015_Tables-3'!D289 -> 44355 | H15: ='[4]2015_Tables-3'!C356 -> 40 | I15: ='[4]2015_Tables-3'!B356 -> 60
B16: Kombo East | C16: ='[4]2015_Tables-3'!C89 -> 38.7 | D16: ='[4]2015_Tables-3'!D156 -> 11379 | E16: ='[4]2015_Tables-3'!C223 -> 52 | F16: ='[4]2015_Tables-3'!B223 -> 48 | G16: ='[4]2015_Tables-3'!D290 -> 13085 | H16: ='[4]2015_Tables-3'!C357 -> 27.2 | I16: ='[4]2015_Tables-3'!B357 -> 72.8
B17: Foni Brefet | C17: ='[4]2015_Tables-3'!C90 -> 31.5 | D17: ='[4]2015_Tables-3'!D157 -> 3715 | E17: ='[4]2015_Tables-3'!C224 -> 43.2 | F17: ='[4]2015_Tables-3'!B224 -> 56.8 | G17: ='[4]2015_Tables-3'!D291 -> 4345 | H17: ='[4]2015_Tables-3'!C358 -> 21.4 | I17: ='[4]2015_Tables-3'!B358 -> 78.6
B18: Foni Bintang | C18: ='[4]2015_Tables-3'!C91 -> 29.1 | D18: ='[4]2015_Tables-3'!D158 -> 4406 | E18: ='[4]2015_Tables-3'!C225 -> 39.2 | F18: ='[4]2015_Tables-3'!B225 -> 60.8 | G18: ='[4]2015_Tables-3'!D292 -> 5318 | H18: ='[4]2015_Tables-3'!C359 -> 20.7 | I18: ='[4]2015_Tables-3'!B359 -> 79.3
B19: Foni Kansalla | C19: ='[4]2015_Tables-3'!C92 -> 32.2 | D19: ='[4]2015_Tables-3'!D159 -> 3478 | E19: ='[4]2015_Tables-3'!C226 -> 41 | F19: ='[4]2015_Tables-3'!B226 -> 59 | G19: ='[4]2015_Tables-3'!D293 -> 4658 | H19: ='[4]2015_Tables-3'!C360 -> 25.6 | I19: ='[4]2015_Tables-3'!B360 -> 74.4
B20: Foni Bundali | C20: ='[4]2015_Tables-3'!C93 -> 32.6 | D20: ='[4]2015_Tables-3'!D160 -> 2021 | E20: ='[4]2015_Tables-3'!C227 -> 44 | F20: ='[4]2015_Tables-3'!B227 -> 56 | G20: ='[4]2015_Tables-3'!D294 -> 2082 | H20: ='[4]2015_Tables-3'!C361 -> 21.6 | I20: ='[4]2015_Tables-3'!B361 -> 78.4
B21: Foni Jarrol | C21: ='[4]2015_Tables-3'!C94 -> 46.3 | D21: ='[4]2015_Tables-3'!D161 -> 1656 | E21: ='[4]2015_Tables-3'!C228 -> 60.3 | F21: ='[4]2015_Tables-3'!B228 -> 39.7 | G21: ='[4]2015_Tables-3'!D295 -> 2346 | H21: ='[4]2015_Tables-3'!C362 -> 36.4 | I21: ='[4]2015_Tables-3'!B362 -> 63.6
A22: Mansakonko | C22: ='[4]2015_Tables-3'!C74 -> 34.6 | D22: ='[4]2015_Tables-3'!D141 -> 18826 | E22: ='[4]2015_Tables-3'!C208 -> 50.5 | F22: ='[4]2015_Tables-3'!B208 -> 49.5 | G22: ='[4]2015_Tables-3'!D275 -> 25030 | H22: ='[4]2015_Tables-3'!C342 -> 22.5 | I22: ='[4]2015_Tables-3'!B342 -> 77.5
B23: Kiang West | C23: ='[4]2015_Tables-3'!C95 -> 42.4 | D23: ='[4]2015_Tables-3'!D162 -> 3268 | E23: ='[4]2015_Tables-3'!C229 -> 56.5 | F23: ='[4]2015_Tables-3'!B229 -> 43.5 | G23: ='[4]2015_Tables-3'!D296 -> 4782 | H23: ='[4]2015_Tables-3'!C363 -> 32.8 | I23: ='[4]2015_Tables-3'!B363 -> 67.2
B24: Kiang Cental | C24: ='[4]2015_Tables-3'!C96 -> 34.3 | D24: ='[4]2015_Tables-3'!D163 -> 1921 | E24: ='[4]2015_Tables-3'!C230 -> 49 | F24: ='[4]2015_Tables-3'!B230 -> 51 | G24: ='[4]2015_Tables-3'!D297 -> 2658 | H24: ='[4]2015_Tables-3'!C364 -> 23.7 | I24: ='[4]2015_Tables-3'!B364 -> 76.3
B25: Kiang East | C25: ='[4]2015_Tables-3'!C97 -> 29 | D25: ='[4]2015_Tables-3'!D164 -> 1588 | E25: ='[4]2015_Tables-3'!C231 -> 41.9 | F25: ='[4]2015_Tables-3'!B231 -> 58.1 | G25: ='[4]2015_Tables-3'!D298 -> 2213 | H25: ='[4]2015_Tables-3'!C365 -> 19.7 | I25: ='[4]2015_Tables-3'!B365 -> 80.3
B26: Jarra West | C26: ='[4]2015_Tables-3'!C98 -> 36.1 | D26: ='[4]2015_Tables-3'!D165 -> 6272 | E26: ='[4]2015_Tables-3'!C232 -> 52.1 | F26: ='[4]2015_Tables-3'!B232 -> 47.9 | G26: ='[4]2015_Tables-3'!D299 -> 7926 | H26: ='[4]2015_Tables-3'!C366 -> 23.5 | I26: ='[4]2015_Tables-3'!B366 -> 76.5
B27: Jarra Central | C27: ='[4]2015_Tables-3'!C99 -> 25.8 | D27: ='[4]2015_Tables-3'!D166 -> 2008 | E27: ='[4]2015_Tables-3'!C233 -> 41.5 | F27: ='[4]2015_Tables-3'!B233 -> 58.5 | G27: ='[4]2015_Tables-3'!D300 -> 2421 | H27: ='[4]2015_Tables-3'!C367 -> 12.7 | I27: ='[4]2015_Tables-3'!B367 -> 87.3
B28: Jarra East | C28: ='[4]2015_Tables-3'!C100 -> 31.8 | D28: ='[4]2015_Tables-3'!D167 -> 3770 | E28: ='[4]2015_Tables-3'!C234 -> 52.2 | F28: ='[4]2015_Tables-3'!B234 -> 47.8 | G28: ='[4]2015_Tables-3'!D301 -> 5029 | H28: ='[4]2015_Tables-3'!C368 -> 16.5 | I28: ='[4]2015_Tables-3'!B368 -> 83.5
A29: Kerewan | C29: ='[4]2015_Tables-3'!C75 -> 44.1 | D29: ='[4]2015_Tables-3'!D142 -> 52978 | E29: ='[4]2015_Tables-3'!C209 -> 57.9 | F29: ='[4]2015_Tables-3'!B209 -> 42.1 | G29: ='[4]2015_Tables-3'!D276 -> 66570 | H29: ='[4]2015_Tables-3'!C343 -> 33.2 | I29: ='[4]2015_Tables-3'!B343 -> 66.8
B30: Lower Niumi | C30: ='[4]2015_Tables-3'!C101 -> 63.7 | D30: ='[4]2015_Tables-3'!D168 -> 14820 | E30: ='[4]2015_Tables-3'!C235 -> 76.2 | F30: ='[4]2015_Tables-3'!B235 -> 23.8 | G30: ='[4]2015_Tables-3'!D302 -> 17765 | H30: ='[4]2015_Tables-3'!C369 -> 53.3 | I30: ='[4]2015_Tables-3'!B369 -> 46.7
B31: Upper Niumi | C31: ='[4]2015_Tables-3'!C102 -> 51.1 | D31: ='[4]2015_Tables-3'!D169 -> 7389 | E31: ='[4]2015_Tables-3'!C236 -> 69 | F31: ='[4]2015_Tables-3'!B236 -> 31 | G31: ='[4]2015_Tables-3'!D303 -> 9219 | H31: ='[4]2015_Tables-3'!C370 -> 36.8 | I31: ='[4]2015_Tables-3'!B370 -> 63.2
B32: Jokadu | C32: ='[4]2015_Tables-3'!C103 -> 57.5 | D32: ='[4]2015_Tables-3'!D170 -> 5338 | E32: ='[4]2015_Tables-3'!C237 -> 73.8 | F32: ='[4]2015_Tables-3'!B237 -> 26.2 | G32: ='[4]2015_Tables-3'!D304 -> 6352 | H32: ='[4]2015_Tables-3'!C371 -> 43.7 | I32: ='[4]2015_Tables-3'!B371 -> 56.3
B33: Lower Badibu | C33: ='[4]2015_Tables-3'!C104 -> 39.9 | D33: ='[4]2015_Tables-3'!D171 -> 4099 | E33: ='[4]2015_Tables-3'!C238 -> 51 | F33: ='[4]2015_Tables-3'!B238 -> 49 | G33: ='[4]2015_Tables-3'!D305 -> 5410 | H33: ='[4]2015_Tables-3'!C372 -> 31.5 | I33: ='[4]2015_Tables-3'!B372 -> 68.5
B34: Central Badibu | C34: ='[4]2015_Tables-3'!C105 -> 24 | D34: ='[4]2015_Tables-3'!D172 -> 4295 | E34: ='[4]2015_Tables-3'!C239 -> 34.5 | F34: ='[4]2015_Tables-3'!B239 -> 65.5 | G34: ='[4]2015_Tables-3'!D306 -> 5849 | H34: ='[4]2015_Tables-3'!C373 -> 16.3 | I34: ='[4]2015_Tables-3'!B373 -> 83.7
B35: Illiasa | C35: ='[4]2015_Tables-3'!C106 -> 28.4 | D35: ='[4]2015_Tables-3'!D173 -> 11661 | E35: ='[4]2015_Tables-3'!C240 -> 39.8 | F35: ='[4]2015_Tables-3'!B240 -> 60.2 | G35: ='[4]2015_Tables-3'!D307 -> 15175 | H35: ='[4]2015_Tables-3'!C374 -> 19.7 | I35: ='[4]2015_Tables-3'!B374 -> 80.3
B36: Sabach Sanjal | C36: ='[4]2015_Tables-3'!C107 -> 23.8 | D36: ='[4]2015_Tables-3'!D174 -> 5377 | E36: ='[4]2015_Tables-3'!C241 -> 39.1 | F36: ='[4]2015_Tables-3'!B241 -> 60.9 | G36: ='[4]2015_Tables-3'!D308 -> 6799 | H36: ='[4]2015_Tables-3'!C375 -> 11.7 | I36: ='[4]2015_Tables-3'!B375 -> 88.3
A37: Kuntaur | C37: ='[4]2015_Tables-3'!C76 -> 22.8 | D37: ='[4]2015_Tables-3'!D143 -> 21697 | E37: ='[4]2015_Tables-3'!C210 -> 33.7 | F37: ='[4]2015_Tables-3'!B210 -> 66.3 | G37: ='[4]2015_Tables-3'!D277 -> 27587 | H37: ='[4]2015_Tables-3'!C344 -> 14.2 | I37: ='[4]2015_Tables-3'!B344 -> 85.8
B38: Lower Saloum | C38: ='[4]2015_Tables-3'!C108 -> 26.2 | D38: ='[4]2015_Tables-3'!D175 -> 3731 | E38: ='[4]2015_Tables-3'!C242 -> 38.6 | F38: ='[4]2015_Tables-3'!B242 -> 61.4 | G38: ='[4]2015_Tables-3'!D309 -> 4869 | H38: ='[4]2015_Tables-3'!C376 -> 16.7 | I38: ='[4]2015_Tables-3'!B376 -> 83.3
B39: Upper Saloum | C39: ='[4]2015_Tables-3'!C109 -> 23.6 | D39: ='[4]2015_Tables-3'!D176 -> 3808 | E39: ='[4]2015_Tables-3'!C243 -> 38.5 | F39: ='[4]2015_Tables-3'!B243 -> 61.5 | G39: ='[4]2015_Tables-3'!D310 -> 5183 | H39: ='[4]2015_Tables-3'!C377 -> 12.7 | I39: ='[4]2015_Tables-3'!B377 -> 87.3
B40: Nianija | C40: ='[4]2015_Tables-3'!C110 -> 23.5 | D40: ='[4]2015_Tables-3'!D177 -> 2383 | E40: ='[4]2015_Tables-3'!C244 -> 37.9 | F40: ='[4]2015_Tables-3'!B244 -> 62.1 | G40: ='[4]2015_Tables-3'!D311 -> 2636 | H40: ='[4]2015_Tables-3'!C378 -> 10.4 | I40: ='[4]2015_Tables-3'!B378 -> 89.6
B41: Niani | C41: ='[4]2015_Tables-3'!C111 -> 21.6 | D41: ='[4]2015_Tables-3'!D178 -> 6179 | E41: ='[4]2015_Tables-3'!C245 -> 29.6 | F41: ='[4]2015_Tables-3'!B245 -> 70.4 | G41: ='[4]2015_Tables-3'!D312 -> 8006 | H41: ='[4]2015_Tables-3'!C379 -> 15.5 | I41: ='[4]2015_Tables-3'!B379 -> 84.5
B42: Sami | C42: ='[4]2015_Tables-3'!C112 -> 20.8 | D42: ='[4]2015_Tables-3'!D179 -> 5597 | E42: ='[4]2015_Tables-3'!C246 -> 29.9 | F42: ='[4]2015_Tables-3'!B246 -> 70.1 | G42: ='[4]2015_Tables-3'!D313 -> 6894 | H42: ='[4]2015_Tables-3'!C380 -> 13.3 | I42: ='[4]2015_Tables-3'!B380 -> 86.7 | J42: cont'd
A43: Janjanbureh | C43: ='[4]2015_Tables-3'!C77 -> 44.2 | D43: ='[4]2015_Tables-3'!D144 -> 29283 | E43: ='[4]2015_Tables-3'!C211 -> 53.7 | F43: ='[4]2015_Tables-3'!B211 -> 46.3 | G43: ='[4]2015_Tables-3'!D278 -> 36594 | H43: ='[4]2015_Tables-3'!C345 -> 36.6 | I43: ='[4]2015_Tables-3'!B345 -> 63.4
B44: Niamina Dankunku | C44: ='[4]2015_Tables-3'!C113 -> 34.6 | D44: ='[4]2015_Tables-3'!D180 -> 1526 | E44: ='[4]2015_Tables-3'!C247 -> 47.7 | F44: ='[4]2015_Tables-3'!B247 -> 52.3 | G44: ='[4]2015_Tables-3'!D314 -> 1795 | H44: ='[4]2015_Tables-3'!C381 -> 23.5 | I44: ='[4]2015_Tables-3'!B381 -> 76.5
B45: Niamina West | C45: ='[4]2015_Tables-3'!C114 -> 46.3 | D45: ='[4]2015_Tables-3'!D181 -> 1686 | E45: ='[4]2015_Tables-3'!C248 -> 54.5 | F45: ='[4]2015_Tables-3'!B248 -> 45.5 | G45: ='[4]2015_Tables-3'!D315 -> 2019 | H45: ='[4]2015_Tables-3'!C382 -> 39.6 | I45: ='[4]2015_Tables-3'!B382 -> 60.4
B46: Niamina East | C46: ='[4]2015_Tables-3'!C115 -> 63.1 | D46: ='[4]2015_Tables-3'!D182 -> 5369 | E46: ='[4]2015_Tables-3'!C249 -> 72.3 | F46: ='[4]2015_Tables-3'!B249 -> 27.7 | G46: ='[4]2015_Tables-3'!D316 -> 7114 | H46: ='[4]2015_Tables-3'!C383 -> 56.2 | I46: ='[4]2015_Tables-3'!B383 -> 43.8
B47: Lower Fuladu West | C47: ='[4]2015_Tables-3'!C116 -> 49.8 | D47: ='[4]2015_Tables-3'!D183 -> 9269 | E47: ='[4]2015_Tables-3'!C250 -> 62.1 | F47: ='[4]2015_Tables-3'!B250 -> 37.9 | G47: ='[4]2015_Tables-3'!D317 -> 11469 | H47: ='[4]2015_Tables-3'!C384 -> 39.9 | I47: ='[4]2015_Tables-3'!B384 -> 60.1
B48: Upper Fuladu West | C48: ='[4]2015_Tables-3'!C117 -> 28.4 | D48: ='[4]2015_Tables-3'!D184 -> 10367 | E48: ='[4]2015_Tables-3'!C251 -> 35.1 | F48: ='[4]2015_Tables-3'!B251 -> 64.9 | G48: ='[4]2015_Tables-3'!D318 -> 12978 | H48: ='[4]2015_Tables-3'!C385 -> 23.1 | I48: ='[4]2015_Tables-3'!B385 -> 76.9
B49: Janjanbureh | C49: ='[4]2015_Tables-3'!C118 -> 61.5 | D49: ='[4]2015_Tables-3'!D185 -> 1066 | E49: ='[4]2015_Tables-3'!C252 -> 75.4 | F49: ='[4]2015_Tables-3'!B252 -> 24.6 | G49: ='[4]2015_Tables-3'!D319 -> 1218 | H49: ='[4]2015_Tables-3'!C386 -> 49.4 | I49: ='[4]2015_Tables-3'!B386 -> 50.6
A50: Basse | C50: ='[4]2015_Tables-3'!C78 -> 27.6 | D50: ='[4]2015_Tables-3'!D145 -> 53074 | E50: ='[4]2015_Tables-3'!C212 -> 43.5 | F50: ='[4]2015_Tables-3'!B212 -> 56.5 | G50: ='[4]2015_Tables-3'!D279 -> 70173 | H50: ='[4]2015_Tables-3'!C346 -> 15.5 | I50: ='[4]2015_Tables-3'!B346 -> 84.5
B51: Jimara | C51: ='[4]2015_Tables-3'!C119 -> 27.7 | D51: ='[4]2015_Tables-3'!D186 -> 9834 | E51: ='[4]2015_Tables-3'!C253 -> 44.2 | F51: ='[4]2015_Tables-3'!B253 -> 55.8 | G51: ='[4]2015_Tables-3'!D320 -> 12767 | H51: ='[4]2015_Tables-3'!C387 -> 15 | I51: ='[4]2015_Tables-3'!B387 -> 85
B52: Basse | C52: ='[4]2015_Tables-3'!C120 -> 43.4 | D52: ='[4]2015_Tables-3'!D187 -> 13083 | E52: ='[4]2015_Tables-3'!C254 -> 60 | F52: ='[4]2015_Tables-3'!B254 -> 40 | G52: ='[4]2015_Tables-3'!D321 -> 14726 | H52: ='[4]2015_Tables-3'!C388 -> 28.8 | I52: ='[4]2015_Tables-3'!B388 -> 71.2
B53: Tumana | C53: ='[4]2015_Tables-3'!C121 -> 28.6 | D53: ='[4]2015_Tables-3'!D188 -> 7565 | E53: ='[4]2015_Tables-3'!C255 -> 48.2 | F53: ='[4]2015_Tables-3'!B255 -> 51.8 | G53: ='[4]2015_Tables-3'!D322 -> 10824 | H53: ='[4]2015_Tables-3'!C389 -> 14.8 | I53: ='[4]2015_Tables-3'!B389 -> 85.2
B54: Kantora | C54: ='[4]2015_Tables-3'!C122 -> 20.9 | D54: ='[4]2015_Tables-3'!D189 -> 7824 | E54: ='[4]2015_Tables-3'!C256 -> 40 | F54: ='[4]2015_Tables-3'!B256 -> 60 | G54: ='[4]2015_Tables-3'!D323 -> 11889 | H54: ='[4]2015_Tables-3'!C390 -> 8.4 | I54: ='[4]2015_Tables-3'!B390 -> 91.6
B55: Wuli West | C55: ='[4]2015_Tables-3'!C123 -> 18 | D55: ='[4]2015_Tables-3'!D190 -> 4717 | E55: ='[4]2015_Tables-3'!C257 -> 29 | F55: ='[4]2015_Tables-3'!B257 -> 71 | G55: ='[4]2015_Tables-3'!D324 -> 6485 | H55: ='[4]2015_Tables-3'!C391 -> 10 | I55: ='[4]2015_Tables-3'!B391 -> 90
B56: Wuli East | C56: ='[4]2015_Tables-3'!C124 -> 17 | D56: ='[4]2015_Tables-3'!D191 -> 5023 | E56: ='[4]2015_Tables-3'!C258 -> 25.5 | F56: ='[4]2015_Tables-3'!B258 -> 74.5 | G56: ='[4]2015_Tables-3'!D325 -> 6749 | H56: ='[4]2015_Tables-3'!C392 -> 10.7 | I56: ='[4]2015_Tables-3'!B392 -> 89.3
B57: Sandu | C57: ='[4]2015_Tables-3'!C125 -> 19.3 | D57: ='[4]2015_Tables-3'!D192 -> 5027 | E57: ='[4]2015_Tables-3'!C259 -> 29.3 | F57: ='[4]2015_Tables-3'!B259 -> 70.7 | G57: ='[4]2015_Tables-3'!D326 -> 6733 | H57: ='[4]2015_Tables-3'!C393 -> 11.8 | I57: ='[4]2015_Tables-3'!B393 -> 88.2

Sheet Tab3.2
A1: Table 3.2
A2: Distribution of Adult (15 years and above) Literacy Levels by Area of Residence, Sex and Broad Age-groups
C3: NATIONAL | F3: URBAN | I3: RURAL
C4: Count | D4: Literate | E4: Illiterate | F4: Count | G4: Literate | H4: Illiterate | I4: Count | J4: Literate | K4: Illiterate
A5: THE GAMBIA | C5: ='[4]2015_Tables-3'!D417 -> 1084716 | D5: ='[4]2015_Tables-3'!C465 -> 50.8 | E5: ='[4]2015_Tables-3'!B465 -> 49.2 | F5: ='[4]2015_Tables-3'!D433 -> 640972 | G5: ='[4]2015_Tables-3'!C481 -> 61.5 | H5: ='[4]2015_Tables-3'!B481 -> 38.5 | I5: ='[4]2015_Tables-3'!D449 -> 443744 | J5: ='[4]2015_Tables-3'!C497 -> 35.3 | K5: ='[4]2015_Tables-3'!B497 -> 64.7
B6: 15 - 19 years | C6: ='[4]2015_Tables-3'!D406 -> 198367 | D6: ='[4]2015_Tables-3'!C454 -> 68.4 | E6: ='[4]2015_Tables-3'!B454 -> 31.6 | F6: ='[4]2015_Tables-3'!D422 -> 114445 | G6: ='[4]2015_Tables-3'!C470 -> 79.1 | H6: ='[4]2015_Tables-3'!B470 -> 20.9 | I6: ='[4]2015_Tables-3'!D438 -> 83922 | J6: ='[4]2015_Tables-3'!C486 -> 53.8 | K6: ='[4]2015_Tables-3'!B486 -> 46.2
B7: 20 - 24 years | C7: ='[4]2015_Tables-3'!D407 -> 180479 | D7: ='[4]2015_Tables-3'!C455 -> 65.8 | E7: ='[4]2015_Tables-3'!B455 -> 34.2 | F7: ='[4]2015_Tables-3'!D423 -> 115445 | G7: ='[4]2015_Tables-3'!C471 -> 76 | H7: ='[4]2015_Tables-3'!B471 -> 24 | I7: ='[4]2015_Tables-3'!D439 -> 65034 | J7: ='[4]2015_Tables-3'!C487 -> 47.8 | K7: ='[4]2015_Tables-3'!B487 -> 52.2
B8: 25 - 29 years | C8: ='[4]2015_Tables-3'!D408 -> 151669 | D8: ='[4]2015_Tables-3'!C456 -> 55.5 | E8: ='[4]2015_Tables-3'!B456 -> 44.5 | F8: ='[4]2015_Tables-3'!D424 -> 96080 | G8: ='[4]2015_Tables-3'!C472 -> 65.7 | H8: ='[4]2015_Tables-3'!B472 -> 34.3 | I8: ='[4]2015_Tables-3'!D440 -> 55589 | J8: ='[4]2015_Tables-3'!C488 -> 37.8 | K8: ='[4]2015_Tables-3'!B488 -> 62.2
B9: 30 - 34 years | C9: ='[4]2015_Tables-3'!D409 -> 127754 | D9: ='[4]2015_Tables-3'!C457 -> 47.8 | E9: ='[4]2015_Tables-3'!B457 -> 52.2 | F9: ='[4]2015_Tables-3'!D425 -> 78401 | G9: ='[4]2015_Tables-3'!C473 -> 59.1 | H9: ='[4]2015_Tables-3'!B473 -> 40.9 | I9: ='[4]2015_Tables-3'!D441 -> 49352 | J9: ='[4]2015_Tables-3'!C489 -> 29.9 | K9: ='[4]2015_Tables-3'!B489 -> 70.1
B10: 35 - 39 years | C10: ='[4]2015_Tables-3'!D410 -> 109161 | D10: ='[4]2015_Tables-3'!C458 -> 40.7 | E10: ='[4]2015_Tables-3'!B458 -> 59.3 | F10: ='[4]2015_Tables-3'!D426 -> 66199 | G10: ='[4]2015_Tables-3'!C474 -> 50.1 | H10: ='[4]2015_Tables-3'!B474 -> 49.9 | I10: ='[4]2015_Tables-3'!D442 -> 42961 | J10: ='[4]2015_Tables-3'!C490 -> 26.1 | K10: ='[4]2015_Tables-3'!B490 -> 73.9
B11: 40 - 44 years | C11: ='[4]2015_Tables-3'!D411 -> 81698 | D11: ='[4]2015_Tables-3'!C459 -> 42 | E11: ='[4]2015_Tables-3'!B459 -> 58 | F11: ='[4]2015_Tables-3'!D427 -> 47312 | G11: ='[4]2015_Tables-3'!C475 -> 54.9 | H11: ='[4]2015_Tables-3'!B475 -> 45.1 | I11: ='[4]2015_Tables-3'!D443 -> 34386 | J11: ='[4]2015_Tables-3'!C491 -> 24.3 | K11: ='[4]2015_Tables-3'!B491 -> 75.7
B12: 45 - 49 years | C12: ='[4]2015_Tables-3'!D412 -> 61757 | D12: ='[4]2015_Tables-3'!C460 -> 34.9 | E12: ='[4]2015_Tables-3'!B460 -> 65.1 | F12: ='[4]2015_Tables-3'!D428 -> 34649 | G12: ='[4]2015_Tables-3'!C476 -> 42.6 | H12: ='[4]2015_Tables-3'!B476 -> 57.4 | I12: ='[4]2015_Tables-3'!D444 -> 27107 | J12: ='[4]2015_Tables-3'!C492 -> 25.1 | K12: ='[4]2015_Tables-3'!B492 -> 74.9
B13: 50 - 54 years | C13: ='[4]2015_Tables-3'!D413 -> 52727 | D13: ='[4]2015_Tables-3'!C461 -> 34.5 | E13: ='[4]2015_Tables-3'!B461 -> 65.5 | F13: ='[4]2015_Tables-3'!D429 -> 28742 | G13: ='[4]2015_Tables-3'!C477 -> 44.3 | H13: ='[4]2015_Tables-3'!B477 -> 55.7 | I13: ='[4]2015_Tables-3'!D445 -> 23985 | J13: ='[4]2015_Tables-3'!C493 -> 22.7 | K13: ='[4]2015_Tables-3'!B493 -> 77.3
B14: 55 - 59 years | C14: ='[4]2015_Tables-3'!D414 -> 35759 | D14: ='[4]2015_Tables-3'!C462 -> 30.5 | E14: ='[4]2015_Tables-3'!B462 -> 69.5 | F14: ='[4]2015_Tables-3'!D430 -> 20122 | G14: ='[4]2015_Tables-3'!C478 -> 37.8 | H14: ='[4]2015_Tables-3'!B478 -> 62.2 | I14: ='[4]2015_Tables-3'!D446 -> 15637 | J14: ='[4]2015_Tables-3'!C494 -> 21 | K14: ='[4]2015_Tables-3'!B494 -> 79
B15: 60 - 64 years | C15: ='[4]2015_Tables-3'!D415 -> 30155 | D15: ='[4]2015_Tables-3'!C463 -> 27.2 | E15: ='[4]2015_Tables-3'!B463 -> 72.8 | F15: ='[4]2015_Tables-3'!D431 -> 14511 | G15: ='[4]2015_Tables-3'!C479 -> 32 | H15: ='[4]2015_Tables-3'!B479 -> 68 | I15: ='[4]2015_Tables-3'!D447 -> 15644 | J15: ='[4]2015_Tables-3'!C495 -> 22.7 | K15: ='[4]2015_Tables-3'!B495 -> 77.3
B16: 65+ years | C16: ='[4]2015_Tables-3'!D416 -> 55191 | D16: ='[4]2015_Tables-3'!C464 -> 24.5 | E16: ='[4]2015_Tables-3'!B464 -> 75.5 | F16: ='[4]2015_Tables-3'!D432 -> 25063 | G16: ='[4]2015_Tables-3'!C480 -> 30.5 | H16: ='[4]2015_Tables-3'!B480 -> 69.5 | I16: ='[4]2015_Tables-3'!D448 -> 30128 | J16: ='[4]2015_Tables-3'!C496 -> 19.5 | K16: ='[4]2015_Tables-3'!B496 -> 80.5
A17: MALE | C17: ='[4]2015_Tables-3'!D513 -> 494319 | D17: ='[4]2015_Tables-3'!C561 -> 61.8 | E17: ='[4]2015_Tables-3'!B561 -> 38.2 | F17: ='[4]2015_Tables-3'!D529 -> 297406 | G17: ='[4]2015_Tables-3'!C577 -> 70.4 | H17: ='[4]2015_Tables-3'!B577 -> 29.6 | I17: ='[4]2015_Tables-3'!D545 -> 196913 | J17: ='[4]2015_Tables-3'!C593 -> 48.8 | K17: ='[4]2015_Tables-3'!B593 -> 51.2
B18: 15 - 19 years | C18: ='[4]2015_Tables-3'!D502 -> 87274 | D18: ='[4]2015_Tables-3'!C550 -> 69.3 | E18: ='[4]2015_Tables-3'!B550 -> 30.7 | F18: ='[4]2015_Tables-3'!D518 -> 47786 | G18: ='[4]2015_Tables-3'!C566 -> 79.2 | H18: ='[4]2015_Tables-3'!B566 -> 20.8 | I18: ='[4]2015_Tables-3'!D534 -> 39489 | J18: ='[4]2015_Tables-3'!C582 -> 57.4 | K18: ='[4]2015_Tables-3'!B582 -> 42.6
B19: 20 - 24 years | C19: ='[4]2015_Tables-3'!D503 -> 76050 | D19: ='[4]2015_Tables-3'!C551 -> 72.4 | E19: ='[4]2015_Tables-3'!B551 -> 27.6 | F19: ='[4]2015_Tables-3'!D519 -> 47655 | G19: ='[4]2015_Tables-3'!C567 -> 80.4 | H19: ='[4]2015_Tables-3'!B567 -> 19.6 | I19: ='[4]2015_Tables-3'!D535 -> 28395 | J19: ='[4]2015_Tables-3'!C583 -> 59.1 | K19: ='[4]2015_Tables-3'!B583 -> 40.9
B20: 25 - 29 years | C20: ='[4]2015_Tables-3'!D504 -> 62431 | D20: ='[4]2015_Tables-3'!C552 -> 71.5 | E20: ='[4]2015_Tables-3'!B552 -> 28.5 | F20: ='[4]2015_Tables-3'!D520 -> 40579 | G20: ='[4]2015_Tables-3'!C568 -> 80.1 | H20: ='[4]2015_Tables-3'!B568 -> 19.9 | I20: ='[4]2015_Tables-3'!D536 -> 21852 | J20: ='[4]2015_Tables-3'!C584 -> 55.7 | K20: ='[4]2015_Tables-3'!B584 -> 44.3
B21: 30 - 34 years | C21: ='[4]2015_Tables-3'!D505 -> 57532 | D21: ='[4]2015_Tables-3'!C553 -> 64.6 | E21: ='[4]2015_Tables-3'!B553 -> 35.4 | F21: ='[4]2015_Tables-3'!D521 -> 38439 | G21: ='[4]2015_Tables-3'!C569 -> 72.3 | H21: ='[4]2015_Tables-3'!B569 -> 27.7 | I21: ='[4]2015_Tables-3'!D537 -> 19093 | J21: ='[4]2015_Tables-3'!C585 -> 49 | K21: ='[4]2015_Tables-3'!B585 -> 51
B22: 35 - 39 years | C22: ='[4]2015_Tables-3'!D506 -> 49913 | D22: ='[4]2015_Tables-3'!C554 -> 56.2 | E22: ='[4]2015_Tables-3'!B554 -> 43.8 | F22: ='[4]2015_Tables-3'!D522 -> 32130 | G22: ='[4]2015_Tables-3'!C570 -> 62.4 | H22: ='[4]2015_Tables-3'!B570 -> 37.6 | I22: ='[4]2015_Tables-3'!D538 -> 17783 | J22: ='[4]2015_Tables-3'!C586 -> 45.1 | K22: ='[4]2015_Tables-3'!B586 -> 54.9
B23: 40 - 44 years | C23: ='[4]2015_Tables-3'!D507 -> 39032 | D23: ='[4]2015_Tables-3'!C555 -> 58.2 | E23: ='[4]2015_Tables-3'!B555 -> 41.8 | F23: ='[4]2015_Tables-3'!D523 -> 23918 | G23: ='[4]2015_Tables-3'!C571 -> 68.3 | H23: ='[4]2015_Tables-3'!B571 -> 31.7 | I23: ='[4]2015_Tables-3'!D539 -> 15114 | J23: ='[4]2015_Tables-3'!C587 -> 42.2 | K23: ='[4]2015_Tables-3'!B587 -> 57.8
B24: 45 - 49 years | C24: ='[4]2015_Tables-3'!D508 -> 32235 | D24: ='[4]2015_Tables-3'!C556 -> 52.2 | E24: ='[4]2015_Tables-3'!B556 -> 47.8 | F24: ='[4]2015_Tables-3'!D524 -> 19389 | G24: ='[4]2015_Tables-3'!C572 -> 59.3 | H24: ='[4]2015_Tables-3'!B572 -> 40.7 | I24: ='[4]2015_Tables-3'!D540 -> 12846 | J24: ='[4]2015_Tables-3'!C588 -> 41.4 | K24: ='[4]2015_Tables-3'!B588 -> 58.6
B25: 50 - 54 years | C25: ='[4]2015_Tables-3'!D509 -> 27286 | D25: ='[4]2015_Tables-3'!C557 -> 53 | E25: ='[4]2015_Tables-3'!B557 -> 47 | F25: ='[4]2015_Tables-3'!D525 -> 16285 | G25: ='[4]2015_Tables-3'!C573 -> 61.7 | H25: ='[4]2015_Tables-3'!B573 -> 38.3 | I25: ='[4]2015_Tables-3'!D541 -> 11001 | J25: ='[4]2015_Tables-3'!C589 -> 40.1 | K25: ='[4]2015_Tables-3'!B589 -> 59.9
B26: 55 - 59 years | C26: ='[4]2015_Tables-3'!D510 -> 18075 | D26: ='[4]2015_Tables-3'!C558 -> 46.1 | E26: ='[4]2015_Tables-3'!B558 -> 53.9 | F26: ='[4]2015_Tables-3'!D526 -> 9561 | G26: ='[4]2015_Tables-3'!C574 -> 57.1 | H26: ='[4]2015_Tables-3'!B574 -> 42.9 | I26: ='[4]2015_Tables-3'!D542 -> 8514 | J26: ='[4]2015_Tables-3'!C590 -> 33.6 | K26: ='[4]2015_Tables-3'!B590 -> 66.4
B27: 60 - 64 years | C27: ='[4]2015_Tables-3'!D511 -> 16034 | D27: ='[4]2015_Tables-3'!C559 -> 39.8 | E27: ='[4]2015_Tables-3'!B559 -> 60.2 | F27: ='[4]2015_Tables-3'!D527 -> 8600 | G27: ='[4]2015_Tables-3'!C575 -> 40.1 | H27: ='[4]2015_Tables-3'!B575 -> 59.9 | I27: ='[4]2015_Tables-3'!D543 -> 7434 | J27: ='[4]2015_Tables-3'!C591 -> 39.5 | K27: ='[4]2015_Tables-3'!B591 -> 60.5
B28: 65+ years | C28: ='[4]2015_Tables-3'!D512 -> 28457 | D28: ='[4]2015_Tables-3'!C560 -> 39.4 | E28: ='[4]2015_Tables-3'!B560 -> 60.6 | F28: ='[4]2015_Tables-3'!D528 -> 13063 | G28: ='[4]2015_Tables-3'!C576 -> 46.6 | H28: ='[4]2015_Tables-3'!B576 -> 53.4 | I28: ='[4]2015_Tables-3'!D544 -> 15393 | J28: ='[4]2015_Tables-3'!C592 -> 33.3 | K28: ='[4]2015_Tables-3'!B592 -> 66.7
A29: FEMALE | C29: ='[4]2015_Tables-3'!D609 -> 590397 | D29: ='[4]2015_Tables-3'!C657 -> 41.6 | E29: ='[4]2015_Tables-3'!B657 -> 58.4 | F29: ='[4]2015_Tables-3'!D625 -> 343566 | G29: ='[4]2015_Tables-3'!C673 -> 53.8 | H29: ='[4]2015_Tables-3'!B673 -> 46.2 | I29: ='[4]2015_Tables-3'!D641 -> 246831 | J29: ='[4]2015_Tables-3'!C689 -> 24.5 | K29: ='[4]2015_Tables-3'!B689 -> 75.5
B30: 15 - 19 years | C30: ='[4]2015_Tables-3'!D598 -> 111093 | D30: ='[4]2015_Tables-3'!C646 -> 67.7 | E30: ='[4]2015_Tables-3'!B646 -> 32.3 | F30: ='[4]2015_Tables-3'!D614 -> 66660 | G30: ='[4]2015_Tables-3'!C662 -> 79 | H30: ='[4]2015_Tables-3'!B662 -> 21 | I30: ='[4]2015_Tables-3'!D630 -> 44433 | J30: ='[4]2015_Tables-3'!C678 -> 50.7 | K30: ='[4]2015_Tables-3'!B678 -> 49.3
B31: 20 - 24 years | C31: ='[4]2015_Tables-3'!D599 -> 104429 | D31: ='[4]2015_Tables-3'!C647 -> 61 | E31: ='[4]2015_Tables-3'!B647 -> 39 | F31: ='[4]2015_Tables-3'!D615 -> 67790 | G31: ='[4]2015_Tables-3'!C663 -> 72.9 | H31: ='[4]2015_Tables-3'!B663 -> 27.1 | I31: ='[4]2015_Tables-3'!D631 -> 36639 | J31: ='[4]2015_Tables-3'!C679 -> 39.1 | K31: ='[4]2015_Tables-3'!B679 -> 60.9
B32: 25 - 29 years | C32: ='[4]2015_Tables-3'!D600 -> 89237 | D32: ='[4]2015_Tables-3'!C648 -> 44.3 | E32: ='[4]2015_Tables-3'!B648 -> 55.7 | F32: ='[4]2015_Tables-3'!D616 -> 55501 | G32: ='[4]2015_Tables-3'!C664 -> 55.2 | H32: ='[4]2015_Tables-3'!B664 -> 44.8 | I32: ='[4]2015_Tables-3'!D632 -> 33737 | J32: ='[4]2015_Tables-3'!C680 -> 26.3 | K32: ='[4]2015_Tables-3'!B680 -> 73.7
B33: 30 - 34 years | C33: ='[4]2015_Tables-3'!D601 -> 70222 | D33: ='[4]2015_Tables-3'!C649 -> 34.1 | E33: ='[4]2015_Tables-3'!B649 -> 65.9 | F33: ='[4]2015_Tables-3'!D617 -> 39962 | G33: ='[4]2015_Tables-3'!C665 -> 46.4 | H33: ='[4]2015_Tables-3'!B665 -> 53.6 | I33: ='[4]2015_Tables-3'!D633 -> 30259 | J33: ='[4]2015_Tables-3'!C681 -> 17.8 | K33: ='[4]2015_Tables-3'!B681 -> 82.2
B34: 35 - 39 years | C34: ='[4]2015_Tables-3'!D602 -> 59248 | D34: ='[4]2015_Tables-3'!C650 -> 27.6 | E34: ='[4]2015_Tables-3'!B650 -> 72.4 | F34: ='[4]2015_Tables-3'!D618 -> 34069 | G34: ='[4]2015_Tables-3'!C666 -> 38.6 | H34: ='[4]2015_Tables-3'!B666 -> 61.4 | I34: ='[4]2015_Tables-3'!D634 -> 25178 | J34: ='[4]2015_Tables-3'!C682 -> 12.8 | K34: ='[4]2015_Tables-3'!B682 -> 87.2
B35: 40 - 44 years | C35: ='[4]2015_Tables-3'!D603 -> 42666 | D35: ='[4]2015_Tables-3'!C651 -> 27.1 | E35: ='[4]2015_Tables-3'!B651 -> 72.9 | F35: ='[4]2015_Tables-3'!D619 -> 23394 | G35: ='[4]2015_Tables-3'!C667 -> 41.1 | H35: ='[4]2015_Tables-3'!B667 -> 58.9 | I35: ='[4]2015_Tables-3'!D635 -> 19272 | J35: ='[4]2015_Tables-3'!C683 -> 10.2 | K35: ='[4]2015_Tables-3'!B683 -> 89.8
B36: 45 - 49 years | C36: ='[4]2015_Tables-3'!D604 -> 29522 | D36: ='[4]2015_Tables-3'!C652 -> 16.1 | E36: ='[4]2015_Tables-3'!B652 -> 83.9 | F36: ='[4]2015_Tables-3'!D620 -> 15260 | G36: ='[4]2015_Tables-3'!C668 -> 21.4 | H36: ='[4]2015_Tables-3'!B668 -> 78.6 | I36: ='[4]2015_Tables-3'!D636 -> 14262 | J36: ='[4]2015_Tables-3'!C684 -> 10.4 | K36: ='[4]2015_Tables-3'!B684 -> 89.6
B37: 50 - 54 years | C37: ='[4]2015_Tables-3'!D605 -> 25441 | D37: ='[4]2015_Tables-3'!C653 -> 14.6 | E37: ='[4]2015_Tables-3'!B653 -> 85.4 | F37: ='[4]2015_Tables-3'!D621 -> 12457 | G37: ='[4]2015_Tables-3'!C669 -> 21.5 | H37: ='[4]2015_Tables-3'!B669 -> 78.5 | I37: ='[4]2015_Tables-3'!D637 -> 12984 | J37: ='[4]2015_Tables-3'!C685 -> 7.9 | K37: ='[4]2015_Tables-3'!B685 -> 92.1
B38: 55 - 59 years | C38: ='[4]2015_Tables-3'!D606 -> 17685 | D38: ='[4]2015_Tables-3'!C654 -> 14.5 | E38: ='[4]2015_Tables-3'!B654 -> 85.5 | F38: ='[4]2015_Tables-3'!D622 -> 10562 | G38: ='[4]2015_Tables-3'!C670 -> 20.4 | H38: ='[4]2015_Tables-3'!B670 -> 79.6 | I38: ='[4]2015_Tables-3'!D638 -> 7123 | J38: ='[4]2015_Tables-3'!C686 -> 5.9 | K38: ='[4]2015_Tables-3'!B686 -> 94.1
B39: 60 - 64 years | C39: ='[4]2015_Tables-3'!D607 -> 14121 | D39: ='[4]2015_Tables-3'!C655 -> 12.8 | E39: ='[4]2015_Tables-3'!B655 -> 87.2 | F39: ='[4]2015_Tables-3'!D623 -> 5911 | G39: ='[4]2015_Tables-3'!C671 -> 20.2 | H39: ='[4]2015_Tables-3'!B671 -> 79.8 | I39: ='[4]2015_Tables-3'!D639 -> 8210 | J39: ='[4]2015_Tables-3'!C687 -> 7.5 | K39: ='[4]2015_Tables-3'!B687 -> 92.5
B40: 65+ years | C40: ='[4]2015_Tables-3'!D608 -> 26734 | D40: ='[4]2015_Tables-3'!C656 -> 8.6 | E40: ='[4]2015_Tables-3'!B656 -> 91.4 | F40: ='[4]2015_Tables-3'!D624 -> 12000 | G40: ='[4]2015_Tables-3'!C672 -> 13 | H40: ='[4]2015_Tables-3'!B672 -> 87 | I40: ='[4]2015_Tables-3'!D640 -> 14734 | J40: ='[4]2015_Tables-3'!C688 -> 5 | K40: ='[4]2015_Tables-3'!B688 -> 95

Sheet Tab3.3
A1: Table 3.3
A2: Distribution of Youth (15-24 years) Literacy Levels by Sex and District (international definition)
C3: Youth literacy rate | D3: Male | G3: Female
D4: Count | E4: Literate | F4: Illiterate | G4: Count | H4: Literate | I4: Illiterate
A5: THE GAMBIA | C5: ='[4]2015_Tables-3'!C823 -> 67.2 | D5: ='[4]2015_Tables-3'!D890 -> 163325 | E5: ='[4]2015_Tables-3'!C957 -> 70.8 | F5: ='[4]2015_Tables-3'!B957 -> 29.2 | G5: ='[4]2015_Tables-3'!D1024 -> 215522 | H5: ='[4]2015_Tables-3'!C1091 -> 64.5 | I5: ='[4]2015_Tables-3'!B1091 -> 35.5
B6: Urban | C6: ='[4]2015_Tables-3'!C821 -> 77.5 | D6: ='[4]2015_Tables-3'!D888 -> 95441 | E6: ='[4]2015_Tables-3'!C955 -> 79.8 | F6: ='[4]2015_Tables-3'!B955 -> 20.2 | G6: ='[4]2015_Tables-3'!D1022 -> 134450 | H6: ='[4]2015_Tables-3'!C1089 -> 75.9 | I6: ='[4]2015_Tables-3'!B1089 -> 24.1
B7: Rural | C7: ='[4]2015_Tables-3'!C822 -> 51.2 | D7: ='[4]2015_Tables-3'!D889 -> 67884 | E7: ='[4]2015_Tables-3'!C956 -> 58.1 | F7: ='[4]2015_Tables-3'!B956 -> 41.9 | G7: ='[4]2015_Tables-3'!D1023 -> 81072 | H7: ='[4]2015_Tables-3'!C1090 -> 45.5 | I7: ='[4]2015_Tables-3'!B1090 -> 54.5
A8: Banjul | C8: ='[4]2015_Tables-3'!C774 -> 89.6 | D8: ='[4]2015_Tables-3'!D828 -> 2877 | E8: ='[4]2015_Tables-3'!C895 -> 91 | F8: ='[4]2015_Tables-3'!B895 -> 9 | G8: ='[4]2015_Tables-3'!D962 -> 3442 | H8: ='[4]2015_Tables-3'!C1029 -> 88.4 | I8: ='[4]2015_Tables-3'!B1029 -> 11.6
B9: Urban | C9: ='[4]2015_Tables-3'!C774 -> 89.6 | D9: ='[4]2015_Tables-3'!D841 -> 2877 | E9: ='[4]2015_Tables-3'!C908 -> 91 | F9: ='[4]2015_Tables-3'!B908 -> 9 | G9: ='[4]2015_Tables-3'!D975 -> 3442 | H9: ='[4]2015_Tables-3'!C1042 -> 88.4 | I9: ='[4]2015_Tables-3'!B1042 -> 11.6
A10: Kanifing | C10: ='[4]2015_Tables-3'!C762 -> 87 | D10: ='[4]2015_Tables-3'!D829 -> 36280 | E10: ='[4]2015_Tables-3'!C896 -> 89.5 | F10: ='[4]2015_Tables-3'!B896 -> 10.5 | G10: ='[4]2015_Tables-3'!D963 -> 51299 | H10: ='[4]2015_Tables-3'!C1030 -> 85.3 | I10: ='[4]2015_Tables-3'!B1030 -> 14.7
B11: Urban | C11: ='[4]2015_Tables-3'!C775 -> 87 | D11: ='[4]2015_Tables-3'!D842 -> 36280 | E11: ='[4]2015_Tables-3'!C909 -> 89.5 | F11: ='[4]2015_Tables-3'!B909 -> 10.5 | G11: ='[4]2015_Tables-3'!D976 -> 51299 | H11: ='[4]2015_Tables-3'!C1043 -> 85.3 | I11: ='[4]2015_Tables-3'!B1043 -> 14.7
A12: Brikama | C12: ='[4]2015_Tables-3'!C763 -> 71.4 | D12: ='[4]2015_Tables-3'!D830 -> 65605 | E12: ='[4]2015_Tables-3'!C897 -> 73.5 | F12: ='[4]2015_Tables-3'!B897 -> 26.5 | G12: ='[4]2015_Tables-3'!D964 -> 84586 | H12: ='[4]2015_Tables-3'!C1031 -> 69.8 | I12: ='[4]2015_Tables-3'!B1031 -> 30.2
B13: Kombo North | C13: ='[4]2015_Tables-3'!C776 -> 82.4 | D13: ='[4]2015_Tables-3'!D843 -> 30260 | E13: ='[4]2015_Tables-3'!C910 -> 84.6 | F13: ='[4]2015_Tables-3'!B910 -> 15.4 | G13: ='[4]2015_Tables-3'!D977 -> 45809 | H13: ='[4]2015_Tables-3'!C1044 -> 81 | I13: ='[4]2015_Tables-3'!B1044 -> 19
B14: Kombo South | C14: ='[4]2015_Tables-3'!C777 -> 52.1 | D14: ='[4]2015_Tables-3'!D844 -> 9758 | E14: ='[4]2015_Tables-3'!C911 -> 56.4 | F14: ='[4]2015_Tables-3'!B911 -> 43.6 | G14: ='[4]2015_Tables-3'!D978 -> 12278 | H14: ='[4]2015_Tables-3'!C1045 -> 48.7 | I14: ='[4]2015_Tables-3'!B1045 -> 51.3
B15: Kombo Central | C15: ='[4]2015_Tables-3'!C778 -> 67.3 | D15: ='[4]2015_Tables-3'!D845 -> 16397 | E15: ='[4]2015_Tables-3'!C912 -> 68.8 | F15: ='[4]2015_Tables-3'!B912 -> 31.2 | G15: ='[4]2015_Tables-3'!D979 -> 16136 | H15: ='[4]2015_Tables-3'!C1046 -> 65.8 | I15: ='[4]2015_Tables-3'!B1046 -> 34.2
B16: Kombo East | C16: ='[4]2015_Tables-3'!C779 -> 56.5 | D16: ='[4]2015_Tables-3'!D846 -> 3614 | E16: ='[4]2015_Tables-3'!C913 -> 67.4 | F16: ='[4]2015_Tables-3'!B913 -> 32.6 | G16: ='[4]2015_Tables-3'!D980 -> 4783 | H16: ='[4]2015_Tables-3'!C1047 -> 48.3 | I16: ='[4]2015_Tables-3'!B1047 -> 51.7
B17: Foni Brefet | C17: ='[4]2015_Tables-3'!C780 -> 52.6 | D17: ='[4]2015_Tables-3'!D847 -> 1354 | E17: ='[4]2015_Tables-3'!C914 -> 57.5 | F17: ='[4]2015_Tables-3'!B914 -> 42.5 | G17: ='[4]2015_Tables-3'!D981 -> 1262 | H17: ='[4]2015_Tables-3'!C1048 -> 47.5 | I17: ='[4]2015_Tables-3'!B1048 -> 52.5
B18: Foni Bintang | C18: ='[4]2015_Tables-3'!C781 -> 54.5 | D18: ='[4]2015_Tables-3'!D848 -> 1548 | E18: ='[4]2015_Tables-3'!C915 -> 56.9 | F18: ='[4]2015_Tables-3'!B915 -> 43.1 | G18: ='[4]2015_Tables-3'!D982 -> 1435 | H18: ='[4]2015_Tables-3'!C1049 -> 51.8 | I18: ='[4]2015_Tables-3'!B1049 -> 48.2
B19: Foni Kansalla | C19: ='[4]2015_Tables-3'!C782 -> 58.9 | D19: ='[4]2015_Tables-3'!D849 -> 1209 | E19: ='[4]2015_Tables-3'!C916 -> 61.1 | F19: ='[4]2015_Tables-3'!B916 -> 38.9 | G19: ='[4]2015_Tables-3'!D983 -> 1398 | H19: ='[4]2015_Tables-3'!C1050 -> 56.9 | I19: ='[4]2015_Tables-3'!B1050 -> 43.1
B20: Foni Bundali | C20: ='[4]2015_Tables-3'!C783 -> 51.8 | D20: ='[4]2015_Tables-3'!D850 -> 856 | E20: ='[4]2015_Tables-3'!C917 -> 56.6 | F20: ='[4]2015_Tables-3'!B917 -> 43.4 | G20: ='[4]2015_Tables-3'!D984 -> 684 | H20: ='[4]2015_Tables-3'!C1051 -> 45.8 | I20: ='[4]2015_Tables-3'!B1051 -> 54.2
B21: Foni Jarrol | C21: ='[4]2015_Tables-3'!C784 -> 76.6 | D21: ='[4]2015_Tables-3'!D851 -> 610 | E21: ='[4]2015_Tables-3'!C918 -> 82.3 | F21: ='[4]2015_Tables-3'!B918 -> 17.7 | G21: ='[4]2015_Tables-3'!D985 -> 800 | H21: ='[4]2015_Tables-3'!C1052 -> 72.3 | I21: ='[4]2015_Tables-3'!B1052 -> 27.7
A22: Mansakonko | C22: ='[4]2015_Tables-3'!C764 -> 51.9 | D22: ='[4]2015_Tables-3'!D831 -> 6525 | E22: ='[4]2015_Tables-3'!C898 -> 58.3 | F22: ='[4]2015_Tables-3'!B898 -> 41.7 | G22: ='[4]2015_Tables-3'!D965 -> 8337 | H22: ='[4]2015_Tables-3'!C1032 -> 46.8 | I22: ='[4]2015_Tables-3'!B1032 -> 53.2
B23: Kiang West | C23: ='[4]2015_Tables-3'!C785 -> 70.2 | D23: ='[4]2015_Tables-3'!D852 -> 1236 | E23: ='[4]2015_Tables-3'!C919 -> 72.9 | F23: ='[4]2015_Tables-3'!B919 -> 27.1 | G23: ='[4]2015_Tables-3'!D986 -> 1651 | H23: ='[4]2015_Tables-3'!C1053 -> 68.2 | I23: ='[4]2015_Tables-3'!B1053 -> 31.8
